Workbook

Sheet Formulacion
A1: Hoja | B1: Tipo1 | C1: Tipo2 | D1: Tipo3 | E1: Tipo4 | F1: Fecha | G1: Materiales | H1: MObra | I1: Postes | J1: Conductor | K1: VolumenZanja | L1: CostoTotal | M1: Cantidad | N1: CostoReferencia | O1: FactorAsimetria | P1: Condicion | Q1: Valor | R1: rango | S1: Codigo | T1: FactorEficienciaCantidad | U1: m2 | V1: CantMobPCComOt | W1: CantTrbtOtC
A2: AINAP | F2: SI | G2: SI | H2: SI | I2: NA | J2: NA | K2: NA | L2: NA | M2: NA | N2: NA | O2: 1 | P2: NA | Q2: NA | R2: NA | S2: NA | T2: 1 | U2: NA | V2: NA | W2: NA
A3: CEQOT | F3: SI | G3: NA | H3: SI | I3: NA | J3: NA | K3: NA | L3: SI | M3: NA | N3: NA | O3: 1 | P3: NA | Q3: NA | R3: NA | S3: NA | T3: 1 | U3: NA | V3: NA | W3: SI
A4: CMEDI | F4: SI | G4: NA | H4: NA | I4: NA | J4: NA | K4: NA | L4: NA | M4: NA | N4: NA | O4: 0.8 | P4: NA | Q4: NA | R4: NA | S4: NA | T4: 1 | U4: NA | V4: NA | W4: SI
A5: CMESM | F5: SI | G5: SI | H5: SI | I5: NA | J5: NA | K5: NA | L5: SI | M5: NA | N5: NA | O5: 1 | P5: NA | Q5: NA | R5: NA | S5: NA | T5: 1 | U5: NA | V5: NA | W5: NA
A6: DACBT | F6: SI | G6: SI | H6: SI | I6: NA | J6: NA | K6: NA | L6: NA | M6: NA | N6: NA | O6: 1 | P6: NA | Q6: NA | R6: NA | S6: 02060906 | T6: 1 | U6: NA | V6: NA | W6: NA
A7: DCRMM | F7: SI | G7: SI | H7: SI | I7: NA | J7: NA | K7: NA | L7: SI | M7: NA | N7: NA | O7: 1 | P7: NA | Q7: NA | R7: NA | S7: NA | T7: 1 | U7: NA | V7: NA | W7: NA
A8: DEQDM | F8: SI | G8: NA | H8: NA | I8: NA | J8: NA | K8: NA | L8: SI | M8: NA | N8: NA | O8: 1 | P8: NA | Q8: NA | R8: NA | S8: NA | T8: 1 | U8: NA | V8: SI | W8: NA
A9: DEQMC | F9: SI | G9: NA | H9: NA | I9: NA | J9: NA | K9: NA | L9: SI | M9: NA | N9: NA | O9: 1 | P9: NA | Q9: NA | R9: NA | S9: NA | T9: 1 | U9: NA | V9: SI | W9: NA
A10: DEQOT | F10: SI | G10: SI | H10: SI | I10: NA | J10: NA | K10: NA | L10: SI | M10: NA | N10: NA | O10: 1 | P10: NA | Q10: NA | R10: NA | S10: NA | T10: 1 | U10: NA | V10: SI | W10: NA
A11: DLAAT-115 | B11: DLA | F11: SI | G11: SI | H11: SI | I11: SI | J11: SI | K11: NA | L11: SI | M11: Conductor | N11: SI | O11: 1 | P11: vano | Q11: 100 | R11: 0.3 | S11: NA | T11: 1 | U11: NA | V11: NA | W11: NA
A12: DLAAT-230 | B12: DLA | F12: SI | G12: SI | H12: SI | I12: SI | J12: SI | K12: NA | L12: SI | M12: Conductor | N12: SI | O12: 1 | P12: vano | Q12: 60 | R12: 0.3 | S12: NA | T12: 1 | U12: NA | V12: NA | W12: NA
A13: DLABT | B13: DLA | F13: SI | G13: SI | H13: SI | I13: SI | J13: SI | K13: NA | L13: SI | M13: Conductor | N13: SI | O13: 1 | P13: vano | Q13: 30 | R13: 0.3 | S13: 0206170220032403 | T13: 1 | U13: NA | V13: NA | W13: NA
A14: DLAMT-13,8 | B14: DLA | F14: SI | G14: SI | H14: SI | I14: SI | J14: SI | K14: NA | L14: SI | M14: Conductor | N14: SI | O14: 1 | P14: vano | Q14: 45 | R14: 0.3 | S14: 0209200223022603 | T14: 1 | U14: NA | V14: NA | W14: NA
A15: DLAMT-34,5 | B15: DLA | F15: SI | G15: SI | H15: SI | I15: SI | J15: SI | K15: NA | L15: SI | M15: Conductor | N15: SI | O15: 1 | P15: vano | Q15: 45 | R15: 0.3 | S15: 0209200223022603 | T15: 0.95 | U15: NA | V15: NA | W15: NA
A16: DLAMT-Otras | B16: DLA | F16: SI | G16: SI | H16: SI | I16: SI | J16: SI | K16: NA | L16: SI | M16: Conductor | N16: SI | O16: 1 | P16: vano | Q16: 45 | R16: 0.3 | S16: 0209200223022603 | T16: 1 | U16: NA | V16: NA | W16: NA
A17: DLSAT-115 | B17: DLS | F17: SI | G17: SI | H17: SI | I17: NA | J17: SI | K17: SI | L17: SI | M17: NA | N17: NA | O17: 1 | P17: NA | Q17: NA | R17: NA | S17: NA | T17: 1 | U17: NA | V17: NA | W17: NA
A18: DLSAT-230 | B18: DLS | F18: SI | G18: SI | H18: SI | I18: NA | J18: SI | K18: SI | L18: SI | M18: NA | N18: NA | O18: 1 | P18: NA | Q18: NA | R18: NA | S18: NA | T18: 1 | U18: NA | V18: NA | W18: NA
A19: DLSBT | B19: DLS | F19: SI | G19: SI | H19: SI | I19: NA | J19: SI | K19: SI | L19: SI | M19: Conductor | N19: SI | O19: 1 | P19: VolumenZanja | Q19: 1000 | R19: 0.5 | S19: 020624022703 | T19: 1 | U19: NA | V19: NA | W19: NA
A20: DLSMT-13,8 | B20: DLS | F20: SI | G20: SI | H20: SI | I20: NA | J20: SI | K20: SI | L20: SI | M20: Conductor | N20: SI | O20: 1 | P20: VolumenZanja | Q20: 1000 | R20: 0.5 | S20: 020826043103 | T20: 1 | U20: NA | V20: NA | W20: NA
A21: DLSMT-34,5 | B21: DLS | F21: SI | G21: SI | H21: SI | I21: NA | J21: SI | K21: SI | L21: SI | M21: NA | N21: SI | O21: 1 | P21: NA | Q21: 1000 | R21: 0.5 | S21: NA | T21: 1 | U21: NA | V21: NA | W21: NA
A22: DLSMT-Otras | B22: DLS | F22: SI | G22: SI | H22: SI | I22: NA | J22: SI | K22: SI | L22: SI | M22: NA | N22: NA | O22: 1 | P22: NA | Q22: NA | R22: NA | S22: NA | T22: 1 | U22: NA | V22: NA | W22: NA
A23: DTRAM-115 | F23: SI | G23: NA | H23: NA | I23: NA | J23: NA | K23: NA | L23: SI | M23: NA | N23: NA | O23: 1 | P23: NA | Q23: NA | R23: NA | S23: NA | T23: 1 | U23: NA | V23: NA | W23: NA
A24: DTRAM-230 | F24: SI | G24: NA | H24: NA | I24: NA | J24: NA | K24: NA | L24: SI | M24: NA | N24: NA | O24: 1 | P24: NA | Q24: NA | R24: NA | S24: NA | T24: 1 | U24: NA | V24: NA | W24: NA
A25: DTRMB-13,8 | F25: SI | G25: SI | H25: SI | I25: NA | J25: NA | K25: NA | L25: SI | M25: CantTrbtOtC | N25: SI | O25: 1 | P25: NA | Q25: NA | R25: NA | S25: 02081106 | T25: 1 | U25: NA | V25: NA | W25: SI
A26: DTRMB-34,5 | F26: SI | G26: SI | H26: SI | I26: NA | J26: NA | K26: NA | L26: SI | M26: CantTrbtOtC | N26: SI | O26: 1 | P26: NA | Q26: NA | R26: NA | S26: 02081106 | T26: 1 | U26: NA | V26: NA | W26: SI
A27: DTRMB-Otras | F27: SI | G27: SI | H27: SI | I27: NA | J27: NA | K27: NA | L27: SI | M27: CantTrbtOtC | N27: SI | O27: 1 | P27: NA | Q27: NA | R27: NA | S27: 02081106 | T27: 1 | U27: NA | V27: NA | W27: SI
A28: DTRMM-13,8 | F28: SI | G28: NA | H28: NA | I28: NA | J28: NA | K28: NA | L28: SI | M28: NA | N28: NA | O28: 1 | P28: NA | Q28: NA | R28: NA | S28: NA | T28: 1 | U28: NA | V28: NA | W28: NA
A29: DTRMM-34,5 | F29: SI | G29: NA | H29: NA | I29: NA | J29: NA | K29: NA | L29: SI | M29: NA | N29: NA | O29: 1 | P29: NA | Q29: NA | R29: NA | S29: NA | T29: 1 | U29: NA | V29: NA | W29: NA
A30: DTRMM-Otras | F30: SI | G30: NA | H30: NA | I30: NA | J30: NA | K30: NA | L30: SI | M30: NA | N30: NA | O30: 1 | P30: NA | Q30: NA | R30: NA | S30: NA | T30: 1 | U30: NA | V30: NA | W30: NA
A31: PEDYM | F31: SI | G31: NA | H31: NA | I31: NA | J31: NA | K31: NA | L31: NA | M31: NA | N31: NA | O31: 1 | P31: NA | Q31: NA | R31: NA | S31: NA | T31: 1 | U31: SI | V31: NA | W31: NA
A32: PEQCM | F32: SI | G32: NA | H32: NA | I32: NA | J32: NA | K32: NA | L32: NA | M32: NA | N32: NA | O32: 1 | P32: NA | Q32: NA | R32: NA | S32: NA | T32: 1 | U32: NA | V32: SI | W32: NA
A33: PEQCO | F33: SI | G33: NA | H33: NA | I33: NA | J33: NA | K33: NA | L33: NA | M33: NA | N33: NA | O33: 1 | P33: NA | Q33: NA | R33: NA | S33: NA | T33: 1 | U33: NA | V33: SI | W33: NA
A34: PEQOT | F34: SI | G34: NA | H34: NA | I34: NA | J34: NA | K34: NA | L34: NA | M34: NA | N34: NA | O34: 1 | P34: NA | Q34: NA | R34: NA | S34: NA | T34: 1 | U34: NA | V34: Si | W34: NA
A35: PEQTC | F35: SI | G35: NA | H35: NA | I35: NA | J35: NA | K35: NA | L35: NA | M35: NA | N35: NA | O35: 1 | P35: NA | Q35: NA | R35: NA | S35: NA | T35: 1 | U35: NA | V35: NA | W35: NA
A36: PMOBI | F36: SI | G36: NA | H36: NA | I36: NA | J36: NA | K36: NA | L36: NA | M36: NA | N36: NA | O36: 1 | P36: NA | Q36: NA | R36: NA | S36: NA | T36: 1 | U36: NA | V36: Si | W36: NA
A37: PPLIN | F37: SI | G37: NA | H37: NA | I37: NA | J37: NA | K37: NA | L37: NA | M37: NA | N37: NA | O37: 1 | P37: NA | Q37: NA | R37: NA | S37: NA | T37: 1 | U37: NA | V37: NA | W37: NA
A38: PTERR | F38: SI | G38: NA | H38: NA | I38: NA | J38: NA | K38: NA | L38: NA | M38: m2 | N38: Si | O38: 1 | P38: NA | Q38: NA | R38: NA | S38: 0105 | T38: 1 | U38: SI | V38: NA | W38: NA

Sheet Parametros
A1: Parámetro | B1: Valor
A2: FechaMin | B2: 2009-09-30
A3: FechaMax | B3: 2010-12-31
A4: MaterialesMin | B4: 0
A5: MObraMin | B5: 0.01
A6: MObraMax | B6: 0.99
A7: PosteInicio | B7: 17
A8: PosteFin | B8: 19
A9: PosteInicioBT | B9: 14
A10: PosteFinBT | B10: 16
A11: DLA | B11: 50
A12: DLS | B12: 20
A13: CondInicio | B13: 11
A14: CondFin | B14: 15
A15: CondInicioBT | B15: 8
A16: CondFinBT | B16: 12
A17: ZanjaInicio | B17: 18
A18: ZanjaFin | B18: 21
A19: ZanjaInicioBT | B19: 15
A20: ZanjaFinBT | B20: 18
A21: CostoTotalMin | B21: 100
A22: PostesMin | B22: 2
A23: FactorAsig | B23: 0.5
A24: m2Inicio | B24: 15
A25: m2Fin | B25: 20
A26: m2Min | B26: 0 | C26: <=
A27: PEDYM | B27: 1
A28: PTERR | B28: 0
A29: CantMobPCComOtMin | B29: 0 | C29: <=
A30: CantTrbtOtCMin | B30: 0 | C30: >
A31: MDOmin | B31: 0

Sheet ValoresReferenciales
A1: Activo | B1: Valor Referencial | C1: Factor Ajuste Asignaciòn | D1: Valor Comparativo
A2: X | B2: 0 | C2: 0 | D2: NA
A12: =[1]Hoja2!B3 -> LABTM1HO3AL002 | B12: =[1]Hoja2!R3 -> 13.02876403 | C12: 0.2 | D12: =B12*(1+C12) -> 15.63451684
A13: =[1]Hoja2!B4 -> LABTM1HO3AL006 | B13: =[1]Hoja2!R4 -> 12.30494381 | C13: 0.2 | D13: =B13*(1+C13) -> 14.76593257
A14: =[1]Hoja2!B5 -> LABTT1HO4AL4/0 | B14: =[1]Hoja2!R5 -> 25.42945378 | C14: 0.2 | D14: 30.51534454
A15: =[1]Hoja2!B6 -> LABTM1HO3AL4/0 | B15: =[1]Hoja2!R6 -> 15.92404492 | C15: 0.2 | D15: 19.10885391
A16: =[1]Hoja2!B7 -> LABTM1HO3AL1/0 | B16: =[1]Hoja2!R7 -> 14.47640448 | C16: 0.2 | D16: 17.37168537
A17: =[1]Hoja2!B8 -> LABTT1HO4AL336 | B17: =[1]Hoja2!R8 -> 30.32307549 | C17: 0.2 | D17: 36.38769059
A18: =[1]Hoja2!B9 -> LABTM1HO2AL006 | B18: =[1]Hoja2!R9 -> 15.08046384 | C18: 0.2 | D18: 18.09655661
A19: =[1]Hoja2!B10 -> LABTM1HO3AL004 | B19: =[1]Hoja2!R10 -> 12.66685392 | C19: 0.2 | D19: 15.2002247
A20: =[1]Hoja2!B11 -> LABTT1HO4AL1/0 | B20: =[1]Hoja2!R11 -> 16.03440238 | C20: 0.2 | D20: 19.24128285
A21: =[1]Hoja2!B12 -> LABTM1HO1CU004 | B21: =[1]Hoja2!R12 -> 17.74172216 | C21: 0.2 | D21: 21.2900666
A22: =[1]Hoja2!B13 -> LABTM1HO1CU006 | B22: =[1]Hoja2!R13 -> 17.74172216 | C22: 0.2 | D22: 21.2900666
A23: =[1]Hoja2!B14 -> LAMT138T1HOAS477 | B23: =[1]Hoja2!R14 -> 26.58703333 | C23: 0.2 | D23: 31.90443999
A24: =[1]Hoja2!B15 -> LAMT138T1HOAS1/0 | B24: =[1]Hoja2!R15 -> 20.07613049 | C24: 0.2 | D24: 24.09135659
A25: =[1]Hoja2!B16 -> LAMT138M1HOAS1/0 | B25: =[1]Hoja2!R16 -> 15.21701129 | C25: 0.2 | D25: 18.26041354
A26: =[1]Hoja2!B17 -> LAMT138T1HOOO477 | B26: =[1]Hoja2!R17 -> 26.58703333 | C26: 0.2 | D26: 31.90443999 | N26: º
A27: =[1]Hoja2!B18 -> LAMT138T1HOOO1/0 | B27: =[1]Hoja2!R18 -> 20.07613049 | C27: 0.2 | D27: 24.09135659
A28: =[1]Hoja2!B19 -> LAMT138T1HOAS266 | B28: =[1]Hoja2!R19 -> 35.18443006 | C28: 0.2 | D28: 42.22131607
A29: =[1]Hoja2!B20 -> LAMT138M1HOAS004 | B29: =[1]Hoja2!R20 -> 15.21701129 | C29: 0.2 | D29: 18.26041354
A30: =[1]Hoja2!B21 -> LAMT345M1HOAS1/0 | B30: =[1]Hoja2!R21 -> 15.72825409 | C30: 0.2 | D30: 18.8739049
A31: =[1]Hoja2!B22 -> LAMT345T1HOAS1/0 | B31: =[1]Hoja2!R22 -> 21.32806781 | C31: 0.2 | D31: 25.59368137
A32: =[1]Hoja2!B23 -> LAMT345T1HOAS477 | B32: =[1]Hoja2!R23 -> 27.83897065 | C32: 0.2 | D32: 33.40676477
A33: =[1]Hoja2!B24 -> LAMT345T1HOAS266 | B33: =[1]Hoja2!R24 -> 23.6219547 | C33: 0.2 | D33: 28.34634564
A34: =[1]Hoja2!B25 -> LAMT345T2HOAL477 | B34: =[1]Hoja2!R25 -> 27.83897065 | C34: 0.2 | D34: 33.40676477
A35: =[1]Hoja2!B26 -> LSBTT1AL4/0 | B35: =[1]Hoja2!R26 -> 77.88783589 | C35: 0.2 | D35: 93.46540306
A36: =[1]Hoja2!B27 -> LSBTT1AL500 | B36: =[1]Hoja2!R27 -> 88.01362292 | C36: 0.2 | D36: 105.6163475
A37: =[1]Hoja2!B28 -> LSBTT1AL1/0 | B37: =[1]Hoja2!R28 -> 70.74921995 | C37: 0.2 | D37: 84.89906394
A38: =[1]Hoja2!B29 -> LSBTM1AL002 | B38: =[1]Hoja2!R29 -> 62.59084859 | C38: 0.2 | D38: 75.1090183
A39: =[1]Hoja2!B30 -> LSBTM1AL1/0 | B39: =[1]Hoja2!R30 -> 65.88510377 | C39: 0.2 | D39: 79.06212453
A40: =[1]Hoja2!B31 -> LSBTM1AL500 | B40: =[1]Hoja2!R31 -> 75.4191993 | C40: 0.2 | D40: 90.50303917
A41: =[1]Hoja2!B32 -> LSBTM1AL4/0 | B41: =[1]Hoja2!R32 -> 71.99105388 | C41: 0.2 | D41: 86.38926466
A42: =[1]Hoja2!B33 -> LSBTM1AL006 | B42: =[1]Hoja2!R33 -> 62.59084859 | C42: 0.2 | D42: 75.1090183
A43: =[1]Hoja2!B34 -> LSBTM1CU008 | B43: =[1]Hoja2!R34 -> 62.59084859 | C43: 0.2 | D43: 75.1090183
A44: =[1]Hoja2!B35 -> LSMT138TLAAL4/0 | B44: =[1]Hoja2!R35 -> 123.6163839 | C44: 0.2 | D44: 148.3396607
A45: =[1]Hoja2!B36 -> LSMT138TLAAL500 | B45: =[1]Hoja2!R36 -> 149.467061 | C45: 0.2 | D45: 179.3604732
A46: =[1]Hoja2!B37 -> LSMT138TLAAL750 | B46: =[1]Hoja2!R37 -> 156.940414 | C46: 0.2 | D46: 188.3284968
A47: =[1]Hoja2!B38 -> LSMT138TLACU500 | B47: =[1]Hoja2!R38 -> 256.7811942 | C47: 0.2 | D47: 308.1374331
A48: =[1]Hoja2!B39 -> LSMT138TLAAL1/0 | B48: =[1]Hoja2!R39 -> 110.085221 | C48: 0.2 | D48: 132.1022652
A49: =[1]Hoja2!B40 -> LSMT138MLAAL1/0 | B49: =[1]Hoja2!R40 -> 69.79251929 | C49: 0.2 | D49: 83.75102315
A50: =[1]Hoja2!B41 -> TRMB138T0500IG | B50: =[1]Hoja2!R41 -> 28462.99228 | C50: 0.2 | D50: 34155.59074
A51: =[1]Hoja2!B42 -> TRMB138M0010IP | B51: =[1]Hoja2!R42 -> 1651.366833 | C51: 0.2 | D51: 1981.640199
A52: =[1]Hoja2!B43 -> TRMB138T0750SG | B52: =[1]Hoja2!R43 -> 46993.88534 | C52: 0.2 | D52: 56392.66241
A53: =[1]Hoja2!B44 -> TRMB138T1000IG | B53: =[1]Hoja2!R44 -> 54079.68534 | C53: 0.2 | D53: 64895.62241
A54: =[1]Hoja2!B45 -> TRMB138T0750IG | B54: =[1]Hoja2!R45 -> 42694.48843 | C54: 0.2 | D54: 51233.38611
A55: =[1]Hoja2!B46 -> TRMB138T0300IG | B55: =[1]Hoja2!R46 -> 27629.11796 | C55: 0.2 | D55: 33154.94155
A56: =[1]Hoja2!B47 -> TRMB138M0075IP | B56: =[1]Hoja2!R47 -> 4641.060867 | C56: 0.2 | D56: 5569.273041
A57: =[1]Hoja2!B48 -> TRMB138T0150IG | B57: =[1]Hoja2!R48 -> 15709.36758 | C57: 0.2 | D57: 18851.24109
A58: =[1]Hoja2!B49 -> TRMB138T1500IG | B58: =[1]Hoja2!R49 -> 76850.07917 | C58: 0.2 | D58: 92220.095
A59: =[1]Hoja2!B50 -> TRMB138T0075IP | B59: =[1]Hoja2!R50 -> 4545.332899 | C59: 0.2 | D59: 5454.399478
A60: =[1]Hoja2!B51 -> TRMB138T0225IP | B60: =[1]Hoja2!R51 -> 13923.1826 | C60: 0.2 | D60: 16707.81912
A61: =[1]Hoja2!B52 -> TRMB138T0150IP | B61: =[1]Hoja2!R52 -> 12758.94146 | C61: 0.2 | D61: 15310.72975
A62: =[1]Hoja2!B53 -> TRMB138M0025IP | B62: =[1]Hoja2!R53 -> 1957.122122 | C62: 0.2 | D62: 2348.546547
A63: =[1]Hoja2!B54 -> TRMB138M0050IP | B63: =[1]Hoja2!R54 -> 4252.980487 | C63: 0.2 | D63: 5103.576585
A64: =[1]Hoja2!B55 -> TRMB138M0075IG | B64: =[1]Hoja2!R55 -> 6747.596982 | C64: 0.2 | D64: 8097.116379
A65: =[1]Hoja2!B56 -> TRMB138T2500IG | B65: =[1]Hoja2!R56 -> 113851.9691 | C65: 0.2 | D65: 136622.363
A66: =[1]Hoja2!B57 -> TRMB138M0100IG | B66: =[1]Hoja2!R57 -> 8355.222062 | C66: 0.2 | D66: 10026.26647
A67: =[1]Hoja2!B58 -> TRMB138M0167IP | B67: =[1]Hoja2!R58 -> 14204.95483 | C67: 0.2 | D67: 17045.94579
A68: =[1]Hoja2!B59 -> TRMB138T0030IP | B68: =[1]Hoja2!R59 -> 4504.433475 | C68: 0.2 | D68: 5405.32017
A69: =[1]Hoja2!B60 -> TRMB138M0050IG | B69: =[1]Hoja2!R60 -> 7854.58017 | C69: 0.2 | D69: 9425.496205
A70: =[1]Hoja2!B61 -> TRMB138T0100IP | B70: =[1]Hoja2!R61 -> 5537.456341 | C70: 0.2 | D70: 6644.947609
A71: =[1]Hoja2!B62 -> TRMB138T0050IP | B71: =[1]Hoja2!R62 -> 4717.189028 | C71: 0.2 | D71: 5660.626834
A72: =[1]Hoja2!B63 -> TRMB138M0015IP | B72: =[1]Hoja2!R63 -> 1777.886183 | C72: 0.2 | D72: 2133.463419
A73: =[1]Hoja2!B64 -> TRMB138M0037IP | B73: =[1]Hoja2!R64 -> 3370.977507 | C73: 0.2 | D73: 4045.173008
A74: =[1]Hoja2!B65 -> TRMB345T0050IP | B74: =[1]Hoja2!R65 -> 6958.433588 | C74: 0.2 | D74: 8350.120306
A75: =[1]Hoja2!B66 -> TRMB345M0010IP | B75: =[1]Hoja2!R66 -> 2719.862152 | C75: 0.2 | D75: 3263.834583
A76: =[1]Hoja2!B67 -> TRMB345M0025IP | B76: =[1]Hoja2!R67 -> 3366.972477 | C76: 0.2 | D76: 4040.366972
A77: =[1]Hoja2!B68 -> TRMB345M0050IP | B77: =[1]Hoja2!R68 -> 4860.525621 | C77: 0.2 | D77: =B77*(1+C77) -> 5832.630746
A78: =[1]Hoja2!B69 -> TRMB345T1500IG | B78: =[1]Hoja2!R69 -> 88941.60574 | C78: 0.2 | D78: 106729.9269
A79: =[1]Hoja2!B70 -> TRMB345M0100IG | B79: =[1]Hoja2!R70 -> 15247.13136 | C79: 0.2 | D79: 18296.55764
A80: =[1]Hoja2!B71 -> TRMB345M0075IP | B80: =[1]Hoja2!R71 -> 5850.726494 | C80: 0.2 | D80: 7020.871792
A81: =[1]Hoja2!B72 -> TRMB345T0500IG | B81: =[1]Hoja2!R72 -> 29647.20191 | C81: 0.2 | D81: 35576.64229
A82: =[1]Hoja2!B73 -> TRMB345T0225IP | B82: =[1]Hoja2!R73 -> 17552.17948 | C82: 0.2 | D82: 21062.61538
A83: =[1]Hoja2!B74 -> TRMB345T0150IP | B83: =[1]Hoja2!R74 -> 14581.57686 | C83: 0.2 | D83: 17497.89224
A84: =[1]Hoja2!B75 -> TRMB345T0075IP | B84: =[1]Hoja2!R75 -> 9053.348391 | C84: 0.2 | D84: 10864.01807
A85: =[1]Hoja2!B76 -> TRMB345M0050IG | B85: =[1]Hoja2!R76 -> 9931.870514 | C85: 0.2 | D85: 11918.24462
A86: =[1]Hoja2!B77 -> TRMB345M0167IG | B86: =[1]Hoja2!R77 -> 19977.27163 | C86: 0.2 | D86: 23972.72595
A87: =[1]Hoja2!B78 -> TRMB345T0150IG | B87: =[1]Hoja2!R78 -> 17943.65715 | C87: 0.2 | D87: 21532.38858
A88: =[1]Hoja2!B79 -> TRMB345T0300IG | B88: =[1]Hoja2!R79 -> 28813.32759 | C88: 0.2 | D88: 34575.99311
A89: =[1]Hoja2!B80 -> TRMB345T0750IG | B89: =[1]Hoja2!R80 -> 44470.80287 | C89: 0.2 | D89: 53364.96344
A90: =[1]Hoja2!B81 -> TRMB345T1000IG | B90: =[1]Hoja2!R81 -> 59294.40382 | C90: 0.2 | D90: 71153.28459
A91: =[1]Hoja2!B82 -> TRMB345T0030IP | B91: =[1]Hoja2!R82 -> 5768.059113 | C91: 0.2 | D91: 6921.670936
A92: =[1]Hoja2!B83 -> TRMB345T0100IP | B92: =[1]Hoja2!R83 -> 12091.13729 | C92: 0.2 | D92: 14509.36475
A93: =[1]Hoja2!B84 -> TRMB345M0037IP | B93: =[1]Hoja2!R84 -> 4299.247117 | C93: 0.2 | D93: 5159.09654
A94: =[1]Hoja2!B85 -> LABTM1HO1CU008 | B94: =[1]Hoja2!R85 -> 17.74172216 | C94: 0.2 | D94: 21.2900666
A95: =[1]Hoja2!B86 -> LABTM1HO1AL1/0 | B95: =[1]Hoja2!R86 -> 17.74172216 | C95: 0.2 | D95: 21.2900666
A96: =[1]Hoja2!B87 -> LAMT138T1HOAL1/0 | B96: =[1]Hoja2!R87 -> 20.07613049 | C96: 0.2 | D96: 24.09135659
A97: =[1]Hoja2!B88 -> LAMT138M1MEAS1/0 | B97: =[1]Hoja2!R88 -> 15.21701129 | C97: 0.2 | D97: 18.26041354
A98: =[1]Hoja2!B89 -> LAMT138T1HOAS004 | B98: =[1]Hoja2!R89 -> 20.07613049 | C98: 0.2 | D98: 24.09135659
A99: =[1]Hoja2!B90 -> LAMT138T1MEAS477 | B99: =[1]Hoja2!R90 -> 26.58703333 | C99: 0.2 | D99: 31.90443999
A100: =[1]Hoja2!B91 -> LAMT138M1HOAL1/0 | B100: =[1]Hoja2!R91 -> 15.21701129 | C100: 0.2 | D100: 18.26041354
A101: =[1]Hoja2!B92 -> LAMT138T1MEAL1/0 | B101: =[1]Hoja2!R92 -> 20.07613049 | C101: 0.2 | D101: 24.09135659
A102: =[1]Hoja2!B93 -> LAMT345M1MEAS1/0 | B102: =[1]Hoja2!R93 -> 15.72825409 | C102: 0.2 | D102: 18.8739049
A103: =[1]Hoja2!B94 -> LAMT345T16HCAC47 | B103: =[1]Hoja2!R94 -> 27.83897065 | C103: 0.2 | D103: 33.40676477
A104: =[1]Hoja2!B95 -> LAMT345T1MEAS1/0 | B104: =[1]Hoja2!R95 -> 21.32806781 | C104: 0.2 | D104: 25.59368137
A105: =[1]Hoja2!B96 -> LAMT345T1HOAL1/0 | B105: =[1]Hoja2!R96 -> 21.32806781 | C105: 0.2 | D105: 25.59368137
A106: =[1]Hoja2!B97 -> LAMT345M1HOAL1/0 | B106: =[1]Hoja2!R97 -> 15.72825409 | C106: 0.2 | D106: 18.8739049
A107: =[1]Hoja2!B98 -> LAMT345T1MEAS477 | B107: =[1]Hoja2!R98 -> 27.83897065 | C107: 0.2 | D107: 33.40676477
A108: =[1]Hoja2!B99 -> LAMT345M1HOAS04 | B108: =[1]Hoja2!R99 -> 15.72825409 | C108: 0.2 | D108: 18.8739049
A109: =[1]Hoja2!B100 -> LAMT345T1HOOO477 | B109: =[1]Hoja2!R100 -> 27.83897065 | C109: 0.2 | D109: 33.40676477
A110: =[1]Hoja2!B101 -> LSBTM1AL008 | B110: =[1]Hoja2!R101 -> 62.59084859 | C110: 0.2 | D110: 75.1090183
A111: =[1]Hoja2!B102 -> LSBTT1AL336 | B111: =[1]Hoja2!R102 -> 83.82249802 | C111: 0.2 | D111: 100.5869976
A112: =[1]Hoja2!B103 -> LSBTM1AL004 | B112: =[1]Hoja2!R103 -> 62.59084859 | C112: 0.2 | D112: 75.1090183
A113: =[1]Hoja2!B104 -> LSBTT1CU500 | B113: =[1]Hoja2!R104 -> 92.20474782 | C113: 0.2 | D113: 110.6456974
A114: =[1]Hoja2!B105 -> LSBTT1CU004 | B114: =[1]Hoja2!R105 -> 67.21175895 | C114: 0.2 | D114: 80.65411074
A115: =[1]Hoja2!B106 -> LSBTT1AL004 | B115: =[1]Hoja2!R106 -> 67.21175895 | C115: 0.2 | D115: 80.65411074
A116: =[1]Hoja2!B107 -> LSBTM1CU006 | B116: =[1]Hoja2!R107 -> 62.59084859 | C116: 0.2 | D116: 75.1090183
A117: =[1]Hoja2!B108 -> LSMT138TLACU4/0 | B117: =[1]Hoja2!R108 -> 168.0848758 | C117: 0.2 | D117: 201.7018509
A118: =[1]Hoja2!B109 -> TRMB138M0167IG | B118: =[1]Hoja2!R109 -> 17489.76257 | C118: 0.2 | D118: 20987.71508
A119: =[1]Hoja2!B110 -> TRMB138M0100IP | B119: =[1]Hoja2!R110 -> 8505.960974 | C119: 0.2 | D119: 10207.15317
A120: =[1]Hoja2!B111 -> TRMB345M0250IP | B120: =[1]Hoja2!R111 -> 19502.42165 | C120: 0.2 | D120: 23402.90597
A121: =[1]Hoja2!B112 -> TRMB345T0025IP | B121: =[1]Hoja2!R112 -> 4806.715927 | C121: 0.2 | D121: 5768.059113
A122: =[1]Hoja2!B113 -> LABTM1HO1AL002 | B122: =[1]Hoja2!R113 -> 15.96754995 | C122: 0.2 | D122: 19.16105994
A123: =[1]Hoja2!B114 -> LAMT138T1HOAL477 | B123: =[1]Hoja2!R114 -> 26.58703333 | C123: 0.2 | D123: 31.90443999
A124: =[1]Hoja2!B115 -> LAMT345T1HOAL477 | B124: =[1]Hoja2!R115 -> 27.83897065 | C124: 0.2 | D124: 33.40676477
A125: =[1]Hoja2!B116 -> LAMT345T1HOOO1/0 | B125: =[1]Hoja2!R116 -> 21.32806781 | C125: 0.2 | D125: 25.59368137
A126: =[1]Hoja2!B117 -> LSMT138TLACU002 | B126: =[1]Hoja2!R117 -> 136.5880724 | C126: 0.2 | D126: 163.9056869
A127: =[1]Hoja2!B118 -> LSMT138TLACU004 | B127: =[1]Hoja2!R118 -> 136.5880724 | C127: 0.2 | D127: 163.9056869
A128: =[1]Hoja2!B119 -> LSMT138MLACU020 | B128: =[1]Hoja2!R119 -> 81.02308558 | C128: 0.2 | D128: 97.2277027
A129: =[1]Hoja2!B120 -> TRMB138M2500IG | B129: =[1]Hoja2!R120 -> 28462.99228 | C129: 0.2 | D129: 34155.59074
A130: =[1]Hoja2!B121 -> TRMB138T0300IP | B130: =[1]Hoja2!R121 -> 18564.24347 | C130: 0.2 | D130: 22277.09216
A131: =[1]Hoja2!B122 -> TRMB138M1500IG | B131: =[1]Hoja2!R122 -> 85388.97685 | C131: 0.2 | D131: 102466.7722
A132: =[1]Hoja2!B123 -> TRMB138M0250IP | B132: =[1]Hoja2!R123 -> 15470.20289 | C132: 0.2 | D132: 18564.24347
A133: =[1]Hoja2!B124 -> TRMB345M0015IP | B133: =[1]Hoja2!R124 -> 3463.066797 | C133: 0.2 | D133: 4155.680156
A134: =[1]Hoja2!B125 -> TRMB345M0100IP | B134: =[1]Hoja2!R125 -> 9721.051243 | C134: 0.2 | D134: 11665.26149
A135: =[1]Hoja2!B126 -> TRMB345M0167IP | B135: =[1]Hoja2!R126 -> 13027.61766 | C135: 0.2 | D135: 15633.14119
A136: =[1]Hoja2!B127 -> LABTM1MA3AL1/0 | B136: =[1]Hoja2!R127 -> 14.47640448 | C136: 0.2 | D136: 17.37168537
A137: =[1]Hoja2!B128 -> LABTM1MA0AL1/0 | B137: =[1]Hoja2!R128 -> 17.74172216 | C137: 0.2 | D137: 21.2900666
A138: =[1]Hoja2!B129 -> LABTM1HO0AL1/0 | B138: =[1]Hoja2!R129 -> 17.74172216 | C138: 0.2 | D138: 21.2900666
A139: =[1]Hoja2!B130 -> LABTM1MA1AL1/0 | B139: =[1]Hoja2!R130 -> 17.74172216 | C139: 0.2 | D139: 21.2900666
A140: =[1]Hoja2!B131 -> LAMT138M1MAAL1/0 | B140: =[1]Hoja2!R131 -> 14.32828048 | C140: 0.2 | D140: 17.19393657
A141: =[1]Hoja2!B132 -> LAMT138T1MAAL1/0 | B141: =[1]Hoja2!R132 -> 19.88547168 | C141: 0.2 | D141: =B141*(1+C141) -> 23.86256601
A142: =[1]Hoja2!B133 -> LAMT138T2HOAL477 | B142: =[1]Hoja2!R133 -> 34.56314333 | C142: 0.2 | D142: 41.47577199
A143: =[1]Hoja2!B134 -> LAMT138T2MAAL477 | B143: =[1]Hoja2!R134 -> 35.1443363 | C143: 0.2 | D143: 42.17320356
A144: =[1]Hoja2!B135 -> LAMT138T1HOAL266 | B144: =[1]Hoja2!R135 -> 29.94367656 | C144: 0.2 | D144: 35.93241187
A145: =[1]Hoja2!B136 -> LAMT138T1MAAL477 | B145: =[1]Hoja2!R136 -> 27.03410484 | C145: 0.2 | D145: 32.44092581
A146: =[1]Hoja2!B137 -> LAMT138T2HOAL266 | B146: =[1]Hoja2!R137 -> 38.92677952 | C146: 0.2 | D146: 46.71213543
A147: =[1]Hoja2!B138 -> LAMT138T2HOAL1/0 | B147: =[1]Hoja2!R138 -> 26.09896964 | C147: 0.2 | D147: 31.31876356
A148: =[1]Hoja2!B139 -> LAMT138B1HOAL1/0 | B148: =[1]Hoja2!R139 -> 17.40150499 | C148: 0.2 | D148: 20.88180599
A149: =[1]Hoja2!B140 -> LAMT138B1MAAL1/0 | B149: =[1]Hoja2!R140 -> 18.06055356 | C149: 0.2 | D149: 21.67266428
A150: =[1]Hoja2!B141 -> LAMT138T2MAAL1/0 | B150: =[1]Hoja2!R141 -> 25.85111318 | C150: 0.2 | D150: 31.02133582
A151: =[1]Hoja2!B142 -> LAMT138T2HOAS477 | B151: =[1]Hoja2!R142 -> 34.56314333 | C151: 0.2 | D151: 41.47577199
A152: =[1]Hoja2!B143 -> LAMT438T1HOAL477 | B152: =[1]Hoja2!R143 -> 32.01481624 | C152: 0.2 | D152: 38.41777949
A153: =[1]Hoja2!B144 -> LAMT042M1MAAL1/0 | B153: =[1]Hoja2!R144 -> 14.32828048 | C153: 0.2 | D153: 17.19393657
A154: =[1]Hoja2!B145 -> LSBTM1CU000 | B154: =[1]Hoja2!R145 -> 62.59084859 | C154: 0.2 | D154: 75.1090183
A155: =[1]Hoja2!B146 -> LSBTT1CU000 | B155: =[1]Hoja2!R146 -> 67.21175895 | C155: 0.2 | D155: 80.65411074
A156: =[1]Hoja2!B147 -> LSMT138MLACU002 | B156: =[1]Hoja2!R147 -> 76.9719313 | C156: 0.2 | D156: 92.36631756
A157: =[1]Hoja2!B148 -> LSMT138MLACU4/0 | B157: =[1]Hoja2!R148 -> 92.98158874 | C157: 0.2 | D157: 111.5779065
A158: =[1]Hoja2!B149 -> LSMT138TLACU000 | B158: =[1]Hoja2!R149 -> 136.5880724 | C158: 0.2 | D158: 163.9056869
A159: =[1]Hoja2!B150 -> LSMT138TSLACA00 | B159: =[1]Hoja2!R150 -> 104.5809599 | C159: 0.2 | D159: 125.4971519
A160: =[1]Hoja2!B151 -> LSMT138TSLACA4/ | B160: =[1]Hoja2!R151 -> 123.6163839 | C160: 0.2 | D160: 148.3396607
A161: =[1]Hoja2!B152 -> TRMB138T0062IP | B161: =[1]Hoja2!R152 -> 4545.332899 | C161: 0.2 | D161: 5454.399478
A162: =[1]Hoja2!B153 -> TRMB138T0087IP | B162: =[1]Hoja2!R153 -> 4545.332899 | C162: 0.2 | D162: 5454.399478
A163: =[1]Hoja2!B154 -> TRMB138T0125IP | B163: =[1]Hoja2!R154 -> 5537.456341 | C163: 0.2 | D163: 6644.947609
A164: =[1]Hoja2!B155 -> TRMB138T0040IP | B164: =[1]Hoja2!R155 -> 4717.189028 | C164: 0.2 | D164: 5660.626834
A165: =[1]Hoja2!B156 -> TRMB138T0065IP | B165: =[1]Hoja2!R156 -> 4545.332899 | C165: 0.2 | D165: 5454.399478
A166: =[1]Hoja2!B157 -> TRMB138M0025IG | B166: =[1]Hoja2!R157 -> 5875.244881 | C166: 0.2 | D166: 7050.293857
A167: =[1]Hoja2!B158 -> TRMB138M0500IG | B167: =[1]Hoja2!R158 -> 28462.99228 | C167: 0.2 | D167: 34155.59074
A168: =[1]Hoja2!B159 -> TRMB138T0225IG | B168: =[1]Hoja2!R159 -> 19695.82033 | C168: 0.2 | D168: 23634.9844
A169: =[1]Hoja2!B160 -> TRMB138T0112IG | B169: =[1]Hoja2!R160 -> 14842.49833 | C169: 0.2 | D169: 17810.998
A170: =[1]Hoja2!B161 -> TRMB138T0075IG | B170: =[1]Hoja2!R161 -> 12663.51542 | C170: 0.2 | D170: 15196.21851
A171: =[1]Hoja2!B162 -> TRMB138M0037IG | B171: =[1]Hoja2!R162 -> 6121.957807 | C171: 0.2 | D171: 7346.349369
A172: =[1]Hoja2!B163 -> TRMB042M0025IP | B172: =[1]Hoja2!R163 -> 1957.122122 | C172: 0.2 | D172: 2348.546547
A173: =[1]Hoja2!B164 -> TRMB042M0037IP | B173: =[1]Hoja2!R164 -> 3370.977507 | C173: 0.2 | D173: 4045.173008
A174: =[1]Hoja2!B165 -> TRMB042M0050IP | B174: =[1]Hoja2!R165 -> 4252.980487 | C174: 0.2 | D174: 5103.576585
A175: =[1]Hoja2!B166 -> TRMB042M0075IP | B175: =[1]Hoja2!R166 -> 4641.060867 | C175: 0.2 | D175: 5569.273041
A176: =[1]Hoja2!B167 -> TRMB120M0037IP | B176: =[1]Hoja2!R167 -> 3370.977507 | C176: 0.2 | D176: 4045.173008
A177: =[1]Hoja2!B168 -> TRMB120M0050IP | B177: =[1]Hoja2!R168 -> 4252.980487 | C177: 0.2 | D177: 5103.576585
A178: =[1]Hoja2!B169 -> TRMB042M0167IP | B178: =[1]Hoja2!R169 -> 14204.95483 | C178: 0.2 | D178: 17045.94579
A179: =[1]Hoja2!B170 -> TRMB042M0010IP | B179: =[1]Hoja2!R170 -> 1651.366833 | C179: 0.2 | D179: 1981.640199
A180: =[1]Hoja2!B171 -> TRMB042M0100IP | B180: =[1]Hoja2!R171 -> 8505.960974 | C180: 0.2 | D180: 10207.15317
A181: =[1]Hoja2!B172 -> TRMB042M0015IP | B181: =[1]Hoja2!R172 -> 1777.886183 | C181: 0.2 | D181: 2133.463419
A182: =[1]Hoja2!B173 -> TRMB120T0500IG | B182: =[1]Hoja2!R173 -> 28462.99228 | C182: 0.2 | D182: 34155.59074
A183: =[1]Hoja2!B174 -> TRMB120M0025IP | B183: =[1]Hoja2!R174 -> 1957.122122 | C183: 0.2 | D183: 2348.546547
A184: =[1]Hoja2!B175 -> LABTM1FV0AL1/0 | B184: =[1]Hoja2!R175 -> 19.51589438 | C184: 0.2 | D184: 23.41907325
A185: =[1]Hoja2!B176 -> LABTM1ACALA/0 | B185: =[1]Hoja2!R176 -> 17.74172216 | C185: 0.2 | D185: 21.2900666
A186: =[1]Hoja2!B177 -> LABTT1MA0AL1/0 | B186: =[1]Hoja2!R177 -> 16.03440238 | C186: 0.2 | D186: 19.24128285
A187: =[1]Hoja2!B178 -> LABTM1FV3AL1/0 | B187: =[1]Hoja2!R178 -> 15.92404492 | C187: 0.2 | D187: 19.10885391
A188: =[1]Hoja2!B179 -> LABTM1FVAC3LA1 | B188: =[1]Hoja2!R179 -> 19.51589438 | C188: 0.2 | D188: 23.41907325
A189: =[1]Hoja2!B180 -> LABTM1FV1AL1/0 | B189: =[1]Hoja2!R180 -> 19.51589438 | C189: 0.2 | D189: 23.41907325
A190: =[1]Hoja2!B181 -> LAMT138M16HCAA1/ | B190: =[1]Hoja2!R181 -> 15.21701129 | C190: 0.2 | D190: 18.26041354
A191: =[1]Hoja2!B182 -> LAMT138T1OCLA/0 | B191: =[1]Hoja2!R182 -> 20.07613049 | C191: 0.2 | D191: 24.09135659
A192: =[1]Hoja2!B183 -> LAMT138T1FVAL1/0 | B192: =[1]Hoja2!R183 -> 22.08374354 | C192: 0.2 | D192: 26.50049225
A193: =[1]Hoja2!B184 -> LAMT138T1SPAL477 | B193: =[1]Hoja2!R184 -> 16.22046291 | C193: 0.2 | D193: 19.46455549
A194: =[1]Hoja2!B185 -> LAMT138M1FVAL1/0 | B194: =[1]Hoja2!R185 -> 16.73871241 | C194: 0.2 | D194: 20.0864549
A195: =[1]Hoja2!B186 -> LAMT138N1HOAL1/0 | B195: =[1]Hoja2!R186 -> 20.07613049 | C195: 0.2 | D195: 24.09135659
A196: =[1]Hoja2!B187 -> LAMT042T1HOAL1/0 | B196: =[1]Hoja2!R187 -> 20.07613049 | C196: 0.2 | D196: 24.09135659
A197: =[1]Hoja2!B188 -> LAMT042T1HOAL477 | B197: =[1]Hoja2!R188 -> 26.58703333 | C197: 0.2 | D197: 31.90443999
A198: =[1]Hoja2!B189 -> LAMT042T2HOAL477 | B198: =[1]Hoja2!R189 -> 34.56314333 | C198: 0.2 | D198: 41.47577199
A199: =[1]Hoja2!B190 -> LAMT042B1HOAL1/0 | B199: =[1]Hoja2!R190 -> 17.40150499 | C199: 0.2 | D199: 20.88180599
A200: =[1]Hoja2!B191 -> LSMT138MLACU500 | B200: =[1]Hoja2!R191 -> 97.40928344 | C200: 0.2 | D200: 116.8911401
A201: =[1]Hoja2!B192 -> LSMT138MLACU000 | B201: =[1]Hoja2!R192 -> 76.9719313 | C201: 0.2 | D201: 92.36631756
A202: =[1]Hoja2!B193 -> TRMB138T0750IS | B202: =[1]Hoja2!R193 -> 46993.88534 | C202: 0.2 | D202: 56392.66241
A203: =[1]Hoja2!B194 -> TRMB120M0075IP | B203: =[1]Hoja2!R194 -> 4641.060867 | C203: 0.2 | D203: 5569.273041
A204: =[1]Hoja2!B195 -> TRMB120T0750IG | B204: =[1]Hoja2!R195 -> 42694.48843 | C204: 0.2 | D204: 51233.38611
A205: =[1]Hoja2!B196 -> TRMB042T0300IG | B205: =[1]Hoja2!R196 -> 27629.11796 | C205: 0.2 | D205: =B205*(1+C205) -> 33154.94155
A206: =[1]Hoja2!B197 -> TRMB042M0037IG | B206: =[1]Hoja2!R197 -> 6121.957807 | C206: 0.2 | D206: 7346.349369
A207: =[1]Hoja2!B198 -> LABTM1FVC3AA1/ | B207: =[1]Hoja2!R198 -> 19.51589438 | C207: 0.2 | D207: 23.41907325
A208: =[1]Hoja2!B199 -> LAMT138T1MAAL266 | B208: =[1]Hoja2!R199 -> 22.32069809 | C208: 0.2 | D208: 26.7848377
A209: =[1]Hoja2!B200 -> LAMT138T1FVAL477 | B209: =[1]Hoja2!R200 -> 29.24573666 | C209: 0.2 | D209: 35.09488399
... 15 more rows

Sheet Datos
A1: Archivo | B1: Hoja | C1: CódigoProyecto | D1: CódigoDescriptivo | E1: Fecha | F1: ÁreaGeográfica | G1: Cant | H1: SumOfMateriales$ | I1: SumOfManoObra$ | J1: SumOfIngenieria$ | K1: SumOfExtras$ | L1: SumOfFinancieros$ | M1: SumOfDerechos$ | N1: SumOfCostoTotal$ | O1: Row | P1: SumOfATR$ | Q1: Postes | R1: Conductor | S1: Vano | T1: VolumenZanja | U1: Unidad | V1: m2 | W1: CantMobPCComOt | X1: CantTrbtOtC | Y1: Cant | Z1: m2 | AA1: Fecha | AB1: Materiales | AC1: Mobra | AD1: CostoTotal | AE1: Postes | AF1: Conductor | AG1: Finv | AH1: Inversiones | AJ1: Condicion | AK1: Valor | AL1: Rango | AN1: Codigo | AV1: CostoReferencia | AW1: Cantidad | AX1: CostoReal | AY1: FactorEficienciaPrecio | AZ1: FactorAsimetria | BA1: FactorEficienciaCantidad | BB1: CostoEficiente | BC1: Costo no eficiente
A2: CC-01-AD-2010-EDECHI.xls | B2: AINAP | C2: AINAP004 | D2: AINAPS202S06100000 | E2: 2010-12-31 | F2: CHIRIQUI | G2: 202 | H2: 33619.3 | I2: 10158.7 | J2: 0 | K2: 0 | L2: 0 | M2: 0 | N2: 43778 | O2: 11 | P2: 0 | Q2: =IF(OR(VLOOKUP($B2,Formulacion!$A:$BE,MATCH(Q$1,Formulacion!$1:$1,0),FALSE)="NA",$D2=0),"NA",IF($B2="DLABT",MID($D2,PosteInicioBT,PosteFinBT-PosteInicioBT+1)*1,MID($D2,PosteInicio,PosteFin-PosteInicio+1)*1)) -> NA | R2: =IF(OR(VLOOKUP($B2,Formulacion!$A:$BE,MATCH(R$1,Formulacion!$1:$1,0),FALSE)="NA",$D2=0),"NA",IF(OR($B2="DLABT",$B2="DLSBT"),MID($D2,CondInicioBT,CondFinBT-CondInicioBT+1)*1,MID($D2,CondInicio,CondFin-CondInicio+1)*1)) -> NA | S2: =IF(Q2="NA","NA",IF(Q2=0,"SP",R2/Q2)) -> NA | T2: =IF(OR(VLOOKUP($B2,Formulacion!$A:$BE,MATCH(T$1,Formulacion!$1:$1,0),FALSE)="NA",$D2=0),"NA",IF($B2="DLSBT",MID($D2,ZanjaInicioBT,ZanjaFinBT-ZanjaInicioBT+1)*1,MID($D2,ZanjaInicio,ZanjaFin-ZanjaInicio+1)*1)) -> NA | U2: 1 | V2: =IF(OR(VLOOKUP($B2,Formulacion!$A:$BE,MATCH(V$1,Formulacion!$1:$1,0),FALSE)="NA",$D2=0),"NA",MID($D2,m2Inicio+INDIRECT(B2),m2Fin-m2Inicio+1)*1) -> NA | W2: =IF(OR(VLOOKUP($B2,Formulacion!$A:$BE,MATCH(W$1,Formulacion!$1:$1,0),FALSE)="NA",$D2=0),"NA",RIGHT($D2,4)*1) -> NA | X2: =IF(OR(VLOOKUP($B2,Formulacion!$A:$BE,MATCH(X$1,Formulacion!$1:$1,0),FALSE)="NA",$D2=0),"NA",RIGHT($D2,3)*1) -> NA | Y2: =IF(OR(AND(W2="NA",X2="NA"),AND(W2="NA",X2>CantTrbtOtCMin),AND(W2>CantTrbtOtCMin,X2="NA")),1,0) -> 1 | Z2: =IF(VLOOKUP($B2,Formulacion!$A:$BE,MATCH(Z$1,Formulacion!$1:$1,0),FALSE)="NA",1,IF(V2<=m2Min,0,1)) -> 1 | AA2: =IF(VLOOKUP($B2,Formulacion!$A:$BE,MATCH(AA$1,Formulacion!$1:$1,0),FALSE)="NA",1,IF(OR(E2<=FechaMin,E2>FechaMax),0,1)) -> 1 | AB2: =IF(VLOOKUP($B2,Formulacion!$A:$BE,MATCH(AB$1,Formulacion!$1:$1,0),FALSE)="NA",1,IF(H2<=MaterialesMin,0,1)) -> 1 | AC2: =IF(VLOOKUP($B2,Formulacion!$A:$BE,MATCH(AC$1,Formulacion!$1:$1,0),FALSE)="NA",1,IF(N2=0,0,IF(OR(I2/N2<=MObraMin,I2/N2>=MObraMax),MDOmin,1))) -> 1 | AD2: =IF(VLOOKUP($B2,Formulacion!$A:$BE,MATCH(AD$1,Formulacion!$1:$1,0),FALSE)="NA",1,IF(N2<=CostoTotalMin,0,1)) -> 1 | AE2: =IF(VLOOKUP($B2,Formulacion!$A:$BE,MATCH(AE$1,Formulacion!$1:$1,0),FALSE)="NA",1,IF(Q2<=PostesMin,0,1)) -> 1 | AF2: =IF(VLOOKUP($B2,Formulacion!$A:$BE,MATCH(AF$1,Formulacion!$1:$1,0),FALSE)="NA",1,IF(R2<=INDIRECT(VLOOKUP(B2,Formulacion!$A:$BE,2,FALSE)),0,1)) -> 1 | AG2: =Y2*Z2*AA2*AB2*AC2*AD2*MAX(AE2,AF2) -> 1 | AH2: =N2*AG2 -> 43778 | AJ2: =IF(VLOOKUP($B2,Formulacion!$A:$BE,MATCH(AJ$1,Formulacion!$1:$1,0),FALSE)="NA","NA",HLOOKUP(VLOOKUP($B2,Formulacion!$A:$BE,MATCH(AJ$1,Formulacion!$1:$1,0),FALSE),$Q:$Z,ROW(AJ2),FALSE)) -> NA | AK2: =IF(VLOOKUP($B2,Formulacion!$A:$BE,MATCH(AK$1,Formulacion!$1:$1,0),FALSE)="NA",1,VLOOKUP($B2,Formulacion!$A:$BE,MATCH(AK$1,Formulacion!$1:$1,0),FALSE)) -> 1 | AL2: =IF(VLOOKUP($B2,Formulacion!$A:$BE,MATCH(AL$1,Formulacion!$1:$1,0),FALSE)="NA",1,VLOOKUP($B2,Formulacion!$A:$BE,MATCH(AL$1,Formulacion!$1:$1,0),FALSE)) -> 1 | AM2: =IF(AJ2="NA",1,IF(AJ2<=AK2*(1+AL2),"CU","NC")) -> 1 | AN2: =IF(VLOOKUP($B2,Formulacion!$A:$BE,MATCH(AN$1,Formulacion!$1:$1,0),FALSE)="NA","NA",IF(D2=0,"",VLOOKUP($B2,Formulacion!$A:$BE,MATCH(AN$1,Formulacion!$1:$1,0),FALSE))) -> NA | AO2: =IF(OR(MID(AN2,1,2)="",MID(AN2,1,2)="NA"),"X",MID(D2,MID(AN2,1,2),MID(AN2,3,2))) -> X | AP2: =IF(MID(AN2,5,2)="","",MID(D2,MID(AN2,5,2),MID(AN2,7,2))) ->  | AQ2: =IF(MID(AN2,9,2)="","",MID(D2,MID(AN2,9,2),MID(AN2,11,2))) ->  | AR2: =IF(MID(AN2,13,2)="","",MID(D2,MID(AN2,13,2),MID(AN2,15,2))) ->  | AS2: =IF(MID(AN2,17,2)="","",MID(D2,MID(AN2,17,2),MID(AN2,19,2))) ->  | AT2: =IF(MID(AN2,21,2)="","",MID(D2,MID(AN2,21,2),MID(AN2,23,2))) ->  | AU2: =IF(MID(AN2,25,2)="","",MID(D2,MID(AN2,25,2),MID(AN2,27,2))) ->  | AV2: =IF(VLOOKUP($B2,Formulacion!$A:$BE,MATCH(AV$1,Formulacion!$1:$1,0),FALSE)="NA","NA",VLOOKUP(CONCATENATE(AO2,AP2,AQ2,AR2,AS2,AT2,AU2),ValoresReferenciales!$A:$D,4,FALSE)) -> NA | AW2: =IF(VLOOKUP($B2,Formulacion!$A:$BE,MATCH(AW$1,Formulacion!$1:$1,0),FALSE)="NA","NA",HLOOKUP(VLOOKUP($B2,Formulacion!$A:$BE,MATCH(AW$1,Formulacion!$1:$1,0),FALSE),$Q:$Z,ROW(AW2),FALSE)) -> NA | AX2: =IF(AV2="NA","NA",IF(AW2=0,0,N2/AW2)) -> NA | AY2: =IF(OR(AX2="NA",AM2="NC"),1,IF(AX2<AV2,1,AV2/AX2)) -> 1 | AZ2: =IF(VLOOKUP($B2,Formulacion!$A:$BE,MATCH(AZ$1,Formulacion!$1:$1,0),FALSE)="NA",1,VLOOKUP($B2,Formulacion!$A:$BE,MATCH(AZ$1,Formulacion!$1:$1,0),FALSE)) -> 1 | BA2: =IF(VLOOKUP($B2,Formulacion!$A:$BE,MATCH(BA$1,Formulacion!$1:$1,0),FALSE)="NA",1,VLOOKUP($B2,Formulacion!$A:$BE,MATCH(BA$1,Formulacion!$1:$1,0),FALSE)) -> 1 | BB2: =AH2*AY2*AZ2*BA2 -> 43778 | BC2: =+N2*AA2 -> 43778
A3: CC-01-AD-2010-EDECHI.xls | B3: AINAP | C3: AINAP004 | D3: AINAPS613A06000000 | E3: 2010-12-31 | F3: CHIRIQUI | G3: 613 | H3: 70382.55 | I3: 21267.26 | J3: 0 | K3: 0 | L3: 0 | M3: 0 | N3: 91649.81 | O3: 10 | P3: 0 | Q3: =IF(OR(VLOOKUP($B3,Formulacion!$A:$BE,MATCH(Q$1,Formulacion!$1:$1,0),FALSE)="NA",$D3=0),"NA",IF($B3="DLABT",MID($D3,PosteInicioBT,PosteFinBT-PosteInicioBT+1)*1,MID($D3,PosteInicio,PosteFin-PosteInicio+1)*1)) -> NA | R3: =IF(OR(VLOOKUP($B3,Formulacion!$A:$BE,MATCH(R$1,Formulacion!$1:$1,0),FALSE)="NA",$D3=0),"NA",IF(OR($B3="DLABT",$B3="DLSBT"),MID($D3,CondInicioBT,CondFinBT-CondInicioBT+1)*1,MID($D3,CondInicio,CondFin-CondInicio+1)*1)) -> NA | S3: NA | T3: =IF(OR(VLOOKUP($B3,Formulacion!$A:$BE,MATCH(T$1,Formulacion!$1:$1,0),FALSE)="NA",$D3=0),"NA",IF($B3="DLSBT",MID($D3,ZanjaInicioBT,ZanjaFinBT-ZanjaInicioBT+1)*1,MID($D3,ZanjaInicio,ZanjaFin-ZanjaInicio+1)*1)) -> NA | U3: 1 | V3: =IF(OR(VLOOKUP($B3,Formulacion!$A:$BE,MATCH(V$1,Formulacion!$1:$1,0),FALSE)="NA",$D3=0),"NA",MID($D3,m2Inicio+INDIRECT(B3),m2Fin-m2Inicio+1)*1) -> NA | W3: =IF(OR(VLOOKUP($B3,Formulacion!$A:$BE,MATCH(W$1,Formulacion!$1:$1,0),FALSE)="NA",$D3=0),"NA",RIGHT($D3,4)*1) -> NA | X3: =IF(OR(VLOOKUP($B3,Formulacion!$A:$BE,MATCH(X$1,Formulacion!$1:$1,0),FALSE)="NA",$D3=0),"NA",RIGHT($D3,3)*1) -> NA | Y3: 1 | Z3: =IF(VLOOKUP($B3,Formulacion!$A:$BE,MATCH(Z$1,Formulacion!$1:$1,0),FALSE)="NA",1,IF(V3<=m2Min,0,1)) -> 1 | AA3: =IF(VLOOKUP($B3,Formulacion!$A:$BE,MATCH(AA$1,Formulacion!$1:$1,0),FALSE)="NA",1,IF(OR(E3<=FechaMin,E3>FechaMax),0,1)) -> 1 | AB3: =IF(VLOOKUP($B3,Formulacion!$A:$BE,MATCH(AB$1,Formulacion!$1:$1,0),FALSE)="NA",1,IF(H3<=MaterialesMin,0,1)) -> 1 | AC3: =IF(VLOOKUP($B3,Formulacion!$A:$BE,MATCH(AC$1,Formulacion!$1:$1,0),FALSE)="NA",1,IF(N3=0,0,IF(OR(I3/N3<=MObraMin,I3/N3>=MObraMax),MDOmin,1))) -> 1 | AD3: =IF(VLOOKUP($B3,Formulacion!$A:$BE,MATCH(AD$1,Formulacion!$1:$1,0),FALSE)="NA",1,IF(N3<=CostoTotalMin,0,1)) -> 1 | AE3: =IF(VLOOKUP($B3,Formulacion!$A:$BE,MATCH(AE$1,Formulacion!$1:$1,0),FALSE)="NA",1,IF(Q3<=PostesMin,0,1)) -> 1 | AF3: =IF(VLOOKUP($B3,Formulacion!$A:$BE,MATCH(AF$1,Formulacion!$1:$1,0),FALSE)="NA",1,IF(R3<=INDIRECT(VLOOKUP(B3,Formulacion!$A:$BE,2,FALSE)),0,1)) -> 1 | AG3: 1 | AH3: 91649.81 | AJ3: =IF(VLOOKUP($B3,Formulacion!$A:$BE,MATCH(AJ$1,Formulacion!$1:$1,0),FALSE)="NA","NA",HLOOKUP(VLOOKUP($B3,Formulacion!$A:$BE,MATCH(AJ$1,Formulacion!$1:$1,0),FALSE),$Q:$Z,ROW(AJ3),FALSE)) -> NA | AK3: =IF(VLOOKUP($B3,Formulacion!$A:$BE,MATCH(AK$1,Formulacion!$1:$1,0),FALSE)="NA",1,VLOOKUP($B3,Formulacion!$A:$BE,MATCH(AK$1,Formulacion!$1:$1,0),FALSE)) -> 1 | AL3: =IF(VLOOKUP($B3,Formulacion!$A:$BE,MATCH(AL$1,Formulacion!$1:$1,0),FALSE)="NA",1,VLOOKUP($B3,Formulacion!$A:$BE,MATCH(AL$1,Formulacion!$1:$1,0),FALSE)) -> 1 | AM3: 1 | AN3: =IF(VLOOKUP($B3,Formulacion!$A:$BE,MATCH(AN$1,Formulacion!$1:$1,0),FALSE)="NA","NA",IF(D3=0,"",VLOOKUP($B3,Formulacion!$A:$BE,MATCH(AN$1,Formulacion!$1:$1,0),FALSE))) -> NA | AO3: X | AV3: =IF(VLOOKUP($B3,Formulacion!$A:$BE,MATCH(AV$1,Formulacion!$1:$1,0),FALSE)="NA","NA",VLOOKUP(CONCATENATE(AO3,AP3,AQ3,AR3,AS3,AT3,AU3),ValoresReferenciales!$A:$D,4,FALSE)) -> NA | AW3: =IF(VLOOKUP($B3,Formulacion!$A:$BE,MATCH(AW$1,Formulacion!$1:$1,0),FALSE)="NA","NA",HLOOKUP(VLOOKUP($B3,Formulacion!$A:$BE,MATCH(AW$1,Formulacion!$1:$1,0),FALSE),$Q:$Z,ROW(AW3),FALSE)) -> NA | AX3: NA | AY3: 1 | AZ3: =IF(VLOOKUP($B3,Formulacion!$A:$BE,MATCH(AZ$1,Formulacion!$1:$1,0),FALSE)="NA",1,VLOOKUP($B3,Formulacion!$A:$BE,MATCH(AZ$1,Formulacion!$1:$1,0),FALSE)) -> 1 | BA3: =IF(VLOOKUP($B3,Formulacion!$A:$BE,MATCH(BA$1,Formulacion!$1:$1,0),FALSE)="NA",1,VLOOKUP($B3,Formulacion!$A:$BE,MATCH(BA$1,Formulacion!$1:$1,0),FALSE)) -> 1 | BB3: 91649.81 | BC3: 91649.81
A4: CC-01-AD-2010-EDECHI.xls | B4: AINAP | C4: AINAP004 | D4: AINAPS999A09500000 | E4: 2010-12-31 | F4: CHIRIQUI | G4: 999 | H4: 114701.74 | I4: 34658.75 | J4: 0 | K4: 0 | L4: 0 | M4: 0 | N4: 149360.49 | O4: 9 | P4: 0 | Q4: =IF(OR(VLOOKUP($B4,Formulacion!$A:$BE,MATCH(Q$1,Formulacion!$1:$1,0),FALSE)="NA",$D4=0),"NA",IF($B4="DLABT",MID($D4,PosteInicioBT,PosteFinBT-PosteInicioBT+1)*1,MID($D4,PosteInicio,PosteFin-PosteInicio+1)*1)) -> NA | R4: =IF(OR(VLOOKUP($B4,Formulacion!$A:$BE,MATCH(R$1,Formulacion!$1:$1,0),FALSE)="NA",$D4=0),"NA",IF(OR($B4="DLABT",$B4="DLSBT"),MID($D4,CondInicioBT,CondFinBT-CondInicioBT+1)*1,MID($D4,CondInicio,CondFin-CondInicio+1)*1)) -> NA | S4: NA | T4: =IF(OR(VLOOKUP($B4,Formulacion!$A:$BE,MATCH(T$1,Formulacion!$1:$1,0),FALSE)="NA",$D4=0),"NA",IF($B4="DLSBT",MID($D4,ZanjaInicioBT,ZanjaFinBT-ZanjaInicioBT+1)*1,MID($D4,ZanjaInicio,ZanjaFin-ZanjaInicio+1)*1)) -> NA | U4: 1 | V4: =IF(OR(VLOOKUP($B4,Formulacion!$A:$BE,MATCH(V$1,Formulacion!$1:$1,0),FALSE)="NA",$D4=0),"NA",MID($D4,m2Inicio+INDIRECT(B4),m2Fin-m2Inicio+1)*1) -> NA | W4: =IF(OR(VLOOKUP($B4,Formulacion!$A:$BE,MATCH(W$1,Formulacion!$1:$1,0),FALSE)="NA",$D4=0),"NA",RIGHT($D4,4)*1) -> NA | X4: =IF(OR(VLOOKUP($B4,Formulacion!$A:$BE,MATCH(X$1,Formulacion!$1:$1,0),FALSE)="NA",$D4=0),"NA",RIGHT($D4,3)*1) -> NA | Y4: 1 | Z4: =IF(VLOOKUP($B4,Formulacion!$A:$BE,MATCH(Z$1,Formulacion!$1:$1,0),FALSE)="NA",1,IF(V4<=m2Min,0,1)) -> 1 | AA4: =IF(VLOOKUP($B4,Formulacion!$A:$BE,MATCH(AA$1,Formulacion!$1:$1,0),FALSE)="NA",1,IF(OR(E4<=FechaMin,E4>FechaMax),0,1)) -> 1 | AB4: =IF(VLOOKUP($B4,Formulacion!$A:$BE,MATCH(AB$1,Formulacion!$1:$1,0),FALSE)="NA",1,IF(H4<=MaterialesMin,0,1)) -> 1 | AC4: =IF(VLOOKUP($B4,Formulacion!$A:$BE,MATCH(AC$1,Formulacion!$1:$1,0),FALSE)="NA",1,IF(N4=0,0,IF(OR(I4/N4<=MObraMin,I4/N4>=MObraMax),MDOmin,1))) -> 1 | AD4: =IF(VLOOKUP($B4,Formulacion!$A:$BE,MATCH(AD$1,Formulacion!$1:$1,0),FALSE)="NA",1,IF(N4<=CostoTotalMin,0,1)) -> 1 | AE4: =IF(VLOOKUP($B4,Formulacion!$A:$BE,MATCH(AE$1,Formulacion!$1:$1,0),FALSE)="NA",1,IF(Q4<=PostesMin,0,1)) -> 1 | AF4: =IF(VLOOKUP($B4,Formulacion!$A:$BE,MATCH(AF$1,Formulacion!$1:$1,0),FALSE)="NA",1,IF(R4<=INDIRECT(VLOOKUP(B4,Formulacion!$A:$BE,2,FALSE)),0,1)) -> 1 | AG4: 1 | AH4: 149360.49 | AJ4: =IF(VLOOKUP($B4,Formulacion!$A:$BE,MATCH(AJ$1,Formulacion!$1:$1,0),FALSE)="NA","NA",HLOOKUP(VLOOKUP($B4,Formulacion!$A:$BE,MATCH(AJ$1,Formulacion!$1:$1,0),FALSE),$Q:$Z,ROW(AJ4),FALSE)) -> NA | AK4: =IF(VLOOKUP($B4,Formulacion!$A:$BE,MATCH(AK$1,Formulacion!$1:$1,0),FALSE)="NA",1,VLOOKUP($B4,Formulacion!$A:$BE,MATCH(AK$1,Formulacion!$1:$1,0),FALSE)) -> 1 | AL4: =IF(VLOOKUP($B4,Formulacion!$A:$BE,MATCH(AL$1,Formulacion!$1:$1,0),FALSE)="NA",1,VLOOKUP($B4,Formulacion!$A:$BE,MATCH(AL$1,Formulacion!$1:$1,0),FALSE)) -> 1 | AM4: 1 | AN4: =IF(VLOOKUP($B4,Formulacion!$A:$BE,MATCH(AN$1,Formulacion!$1:$1,0),FALSE)="NA","NA",IF(D4=0,"",VLOOKUP($B4,Formulacion!$A:$BE,MATCH(AN$1,Formulacion!$1:$1,0),FALSE))) -> NA | AO4: X | AV4: =IF(VLOOKUP($B4,Formulacion!$A:$BE,MATCH(AV$1,Formulacion!$1:$1,0),FALSE)="NA","NA",VLOOKUP(CONCATENATE(AO4,AP4,AQ4,AR4,AS4,AT4,AU4),ValoresReferenciales!$A:$D,4,FALSE)) -> NA | AW4: =IF(VLOOKUP($B4,Formulacion!$A:$BE,MATCH(AW$1,Formulacion!$1:$1,0),FALSE)="NA","NA",HLOOKUP(VLOOKUP($B4,Formulacion!$A:$BE,MATCH(AW$1,Formulacion!$1:$1,0),FALSE),$Q:$Z,ROW(AW4),FALSE)) -> NA | AX4: NA | AY4: 1 | AZ4: =IF(VLOOKUP($B4,Formulacion!$A:$BE,MATCH(AZ$1,Formulacion!$1:$1,0),FALSE)="NA",1,VLOOKUP($B4,Formulacion!$A:$BE,MATCH(AZ$1,Formulacion!$1:$1,0),FALSE)) -> 1 | BA4: =IF(VLOOKUP($B4,Formulacion!$A:$BE,MATCH(BA$1,Formulacion!$1:$1,0),FALSE)="NA",1,VLOOKUP($B4,Formulacion!$A:$BE,MATCH(BA$1,Formulacion!$1:$1,0),FALSE)) -> 1 | BB4: 149360.49 | BC4: 149360.49
A5: CC-01-AD-2010-EDECHI.xls | B5: CEQOT | C5: 0 | D5: 0 | E5: 00:00:00 | F5: 0 | G5: 0 | H5: 0 | I5: 0 | J5: 0 | K5: 0 | L5: 0 | M5: 0 | N5: 0 | O5: 9 | P5: 0 | Q5: =IF(OR(VLOOKUP($B5,Formulacion!$A:$BE,MATCH(Q$1,Formulacion!$1:$1,0),FALSE)="NA",$D5=0),"NA",IF($B5="DLABT",MID($D5,PosteInicioBT,PosteFinBT-PosteInicioBT+1)*1,MID($D5,PosteInicio,PosteFin-PosteInicio+1)*1)) -> NA | R5: =IF(OR(VLOOKUP($B5,Formulacion!$A:$BE,MATCH(R$1,Formulacion!$1:$1,0),FALSE)="NA",$D5=0),"NA",IF(OR($B5="DLABT",$B5="DLSBT"),MID($D5,CondInicioBT,CondFinBT-CondInicioBT+1)*1,MID($D5,CondInicio,CondFin-CondInicio+1)*1)) -> NA | S5: NA | T5: =IF(OR(VLOOKUP($B5,Formulacion!$A:$BE,MATCH(T$1,Formulacion!$1:$1,0),FALSE)="NA",$D5=0),"NA",IF($B5="DLSBT",MID($D5,ZanjaInicioBT,ZanjaFinBT-ZanjaInicioBT+1)*1,MID($D5,ZanjaInicio,ZanjaFin-ZanjaInicio+1)*1)) -> NA | U5: 1 | V5: =IF(OR(VLOOKUP($B5,Formulacion!$A:$BE,MATCH(V$1,Formulacion!$1:$1,0),FALSE)="NA",$D5=0),"NA",MID($D5,m2Inicio+INDIRECT(B5),m2Fin-m2Inicio+1)*1) -> NA | W5: =IF(OR(VLOOKUP($B5,Formulacion!$A:$BE,MATCH(W$1,Formulacion!$1:$1,0),FALSE)="NA",$D5=0),"NA",RIGHT($D5,4)*1) -> NA | X5: =IF(OR(VLOOKUP($B5,Formulacion!$A:$BE,MATCH(X$1,Formulacion!$1:$1,0),FALSE)="NA",$D5=0),"NA",RIGHT($D5,3)*1) -> NA | Y5: 1 | Z5: =IF(VLOOKUP($B5,Formulacion!$A:$BE,MATCH(Z$1,Formulacion!$1:$1,0),FALSE)="NA",1,IF(V5<=m2Min,0,1)) -> 1 | AA5: =IF(VLOOKUP($B5,Formulacion!$A:$BE,MATCH(AA$1,Formulacion!$1:$1,0),FALSE)="NA",1,IF(OR(E5<=FechaMin,E5>FechaMax),0,1)) -> 0 | AB5: =IF(VLOOKUP($B5,Formulacion!$A:$BE,MATCH(AB$1,Formulacion!$1:$1,0),FALSE)="NA",1,IF(H5<=MaterialesMin,0,1)) -> 1 | AC5: =IF(VLOOKUP($B5,Formulacion!$A:$BE,MATCH(AC$1,Formulacion!$1:$1,0),FALSE)="NA",1,IF(N5=0,0,IF(OR(I5/N5<=MObraMin,I5/N5>=MObraMax),MDOmin,1))) -> 0 | AD5: =IF(VLOOKUP($B5,Formulacion!$A:$BE,MATCH(AD$1,Formulacion!$1:$1,0),FALSE)="NA",1,IF(N5<=CostoTotalMin,0,1)) -> 0 | AE5: =IF(VLOOKUP($B5,Formulacion!$A:$BE,MATCH(AE$1,Formulacion!$1:$1,0),FALSE)="NA",1,IF(Q5<=PostesMin,0,1)) -> 1 | AF5: =IF(VLOOKUP($B5,Formulacion!$A:$BE,MATCH(AF$1,Formulacion!$1:$1,0),FALSE)="NA",1,IF(R5<=INDIRECT(VLOOKUP(B5,Formulacion!$A:$BE,2,FALSE)),0,1)) -> 1 | AG5: 0 | AH5: 0 | AJ5: =IF(VLOOKUP($B5,Formulacion!$A:$BE,MATCH(AJ$1,Formulacion!$1:$1,0),FALSE)="NA","NA",HLOOKUP(VLOOKUP($B5,Formulacion!$A:$BE,MATCH(AJ$1,Formulacion!$1:$1,0),FALSE),$Q:$Z,ROW(AJ5),FALSE)) -> NA | AK5: =IF(VLOOKUP($B5,Formulacion!$A:$BE,MATCH(AK$1,Formulacion!$1:$1,0),FALSE)="NA",1,VLOOKUP($B5,Formulacion!$A:$BE,MATCH(AK$1,Formulacion!$1:$1,0),FALSE)) -> 1 | AL5: =IF(VLOOKUP($B5,Formulacion!$A:$BE,MATCH(AL$1,Formulacion!$1:$1,0),FALSE)="NA",1,VLOOKUP($B5,Formulacion!$A:$BE,MATCH(AL$1,Formulacion!$1:$1,0),FALSE)) -> 1 | AM5: 1 | AN5: =IF(VLOOKUP($B5,Formulacion!$A:$BE,MATCH(AN$1,Formulacion!$1:$1,0),FALSE)="NA","NA",IF(D5=0,"",VLOOKUP($B5,Formulacion!$A:$BE,MATCH(AN$1,Formulacion!$1:$1,0),FALSE))) -> NA | AO5: X | AV5: =IF(VLOOKUP($B5,Formulacion!$A:$BE,MATCH(AV$1,Formulacion!$1:$1,0),FALSE)="NA","NA",VLOOKUP(CONCATENATE(AO5,AP5,AQ5,AR5,AS5,AT5,AU5),ValoresReferenciales!$A:$D,4,FALSE)) -> NA | AW5: =IF(VLOOKUP($B5,Formulacion!$A:$BE,MATCH(AW$1,Formulacion!$1:$1,0),FALSE)="NA","NA",HLOOKUP(VLOOKUP($B5,Formulacion!$A:$BE,MATCH(AW$1,Formulacion!$1:$1,0),FALSE),$Q:$Z,ROW(AW5),FALSE)) -> NA | AX5: NA | AY5: 1 | AZ5: =IF(VLOOKUP($B5,Formulacion!$A:$BE,MATCH(AZ$1,Formulacion!$1:$1,0),FALSE)="NA",1,VLOOKUP($B5,Formulacion!$A:$BE,MATCH(AZ$1,Formulacion!$1:$1,0),FALSE)) -> 1 | BA5: =IF(VLOOKUP($B5,Formulacion!$A:$BE,MATCH(BA$1,Formulacion!$1:$1,0),FALSE)="NA",1,VLOOKUP($B5,Formulacion!$A:$BE,MATCH(BA$1,Formulacion!$1:$1,0),FALSE)) -> 1 | BB5: 0 | BC5: 0
A6: CC-01-AD-2010-EDECHI.xls | B6: CMEDI | C6: CMEDI001 | D6: CMEDIMBDNO028 | E6: 2010-12-31 | F6: BOCAS DEL TORO | G6: 0 | H6: 5582.23 | I6: 0 | J6: 0 | K6: 0 | L6: 0 | M6: 0 | N6: 5582.23 | O6: 16 | P6: 0 | Q6: =IF(OR(VLOOKUP($B6,Formulacion!$A:$BE,MATCH(Q$1,Formulacion!$1:$1,0),FALSE)="NA",$D6=0),"NA",IF($B6="DLABT",MID($D6,PosteInicioBT,PosteFinBT-PosteInicioBT+1)*1,MID($D6,PosteInicio,PosteFin-PosteInicio+1)*1)) -> NA | R6: =IF(OR(VLOOKUP($B6,Formulacion!$A:$BE,MATCH(R$1,Formulacion!$1:$1,0),FALSE)="NA",$D6=0),"NA",IF(OR($B6="DLABT",$B6="DLSBT"),MID($D6,CondInicioBT,CondFinBT-CondInicioBT+1)*1,MID($D6,CondInicio,CondFin-CondInicio+1)*1)) -> NA | S6: NA | T6: =IF(OR(VLOOKUP($B6,Formulacion!$A:$BE,MATCH(T$1,Formulacion!$1:$1,0),FALSE)="NA",$D6=0),"NA",IF($B6="DLSBT",MID($D6,ZanjaInicioBT,ZanjaFinBT-ZanjaInicioBT+1)*1,MID($D6,ZanjaInicio,ZanjaFin-ZanjaInicio+1)*1)) -> NA | U6: 1 | V6: =IF(OR(VLOOKUP($B6,Formulacion!$A:$BE,MATCH(V$1,Formulacion!$1:$1,0),FALSE)="NA",$D6=0),"NA",MID($D6,m2Inicio+INDIRECT(B6),m2Fin-m2Inicio+1)*1) -> NA | W6: =IF(OR(VLOOKUP($B6,Formulacion!$A:$BE,MATCH(W$1,Formulacion!$1:$1,0),FALSE)="NA",$D6=0),"NA",RIGHT($D6,4)*1) -> NA | X6: =IF(OR(VLOOKUP($B6,Formulacion!$A:$BE,MATCH(X$1,Formulacion!$1:$1,0),FALSE)="NA",$D6=0),"NA",RIGHT($D6,3)*1) -> 28 | Y6: 1 | Z6: =IF(VLOOKUP($B6,Formulacion!$A:$BE,MATCH(Z$1,Formulacion!$1:$1,0),FALSE)="NA",1,IF(V6<=m2Min,0,1)) -> 1 | AA6: =IF(VLOOKUP($B6,Formulacion!$A:$BE,MATCH(AA$1,Formulacion!$1:$1,0),FALSE)="NA",1,IF(OR(E6<=FechaMin,E6>FechaMax),0,1)) -> 1 | AB6: =IF(VLOOKUP($B6,Formulacion!$A:$BE,MATCH(AB$1,Formulacion!$1:$1,0),FALSE)="NA",1,IF(H6<=MaterialesMin,0,1)) -> 1 | AC6: =IF(VLOOKUP($B6,Formulacion!$A:$BE,MATCH(AC$1,Formulacion!$1:$1,0),FALSE)="NA",1,IF(N6=0,0,IF(OR(I6/N6<=MObraMin,I6/N6>=MObraMax),MDOmin,1))) -> 1 | AD6: =IF(VLOOKUP($B6,Formulacion!$A:$BE,MATCH(AD$1,Formulacion!$1:$1,0),FALSE)="NA",1,IF(N6<=CostoTotalMin,0,1)) -> 1 | AE6: =IF(VLOOKUP($B6,Formulacion!$A:$BE,MATCH(AE$1,Formulacion!$1:$1,0),FALSE)="NA",1,IF(Q6<=PostesMin,0,1)) -> 1 | AF6: =IF(VLOOKUP($B6,Formulacion!$A:$BE,MATCH(AF$1,Formulacion!$1:$1,0),FALSE)="NA",1,IF(R6<=INDIRECT(VLOOKUP(B6,Formulacion!$A:$BE,2,FALSE)),0,1)) -> 1 | AG6: 1 | AH6: 5582.23 | AJ6: =IF(VLOOKUP($B6,Formulacion!$A:$BE,MATCH(AJ$1,Formulacion!$1:$1,0),FALSE)="NA","NA",HLOOKUP(VLOOKUP($B6,Formulacion!$A:$BE,MATCH(AJ$1,Formulacion!$1:$1,0),FALSE),$Q:$Z,ROW(AJ6),FALSE)) -> NA | AK6: =IF(VLOOKUP($B6,Formulacion!$A:$BE,MATCH(AK$1,Formulacion!$1:$1,0),FALSE)="NA",1,VLOOKUP($B6,Formulacion!$A:$BE,MATCH(AK$1,Formulacion!$1:$1,0),FALSE)) -> 1 | AL6: =IF(VLOOKUP($B6,Formulacion!$A:$BE,MATCH(AL$1,Formulacion!$1:$1,0),FALSE)="NA",1,VLOOKUP($B6,Formulacion!$A:$BE,MATCH(AL$1,Formulacion!$1:$1,0),FALSE)) -> 1 | AM6: 1 | AN6: =IF(VLOOKUP($B6,Formulacion!$A:$BE,MATCH(AN$1,Formulacion!$1:$1,0),FALSE)="NA","NA",IF(D6=0,"",VLOOKUP($B6,Formulacion!$A:$BE,MATCH(AN$1,Formulacion!$1:$1,0),FALSE))) -> NA | AO6: X | AV6: =IF(VLOOKUP($B6,Formulacion!$A:$BE,MATCH(AV$1,Formulacion!$1:$1,0),FALSE)="NA","NA",VLOOKUP(CONCATENATE(AO6,AP6,AQ6,AR6,AS6,AT6,AU6),ValoresReferenciales!$A:$D,4,FALSE)) -> NA | AW6: =IF(VLOOKUP($B6,Formulacion!$A:$BE,MATCH(AW$1,Formulacion!$1:$1,0),FALSE)="NA","NA",HLOOKUP(VLOOKUP($B6,Formulacion!$A:$BE,MATCH(AW$1,Formulacion!$1:$1,0),FALSE),$Q:$Z,ROW(AW6),FALSE)) -> NA | AX6: NA | AY6: 1 | AZ6: =IF(VLOOKUP($B6,Formulacion!$A:$BE,MATCH(AZ$1,Formulacion!$1:$1,0),FALSE)="NA",1,VLOOKUP($B6,Formulacion!$A:$BE,MATCH(AZ$1,Formulacion!$1:$1,0),FALSE)) -> 0.8 | BA6: =IF(VLOOKUP($B6,Formulacion!$A:$BE,MATCH(BA$1,Formulacion!$1:$1,0),FALSE)="NA",1,VLOOKUP($B6,Formulacion!$A:$BE,MATCH(BA$1,Formulacion!$1:$1,0),FALSE)) -> 1 | BB6: 4465.784 | BC6: 5582.23
A7: CC-01-AD-2010-EDECHI.xls | B7: CMEDI | C7: CMEDI001 | D7: CMEDIMBSNO346 | E7: 2010-12-31 | F7: BOCAS DEL TORO | G7: 0 | H7: 10278.14 | I7: 0 | J7: 0 | K7: 0 | L7: 0 | M7: 0 | N7: 10278.14 | O7: 15 | P7: 0 | Q7: =IF(OR(VLOOKUP($B7,Formulacion!$A:$BE,MATCH(Q$1,Formulacion!$1:$1,0),FALSE)="NA",$D7=0),"NA",IF($B7="DLABT",MID($D7,PosteInicioBT,PosteFinBT-PosteInicioBT+1)*1,MID($D7,PosteInicio,PosteFin-PosteInicio+1)*1)) -> NA | R7: =IF(OR(VLOOKUP($B7,Formulacion!$A:$BE,MATCH(R$1,Formulacion!$1:$1,0),FALSE)="NA",$D7=0),"NA",IF(OR($B7="DLABT",$B7="DLSBT"),MID($D7,CondInicioBT,CondFinBT-CondInicioBT+1)*1,MID($D7,CondInicio,CondFin-CondInicio+1)*1)) -> NA | S7: NA | T7: =IF(OR(VLOOKUP($B7,Formulacion!$A:$BE,MATCH(T$1,Formulacion!$1:$1,0),FALSE)="NA",$D7=0),"NA",IF($B7="DLSBT",MID($D7,ZanjaInicioBT,ZanjaFinBT-ZanjaInicioBT+1)*1,MID($D7,ZanjaInicio,ZanjaFin-ZanjaInicio+1)*1)) -> NA | U7: 1 | V7: =IF(OR(VLOOKUP($B7,Formulacion!$A:$BE,MATCH(V$1,Formulacion!$1:$1,0),FALSE)="NA",$D7=0),"NA",MID($D7,m2Inicio+INDIRECT(B7),m2Fin-m2Inicio+1)*1) -> NA | W7: =IF(OR(VLOOKUP($B7,Formulacion!$A:$BE,MATCH(W$1,Formulacion!$1:$1,0),FALSE)="NA",$D7=0),"NA",RIGHT($D7,4)*1) -> NA | X7: =IF(OR(VLOOKUP($B7,Formulacion!$A:$BE,MATCH(X$1,Formulacion!$1:$1,0),FALSE)="NA",$D7=0),"NA",RIGHT($D7,3)*1) -> 346 | Y7: 1 | Z7: =IF(VLOOKUP($B7,Formulacion!$A:$BE,MATCH(Z$1,Formulacion!$1:$1,0),FALSE)="NA",1,IF(V7<=m2Min,0,1)) -> 1 | AA7: =IF(VLOOKUP($B7,Formulacion!$A:$BE,MATCH(AA$1,Formulacion!$1:$1,0),FALSE)="NA",1,IF(OR(E7<=FechaMin,E7>FechaMax),0,1)) -> 1 | AB7: =IF(VLOOKUP($B7,Formulacion!$A:$BE,MATCH(AB$1,Formulacion!$1:$1,0),FALSE)="NA",1,IF(H7<=MaterialesMin,0,1)) -> 1 | AC7: =IF(VLOOKUP($B7,Formulacion!$A:$BE,MATCH(AC$1,Formulacion!$1:$1,0),FALSE)="NA",1,IF(N7=0,0,IF(OR(I7/N7<=MObraMin,I7/N7>=MObraMax),MDOmin,1))) -> 1 | AD7: =IF(VLOOKUP($B7,Formulacion!$A:$BE,MATCH(AD$1,Formulacion!$1:$1,0),FALSE)="NA",1,IF(N7<=CostoTotalMin,0,1)) -> 1 | AE7: =IF(VLOOKUP($B7,Formulacion!$A:$BE,MATCH(AE$1,Formulacion!$1:$1,0),FALSE)="NA",1,IF(Q7<=PostesMin,0,1)) -> 1 | AF7: =IF(VLOOKUP($B7,Formulacion!$A:$BE,MATCH(AF$1,Formulacion!$1:$1,0),FALSE)="NA",1,IF(R7<=INDIRECT(VLOOKUP(B7,Formulacion!$A:$BE,2,FALSE)),0,1)) -> 1 | AG7: 1 | AH7: 10278.14 | AJ7: =IF(VLOOKUP($B7,Formulacion!$A:$BE,MATCH(AJ$1,Formulacion!$1:$1,0),FALSE)="NA","NA",HLOOKUP(VLOOKUP($B7,Formulacion!$A:$BE,MATCH(AJ$1,Formulacion!$1:$1,0),FALSE),$Q:$Z,ROW(AJ7),FALSE)) -> NA | AK7: =IF(VLOOKUP($B7,Formulacion!$A:$BE,MATCH(AK$1,Formulacion!$1:$1,0),FALSE)="NA",1,VLOOKUP($B7,Formulacion!$A:$BE,MATCH(AK$1,Formulacion!$1:$1,0),FALSE)) -> 1 | AL7: =IF(VLOOKUP($B7,Formulacion!$A:$BE,MATCH(AL$1,Formulacion!$1:$1,0),FALSE)="NA",1,VLOOKUP($B7,Formulacion!$A:$BE,MATCH(AL$1,Formulacion!$1:$1,0),FALSE)) -> 1 | AM7: 1 | AN7: =IF(VLOOKUP($B7,Formulacion!$A:$BE,MATCH(AN$1,Formulacion!$1:$1,0),FALSE)="NA","NA",IF(D7=0,"",VLOOKUP($B7,Formulacion!$A:$BE,MATCH(AN$1,Formulacion!$1:$1,0),FALSE))) -> NA | AO7: X | AV7: =IF(VLOOKUP($B7,Formulacion!$A:$BE,MATCH(AV$1,Formulacion!$1:$1,0),FALSE)="NA","NA",VLOOKUP(CONCATENATE(AO7,AP7,AQ7,AR7,AS7,AT7,AU7),ValoresReferenciales!$A:$D,4,FALSE)) -> NA | AW7: =IF(VLOOKUP($B7,Formulacion!$A:$BE,MATCH(AW$1,Formulacion!$1:$1,0),FALSE)="NA","NA",HLOOKUP(VLOOKUP($B7,Formulacion!$A:$BE,MATCH(AW$1,Formulacion!$1:$1,0),FALSE),$Q:$Z,ROW(AW7),FALSE)) -> NA | AX7: NA | AY7: 1 | AZ7: =IF(VLOOKUP($B7,Formulacion!$A:$BE,MATCH(AZ$1,Formulacion!$1:$1,0),FALSE)="NA",1,VLOOKUP($B7,Formulacion!$A:$BE,MATCH(AZ$1,Formulacion!$1:$1,0),FALSE)) -> 0.8 | BA7: =IF(VLOOKUP($B7,Formulacion!$A:$BE,MATCH(BA$1,Formulacion!$1:$1,0),FALSE)="NA",1,VLOOKUP($B7,Formulacion!$A:$BE,MATCH(BA$1,Formulacion!$1:$1,0),FALSE)) -> 1 | BB7: 8222.512 | BC7: 10278.14
A8: CC-01-AD-2010-EDECHI.xls | B8: CMEDI | C8: CMEDI004 | D8: CMEDIMBDNO096 | E8: 2010-12-31 | F8: CHIRIQUI | G8: 0 | H8: 17155.22 | I8: 0 | J8: 0 | K8: 0 | L8: 0 | M8: 0 | N8: 17155.22 | O8: 12 | P8: 0 | Q8: =IF(OR(VLOOKUP($B8,Formulacion!$A:$BE,MATCH(Q$1,Formulacion!$1:$1,0),FALSE)="NA",$D8=0),"NA",IF($B8="DLABT",MID($D8,PosteInicioBT,PosteFinBT-PosteInicioBT+1)*1,MID($D8,PosteInicio,PosteFin-PosteInicio+1)*1)) -> NA | R8: =IF(OR(VLOOKUP($B8,Formulacion!$A:$BE,MATCH(R$1,Formulacion!$1:$1,0),FALSE)="NA",$D8=0),"NA",IF(OR($B8="DLABT",$B8="DLSBT"),MID($D8,CondInicioBT,CondFinBT-CondInicioBT+1)*1,MID($D8,CondInicio,CondFin-CondInicio+1)*1)) -> NA | S8: NA | T8: =IF(OR(VLOOKUP($B8,Formulacion!$A:$BE,MATCH(T$1,Formulacion!$1:$1,0),FALSE)="NA",$D8=0),"NA",IF($B8="DLSBT",MID($D8,ZanjaInicioBT,ZanjaFinBT-ZanjaInicioBT+1)*1,MID($D8,ZanjaInicio,ZanjaFin-ZanjaInicio+1)*1)) -> NA | U8: 1 | V8: =IF(OR(VLOOKUP($B8,Formulacion!$A:$BE,MATCH(V$1,Formulacion!$1:$1,0),FALSE)="NA",$D8=0),"NA",MID($D8,m2Inicio+INDIRECT(B8),m2Fin-m2Inicio+1)*1) -> NA | W8: =IF(OR(VLOOKUP($B8,Formulacion!$A:$BE,MATCH(W$1,Formulacion!$1:$1,0),FALSE)="NA",$D8=0),"NA",RIGHT($D8,4)*1) -> NA | X8: =IF(OR(VLOOKUP($B8,Formulacion!$A:$BE,MATCH(X$1,Formulacion!$1:$1,0),FALSE)="NA",$D8=0),"NA",RIGHT($D8,3)*1) -> 96 | Y8: 1 | Z8: =IF(VLOOKUP($B8,Formulacion!$A:$BE,MATCH(Z$1,Formulacion!$1:$1,0),FALSE)="NA",1,IF(V8<=m2Min,0,1)) -> 1 | AA8: =IF(VLOOKUP($B8,Formulacion!$A:$BE,MATCH(AA$1,Formulacion!$1:$1,0),FALSE)="NA",1,IF(OR(E8<=FechaMin,E8>FechaMax),0,1)) -> 1 | AB8: =IF(VLOOKUP($B8,Formulacion!$A:$BE,MATCH(AB$1,Formulacion!$1:$1,0),FALSE)="NA",1,IF(H8<=MaterialesMin,0,1)) -> 1 | AC8: =IF(VLOOKUP($B8,Formulacion!$A:$BE,MATCH(AC$1,Formulacion!$1:$1,0),FALSE)="NA",1,IF(N8=0,0,IF(OR(I8/N8<=MObraMin,I8/N8>=MObraMax),MDOmin,1))) -> 1 | AD8: =IF(VLOOKUP($B8,Formulacion!$A:$BE,MATCH(AD$1,Formulacion!$1:$1,0),FALSE)="NA",1,IF(N8<=CostoTotalMin,0,1)) -> 1 | AE8: =IF(VLOOKUP($B8,Formulacion!$A:$BE,MATCH(AE$1,Formulacion!$1:$1,0),FALSE)="NA",1,IF(Q8<=PostesMin,0,1)) -> 1 | AF8: =IF(VLOOKUP($B8,Formulacion!$A:$BE,MATCH(AF$1,Formulacion!$1:$1,0),FALSE)="NA",1,IF(R8<=INDIRECT(VLOOKUP(B8,Formulacion!$A:$BE,2,FALSE)),0,1)) -> 1 | AG8: 1 | AH8: 17155.22 | AJ8: =IF(VLOOKUP($B8,Formulacion!$A:$BE,MATCH(AJ$1,Formulacion!$1:$1,0),FALSE)="NA","NA",HLOOKUP(VLOOKUP($B8,Formulacion!$A:$BE,MATCH(AJ$1,Formulacion!$1:$1,0),FALSE),$Q:$Z,ROW(AJ8),FALSE)) -> NA | AK8: =IF(VLOOKUP($B8,Formulacion!$A:$BE,MATCH(AK$1,Formulacion!$1:$1,0),FALSE)="NA",1,VLOOKUP($B8,Formulacion!$A:$BE,MATCH(AK$1,Formulacion!$1:$1,0),FALSE)) -> 1 | AL8: =IF(VLOOKUP($B8,Formulacion!$A:$BE,MATCH(AL$1,Formulacion!$1:$1,0),FALSE)="NA",1,VLOOKUP($B8,Formulacion!$A:$BE,MATCH(AL$1,Formulacion!$1:$1,0),FALSE)) -> 1 | AM8: 1 | AN8: =IF(VLOOKUP($B8,Formulacion!$A:$BE,MATCH(AN$1,Formulacion!$1:$1,0),FALSE)="NA","NA",IF(D8=0,"",VLOOKUP($B8,Formulacion!$A:$BE,MATCH(AN$1,Formulacion!$1:$1,0),FALSE))) -> NA | AO8: X | AV8: =IF(VLOOKUP($B8,Formulacion!$A:$BE,MATCH(AV$1,Formulacion!$1:$1,0),FALSE)="NA","NA",VLOOKUP(CONCATENATE(AO8,AP8,AQ8,AR8,AS8,AT8,AU8),ValoresReferenciales!$A:$D,4,FALSE)) -> NA | AW8: =IF(VLOOKUP($B8,Formulacion!$A:$BE,MATCH(AW$1,Formulacion!$1:$1,0),FALSE)="NA","NA",HLOOKUP(VLOOKUP($B8,Formulacion!$A:$BE,MATCH(AW$1,Formulacion!$1:$1,0),FALSE),$Q:$Z,ROW(AW8),FALSE)) -> NA | AX8: NA | AY8: 1 | AZ8: =IF(VLOOKUP($B8,Formulacion!$A:$BE,MATCH(AZ$1,Formulacion!$1:$1,0),FALSE)="NA",1,VLOOKUP($B8,Formulacion!$A:$BE,MATCH(AZ$1,Formulacion!$1:$1,0),FALSE)) -> 0.8 | BA8: =IF(VLOOKUP($B8,Formulacion!$A:$BE,MATCH(BA$1,Formulacion!$1:$1,0),FALSE)="NA",1,VLOOKUP($B8,Formulacion!$A:$BE,MATCH(BA$1,Formulacion!$1:$1,0),FALSE)) -> 1 | BB8: 13724.176 | BC8: 17155.22
A9: CC-01-AD-2010-EDECHI.xls | B9: CMEDI | C9: CMEDI004 | D9: CMEDIMBSNO671 | E9: 2010-12-31 | F9: CHIRIQUI | G9: 0 | H9: 19930.22 | I9: 0 | J9: 0 | K9: 0 | L9: 0 | M9: 0 | N9: 19930.22 | O9: 10 | P9: 0 | Q9: =IF(OR(VLOOKUP($B9,Formulacion!$A:$BE,MATCH(Q$1,Formulacion!$1:$1,0),FALSE)="NA",$D9=0),"NA",IF($B9="DLABT",MID($D9,PosteInicioBT,PosteFinBT-PosteInicioBT+1)*1,MID($D9,PosteInicio,PosteFin-PosteInicio+1)*1)) -> NA | R9: =IF(OR(VLOOKUP($B9,Formulacion!$A:$BE,MATCH(R$1,Formulacion!$1:$1,0),FALSE)="NA",$D9=0),"NA",IF(OR($B9="DLABT",$B9="DLSBT"),MID($D9,CondInicioBT,CondFinBT-CondInicioBT+1)*1,MID($D9,CondInicio,CondFin-CondInicio+1)*1)) -> NA | S9: NA | T9: =IF(OR(VLOOKUP($B9,Formulacion!$A:$BE,MATCH(T$1,Formulacion!$1:$1,0),FALSE)="NA",$D9=0),"NA",IF($B9="DLSBT",MID($D9,ZanjaInicioBT,ZanjaFinBT-ZanjaInicioBT+1)*1,MID($D9,ZanjaInicio,ZanjaFin-ZanjaInicio+1)*1)) -> NA | U9: 1 | V9: =IF(OR(VLOOKUP($B9,Formulacion!$A:$BE,MATCH(V$1,Formulacion!$1:$1,0),FALSE)="NA",$D9=0),"NA",MID($D9,m2Inicio+INDIRECT(B9),m2Fin-m2Inicio+1)*1) -> NA | W9: =IF(OR(VLOOKUP($B9,Formulacion!$A:$BE,MATCH(W$1,Formulacion!$1:$1,0),FALSE)="NA",$D9=0),"NA",RIGHT($D9,4)*1) -> NA | X9: =IF(OR(VLOOKUP($B9,Formulacion!$A:$BE,MATCH(X$1,Formulacion!$1:$1,0),FALSE)="NA",$D9=0),"NA",RIGHT($D9,3)*1) -> 671 | Y9: 1 | Z9: =IF(VLOOKUP($B9,Formulacion!$A:$BE,MATCH(Z$1,Formulacion!$1:$1,0),FALSE)="NA",1,IF(V9<=m2Min,0,1)) -> 1 | AA9: =IF(VLOOKUP($B9,Formulacion!$A:$BE,MATCH(AA$1,Formulacion!$1:$1,0),FALSE)="NA",1,IF(OR(E9<=FechaMin,E9>FechaMax),0,1)) -> 1 | AB9: =IF(VLOOKUP($B9,Formulacion!$A:$BE,MATCH(AB$1,Formulacion!$1:$1,0),FALSE)="NA",1,IF(H9<=MaterialesMin,0,1)) -> 1 | AC9: =IF(VLOOKUP($B9,Formulacion!$A:$BE,MATCH(AC$1,Formulacion!$1:$1,0),FALSE)="NA",1,IF(N9=0,0,IF(OR(I9/N9<=MObraMin,I9/N9>=MObraMax),MDOmin,1))) -> 1 | AD9: =IF(VLOOKUP($B9,Formulacion!$A:$BE,MATCH(AD$1,Formulacion!$1:$1,0),FALSE)="NA",1,IF(N9<=CostoTotalMin,0,1)) -> 1 | AE9: =IF(VLOOKUP($B9,Formulacion!$A:$BE,MATCH(AE$1,Formulacion!$1:$1,0),FALSE)="NA",1,IF(Q9<=PostesMin,0,1)) -> 1 | AF9: =IF(VLOOKUP($B9,Formulacion!$A:$BE,MATCH(AF$1,Formulacion!$1:$1,0),FALSE)="NA",1,IF(R9<=INDIRECT(VLOOKUP(B9,Formulacion!$A:$BE,2,FALSE)),0,1)) -> 1 | AG9: 1 | AH9: 19930.22 | AJ9: =IF(VLOOKUP($B9,Formulacion!$A:$BE,MATCH(AJ$1,Formulacion!$1:$1,0),FALSE)="NA","NA",HLOOKUP(VLOOKUP($B9,Formulacion!$A:$BE,MATCH(AJ$1,Formulacion!$1:$1,0),FALSE),$Q:$Z,ROW(AJ9),FALSE)) -> NA | AK9: =IF(VLOOKUP($B9,Formulacion!$A:$BE,MATCH(AK$1,Formulacion!$1:$1,0),FALSE)="NA",1,VLOOKUP($B9,Formulacion!$A:$BE,MATCH(AK$1,Formulacion!$1:$1,0),FALSE)) -> 1 | AL9: =IF(VLOOKUP($B9,Formulacion!$A:$BE,MATCH(AL$1,Formulacion!$1:$1,0),FALSE)="NA",1,VLOOKUP($B9,Formulacion!$A:$BE,MATCH(AL$1,Formulacion!$1:$1,0),FALSE)) -> 1 | AM9: 1 | AN9: =IF(VLOOKUP($B9,Formulacion!$A:$BE,MATCH(AN$1,Formulacion!$1:$1,0),FALSE)="NA","NA",IF(D9=0,"",VLOOKUP($B9,Formulacion!$A:$BE,MATCH(AN$1,Formulacion!$1:$1,0),FALSE))) -> NA | AO9: X | AV9: =IF(VLOOKUP($B9,Formulacion!$A:$BE,MATCH(AV$1,Formulacion!$1:$1,0),FALSE)="NA","NA",VLOOKUP(CONCATENATE(AO9,AP9,AQ9,AR9,AS9,AT9,AU9),ValoresReferenciales!$A:$D,4,FALSE)) -> NA | AW9: =IF(VLOOKUP($B9,Formulacion!$A:$BE,MATCH(AW$1,Formulacion!$1:$1,0),FALSE)="NA","NA",HLOOKUP(VLOOKUP($B9,Formulacion!$A:$BE,MATCH(AW$1,Formulacion!$1:$1,0),FALSE),$Q:$Z,ROW(AW9),FALSE)) -> NA | AX9: NA | AY9: 1 | AZ9: =IF(VLOOKUP($B9,Formulacion!$A:$BE,MATCH(AZ$1,Formulacion!$1:$1,0),FALSE)="NA",1,VLOOKUP($B9,Formulacion!$A:$BE,MATCH(AZ$1,Formulacion!$1:$1,0),FALSE)) -> 0.8 | BA9: =IF(VLOOKUP($B9,Formulacion!$A:$BE,MATCH(BA$1,Formulacion!$1:$1,0),FALSE)="NA",1,VLOOKUP($B9,Formulacion!$A:$BE,MATCH(BA$1,Formulacion!$1:$1,0),FALSE)) -> 1 | BB9: 15944.176 | BC9: 19930.22
A10: CC-01-AD-2010-EDECHI.xls | B10: CMEDI | C10: CMEDI004 | D10: CMEDIMBSNO999 | E10: 2010-12-31 | F10: CHIRIQUI | G10: 0 | H10: 29672.55 | I10: 0 | J10: 0 | K10: 0 | L10: 0 | M10: 0 | N10: 29672.55 | O10: 9 | P10: 0 | Q10: =IF(OR(VLOOKUP($B10,Formulacion!$A:$BE,MATCH(Q$1,Formulacion!$1:$1,0),FALSE)="NA",$D10=0),"NA",IF($B10="DLABT",MID($D10,PosteInicioBT,PosteFinBT-PosteInicioBT+1)*1,MID($D10,PosteInicio,PosteFin-PosteInicio+1)*1)) -> NA | R10: =IF(OR(VLOOKUP($B10,Formulacion!$A:$BE,MATCH(R$1,Formulacion!$1:$1,0),FALSE)="NA",$D10=0),"NA",IF(OR($B10="DLABT",$B10="DLSBT"),MID($D10,CondInicioBT,CondFinBT-CondInicioBT+1)*1,MID($D10,CondInicio,CondFin-CondInicio+1)*1)) -> NA | S10: NA | T10: =IF(OR(VLOOKUP($B10,Formulacion!$A:$BE,MATCH(T$1,Formulacion!$1:$1,0),FALSE)="NA",$D10=0),"NA",IF($B10="DLSBT",MID($D10,ZanjaInicioBT,ZanjaFinBT-ZanjaInicioBT+1)*1,MID($D10,ZanjaInicio,ZanjaFin-ZanjaInicio+1)*1)) -> NA | U10: 1 | V10: =IF(OR(VLOOKUP($B10,Formulacion!$A:$BE,MATCH(V$1,Formulacion!$1:$1,0),FALSE)="NA",$D10=0),"NA",MID($D10,m2Inicio+INDIRECT(B10),m2Fin-m2Inicio+1)*1) -> NA | W10: =IF(OR(VLOOKUP($B10,Formulacion!$A:$BE,MATCH(W$1,Formulacion!$1:$1,0),FALSE)="NA",$D10=0),"NA",RIGHT($D10,4)*1) -> NA | X10: =IF(OR(VLOOKUP($B10,Formulacion!$A:$BE,MATCH(X$1,Formulacion!$1:$1,0),FALSE)="NA",$D10=0),"NA",RIGHT($D10,3)*1) -> 999 | Y10: 1 | Z10: =IF(VLOOKUP($B10,Formulacion!$A:$BE,MATCH(Z$1,Formulacion!$1:$1,0),FALSE)="NA",1,IF(V10<=m2Min,0,1)) -> 1 | AA10: =IF(VLOOKUP($B10,Formulacion!$A:$BE,MATCH(AA$1,Formulacion!$1:$1,0),FALSE)="NA",1,IF(OR(E10<=FechaMin,E10>FechaMax),0,1)) -> 1 | AB10: =IF(VLOOKUP($B10,Formulacion!$A:$BE,MATCH(AB$1,Formulacion!$1:$1,0),FALSE)="NA",1,IF(H10<=MaterialesMin,0,1)) -> 1 | AC10: =IF(VLOOKUP($B10,Formulacion!$A:$BE,MATCH(AC$1,Formulacion!$1:$1,0),FALSE)="NA",1,IF(N10=0,0,IF(OR(I10/N10<=MObraMin,I10/N10>=MObraMax),MDOmin,1))) -> 1 | AD10: =IF(VLOOKUP($B10,Formulacion!$A:$BE,MATCH(AD$1,Formulacion!$1:$1,0),FALSE)="NA",1,IF(N10<=CostoTotalMin,0,1)) -> 1 | AE10: =IF(VLOOKUP($B10,Formulacion!$A:$BE,MATCH(AE$1,Formulacion!$1:$1,0),FALSE)="NA",1,IF(Q10<=PostesMin,0,1)) -> 1 | AF10: =IF(VLOOKUP($B10,Formulacion!$A:$BE,MATCH(AF$1,Formulacion!$1:$1,0),FALSE)="NA",1,IF(R10<=INDIRECT(VLOOKUP(B10,Formulacion!$A:$BE,2,FALSE)),0,1)) -> 1 | AG10: 1 | AH10: 29672.55 | AJ10: =IF(VLOOKUP($B10,Formulacion!$A:$BE,MATCH(AJ$1,Formulacion!$1:$1,0),FALSE)="NA","NA",HLOOKUP(VLOOKUP($B10,Formulacion!$A:$BE,MATCH(AJ$1,Formulacion!$1:$1,0),FALSE),$Q:$Z,ROW(AJ10),FALSE)) -> NA | AK10: =IF(VLOOKUP($B10,Formulacion!$A:$BE,MATCH(AK$1,Formulacion!$1:$1,0),FALSE)="NA",1,VLOOKUP($B10,Formulacion!$A:$BE,MATCH(AK$1,Formulacion!$1:$1,0),FALSE)) -> 1 | AL10: =IF(VLOOKUP($B10,Formulacion!$A:$BE,MATCH(AL$1,Formulacion!$1:$1,0),FALSE)="NA",1,VLOOKUP($B10,Formulacion!$A:$BE,MATCH(AL$1,Formulacion!$1:$1,0),FALSE)) -> 1 | AM10: 1 | AN10: =IF(VLOOKUP($B10,Formulacion!$A:$BE,MATCH(AN$1,Formulacion!$1:$1,0),FALSE)="NA","NA",IF(D10=0,"",VLOOKUP($B10,Formulacion!$A:$BE,MATCH(AN$1,Formulacion!$1:$1,0),FALSE))) -> NA | AO10: X | AV10: =IF(VLOOKUP($B10,Formulacion!$A:$BE,MATCH(AV$1,Formulacion!$1:$1,0),FALSE)="NA","NA",VLOOKUP(CONCATENATE(AO10,AP10,AQ10,AR10,AS10,AT10,AU10),ValoresReferenciales!$A:$D,4,FALSE)) -> NA | AW10: =IF(VLOOKUP($B10,Formulacion!$A:$BE,MATCH(AW$1,Formulacion!$1:$1,0),FALSE)="NA","NA",HLOOKUP(VLOOKUP($B10,Formulacion!$A:$BE,MATCH(AW$1,Formulacion!$1:$1,0),FALSE),$Q:$Z,ROW(AW10),FALSE)) -> NA | AX10: NA | AY10: 1 | AZ10: =IF(VLOOKUP($B10,Formulacion!$A:$BE,MATCH(AZ$1,Formulacion!$1:$1,0),FALSE)="NA",1,VLOOKUP($B10,Formulacion!$A:$BE,MATCH(AZ$1,Formulacion!$1:$1,0),FALSE)) -> 0.8 | BA10: =IF(VLOOKUP($B10,Formulacion!$A:$BE,MATCH(BA$1,Formulacion!$1:$1,0),FALSE)="NA",1,VLOOKUP($B10,Formulacion!$A:$BE,MATCH(BA$1,Formulacion!$1:$1,0),FALSE)) -> 1 | BB10: 23738.04 | BC10: 29672.55
A11: CC-01-AD-2010-EDECHI.xls | B11: CMEDI | C11: CMEDI004 | D11: CMEDITBDTI047 | E11: 2010-12-31 | F11: CHIRIQUI | G11: 0 | H11: 27272.2 | I11: 0 | J11: 0 | K11: 0 | L11: 0 | M11: 0 | N11: 27272.2 | O11: 11 | P11: 0 | Q11: =IF(OR(VLOOKUP($B11,Formulacion!$A:$BE,MATCH(Q$1,Formulacion!$1:$1,0),FALSE)="NA",$D11=0),"NA",IF($B11="DLABT",MID($D11,PosteInicioBT,PosteFinBT-PosteInicioBT+1)*1,MID($D11,PosteInicio,PosteFin-PosteInicio+1)*1)) -> NA | R11: =IF(OR(VLOOKUP($B11,Formulacion!$A:$BE,MATCH(R$1,Formulacion!$1:$1,0),FALSE)="NA",$D11=0),"NA",IF(OR($B11="DLABT",$B11="DLSBT"),MID($D11,CondInicioBT,CondFinBT-CondInicioBT+1)*1,MID($D11,CondInicio,CondFin-CondInicio+1)*1)) -> NA | S11: NA | T11: =IF(OR(VLOOKUP($B11,Formulacion!$A:$BE,MATCH(T$1,Formulacion!$1:$1,0),FALSE)="NA",$D11=0),"NA",IF($B11="DLSBT",MID($D11,ZanjaInicioBT,ZanjaFinBT-ZanjaInicioBT+1)*1,MID($D11,ZanjaInicio,ZanjaFin-ZanjaInicio+1)*1)) -> NA | U11: 1 | V11: =IF(OR(VLOOKUP($B11,Formulacion!$A:$BE,MATCH(V$1,Formulacion!$1:$1,0),FALSE)="NA",$D11=0),"NA",MID($D11,m2Inicio+INDIRECT(B11),m2Fin-m2Inicio+1)*1) -> NA | W11: =IF(OR(VLOOKUP($B11,Formulacion!$A:$BE,MATCH(W$1,Formulacion!$1:$1,0),FALSE)="NA",$D11=0),"NA",RIGHT($D11,4)*1) -> NA | X11: =IF(OR(VLOOKUP($B11,Formulacion!$A:$BE,MATCH(X$1,Formulacion!$1:$1,0),FALSE)="NA",$D11=0),"NA",RIGHT($D11,3)*1) -> 47 | Y11: 1 | Z11: =IF(VLOOKUP($B11,Formulacion!$A:$BE,MATCH(Z$1,Formulacion!$1:$1,0),FALSE)="NA",1,IF(V11<=m2Min,0,1)) -> 1 | AA11: =IF(VLOOKUP($B11,Formulacion!$A:$BE,MATCH(AA$1,Formulacion!$1:$1,0),FALSE)="NA",1,IF(OR(E11<=FechaMin,E11>FechaMax),0,1)) -> 1 | AB11: =IF(VLOOKUP($B11,Formulacion!$A:$BE,MATCH(AB$1,Formulacion!$1:$1,0),FALSE)="NA",1,IF(H11<=MaterialesMin,0,1)) -> 1 | AC11: =IF(VLOOKUP($B11,Formulacion!$A:$BE,MATCH(AC$1,Formulacion!$1:$1,0),FALSE)="NA",1,IF(N11=0,0,IF(OR(I11/N11<=MObraMin,I11/N11>=MObraMax),MDOmin,1))) -> 1 | AD11: =IF(VLOOKUP($B11,Formulacion!$A:$BE,MATCH(AD$1,Formulacion!$1:$1,0),FALSE)="NA",1,IF(N11<=CostoTotalMin,0,1)) -> 1 | AE11: =IF(VLOOKUP($B11,Formulacion!$A:$BE,MATCH(AE$1,Formulacion!$1:$1,0),FALSE)="NA",1,IF(Q11<=PostesMin,0,1)) -> 1 | AF11: =IF(VLOOKUP($B11,Formulacion!$A:$BE,MATCH(AF$1,Formulacion!$1:$1,0),FALSE)="NA",1,IF(R11<=INDIRECT(VLOOKUP(B11,Formulacion!$A:$BE,2,FALSE)),0,1)) -> 1 | AG11: 1 | AH11: 27272.2 | AJ11: =IF(VLOOKUP($B11,Formulacion!$A:$BE,MATCH(AJ$1,Formulacion!$1:$1,0),FALSE)="NA","NA",HLOOKUP(VLOOKUP($B11,Formulacion!$A:$BE,MATCH(AJ$1,Formulacion!$1:$1,0),FALSE),$Q:$Z,ROW(AJ11),FALSE)) -> NA | AK11: =IF(VLOOKUP($B11,Formulacion!$A:$BE,MATCH(AK$1,Formulacion!$1:$1,0),FALSE)="NA",1,VLOOKUP($B11,Formulacion!$A:$BE,MATCH(AK$1,Formulacion!$1:$1,0),FALSE)) -> 1 | AL11: =IF(VLOOKUP($B11,Formulacion!$A:$BE,MATCH(AL$1,Formulacion!$1:$1,0),FALSE)="NA",1,VLOOKUP($B11,Formulacion!$A:$BE,MATCH(AL$1,Formulacion!$1:$1,0),FALSE)) -> 1 | AM11: 1 | AN11: =IF(VLOOKUP($B11,Formulacion!$A:$BE,MATCH(AN$1,Formulacion!$1:$1,0),FALSE)="NA","NA",IF(D11=0,"",VLOOKUP($B11,Formulacion!$A:$BE,MATCH(AN$1,Formulacion!$1:$1,0),FALSE))) -> NA | AO11: X | AV11: =IF(VLOOKUP($B11,Formulacion!$A:$BE,MATCH(AV$1,Formulacion!$1:$1,0),FALSE)="NA","NA",VLOOKUP(CONCATENATE(AO11,AP11,AQ11,AR11,AS11,AT11,AU11),ValoresReferenciales!$A:$D,4,FALSE)) -> NA | AW11: =IF(VLOOKUP($B11,Formulacion!$A:$BE,MATCH(AW$1,Formulacion!$1:$1,0),FALSE)="NA","NA",HLOOKUP(VLOOKUP($B11,Formulacion!$A:$BE,MATCH(AW$1,Formulacion!$1:$1,0),FALSE),$Q:$Z,ROW(AW11),FALSE)) -> NA | AX11: NA | AY11: 1 | AZ11: =IF(VLOOKUP($B11,Formulacion!$A:$BE,MATCH(AZ$1,Formulacion!$1:$1,0),FALSE)="NA",1,VLOOKUP($B11,Formulacion!$A:$BE,MATCH(AZ$1,Formulacion!$1:$1,0),FALSE)) -> 0.8 | BA11: =IF(VLOOKUP($B11,Formulacion!$A:$BE,MATCH(BA$1,Formulacion!$1:$1,0),FALSE)="NA",1,VLOOKUP($B11,Formulacion!$A:$BE,MATCH(BA$1,Formulacion!$1:$1,0),FALSE)) -> 1 | BB11: 21817.76 | BC11: 27272.2
A12: CC-01-AD-2010-EDECHI.xls | B12: CMEDI | C12: CMEDI004 | D12: CMEDITMTTT014 | E12: 2010-12-31 | F12: CHIRIQUI | G12: 0 | H12: 30179.94 | I12: 0 | J12: 0 | K12: 0 | L12: 0 | M12: 0 | N12: 30179.94 | O12: 14 | P12: 0 | Q12: =IF(OR(VLOOKUP($B12,Formulacion!$A:$BE,MATCH(Q$1,Formulacion!$1:$1,0),FALSE)="NA",$D12=0),"NA",IF($B12="DLABT",MID($D12,PosteInicioBT,PosteFinBT-PosteInicioBT+1)*1,MID($D12,PosteInicio,PosteFin-PosteInicio+1)*1)) -> NA | R12: =IF(OR(VLOOKUP($B12,Formulacion!$A:$BE,MATCH(R$1,Formulacion!$1:$1,0),FALSE)="NA",$D12=0),"NA",IF(OR($B12="DLABT",$B12="DLSBT"),MID($D12,CondInicioBT,CondFinBT-CondInicioBT+1)*1,MID($D12,CondInicio,CondFin-CondInicio+1)*1)) -> NA | S12: NA | T12: =IF(OR(VLOOKUP($B12,Formulacion!$A:$BE,MATCH(T$1,Formulacion!$1:$1,0),FALSE)="NA",$D12=0),"NA",IF($B12="DLSBT",MID($D12,ZanjaInicioBT,ZanjaFinBT-ZanjaInicioBT+1)*1,MID($D12,ZanjaInicio,ZanjaFin-ZanjaInicio+1)*1)) -> NA | U12: 1 | V12: =IF(OR(VLOOKUP($B12,Formulacion!$A:$BE,MATCH(V$1,Formulacion!$1:$1,0),FALSE)="NA",$D12=0),"NA",MID($D12,m2Inicio+INDIRECT(B12),m2Fin-m2Inicio+1)*1) -> NA | W12: =IF(OR(VLOOKUP($B12,Formulacion!$A:$BE,MATCH(W$1,Formulacion!$1:$1,0),FALSE)="NA",$D12=0),"NA",RIGHT($D12,4)*1) -> NA | X12: =IF(OR(VLOOKUP($B12,Formulacion!$A:$BE,MATCH(X$1,Formulacion!$1:$1,0),FALSE)="NA",$D12=0),"NA",RIGHT($D12,3)*1) -> 14 | Y12: 1 | Z12: =IF(VLOOKUP($B12,Formulacion!$A:$BE,MATCH(Z$1,Formulacion!$1:$1,0),FALSE)="NA",1,IF(V12<=m2Min,0,1)) -> 1 | AA12: =IF(VLOOKUP($B12,Formulacion!$A:$BE,MATCH(AA$1,Formulacion!$1:$1,0),FALSE)="NA",1,IF(OR(E12<=FechaMin,E12>FechaMax),0,1)) -> 1 | AB12: =IF(VLOOKUP($B12,Formulacion!$A:$BE,MATCH(AB$1,Formulacion!$1:$1,0),FALSE)="NA",1,IF(H12<=MaterialesMin,0,1)) -> 1 | AC12: =IF(VLOOKUP($B12,Formulacion!$A:$BE,MATCH(AC$1,Formulacion!$1:$1,0),FALSE)="NA",1,IF(N12=0,0,IF(OR(I12/N12<=MObraMin,I12/N12>=MObraMax),MDOmin,1))) -> 1 | AD12: =IF(VLOOKUP($B12,Formulacion!$A:$BE,MATCH(AD$1,Formulacion!$1:$1,0),FALSE)="NA",1,IF(N12<=CostoTotalMin,0,1)) -> 1 | AE12: =IF(VLOOKUP($B12,Formulacion!$A:$BE,MATCH(AE$1,Formulacion!$1:$1,0),FALSE)="NA",1,IF(Q12<=PostesMin,0,1)) -> 1 | AF12: =IF(VLOOKUP($B12,Formulacion!$A:$BE,MATCH(AF$1,Formulacion!$1:$1,0),FALSE)="NA",1,IF(R12<=INDIRECT(VLOOKUP(B12,Formulacion!$A:$BE,2,FALSE)),0,1)) -> 1 | AG12: 1 | AH12: 30179.94 | AJ12: =IF(VLOOKUP($B12,Formulacion!$A:$BE,MATCH(AJ$1,Formulacion!$1:$1,0),FALSE)="NA","NA",HLOOKUP(VLOOKUP($B12,Formulacion!$A:$BE,MATCH(AJ$1,Formulacion!$1:$1,0),FALSE),$Q:$Z,ROW(AJ12),FALSE)) -> NA | AK12: =IF(VLOOKUP($B12,Formulacion!$A:$BE,MATCH(AK$1,Formulacion!$1:$1,0),FALSE)="NA",1,VLOOKUP($B12,Formulacion!$A:$BE,MATCH(AK$1,Formulacion!$1:$1,0),FALSE)) -> 1 | AL12: =IF(VLOOKUP($B12,Formulacion!$A:$BE,MATCH(AL$1,Formulacion!$1:$1,0),FALSE)="NA",1,VLOOKUP($B12,Formulacion!$A:$BE,MATCH(AL$1,Formulacion!$1:$1,0),FALSE)) -> 1 | AM12: 1 | AN12: =IF(VLOOKUP($B12,Formulacion!$A:$BE,MATCH(AN$1,Formulacion!$1:$1,0),FALSE)="NA","NA",IF(D12=0,"",VLOOKUP($B12,Formulacion!$A:$BE,MATCH(AN$1,Formulacion!$1:$1,0),FALSE))) -> NA | AO12: X | AV12: =IF(VLOOKUP($B12,Formulacion!$A:$BE,MATCH(AV$1,Formulacion!$1:$1,0),FALSE)="NA","NA",VLOOKUP(CONCATENATE(AO12,AP12,AQ12,AR12,AS12,AT12,AU12),ValoresReferenciales!$A:$D,4,FALSE)) -> NA | AW12: =IF(VLOOKUP($B12,Formulacion!$A:$BE,MATCH(AW$1,Formulacion!$1:$1,0),FALSE)="NA","NA",HLOOKUP(VLOOKUP($B12,Formulacion!$A:$BE,MATCH(AW$1,Formulacion!$1:$1,0),FALSE),$Q:$Z,ROW(AW12),FALSE)) -> NA | AX12: NA | AY12: 1 | AZ12: =IF(VLOOKUP($B12,Formulacion!$A:$BE,MATCH(AZ$1,Formulacion!$1:$1,0),FALSE)="NA",1,VLOOKUP($B12,Formulacion!$A:$BE,MATCH(AZ$1,Formulacion!$1:$1,0),FALSE)) -> 0.8 | BA12: =IF(VLOOKUP($B12,Formulacion!$A:$BE,MATCH(BA$1,Formulacion!$1:$1,0),FALSE)="NA",1,VLOOKUP($B12,Formulacion!$A:$BE,MATCH(BA$1,Formulacion!$1:$1,0),FALSE)) -> 1 | BB12: 24143.952 | BC12: 30179.94
A13: CC-01-AD-2010-EDECHI.xls | B13: CMEDI | C13: CMEDI004 | D13: CMEDITMTTT027 | E13: 2010-12-31 | F13: CHIRIQUI | G13: 0 | H13: 163189.33 | I13: 0 | J13: 0 | K13: 0 | L13: 0 | M13: 0 | N13: 163189.33 | O13: 13 | P13: 0 | Q13: =IF(OR(VLOOKUP($B13,Formulacion!$A:$BE,MATCH(Q$1,Formulacion!$1:$1,0),FALSE)="NA",$D13=0),"NA",IF($B13="DLABT",MID($D13,PosteInicioBT,PosteFinBT-PosteInicioBT+1)*1,MID($D13,PosteInicio,PosteFin-PosteInicio+1)*1)) -> NA | R13: =IF(OR(VLOOKUP($B13,Formulacion!$A:$BE,MATCH(R$1,Formulacion!$1:$1,0),FALSE)="NA",$D13=0),"NA",IF(OR($B13="DLABT",$B13="DLSBT"),MID($D13,CondInicioBT,CondFinBT-CondInicioBT+1)*1,MID($D13,CondInicio,CondFin-CondInicio+1)*1)) -> NA | S13: NA | T13: =IF(OR(VLOOKUP($B13,Formulacion!$A:$BE,MATCH(T$1,Formulacion!$1:$1,0),FALSE)="NA",$D13=0),"NA",IF($B13="DLSBT",MID($D13,ZanjaInicioBT,ZanjaFinBT-ZanjaInicioBT+1)*1,MID($D13,ZanjaInicio,ZanjaFin-ZanjaInicio+1)*1)) -> NA | U13: 1 | V13: =IF(OR(VLOOKUP($B13,Formulacion!$A:$BE,MATCH(V$1,Formulacion!$1:$1,0),FALSE)="NA",$D13=0),"NA",MID($D13,m2Inicio+INDIRECT(B13),m2Fin-m2Inicio+1)*1) -> NA | W13: =IF(OR(VLOOKUP($B13,Formulacion!$A:$BE,MATCH(W$1,Formulacion!$1:$1,0),FALSE)="NA",$D13=0),"NA",RIGHT($D13,4)*1) -> NA | X13: =IF(OR(VLOOKUP($B13,Formulacion!$A:$BE,MATCH(X$1,Formulacion!$1:$1,0),FALSE)="NA",$D13=0),"NA",RIGHT($D13,3)*1) -> 27 | Y13: 1 | Z13: =IF(VLOOKUP($B13,Formulacion!$A:$BE,MATCH(Z$1,Formulacion!$1:$1,0),FALSE)="NA",1,IF(V13<=m2Min,0,1)) -> 1 | AA13: =IF(VLOOKUP($B13,Formulacion!$A:$BE,MATCH(AA$1,Formulacion!$1:$1,0),FALSE)="NA",1,IF(OR(E13<=FechaMin,E13>FechaMax),0,1)) -> 1 | AB13: =IF(VLOOKUP($B13,Formulacion!$A:$BE,MATCH(AB$1,Formulacion!$1:$1,0),FALSE)="NA",1,IF(H13<=MaterialesMin,0,1)) -> 1 | AC13: =IF(VLOOKUP($B13,Formulacion!$A:$BE,MATCH(AC$1,Formulacion!$1:$1,0),FALSE)="NA",1,IF(N13=0,0,IF(OR(I13/N13<=MObraMin,I13/N13>=MObraMax),MDOmin,1))) -> 1 | AD13: =IF(VLOOKUP($B13,Formulacion!$A:$BE,MATCH(AD$1,Formulacion!$1:$1,0),FALSE)="NA",1,IF(N13<=CostoTotalMin,0,1)) -> 1 | AE13: =IF(VLOOKUP($B13,Formulacion!$A:$BE,MATCH(AE$1,Formulacion!$1:$1,0),FALSE)="NA",1,IF(Q13<=PostesMin,0,1)) -> 1 | AF13: =IF(VLOOKUP($B13,Formulacion!$A:$BE,MATCH(AF$1,Formulacion!$1:$1,0),FALSE)="NA",1,IF(R13<=INDIRECT(VLOOKUP(B13,Formulacion!$A:$BE,2,FALSE)),0,1)) -> 1 | AG13: 1 | AH13: 163189.33 | AJ13: =IF(VLOOKUP($B13,Formulacion!$A:$BE,MATCH(AJ$1,Formulacion!$1:$1,0),FALSE)="NA","NA",HLOOKUP(VLOOKUP($B13,Formulacion!$A:$BE,MATCH(AJ$1,Formulacion!$1:$1,0),FALSE),$Q:$Z,ROW(AJ13),FALSE)) -> NA | AK13: =IF(VLOOKUP($B13,Formulacion!$A:$BE,MATCH(AK$1,Formulacion!$1:$1,0),FALSE)="NA",1,VLOOKUP($B13,Formulacion!$A:$BE,MATCH(AK$1,Formulacion!$1:$1,0),FALSE)) -> 1 | AL13: =IF(VLOOKUP($B13,Formulacion!$A:$BE,MATCH(AL$1,Formulacion!$1:$1,0),FALSE)="NA",1,VLOOKUP($B13,Formulacion!$A:$BE,MATCH(AL$1,Formulacion!$1:$1,0),FALSE)) -> 1 | AM13: 1 | AN13: =IF(VLOOKUP($B13,Formulacion!$A:$BE,MATCH(AN$1,Formulacion!$1:$1,0),FALSE)="NA","NA",IF(D13=0,"",VLOOKUP($B13,Formulacion!$A:$BE,MATCH(AN$1,Formulacion!$1:$1,0),FALSE))) -> NA | AO13: X | AV13: =IF(VLOOKUP($B13,Formulacion!$A:$BE,MATCH(AV$1,Formulacion!$1:$1,0),FALSE)="NA","NA",VLOOKUP(CONCATENATE(AO13,AP13,AQ13,AR13,AS13,AT13,AU13),ValoresReferenciales!$A:$D,4,FALSE)) -> NA | AW13: =IF(VLOOKUP($B13,Formulacion!$A:$BE,MATCH(AW$1,Formulacion!$1:$1,0),FALSE)="NA","NA",HLOOKUP(VLOOKUP($B13,Formulacion!$A:$BE,MATCH(AW$1,Formulacion!$1:$1,0),FALSE),$Q:$Z,ROW(AW13),FALSE)) -> NA | AX13: NA | AY13: 1 | AZ13: =IF(VLOOKUP($B13,Formulacion!$A:$BE,MATCH(AZ$1,Formulacion!$1:$1,0),FALSE)="NA",1,VLOOKUP($B13,Formulacion!$A:$BE,MATCH(AZ$1,Formulacion!$1:$1,0),FALSE)) -> 0.8 | BA13: =IF(VLOOKUP($B13,Formulacion!$A:$BE,MATCH(BA$1,Formulacion!$1:$1,0),FALSE)="NA",1,VLOOKUP($B13,Formulacion!$A:$BE,MATCH(BA$1,Formulacion!$1:$1,0),FALSE)) -> 1 | BB13: 130551.464 | BC13: 163189.33
A14: CC-01-AD-2010-EDECHI.xls | B14: CMESM | C14: 0 | D14: 0 | E14: 00:00:00 | F14: 0 | G14: 0 | H14: 0 | I14: 0 | J14: 0 | K14: 0 | L14: 0 | M14: 0 | N14: 0 | O14: 9 | P14: 0 | Q14: =IF(OR(VLOOKUP($B14,Formulacion!$A:$BE,MATCH(Q$1,Formulacion!$1:$1,0),FALSE)="NA",$D14=0),"NA",IF($B14="DLABT",MID($D14,PosteInicioBT,PosteFinBT-PosteInicioBT+1)*1,MID($D14,PosteInicio,PosteFin-PosteInicio+1)*1)) -> NA | R14: =IF(OR(VLOOKUP($B14,Formulacion!$A:$BE,MATCH(R$1,Formulacion!$1:$1,0),FALSE)="NA",$D14=0),"NA",IF(OR($B14="DLABT",$B14="DLSBT"),MID($D14,CondInicioBT,CondFinBT-CondInicioBT+1)*1,MID($D14,CondInicio,CondFin-CondInicio+1)*1)) -> NA | S14: NA | T14: =IF(OR(VLOOKUP($B14,Formulacion!$A:$BE,MATCH(T$1,Formulacion!$1:$1,0),FALSE)="NA",$D14=0),"NA",IF($B14="DLSBT",MID($D14,ZanjaInicioBT,ZanjaFinBT-ZanjaInicioBT+1)*1,MID($D14,ZanjaInicio,ZanjaFin-ZanjaInicio+1)*1)) -> NA | U14: 1 | V14: =IF(OR(VLOOKUP($B14,Formulacion!$A:$BE,MATCH(V$1,Formulacion!$1:$1,0),FALSE)="NA",$D14=0),"NA",MID($D14,m2Inicio+INDIRECT(B14),m2Fin-m2Inicio+1)*1) -> NA | W14: =IF(OR(VLOOKUP($B14,Formulacion!$A:$BE,MATCH(W$1,Formulacion!$1:$1,0),FALSE)="NA",$D14=0),"NA",RIGHT($D14,4)*1) -> NA | X14: =IF(OR(VLOOKUP($B14,Formulacion!$A:$BE,MATCH(X$1,Formulacion!$1:$1,0),FALSE)="NA",$D14=0),"NA",RIGHT($D14,3)*1) -> NA | Y14: 1 | Z14: =IF(VLOOKUP($B14,Formulacion!$A:$BE,MATCH(Z$1,Formulacion!$1:$1,0),FALSE)="NA",1,IF(V14<=m2Min,0,1)) -> 1 | AA14: =IF(VLOOKUP($B14,Formulacion!$A:$BE,MATCH(AA$1,Formulacion!$1:$1,0),FALSE)="NA",1,IF(OR(E14<=FechaMin,E14>FechaMax),0,1)) -> 0 | AB14: =IF(VLOOKUP($B14,Formulacion!$A:$BE,MATCH(AB$1,Formulacion!$1:$1,0),FALSE)="NA",1,IF(H14<=MaterialesMin,0,1)) -> 0 | AC14: =IF(VLOOKUP($B14,Formulacion!$A:$BE,MATCH(AC$1,Formulacion!$1:$1,0),FALSE)="NA",1,IF(N14=0,0,IF(OR(I14/N14<=MObraMin,I14/N14>=MObraMax),MDOmin,1))) -> 0 | AD14: =IF(VLOOKUP($B14,Formulacion!$A:$BE,MATCH(AD$1,Formulacion!$1:$1,0),FALSE)="NA",1,IF(N14<=CostoTotalMin,0,1)) -> 0 | AE14: =IF(VLOOKUP($B14,Formulacion!$A:$BE,MATCH(AE$1,Formulacion!$1:$1,0),FALSE)="NA",1,IF(Q14<=PostesMin,0,1)) -> 1 | AF14: =IF(VLOOKUP($B14,Formulacion!$A:$BE,MATCH(AF$1,Formulacion!$1:$1,0),FALSE)="NA",1,IF(R14<=INDIRECT(VLOOKUP(B14,Formulacion!$A:$BE,2,FALSE)),0,1)) -> 1 | AG14: 0 | AH14: 0 | AJ14: =IF(VLOOKUP($B14,Formulacion!$A:$BE,MATCH(AJ$1,Formulacion!$1:$1,0),FALSE)="NA","NA",HLOOKUP(VLOOKUP($B14,Formulacion!$A:$BE,MATCH(AJ$1,Formulacion!$1:$1,0),FALSE),$Q:$Z,ROW(AJ14),FALSE)) -> NA | AK14: =IF(VLOOKUP($B14,Formulacion!$A:$BE,MATCH(AK$1,Formulacion!$1:$1,0),FALSE)="NA",1,VLOOKUP($B14,Formulacion!$A:$BE,MATCH(AK$1,Formulacion!$1:$1,0),FALSE)) -> 1 | AL14: =IF(VLOOKUP($B14,Formulacion!$A:$BE,MATCH(AL$1,Formulacion!$1:$1,0),FALSE)="NA",1,VLOOKUP($B14,Formulacion!$A:$BE,MATCH(AL$1,Formulacion!$1:$1,0),FALSE)) -> 1 | AM14: 1 | AN14: =IF(VLOOKUP($B14,Formulacion!$A:$BE,MATCH(AN$1,Formulacion!$1:$1,0),FALSE)="NA","NA",IF(D14=0,"",VLOOKUP($B14,Formulacion!$A:$BE,MATCH(AN$1,Formulacion!$1:$1,0),FALSE))) -> NA | AO14: X | AV14: =IF(VLOOKUP($B14,Formulacion!$A:$BE,MATCH(AV$1,Formulacion!$1:$1,0),FALSE)="NA","NA",VLOOKUP(CONCATENATE(AO14,AP14,AQ14,AR14,AS14,AT14,AU14),ValoresReferenciales!$A:$D,4,FALSE)) -> NA | AW14: =IF(VLOOKUP($B14,Formulacion!$A:$BE,MATCH(AW$1,Formulacion!$1:$1,0),FALSE)="NA","NA",HLOOKUP(VLOOKUP($B14,Formulacion!$A:$BE,MATCH(AW$1,Formulacion!$1:$1,0),FALSE),$Q:$Z,ROW(AW14),FALSE)) -> NA | AX14: NA | AY14: 1 | AZ14: =IF(VLOOKUP($B14,Formulacion!$A:$BE,MATCH(AZ$1,Formulacion!$1:$1,0),FALSE)="NA",1,VLOOKUP($B14,Formulacion!$A:$BE,MATCH(AZ$1,Formulacion!$1:$1,0),FALSE)) -> 1 | BA14: =IF(VLOOKUP($B14,Formulacion!$A:$BE,MATCH(BA$1,Formulacion!$1:$1,0),FALSE)="NA",1,VLOOKUP($B14,Formulacion!$A:$BE,MATCH(BA$1,Formulacion!$1:$1,0),FALSE)) -> 1 | BB14: 0 | BC14: 0
A15: CC-01-AD-2010-EDECHI.xls | B15: DACBT | C15: DACBT004 | D15: DACBTAM3ALM01320911358 | E15: 2010-12-31 | F15: CHIRIQUI | G15: 11358 | H15: 11989.66 | I15: 7164.34 | J15: 0 | K15: 0 | L15: 0 | M15: 0 | N15: 19154 | O15: 10 | P15: 0 | Q15: =IF(OR(VLOOKUP($B15,Formulacion!$A:$BE,MATCH(Q$1,Formulacion!$1:$1,0),FALSE)="NA",$D15=0),"NA",IF($B15="DLABT",MID($D15,PosteInicioBT,PosteFinBT-PosteInicioBT+1)*1,MID($D15,PosteInicio,PosteFin-PosteInicio+1)*1)) -> NA | R15: =IF(OR(VLOOKUP($B15,Formulacion!$A:$BE,MATCH(R$1,Formulacion!$1:$1,0),FALSE)="NA",$D15=0),"NA",IF(OR($B15="DLABT",$B15="DLSBT"),MID($D15,CondInicioBT,CondFinBT-CondInicioBT+1)*1,MID($D15,CondInicio,CondFin-CondInicio+1)*1)) -> NA | S15: NA | T15: =IF(OR(VLOOKUP($B15,Formulacion!$A:$BE,MATCH(T$1,Formulacion!$1:$1,0),FALSE)="NA",$D15=0),"NA",IF($B15="DLSBT",MID($D15,ZanjaInicioBT,ZanjaFinBT-ZanjaInicioBT+1)*1,MID($D15,ZanjaInicio,ZanjaFin-ZanjaInicio+1)*1)) -> NA | U15: 1 | V15: =IF(OR(VLOOKUP($B15,Formulacion!$A:$BE,MATCH(V$1,Formulacion!$1:$1,0),FALSE)="NA",$D15=0),"NA",MID($D15,m2Inicio+INDIRECT(B15),m2Fin-m2Inicio+1)*1) -> NA | W15: =IF(OR(VLOOKUP($B15,Formulacion!$A:$BE,MATCH(W$1,Formulacion!$1:$1,0),FALSE)="NA",$D15=0),"NA",RIGHT($D15,4)*1) -> NA | X15: =IF(OR(VLOOKUP($B15,Formulacion!$A:$BE,MATCH(X$1,Formulacion!$1:$1,0),FALSE)="NA",$D15=0),"NA",RIGHT($D15,3)*1) -> NA | Y15: 1 | Z15: =IF(VLOOKUP($B15,Formulacion!$A:$BE,MATCH(Z$1,Formulacion!$1:$1,0),FALSE)="NA",1,IF(V15<=m2Min,0,1)) -> 1 | AA15: =IF(VLOOKUP($B15,Formulacion!$A:$BE,MATCH(AA$1,Formulacion!$1:$1,0),FALSE)="NA",1,IF(OR(E15<=FechaMin,E15>FechaMax),0,1)) -> 1 | AB15: =IF(VLOOKUP($B15,Formulacion!$A:$BE,MATCH(AB$1,Formulacion!$1:$1,0),FALSE)="NA",1,IF(H15<=MaterialesMin,0,1)) -> 1 | AC15: =IF(VLOOKUP($B15,Formulacion!$A:$BE,MATCH(AC$1,Formulacion!$1:$1,0),FALSE)="NA",1,IF(N15=0,0,IF(OR(I15/N15<=MObraMin,I15/N15>=MObraMax),MDOmin,1))) -> 1 | AD15: =IF(VLOOKUP($B15,Formulacion!$A:$BE,MATCH(AD$1,Formulacion!$1:$1,0),FALSE)="NA",1,IF(N15<=CostoTotalMin,0,1)) -> 1 | AE15: =IF(VLOOKUP($B15,Formulacion!$A:$BE,MATCH(AE$1,Formulacion!$1:$1,0),FALSE)="NA",1,IF(Q15<=PostesMin,0,1)) -> 1 | AF15: =IF(VLOOKUP($B15,Formulacion!$A:$BE,MATCH(AF$1,Formulacion!$1:$1,0),FALSE)="NA",1,IF(R15<=INDIRECT(VLOOKUP(B15,Formulacion!$A:$BE,2,FALSE)),0,1)) -> 1 | AG15: 1 | AH15: 19154 | AJ15: =IF(VLOOKUP($B15,Formulacion!$A:$BE,MATCH(AJ$1,Formulacion!$1:$1,0),FALSE)="NA","NA",HLOOKUP(VLOOKUP($B15,Formulacion!$A:$BE,MATCH(AJ$1,Formulacion!$1:$1,0),FALSE),$Q:$Z,ROW(AJ15),FALSE)) -> NA | AK15: =IF(VLOOKUP($B15,Formulacion!$A:$BE,MATCH(AK$1,Formulacion!$1:$1,0),FALSE)="NA",1,VLOOKUP($B15,Formulacion!$A:$BE,MATCH(AK$1,Formulacion!$1:$1,0),FALSE)) -> 1 | AL15: =IF(VLOOKUP($B15,Formulacion!$A:$BE,MATCH(AL$1,Formulacion!$1:$1,0),FALSE)="NA",1,VLOOKUP($B15,Formulacion!$A:$BE,MATCH(AL$1,Formulacion!$1:$1,0),FALSE)) -> 1 | AM15: 1 | AN15: =IF(VLOOKUP($B15,Formulacion!$A:$BE,MATCH(AN$1,Formulacion!$1:$1,0),FALSE)="NA","NA",IF(D15=0,"",VLOOKUP($B15,Formulacion!$A:$BE,MATCH(AN$1,Formulacion!$1:$1,0),FALSE))) -> 02060906 | AO15: ACBTAM | AP15: ALM013 | AV15: =IF(VLOOKUP($B15,Formulacion!$A:$BE,MATCH(AV$1,Formulacion!$1:$1,0),FALSE)="NA","NA",VLOOKUP(CONCATENATE(AO15,AP15,AQ15,AR15,AS15,AT15,AU15),ValoresReferenciales!$A:$D,4,FALSE)) -> NA | AW15: =IF(VLOOKUP($B15,Formulacion!$A:$BE,MATCH(AW$1,Formulacion!$1:$1,0),FALSE)="NA","NA",HLOOKUP(VLOOKUP($B15,Formulacion!$A:$BE,MATCH(AW$1,Formulacion!$1:$1,0),FALSE),$Q:$Z,ROW(AW15),FALSE)) -> NA | AX15: NA | AY15: 1 | AZ15: =IF(VLOOKUP($B15,Formulacion!$A:$BE,MATCH(AZ$1,Formulacion!$1:$1,0),FALSE)="NA",1,VLOOKUP($B15,Formulacion!$A:$BE,MATCH(AZ$1,Formulacion!$1:$1,0),FALSE)) -> 1 | BA15: =IF(VLOOKUP($B15,Formulacion!$A:$BE,MATCH(BA$1,Formulacion!$1:$1,0),FALSE)="NA",1,VLOOKUP($B15,Formulacion!$A:$BE,MATCH(BA$1,Formulacion!$1:$1,0),FALSE)) -> 1 | BB15: 19154 | BC15: 19154
A16: CC-01-AD-2010-EDECHI.xls | B16: DACBT | C16: DACBT004 | D16: DACBTAM3ALM01399924130 | E16: 2010-12-31 | F16: CHIRIQUI | G16: 24130 | H16: 25469.72 | I16: 15219.28 | J16: 0 | K16: 0 | L16: 0 | M16: 0 | N16: 40689 | O16: 9 | P16: 0 | Q16: =IF(OR(VLOOKUP($B16,Formulacion!$A:$BE,MATCH(Q$1,Formulacion!$1:$1,0),FALSE)="NA",$D16=0),"NA",IF($B16="DLABT",MID($D16,PosteInicioBT,PosteFinBT-PosteInicioBT+1)*1,MID($D16,PosteInicio,PosteFin-PosteInicio+1)*1)) -> NA | R16: =IF(OR(VLOOKUP($B16,Formulacion!$A:$BE,MATCH(R$1,Formulacion!$1:$1,0),FALSE)="NA",$D16=0),"NA",IF(OR($B16="DLABT",$B16="DLSBT"),MID($D16,CondInicioBT,CondFinBT-CondInicioBT+1)*1,MID($D16,CondInicio,CondFin-CondInicio+1)*1)) -> NA | S16: NA | T16: =IF(OR(VLOOKUP($B16,Formulacion!$A:$BE,MATCH(T$1,Formulacion!$1:$1,0),FALSE)="NA",$D16=0),"NA",IF($B16="DLSBT",MID($D16,ZanjaInicioBT,ZanjaFinBT-ZanjaInicioBT+1)*1,MID($D16,ZanjaInicio,ZanjaFin-ZanjaInicio+1)*1)) -> NA | U16: 1 | V16: =IF(OR(VLOOKUP($B16,Formulacion!$A:$BE,MATCH(V$1,Formulacion!$1:$1,0),FALSE)="NA",$D16=0),"NA",MID($D16,m2Inicio+INDIRECT(B16),m2Fin-m2Inicio+1)*1) -> NA | W16: =IF(OR(VLOOKUP($B16,Formulacion!$A:$BE,MATCH(W$1,Formulacion!$1:$1,0),FALSE)="NA",$D16=0),"NA",RIGHT($D16,4)*1) -> NA | X16: =IF(OR(VLOOKUP($B16,Formulacion!$A:$BE,MATCH(X$1,Formulacion!$1:$1,0),FALSE)="NA",$D16=0),"NA",RIGHT($D16,3)*1) -> NA | Y16: 1 | Z16: =IF(VLOOKUP($B16,Formulacion!$A:$BE,MATCH(Z$1,Formulacion!$1:$1,0),FALSE)="NA",1,IF(V16<=m2Min,0,1)) -> 1 | AA16: =IF(VLOOKUP($B16,Formulacion!$A:$BE,MATCH(AA$1,Formulacion!$1:$1,0),FALSE)="NA",1,IF(OR(E16<=FechaMin,E16>FechaMax),0,1)) -> 1 | AB16: =IF(VLOOKUP($B16,Formulacion!$A:$BE,MATCH(AB$1,Formulacion!$1:$1,0),FALSE)="NA",1,IF(H16<=MaterialesMin,0,1)) -> 1 | AC16: =IF(VLOOKUP($B16,Formulacion!$A:$BE,MATCH(AC$1,Formulacion!$1:$1,0),FALSE)="NA",1,IF(N16=0,0,IF(OR(I16/N16<=MObraMin,I16/N16>=MObraMax),MDOmin,1))) -> 1 | AD16: =IF(VLOOKUP($B16,Formulacion!$A:$BE,MATCH(AD$1,Formulacion!$1:$1,0),FALSE)="NA",1,IF(N16<=CostoTotalMin,0,1)) -> 1 | AE16: =IF(VLOOKUP($B16,Formulacion!$A:$BE,MATCH(AE$1,Formulacion!$1:$1,0),FALSE)="NA",1,IF(Q16<=PostesMin,0,1)) -> 1 | AF16: =IF(VLOOKUP($B16,Formulacion!$A:$BE,MATCH(AF$1,Formulacion!$1:$1,0),FALSE)="NA",1,IF(R16<=INDIRECT(VLOOKUP(B16,Formulacion!$A:$BE,2,FALSE)),0,1)) -> 1 | AG16: 1 | AH16: 40689 | AJ16: =IF(VLOOKUP($B16,Formulacion!$A:$BE,MATCH(AJ$1,Formulacion!$1:$1,0),FALSE)="NA","NA",HLOOKUP(VLOOKUP($B16,Formulacion!$A:$BE,MATCH(AJ$1,Formulacion!$1:$1,0),FALSE),$Q:$Z,ROW(AJ16),FALSE)) -> NA | AK16: =IF(VLOOKUP($B16,Formulacion!$A:$BE,MATCH(AK$1,Formulacion!$1:$1,0),FALSE)="NA",1,VLOOKUP($B16,Formulacion!$A:$BE,MATCH(AK$1,Formulacion!$1:$1,0),FALSE)) -> 1 | AL16: =IF(VLOOKUP($B16,Formulacion!$A:$BE,MATCH(AL$1,Formulacion!$1:$1,0),FALSE)="NA",1,VLOOKUP($B16,Formulacion!$A:$BE,MATCH(AL$1,Formulacion!$1:$1,0),FALSE)) -> 1 | AM16: 1 | AN16: =IF(VLOOKUP($B16,Formulacion!$A:$BE,MATCH(AN$1,Formulacion!$1:$1,0),FALSE)="NA","NA",IF(D16=0,"",VLOOKUP($B16,Formulacion!$A:$BE,MATCH(AN$1,Formulacion!$1:$1,0),FALSE))) -> 02060906 | AO16: ACBTAM | AP16: ALM013 | AV16: =IF(VLOOKUP($B16,Formulacion!$A:$BE,MATCH(AV$1,Formulacion!$1:$1,0),FALSE)="NA","NA",VLOOKUP(CONCATENATE(AO16,AP16,AQ16,AR16,AS16,AT16,AU16),ValoresReferenciales!$A:$D,4,FALSE)) -> NA | AW16: =IF(VLOOKUP($B16,Formulacion!$A:$BE,MATCH(AW$1,Formulacion!$1:$1,0),FALSE)="NA","NA",HLOOKUP(VLOOKUP($B16,Formulacion!$A:$BE,MATCH(AW$1,Formulacion!$1:$1,0),FALSE),$Q:$Z,ROW(AW16),FALSE)) -> NA | AX16: NA | AY16: 1 | AZ16: =IF(VLOOKUP($B16,Formulacion!$A:$BE,MATCH(AZ$1,Formulacion!$1:$1,0),FALSE)="NA",1,VLOOKUP($B16,Formulacion!$A:$BE,MATCH(AZ$1,Formulacion!$1:$1,0),FALSE)) -> 1 | BA16: =IF(VLOOKUP($B16,Formulacion!$A:$BE,MATCH(BA$1,Formulacion!$1:$1,0),FALSE)="NA",1,VLOOKUP($B16,Formulacion!$A:$BE,MATCH(BA$1,Formulacion!$1:$1,0),FALSE)) -> 1 | BB16: 40689 | BC16: 40689
A17: CC-01-AD-2010-EDECHI.xls | B17: DCRMM | C17: 0 | D17: 0 | E17: 00:00:00 | F17: 0 | G17: 0 | H17: 0 | I17: 0 | J17: 0 | K17: 0 | L17: 0 | M17: 0 | N17: 0 | O17: 9 | P17: 0 | Q17: =IF(OR(VLOOKUP($B17,Formulacion!$A:$BE,MATCH(Q$1,Formulacion!$1:$1,0),FALSE)="NA",$D17=0),"NA",IF($B17="DLABT",MID($D17,PosteInicioBT,PosteFinBT-PosteInicioBT+1)*1,MID($D17,PosteInicio,PosteFin-PosteInicio+1)*1)) -> NA | R17: =IF(OR(VLOOKUP($B17,Formulacion!$A:$BE,MATCH(R$1,Formulacion!$1:$1,0),FALSE)="NA",$D17=0),"NA",IF(OR($B17="DLABT",$B17="DLSBT"),MID($D17,CondInicioBT,CondFinBT-CondInicioBT+1)*1,MID($D17,CondInicio,CondFin-CondInicio+1)*1)) -> NA | S17: NA | T17: =IF(OR(VLOOKUP($B17,Formulacion!$A:$BE,MATCH(T$1,Formulacion!$1:$1,0),FALSE)="NA",$D17=0),"NA",IF($B17="DLSBT",MID($D17,ZanjaInicioBT,ZanjaFinBT-ZanjaInicioBT+1)*1,MID($D17,ZanjaInicio,ZanjaFin-ZanjaInicio+1)*1)) -> NA | U17: 1 | V17: =IF(OR(VLOOKUP($B17,Formulacion!$A:$BE,MATCH(V$1,Formulacion!$1:$1,0),FALSE)="NA",$D17=0),"NA",MID($D17,m2Inicio+INDIRECT(B17),m2Fin-m2Inicio+1)*1) -> NA | W17: =IF(OR(VLOOKUP($B17,Formulacion!$A:$BE,MATCH(W$1,Formulacion!$1:$1,0),FALSE)="NA",$D17=0),"NA",RIGHT($D17,4)*1) -> NA | X17: =IF(OR(VLOOKUP($B17,Formulacion!$A:$BE,MATCH(X$1,Formulacion!$1:$1,0),FALSE)="NA",$D17=0),"NA",RIGHT($D17,3)*1) -> NA | Y17: 1 | Z17: =IF(VLOOKUP($B17,Formulacion!$A:$BE,MATCH(Z$1,Formulacion!$1:$1,0),FALSE)="NA",1,IF(V17<=m2Min,0,1)) -> 1 | AA17: =IF(VLOOKUP($B17,Formulacion!$A:$BE,MATCH(AA$1,Formulacion!$1:$1,0),FALSE)="NA",1,IF(OR(E17<=FechaMin,E17>FechaMax),0,1)) -> 0 | AB17: =IF(VLOOKUP($B17,Formulacion!$A:$BE,MATCH(AB$1,Formulacion!$1:$1,0),FALSE)="NA",1,IF(H17<=MaterialesMin,0,1)) -> 0 | AC17: =IF(VLOOKUP($B17,Formulacion!$A:$BE,MATCH(AC$1,Formulacion!$1:$1,0),FALSE)="NA",1,IF(N17=0,0,IF(OR(I17/N17<=MObraMin,I17/N17>=MObraMax),MDOmin,1))) -> 0 | AD17: =IF(VLOOKUP($B17,Formulacion!$A:$BE,MATCH(AD$1,Formulacion!$1:$1,0),FALSE)="NA",1,IF(N17<=CostoTotalMin,0,1)) -> 0 | AE17: =IF(VLOOKUP($B17,Formulacion!$A:$BE,MATCH(AE$1,Formulacion!$1:$1,0),FALSE)="NA",1,IF(Q17<=PostesMin,0,1)) -> 1 | AF17: =IF(VLOOKUP($B17,Formulacion!$A:$BE,MATCH(AF$1,Formulacion!$1:$1,0),FALSE)="NA",1,IF(R17<=INDIRECT(VLOOKUP(B17,Formulacion!$A:$BE,2,FALSE)),0,1)) -> 1 | AG17: 0 | AH17: 0 | AJ17: =IF(VLOOKUP($B17,Formulacion!$A:$BE,MATCH(AJ$1,Formulacion!$1:$1,0),FALSE)="NA","NA",HLOOKUP(VLOOKUP($B17,Formulacion!$A:$BE,MATCH(AJ$1,Formulacion!$1:$1,0),FALSE),$Q:$Z,ROW(AJ17),FALSE)) -> NA | AK17: =IF(VLOOKUP($B17,Formulacion!$A:$BE,MATCH(AK$1,Formulacion!$1:$1,0),FALSE)="NA",1,VLOOKUP($B17,Formulacion!$A:$BE,MATCH(AK$1,Formulacion!$1:$1,0),FALSE)) -> 1 | AL17: =IF(VLOOKUP($B17,Formulacion!$A:$BE,MATCH(AL$1,Formulacion!$1:$1,0),FALSE)="NA",1,VLOOKUP($B17,Formulacion!$A:$BE,MATCH(AL$1,Formulacion!$1:$1,0),FALSE)) -> 1 | AM17: 1 | AN17: =IF(VLOOKUP($B17,Formulacion!$A:$BE,MATCH(AN$1,Formulacion!$1:$1,0),FALSE)="NA","NA",IF(D17=0,"",VLOOKUP($B17,Formulacion!$A:$BE,MATCH(AN$1,Formulacion!$1:$1,0),FALSE))) -> NA | AO17: X | AV17: =IF(VLOOKUP($B17,Formulacion!$A:$BE,MATCH(AV$1,Formulacion!$1:$1,0),FALSE)="NA","NA",VLOOKUP(CONCATENATE(AO17,AP17,AQ17,AR17,AS17,AT17,AU17),ValoresReferenciales!$A:$D,4,FALSE)) -> NA | AW17: =IF(VLOOKUP($B17,Formulacion!$A:$BE,MATCH(AW$1,Formulacion!$1:$1,0),FALSE)="NA","NA",HLOOKUP(VLOOKUP($B17,Formulacion!$A:$BE,MATCH(AW$1,Formulacion!$1:$1,0),FALSE),$Q:$Z,ROW(AW17),FALSE)) -> NA | AX17: NA | AY17: 1 | AZ17: =IF(VLOOKUP($B17,Formulacion!$A:$BE,MATCH(AZ$1,Formulacion!$1:$1,0),FALSE)="NA",1,VLOOKUP($B17,Formulacion!$A:$BE,MATCH(AZ$1,Formulacion!$1:$1,0),FALSE)) -> 1 | BA17: =IF(VLOOKUP($B17,Formulacion!$A:$BE,MATCH(BA$1,Formulacion!$1:$1,0),FALSE)="NA",1,VLOOKUP($B17,Formulacion!$A:$BE,MATCH(BA$1,Formulacion!$1:$1,0),FALSE)) -> 1 | BB17: 0 | BC17: 0
A18: CC-01-AD-2010-EDECHI.xls | B18: DEQDM | C18: DEQDM1 | D18: DEQDMSP0004 | E18: 2010-12-31 | F18: CHIRIQUI | G18: 4 | H18: 11594 | I18: 0 | J18: 0 | K18: 0 | L18: 0 | M18: 0 | N18: 11594 | O18: 9 | P18: 0 | Q18: =IF(OR(VLOOKUP($B18,Formulacion!$A:$BE,MATCH(Q$1,Formulacion!$1:$1,0),FALSE)="NA",$D18=0),"NA",IF($B18="DLABT",MID($D18,PosteInicioBT,PosteFinBT-PosteInicioBT+1)*1,MID($D18,PosteInicio,PosteFin-PosteInicio+1)*1)) -> NA | R18: =IF(OR(VLOOKUP($B18,Formulacion!$A:$BE,MATCH(R$1,Formulacion!$1:$1,0),FALSE)="NA",$D18=0),"NA",IF(OR($B18="DLABT",$B18="DLSBT"),MID($D18,CondInicioBT,CondFinBT-CondInicioBT+1)*1,MID($D18,CondInicio,CondFin-CondInicio+1)*1)) -> NA | S18: NA | T18: =IF(OR(VLOOKUP($B18,Formulacion!$A:$BE,MATCH(T$1,Formulacion!$1:$1,0),FALSE)="NA",$D18=0),"NA",IF($B18="DLSBT",MID($D18,ZanjaInicioBT,ZanjaFinBT-ZanjaInicioBT+1)*1,MID($D18,ZanjaInicio,ZanjaFin-ZanjaInicio+1)*1)) -> NA | U18: 1 | V18: =IF(OR(VLOOKUP($B18,Formulacion!$A:$BE,MATCH(V$1,Formulacion!$1:$1,0),FALSE)="NA",$D18=0),"NA",MID($D18,m2Inicio+INDIRECT(B18),m2Fin-m2Inicio+1)*1) -> NA | W18: =IF(OR(VLOOKUP($B18,Formulacion!$A:$BE,MATCH(W$1,Formulacion!$1:$1,0),FALSE)="NA",$D18=0),"NA",RIGHT($D18,4)*1) -> 4 | X18: =IF(OR(VLOOKUP($B18,Formulacion!$A:$BE,MATCH(X$1,Formulacion!$1:$1,0),FALSE)="NA",$D18=0),"NA",RIGHT($D18,3)*1) -> NA | Y18: 1 | Z18: =IF(VLOOKUP($B18,Formulacion!$A:$BE,MATCH(Z$1,Formulacion!$1:$1,0),FALSE)="NA",1,IF(V18<=m2Min,0,1)) -> 1 | AA18: =IF(VLOOKUP($B18,Formulacion!$A:$BE,MATCH(AA$1,Formulacion!$1:$1,0),FALSE)="NA",1,IF(OR(E18<=FechaMin,E18>FechaMax),0,1)) -> 1 | AB18: =IF(VLOOKUP($B18,Formulacion!$A:$BE,MATCH(AB$1,Formulacion!$1:$1,0),FALSE)="NA",1,IF(H18<=MaterialesMin,0,1)) -> 1 | AC18: =IF(VLOOKUP($B18,Formulacion!$A:$BE,MATCH(AC$1,Formulacion!$1:$1,0),FALSE)="NA",1,IF(N18=0,0,IF(OR(I18/N18<=MObraMin,I18/N18>=MObraMax),MDOmin,1))) -> 1 | AD18: =IF(VLOOKUP($B18,Formulacion!$A:$BE,MATCH(AD$1,Formulacion!$1:$1,0),FALSE)="NA",1,IF(N18<=CostoTotalMin,0,1)) -> 1 | AE18: =IF(VLOOKUP($B18,Formulacion!$A:$BE,MATCH(AE$1,Formulacion!$1:$1,0),FALSE)="NA",1,IF(Q18<=PostesMin,0,1)) -> 1 | AF18: =IF(VLOOKUP($B18,Formulacion!$A:$BE,MATCH(AF$1,Formulacion!$1:$1,0),FALSE)="NA",1,IF(R18<=INDIRECT(VLOOKUP(B18,Formulacion!$A:$BE,2,FALSE)),0,1)) -> 1 | AG18: 1 | AH18: 11594 | AJ18: =IF(VLOOKUP($B18,Formulacion!$A:$BE,MATCH(AJ$1,Formulacion!$1:$1,0),FALSE)="NA","NA",HLOOKUP(VLOOKUP($B18,Formulacion!$A:$BE,MATCH(AJ$1,Formulacion!$1:$1,0),FALSE),$Q:$Z,ROW(AJ18),FALSE)) -> NA | AK18: =IF(VLOOKUP($B18,Formulacion!$A:$BE,MATCH(AK$1,Formulacion!$1:$1,0),FALSE)="NA",1,VLOOKUP($B18,Formulacion!$A:$BE,MATCH(AK$1,Formulacion!$1:$1,0),FALSE)) -> 1 | AL18: =IF(VLOOKUP($B18,Formulacion!$A:$BE,MATCH(AL$1,Formulacion!$1:$1,0),FALSE)="NA",1,VLOOKUP($B18,Formulacion!$A:$BE,MATCH(AL$1,Formulacion!$1:$1,0),FALSE)) -> 1 | AM18: 1 | AN18: =IF(VLOOKUP($B18,Formulacion!$A:$BE,MATCH(AN$1,Formulacion!$1:$1,0),FALSE)="NA","NA",IF(D18=0,"",VLOOKUP($B18,Formulacion!$A:$BE,MATCH(AN$1,Formulacion!$1:$1,0),FALSE))) -> NA | AO18: X | AV18: =IF(VLOOKUP($B18,Formulacion!$A:$BE,MATCH(AV$1,Formulacion!$1:$1,0),FALSE)="NA","NA",VLOOKUP(CONCATENATE(AO18,AP18,AQ18,AR18,AS18,AT18,AU18),ValoresReferenciales!$A:$D,4,FALSE)) -> NA | AW18: =IF(VLOOKUP($B18,Formulacion!$A:$BE,MATCH(AW$1,Formulacion!$1:$1,0),FALSE)="NA","NA",HLOOKUP(VLOOKUP($B18,Formulacion!$A:$BE,MATCH(AW$1,Formulacion!$1:$1,0),FALSE),$Q:$Z,ROW(AW18),FALSE)) -> NA | AX18: NA | AY18: 1 | AZ18: =IF(VLOOKUP($B18,Formulacion!$A:$BE,MATCH(AZ$1,Formulacion!$1:$1,0),FALSE)="NA",1,VLOOKUP($B18,Formulacion!$A:$BE,MATCH(AZ$1,Formulacion!$1:$1,0),FALSE)) -> 1 | BA18: =IF(VLOOKUP($B18,Formulacion!$A:$BE,MATCH(BA$1,Formulacion!$1:$1,0),FALSE)="NA",1,VLOOKUP($B18,Formulacion!$A:$BE,MATCH(BA$1,Formulacion!$1:$1,0),FALSE)) -> 1 | BB18: 11594 | BC18: 11594
A19: CC-01-AD-2010-EDECHI.xls | B19: DEQDM | C19: DEQDM2 | D19: DEQDMO0002 | E19: 2010-12-31 | F19: CHIRIQUI | G19: 2 | H19: 3590 | I19: 0 | J19: 0 | K19: 0 | L19: 0 | M19: 0 | N19: 3590 | O19: 10 | P19: 0 | Q19: =IF(OR(VLOOKUP($B19,Formulacion!$A:$BE,MATCH(Q$1,Formulacion!$1:$1,0),FALSE)="NA",$D19=0),"NA",IF($B19="DLABT",MID($D19,PosteInicioBT,PosteFinBT-PosteInicioBT+1)*1,MID($D19,PosteInicio,PosteFin-PosteInicio+1)*1)) -> NA | R19: =IF(OR(VLOOKUP($B19,Formulacion!$A:$BE,MATCH(R$1,Formulacion!$1:$1,0),FALSE)="NA",$D19=0),"NA",IF(OR($B19="DLABT",$B19="DLSBT"),MID($D19,CondInicioBT,CondFinBT-CondInicioBT+1)*1,MID($D19,CondInicio,CondFin-CondInicio+1)*1)) -> NA | S19: NA | T19: =IF(OR(VLOOKUP($B19,Formulacion!$A:$BE,MATCH(T$1,Formulacion!$1:$1,0),FALSE)="NA",$D19=0),"NA",IF($B19="DLSBT",MID($D19,ZanjaInicioBT,ZanjaFinBT-ZanjaInicioBT+1)*1,MID($D19,ZanjaInicio,ZanjaFin-ZanjaInicio+1)*1)) -> NA | U19: 1 | V19: =IF(OR(VLOOKUP($B19,Formulacion!$A:$BE,MATCH(V$1,Formulacion!$1:$1,0),FALSE)="NA",$D19=0),"NA",MID($D19,m2Inicio+INDIRECT(B19),m2Fin-m2Inicio+1)*1) -> NA | W19: =IF(OR(VLOOKUP($B19,Formulacion!$A:$BE,MATCH(W$1,Formulacion!$1:$1,0),FALSE)="NA",$D19=0),"NA",RIGHT($D19,4)*1) -> 2 | X19: =IF(OR(VLOOKUP($B19,Formulacion!$A:$BE,MATCH(X$1,Formulacion!$1:$1,0),FALSE)="NA",$D19=0),"NA",RIGHT($D19,3)*1) -> NA | Y19: 1 | Z19: =IF(VLOOKUP($B19,Formulacion!$A:$BE,MATCH(Z$1,Formulacion!$1:$1,0),FALSE)="NA",1,IF(V19<=m2Min,0,1)) -> 1 | AA19: =IF(VLOOKUP($B19,Formulacion!$A:$BE,MATCH(AA$1,Formulacion!$1:$1,0),FALSE)="NA",1,IF(OR(E19<=FechaMin,E19>FechaMax),0,1)) -> 1 | AB19: =IF(VLOOKUP($B19,Formulacion!$A:$BE,MATCH(AB$1,Formulacion!$1:$1,0),FALSE)="NA",1,IF(H19<=MaterialesMin,0,1)) -> 1 | AC19: =IF(VLOOKUP($B19,Formulacion!$A:$BE,MATCH(AC$1,Formulacion!$1:$1,0),FALSE)="NA",1,IF(N19=0,0,IF(OR(I19/N19<=MObraMin,I19/N19>=MObraMax),MDOmin,1))) -> 1 | AD19: =IF(VLOOKUP($B19,Formulacion!$A:$BE,MATCH(AD$1,Formulacion!$1:$1,0),FALSE)="NA",1,IF(N19<=CostoTotalMin,0,1)) -> 1 | AE19: =IF(VLOOKUP($B19,Formulacion!$A:$BE,MATCH(AE$1,Formulacion!$1:$1,0),FALSE)="NA",1,IF(Q19<=PostesMin,0,1)) -> 1 | AF19: =IF(VLOOKUP($B19,Formulacion!$A:$BE,MATCH(AF$1,Formulacion!$1:$1,0),FALSE)="NA",1,IF(R19<=INDIRECT(VLOOKUP(B19,Formulacion!$A:$BE,2,FALSE)),0,1)) -> 1 | AG19: 1 | AH19: 3590 | AJ19: =IF(VLOOKUP($B19,Formulacion!$A:$BE,MATCH(AJ$1,Formulacion!$1:$1,0),FALSE)="NA","NA",HLOOKUP(VLOOKUP($B19,Formulacion!$A:$BE,MATCH(AJ$1,Formulacion!$1:$1,0),FALSE),$Q:$Z,ROW(AJ19),FALSE)) -> NA | AK19: =IF(VLOOKUP($B19,Formulacion!$A:$BE,MATCH(AK$1,Formulacion!$1:$1,0),FALSE)="NA",1,VLOOKUP($B19,Formulacion!$A:$BE,MATCH(AK$1,Formulacion!$1:$1,0),FALSE)) -> 1 | AL19: =IF(VLOOKUP($B19,Formulacion!$A:$BE,MATCH(AL$1,Formulacion!$1:$1,0),FALSE)="NA",1,VLOOKUP($B19,Formulacion!$A:$BE,MATCH(AL$1,Formulacion!$1:$1,0),FALSE)) -> 1 | AM19: 1 | AN19: =IF(VLOOKUP($B19,Formulacion!$A:$BE,MATCH(AN$1,Formulacion!$1:$1,0),FALSE)="NA","NA",IF(D19=0,"",VLOOKUP($B19,Formulacion!$A:$BE,MATCH(AN$1,Formulacion!$1:$1,0),FALSE))) -> NA | AO19: X | AV19: =IF(VLOOKUP($B19,Formulacion!$A:$BE,MATCH(AV$1,Formulacion!$1:$1,0),FALSE)="NA","NA",VLOOKUP(CONCATENATE(AO19,AP19,AQ19,AR19,AS19,AT19,AU19),ValoresReferenciales!$A:$D,4,FALSE)) -> NA | AW19: =IF(VLOOKUP($B19,Formulacion!$A:$BE,MATCH(AW$1,Formulacion!$1:$1,0),FALSE)="NA","NA",HLOOKUP(VLOOKUP($B19,Formulacion!$A:$BE,MATCH(AW$1,Formulacion!$1:$1,0),FALSE),$Q:$Z,ROW(AW19),FALSE)) -> NA | AX19: NA | AY19: 1 | AZ19: =IF(VLOOKUP($B19,Formulacion!$A:$BE,MATCH(AZ$1,Formulacion!$1:$1,0),FALSE)="NA",1,VLOOKUP($B19,Formulacion!$A:$BE,MATCH(AZ$1,Formulacion!$1:$1,0),FALSE)) -> 1 | BA19: =IF(VLOOKUP($B19,Formulacion!$A:$BE,MATCH(BA$1,Formulacion!$1:$1,0),FALSE)="NA",1,VLOOKUP($B19,Formulacion!$A:$BE,MATCH(BA$1,Formulacion!$1:$1,0),FALSE)) -> 1 | BB19: 3590 | BC19: 3590
A20: CC-01-AD-2010-EDECHI.xls | B20: DEQMC | C20: 0 | D20: 0 | E20: 00:00:00 | F20: 0 | G20: 0 | H20: 0 | I20: 0 | J20: 0 | K20: 0 | L20: 0 | M20: 0 | N20: 0 | O20: 9 | P20: 0 | Q20: =IF(OR(VLOOKUP($B20,Formulacion!$A:$BE,MATCH(Q$1,Formulacion!$1:$1,0),FALSE)="NA",$D20=0),"NA",IF($B20="DLABT",MID($D20,PosteInicioBT,PosteFinBT-PosteInicioBT+1)*1,MID($D20,PosteInicio,PosteFin-PosteInicio+1)*1)) -> NA | R20: =IF(OR(VLOOKUP($B20,Formulacion!$A:$BE,MATCH(R$1,Formulacion!$1:$1,0),FALSE)="NA",$D20=0),"NA",IF(OR($B20="DLABT",$B20="DLSBT"),MID($D20,CondInicioBT,CondFinBT-CondInicioBT+1)*1,MID($D20,CondInicio,CondFin-CondInicio+1)*1)) -> NA | S20: NA | T20: =IF(OR(VLOOKUP($B20,Formulacion!$A:$BE,MATCH(T$1,Formulacion!$1:$1,0),FALSE)="NA",$D20=0),"NA",IF($B20="DLSBT",MID($D20,ZanjaInicioBT,ZanjaFinBT-ZanjaInicioBT+1)*1,MID($D20,ZanjaInicio,ZanjaFin-ZanjaInicio+1)*1)) -> NA | U20: 1 | V20: =IF(OR(VLOOKUP($B20,Formulacion!$A:$BE,MATCH(V$1,Formulacion!$1:$1,0),FALSE)="NA",$D20=0),"NA",MID($D20,m2Inicio+INDIRECT(B20),m2Fin-m2Inicio+1)*1) -> NA | W20: =IF(OR(VLOOKUP($B20,Formulacion!$A:$BE,MATCH(W$1,Formulacion!$1:$1,0),FALSE)="NA",$D20=0),"NA",RIGHT($D20,4)*1) -> NA | X20: =IF(OR(VLOOKUP($B20,Formulacion!$A:$BE,MATCH(X$1,Formulacion!$1:$1,0),FALSE)="NA",$D20=0),"NA",RIGHT($D20,3)*1) -> NA | Y20: 1 | Z20: =IF(VLOOKUP($B20,Formulacion!$A:$BE,MATCH(Z$1,Formulacion!$1:$1,0),FALSE)="NA",1,IF(V20<=m2Min,0,1)) -> 1 | AA20: =IF(VLOOKUP($B20,Formulacion!$A:$BE,MATCH(AA$1,Formulacion!$1:$1,0),FALSE)="NA",1,IF(OR(E20<=FechaMin,E20>FechaMax),0,1)) -> 0 | AB20: =IF(VLOOKUP($B20,Formulacion!$A:$BE,MATCH(AB$1,Formulacion!$1:$1,0),FALSE)="NA",1,IF(H20<=MaterialesMin,0,1)) -> 1 | AC20: =IF(VLOOKUP($B20,Formulacion!$A:$BE,MATCH(AC$1,Formulacion!$1:$1,0),FALSE)="NA",1,IF(N20=0,0,IF(OR(I20/N20<=MObraMin,I20/N20>=MObraMax),MDOmin,1))) -> 1 | AD20: =IF(VLOOKUP($B20,Formulacion!$A:$BE,MATCH(AD$1,Formulacion!$1:$1,0),FALSE)="NA",1,IF(N20<=CostoTotalMin,0,1)) -> 0 | AE20: =IF(VLOOKUP($B20,Formulacion!$A:$BE,MATCH(AE$1,Formulacion!$1:$1,0),FALSE)="NA",1,IF(Q20<=PostesMin,0,1)) -> 1 | AF20: =IF(VLOOKUP($B20,Formulacion!$A:$BE,MATCH(AF$1,Formulacion!$1:$1,0),FALSE)="NA",1,IF(R20<=INDIRECT(VLOOKUP(B20,Formulacion!$A:$BE,2,FALSE)),0,1)) -> 1 | AG20: 0 | AH20: 0 | AJ20: =IF(VLOOKUP($B20,Formulacion!$A:$BE,MATCH(AJ$1,Formulacion!$1:$1,0),FALSE)="NA","NA",HLOOKUP(VLOOKUP($B20,Formulacion!$A:$BE,MATCH(AJ$1,Formulacion!$1:$1,0),FALSE),$Q:$Z,ROW(AJ20),FALSE)) -> NA | AK20: =IF(VLOOKUP($B20,Formulacion!$A:$BE,MATCH(AK$1,Formulacion!$1:$1,0),FALSE)="NA",1,VLOOKUP($B20,Formulacion!$A:$BE,MATCH(AK$1,Formulacion!$1:$1,0),FALSE)) -> 1 | AL20: =IF(VLOOKUP($B20,Formulacion!$A:$BE,MATCH(AL$1,Formulacion!$1:$1,0),FALSE)="NA",1,VLOOKUP($B20,Formulacion!$A:$BE,MATCH(AL$1,Formulacion!$1:$1,0),FALSE)) -> 1 | AM20: 1 | AN20: =IF(VLOOKUP($B20,Formulacion!$A:$BE,MATCH(AN$1,Formulacion!$1:$1,0),FALSE)="NA","NA",IF(D20=0,"",VLOOKUP($B20,Formulacion!$A:$BE,MATCH(AN$1,Formulacion!$1:$1,0),FALSE))) -> NA | AO20: X | AV20: =IF(VLOOKUP($B20,Formulacion!$A:$BE,MATCH(AV$1,Formulacion!$1:$1,0),FALSE)="NA","NA",VLOOKUP(CONCATENATE(AO20,AP20,AQ20,AR20,AS20,AT20,AU20),ValoresReferenciales!$A:$D,4,FALSE)) -> NA | AW20: =IF(VLOOKUP($B20,Formulacion!$A:$BE,MATCH(AW$1,Formulacion!$1:$1,0),FALSE)="NA","NA",HLOOKUP(VLOOKUP($B20,Formulacion!$A:$BE,MATCH(AW$1,Formulacion!$1:$1,0),FALSE),$Q:$Z,ROW(AW20),FALSE)) -> NA | AX20: NA | AY20: 1 | AZ20: =IF(VLOOKUP($B20,Formulacion!$A:$BE,MATCH(AZ$1,Formulacion!$1:$1,0),FALSE)="NA",1,VLOOKUP($B20,Formulacion!$A:$BE,MATCH(AZ$1,Formulacion!$1:$1,0),FALSE)) -> 1 | BA20: =IF(VLOOKUP($B20,Formulacion!$A:$BE,MATCH(BA$1,Formulacion!$1:$1,0),FALSE)="NA",1,VLOOKUP($B20,Formulacion!$A:$BE,MATCH(BA$1,Formulacion!$1:$1,0),FALSE)) -> 1 | BB20: 0 | BC20: 0
A21: CC-01-AD-2010-EDECHI.xls | B21: DEQOT | C21: 0 | D21: 0 | E21: 00:00:00 | F21: 0 | G21: 0 | H21: 0 | I21: 0 | J21: 0 | K21: 0 | L21: 0 | M21: 0 | N21: 0 | O21: 9 | P21: 0 | Q21: =IF(OR(VLOOKUP($B21,Formulacion!$A:$BE,MATCH(Q$1,Formulacion!$1:$1,0),FALSE)="NA",$D21=0),"NA",IF($B21="DLABT",MID($D21,PosteInicioBT,PosteFinBT-PosteInicioBT+1)*1,MID($D21,PosteInicio,PosteFin-PosteInicio+1)*1)) -> NA | R21: =IF(OR(VLOOKUP($B21,Formulacion!$A:$BE,MATCH(R$1,Formulacion!$1:$1,0),FALSE)="NA",$D21=0),"NA",IF(OR($B21="DLABT",$B21="DLSBT"),MID($D21,CondInicioBT,CondFinBT-CondInicioBT+1)*1,MID($D21,CondInicio,CondFin-CondInicio+1)*1)) -> NA | S21: NA | T21: =IF(OR(VLOOKUP($B21,Formulacion!$A:$BE,MATCH(T$1,Formulacion!$1:$1,0),FALSE)="NA",$D21=0),"NA",IF($B21="DLSBT",MID($D21,ZanjaInicioBT,ZanjaFinBT-ZanjaInicioBT+1)*1,MID($D21,ZanjaInicio,ZanjaFin-ZanjaInicio+1)*1)) -> NA | U21: 1 | V21: =IF(OR(VLOOKUP($B21,Formulacion!$A:$BE,MATCH(V$1,Formulacion!$1:$1,0),FALSE)="NA",$D21=0),"NA",MID($D21,m2Inicio+INDIRECT(B21),m2Fin-m2Inicio+1)*1) -> NA | W21: =IF(OR(VLOOKUP($B21,Formulacion!$A:$BE,MATCH(W$1,Formulacion!$1:$1,0),FALSE)="NA",$D21=0),"NA",RIGHT($D21,4)*1) -> NA | X21: =IF(OR(VLOOKUP($B21,Formulacion!$A:$BE,MATCH(X$1,Formulacion!$1:$1,0),FALSE)="NA",$D21=0),"NA",RIGHT($D21,3)*1) -> NA | Y21: 1 | Z21: =IF(VLOOKUP($B21,Formulacion!$A:$BE,MATCH(Z$1,Formulacion!$1:$1,0),FALSE)="NA",1,IF(V21<=m2Min,0,1)) -> 1 | AA21: =IF(VLOOKUP($B21,Formulacion!$A:$BE,MATCH(AA$1,Formulacion!$1:$1,0),FALSE)="NA",1,IF(OR(E21<=FechaMin,E21>FechaMax),0,1)) -> 0 | AB21: =IF(VLOOKUP($B21,Formulacion!$A:$BE,MATCH(AB$1,Formulacion!$1:$1,0),FALSE)="NA",1,IF(H21<=MaterialesMin,0,1)) -> 0 | AC21: =IF(VLOOKUP($B21,Formulacion!$A:$BE,MATCH(AC$1,Formulacion!$1:$1,0),FALSE)="NA",1,IF(N21=0,0,IF(OR(I21/N21<=MObraMin,I21/N21>=MObraMax),MDOmin,1))) -> 0 | AD21: =IF(VLOOKUP($B21,Formulacion!$A:$BE,MATCH(AD$1,Formulacion!$1:$1,0),FALSE)="NA",1,IF(N21<=CostoTotalMin,0,1)) -> 0 | AE21: =IF(VLOOKUP($B21,Formulacion!$A:$BE,MATCH(AE$1,Formulacion!$1:$1,0),FALSE)="NA",1,IF(Q21<=PostesMin,0,1)) -> 1 | AF21: =IF(VLOOKUP($B21,Formulacion!$A:$BE,MATCH(AF$1,Formulacion!$1:$1,0),FALSE)="NA",1,IF(R21<=INDIRECT(VLOOKUP(B21,Formulacion!$A:$BE,2,FALSE)),0,1)) -> 1 | AG21: 0 | AH21: 0 | AJ21: =IF(VLOOKUP($B21,Formulacion!$A:$BE,MATCH(AJ$1,Formulacion!$1:$1,0),FALSE)="NA","NA",HLOOKUP(VLOOKUP($B21,Formulacion!$A:$BE,MATCH(AJ$1,Formulacion!$1:$1,0),FALSE),$Q:$Z,ROW(AJ21),FALSE)) -> NA | AK21: =IF(VLOOKUP($B21,Formulacion!$A:$BE,MATCH(AK$1,Formulacion!$1:$1,0),FALSE)="NA",1,VLOOKUP($B21,Formulacion!$A:$BE,MATCH(AK$1,Formulacion!$1:$1,0),FALSE)) -> 1 | AL21: =IF(VLOOKUP($B21,Formulacion!$A:$BE,MATCH(AL$1,Formulacion!$1:$1,0),FALSE)="NA",1,VLOOKUP($B21,Formulacion!$A:$BE,MATCH(AL$1,Formulacion!$1:$1,0),FALSE)) -> 1 | AM21: 1 | AN21: =IF(VLOOKUP($B21,Formulacion!$A:$BE,MATCH(AN$1,Formulacion!$1:$1,0),FALSE)="NA","NA",IF(D21=0,"",VLOOKUP($B21,Formulacion!$A:$BE,MATCH(AN$1,Formulacion!$1:$1,0),FALSE))) -> NA | AO21: X | AV21: =IF(VLOOKUP($B21,Formulacion!$A:$BE,MATCH(AV$1,Formulacion!$1:$1,0),FALSE)="NA","NA",VLOOKUP(CONCATENATE(AO21,AP21,AQ21,AR21,AS21,AT21,AU21),ValoresReferenciales!$A:$D,4,FALSE)) -> NA | AW21: =IF(VLOOKUP($B21,Formulacion!$A:$BE,MATCH(AW$1,Formulacion!$1:$1,0),FALSE)="NA","NA",HLOOKUP(VLOOKUP($B21,Formulacion!$A:$BE,MATCH(AW$1,Formulacion!$1:$1,0),FALSE),$Q:$Z,ROW(AW21),FALSE)) -> NA | AX21: NA | AY21: 1 | AZ21: =IF(VLOOKUP($B21,Formulacion!$A:$BE,MATCH(AZ$1,Formulacion!$1:$1,0),FALSE)="NA",1,VLOOKUP($B21,Formulacion!$A:$BE,MATCH(AZ$1,Formulacion!$1:$1,0),FALSE)) -> 1 | BA21: =IF(VLOOKUP($B21,Formulacion!$A:$BE,MATCH(BA$1,Formulacion!$1:$1,0),FALSE)="NA",1,VLOOKUP($B21,Formulacion!$A:$BE,MATCH(BA$1,Formulacion!$1:$1,0),FALSE)) -> 1 | BB21: 0 | BC21: 0
A22: CC-01-AD-2010-EDECHI.xls | B22: DLAAT-115 | C22: 0 | D22: 0 | E22: 00:00:00 | F22: 0 | G22: 0 | H22: 0 | I22: 0 | J22: 0 | K22: 0 | L22: 0 | M22: 0 | N22: 0 | O22: 9 | P22: 0 | Q22: =IF(OR(VLOOKUP($B22,Formulacion!$A:$BE,MATCH(Q$1,Formulacion!$1:$1,0),FALSE)="NA",$D22=0),"NA",IF($B22="DLABT",MID($D22,PosteInicioBT,PosteFinBT-PosteInicioBT+1)*1,MID($D22,PosteInicio,PosteFin-PosteInicio+1)*1)) -> NA | R22: =IF(OR(VLOOKUP($B22,Formulacion!$A:$BE,MATCH(R$1,Formulacion!$1:$1,0),FALSE)="NA",$D22=0),"NA",IF(OR($B22="DLABT",$B22="DLSBT"),MID($D22,CondInicioBT,CondFinBT-CondInicioBT+1)*1,MID($D22,CondInicio,CondFin-CondInicio+1)*1)) -> NA | S22: NA | T22: =IF(OR(VLOOKUP($B22,Formulacion!$A:$BE,MATCH(T$1,Formulacion!$1:$1,0),FALSE)="NA",$D22=0),"NA",IF($B22="DLSBT",MID($D22,ZanjaInicioBT,ZanjaFinBT-ZanjaInicioBT+1)*1,MID($D22,ZanjaInicio,ZanjaFin-ZanjaInicio+1)*1)) -> NA | U22: 1 | V22: =IF(OR(VLOOKUP($B22,Formulacion!$A:$BE,MATCH(V$1,Formulacion!$1:$1,0),FALSE)="NA",$D22=0),"NA",MID($D22,m2Inicio+INDIRECT(B22),m2Fin-m2Inicio+1)*1) -> NA | W22: =IF(OR(VLOOKUP($B22,Formulacion!$A:$BE,MATCH(W$1,Formulacion!$1:$1,0),FALSE)="NA",$D22=0),"NA",RIGHT($D22,4)*1) -> NA | X22: =IF(OR(VLOOKUP($B22,Formulacion!$A:$BE,MATCH(X$1,Formulacion!$1:$1,0),FALSE)="NA",$D22=0),"NA",RIGHT($D22,3)*1) -> NA | Y22: 1 | Z22: =IF(VLOOKUP($B22,Formulacion!$A:$BE,MATCH(Z$1,Formulacion!$1:$1,0),FALSE)="NA",1,IF(V22<=m2Min,0,1)) -> 1 | AA22: =IF(VLOOKUP($B22,Formulacion!$A:$BE,MATCH(AA$1,Formulacion!$1:$1,0),FALSE)="NA",1,IF(OR(E22<=FechaMin,E22>FechaMax),0,1)) -> 0 | AB22: =IF(VLOOKUP($B22,Formulacion!$A:$BE,MATCH(AB$1,Formulacion!$1:$1,0),FALSE)="NA",1,IF(H22<=MaterialesMin,0,1)) -> 0 | AC22: =IF(VLOOKUP($B22,Formulacion!$A:$BE,MATCH(AC$1,Formulacion!$1:$1,0),FALSE)="NA",1,IF(N22=0,0,IF(OR(I22/N22<=MObraMin,I22/N22>=MObraMax),MDOmin,1))) -> 0 | AD22: =IF(VLOOKUP($B22,Formulacion!$A:$BE,MATCH(AD$1,Formulacion!$1:$1,0),FALSE)="NA",1,IF(N22<=CostoTotalMin,0,1)) -> 0 | AE22: =IF(VLOOKUP($B22,Formulacion!$A:$BE,MATCH(AE$1,Formulacion!$1:$1,0),FALSE)="NA",1,IF(Q22<=PostesMin,0,1)) -> 1 | AF22: =IF(VLOOKUP($B22,Formulacion!$A:$BE,MATCH(AF$1,Formulacion!$1:$1,0),FALSE)="NA",1,IF(R22<=INDIRECT(VLOOKUP(B22,Formulacion!$A:$BE,2,FALSE)),0,1)) -> 1 | AG22: 0 | AH22: 0 | AJ22: =IF(VLOOKUP($B22,Formulacion!$A:$BE,MATCH(AJ$1,Formulacion!$1:$1,0),FALSE)="NA","NA",HLOOKUP(VLOOKUP($B22,Formulacion!$A:$BE,MATCH(AJ$1,Formulacion!$1:$1,0),FALSE),$Q:$Z,ROW(AJ22),FALSE)) -> NA | AK22: =IF(VLOOKUP($B22,Formulacion!$A:$BE,MATCH(AK$1,Formulacion!$1:$1,0),FALSE)="NA",1,VLOOKUP($B22,Formulacion!$A:$BE,MATCH(AK$1,Formulacion!$1:$1,0),FALSE)) -> 100 | AL22: =IF(VLOOKUP($B22,Formulacion!$A:$BE,MATCH(AL$1,Formulacion!$1:$1,0),FALSE)="NA",1,VLOOKUP($B22,Formulacion!$A:$BE,MATCH(AL$1,Formulacion!$1:$1,0),FALSE)) -> 0.3 | AM22: 1 | AN22: =IF(VLOOKUP($B22,Formulacion!$A:$BE,MATCH(AN$1,Formulacion!$1:$1,0),FALSE)="NA","NA",IF(D22=0,"",VLOOKUP($B22,Formulacion!$A:$BE,MATCH(AN$1,Formulacion!$1:$1,0),FALSE))) -> NA | AO22: X | AV22: =IF(VLOOKUP($B22,Formulacion!$A:$BE,MATCH(AV$1,Formulacion!$1:$1,0),FALSE)="NA","NA",VLOOKUP(CONCATENATE(AO22,AP22,AQ22,AR22,AS22,AT22,AU22),ValoresReferenciales!$A:$D,4,FALSE)) -> NA | AW22: =IF(VLOOKUP($B22,Formulacion!$A:$BE,MATCH(AW$1,Formulacion!$1:$1,0),FALSE)="NA","NA",HLOOKUP(VLOOKUP($B22,Formulacion!$A:$BE,MATCH(AW$1,Formulacion!$1:$1,0),FALSE),$Q:$Z,ROW(AW22),FALSE)) -> NA | AX22: NA | AY22: 1 | AZ22: =IF(VLOOKUP($B22,Formulacion!$A:$BE,MATCH(AZ$1,Formulacion!$1:$1,0),FALSE)="NA",1,VLOOKUP($B22,Formulacion!$A:$BE,MATCH(AZ$1,Formulacion!$1:$1,0),FALSE)) -> 1 | BA22: =IF(VLOOKUP($B22,Formulacion!$A:$BE,MATCH(BA$1,Formulacion!$1:$1,0),FALSE)="NA",1,VLOOKUP($B22,Formulacion!$A:$BE,MATCH(BA$1,Formulacion!$1:$1,0),FALSE)) -> 1 | BB22: 0 | BC22: 0
A23: CC-01-AD-2010-EDECHI.xls | B23: DLAAT-230 | C23: 0 | D23: 0 | E23: 00:00:00 | F23: 0 | G23: 0 | H23: 0 | I23: 0 | J23: 0 | K23: 0 | L23: 0 | M23: 0 | N23: 0 | O23: 9 | P23: 0 | Q23: =IF(OR(VLOOKUP($B23,Formulacion!$A:$BE,MATCH(Q$1,Formulacion!$1:$1,0),FALSE)="NA",$D23=0),"NA",IF($B23="DLABT",MID($D23,PosteInicioBT,PosteFinBT-PosteInicioBT+1)*1,MID($D23,PosteInicio,PosteFin-PosteInicio+1)*1)) -> NA | R23: =IF(OR(VLOOKUP($B23,Formulacion!$A:$BE,MATCH(R$1,Formulacion!$1:$1,0),FALSE)="NA",$D23=0),"NA",IF(OR($B23="DLABT",$B23="DLSBT"),MID($D23,CondInicioBT,CondFinBT-CondInicioBT+1)*1,MID($D23,CondInicio,CondFin-CondInicio+1)*1)) -> NA | S23: NA | T23: =IF(OR(VLOOKUP($B23,Formulacion!$A:$BE,MATCH(T$1,Formulacion!$1:$1,0),FALSE)="NA",$D23=0),"NA",IF($B23="DLSBT",MID($D23,ZanjaInicioBT,ZanjaFinBT-ZanjaInicioBT+1)*1,MID($D23,ZanjaInicio,ZanjaFin-ZanjaInicio+1)*1)) -> NA | U23: 1 | V23: =IF(OR(VLOOKUP($B23,Formulacion!$A:$BE,MATCH(V$1,Formulacion!$1:$1,0),FALSE)="NA",$D23=0),"NA",MID($D23,m2Inicio+INDIRECT(B23),m2Fin-m2Inicio+1)*1) -> NA | W23: =IF(OR(VLOOKUP($B23,Formulacion!$A:$BE,MATCH(W$1,Formulacion!$1:$1,0),FALSE)="NA",$D23=0),"NA",RIGHT($D23,4)*1) -> NA | X23: =IF(OR(VLOOKUP($B23,Formulacion!$A:$BE,MATCH(X$1,Formulacion!$1:$1,0),FALSE)="NA",$D23=0),"NA",RIGHT($D23,3)*1) -> NA | Y23: 1 | Z23: =IF(VLOOKUP($B23,Formulacion!$A:$BE,MATCH(Z$1,Formulacion!$1:$1,0),FALSE)="NA",1,IF(V23<=m2Min,0,1)) -> 1 | AA23: =IF(VLOOKUP($B23,Formulacion!$A:$BE,MATCH(AA$1,Formulacion!$1:$1,0),FALSE)="NA",1,IF(OR(E23<=FechaMin,E23>FechaMax),0,1)) -> 0 | AB23: =IF(VLOOKUP($B23,Formulacion!$A:$BE,MATCH(AB$1,Formulacion!$1:$1,0),FALSE)="NA",1,IF(H23<=MaterialesMin,0,1)) -> 0 | AC23: =IF(VLOOKUP($B23,Formulacion!$A:$BE,MATCH(AC$1,Formulacion!$1:$1,0),FALSE)="NA",1,IF(N23=0,0,IF(OR(I23/N23<=MObraMin,I23/N23>=MObraMax),MDOmin,1))) -> 0 | AD23: =IF(VLOOKUP($B23,Formulacion!$A:$BE,MATCH(AD$1,Formulacion!$1:$1,0),FALSE)="NA",1,IF(N23<=CostoTotalMin,0,1)) -> 0 | AE23: =IF(VLOOKUP($B23,Formulacion!$A:$BE,MATCH(AE$1,Formulacion!$1:$1,0),FALSE)="NA",1,IF(Q23<=PostesMin,0,1)) -> 1 | AF23: =IF(VLOOKUP($B23,Formulacion!$A:$BE,MATCH(AF$1,Formulacion!$1:$1,0),FALSE)="NA",1,IF(R23<=INDIRECT(VLOOKUP(B23,Formulacion!$A:$BE,2,FALSE)),0,1)) -> 1 | AG23: 0 | AH23: 0 | AJ23: =IF(VLOOKUP($B23,Formulacion!$A:$BE,MATCH(AJ$1,Formulacion!$1:$1,0),FALSE)="NA","NA",HLOOKUP(VLOOKUP($B23,Formulacion!$A:$BE,MATCH(AJ$1,Formulacion!$1:$1,0),FALSE),$Q:$Z,ROW(AJ23),FALSE)) -> NA | AK23: =IF(VLOOKUP($B23,Formulacion!$A:$BE,MATCH(AK$1,Formulacion!$1:$1,0),FALSE)="NA",1,VLOOKUP($B23,Formulacion!$A:$BE,MATCH(AK$1,Formulacion!$1:$1,0),FALSE)) -> 60 | AL23: =IF(VLOOKUP($B23,Formulacion!$A:$BE,MATCH(AL$1,Formulacion!$1:$1,0),FALSE)="NA",1,VLOOKUP($B23,Formulacion!$A:$BE,MATCH(AL$1,Formulacion!$1:$1,0),FALSE)) -> 0.3 | AM23: 1 | AN23: =IF(VLOOKUP($B23,Formulacion!$A:$BE,MATCH(AN$1,Formulacion!$1:$1,0),FALSE)="NA","NA",IF(D23=0,"",VLOOKUP($B23,Formulacion!$A:$BE,MATCH(AN$1,Formulacion!$1:$1,0),FALSE))) -> NA | AO23: X | AV23: =IF(VLOOKUP($B23,Formulacion!$A:$BE,MATCH(AV$1,Formulacion!$1:$1,0),FALSE)="NA","NA",VLOOKUP(CONCATENATE(AO23,AP23,AQ23,AR23,AS23,AT23,AU23),ValoresReferenciales!$A:$D,4,FALSE)) -> NA | AW23: =IF(VLOOKUP($B23,Formulacion!$A:$BE,MATCH(AW$1,Formulacion!$1:$1,0),FALSE)="NA","NA",HLOOKUP(VLOOKUP($B23,Formulacion!$A:$BE,MATCH(AW$1,Formulacion!$1:$1,0),FALSE),$Q:$Z,ROW(AW23),FALSE)) -> NA | AX23: NA | AY23: 1 | AZ23: =IF(VLOOKUP($B23,Formulacion!$A:$BE,MATCH(AZ$1,Formulacion!$1:$1,0),FALSE)="NA",1,VLOOKUP($B23,Formulacion!$A:$BE,MATCH(AZ$1,Formulacion!$1:$1,0),FALSE)) -> 1 | BA23: =IF(VLOOKUP($B23,Formulacion!$A:$BE,MATCH(BA$1,Formulacion!$1:$1,0),FALSE)="NA",1,VLOOKUP($B23,Formulacion!$A:$BE,MATCH(BA$1,Formulacion!$1:$1,0),FALSE)) -> 1 | BB23: 0 | BC23: 0
A24: CC-01-AD-2010-EDECHI.xls | B24: DLABT | C24: 301012009040398 | D24: DLABTM100184P004HOC3ALA006 | E24: 2010-07-12 | F24: SIOGUI ABAJO (P | G24: 184 | H24: 1558.61 | I24: 816.76 | J24: 0 | K24: 313.18 | L24: 0 | M24: 0 | N24: 2688.55 | O24: 76 | P24: 0 | Q24: =IF(OR(VLOOKUP($B24,Formulacion!$A:$BE,MATCH(Q$1,Formulacion!$1:$1,0),FALSE)="NA",$D24=0),"NA",IF($B24="DLABT",MID($D24,PosteInicioBT,PosteFinBT-PosteInicioBT+1)*1,MID($D24,PosteInicio,PosteFin-PosteInicio+1)*1)) -> 4 | R24: =IF(OR(VLOOKUP($B24,Formulacion!$A:$BE,MATCH(R$1,Formulacion!$1:$1,0),FALSE)="NA",$D24=0),"NA",IF(OR($B24="DLABT",$B24="DLSBT"),MID($D24,CondInicioBT,CondFinBT-CondInicioBT+1)*1,MID($D24,CondInicio,CondFin-CondInicio+1)*1)) -> 184 | S24: 46 | T24: =IF(OR(VLOOKUP($B24,Formulacion!$A:$BE,MATCH(T$1,Formulacion!$1:$1,0),FALSE)="NA",$D24=0),"NA",IF($B24="DLSBT",MID($D24,ZanjaInicioBT,ZanjaFinBT-ZanjaInicioBT+1)*1,MID($D24,ZanjaInicio,ZanjaFin-ZanjaInicio+1)*1)) -> NA | U24: 1 | V24: =IF(OR(VLOOKUP($B24,Formulacion!$A:$BE,MATCH(V$1,Formulacion!$1:$1,0),FALSE)="NA",$D24=0),"NA",MID($D24,m2Inicio+INDIRECT(B24),m2Fin-m2Inicio+1)*1) -> NA | W24: =IF(OR(VLOOKUP($B24,Formulacion!$A:$BE,MATCH(W$1,Formulacion!$1:$1,0),FALSE)="NA",$D24=0),"NA",RIGHT($D24,4)*1) -> NA | X24: =IF(OR(VLOOKUP($B24,Formulacion!$A:$BE,MATCH(X$1,Formulacion!$1:$1,0),FALSE)="NA",$D24=0),"NA",RIGHT($D24,3)*1) -> NA | Y24: 1 | Z24: =IF(VLOOKUP($B24,Formulacion!$A:$BE,MATCH(Z$1,Formulacion!$1:$1,0),FALSE)="NA",1,IF(V24<=m2Min,0,1)) -> 1 | AA24: =IF(VLOOKUP($B24,Formulacion!$A:$BE,MATCH(AA$1,Formulacion!$1:$1,0),FALSE)="NA",1,IF(OR(E24<=FechaMin,E24>FechaMax),0,1)) -> 1 | AB24: =IF(VLOOKUP($B24,Formulacion!$A:$BE,MATCH(AB$1,Formulacion!$1:$1,0),FALSE)="NA",1,IF(H24<=MaterialesMin,0,1)) -> 1 | AC24: =IF(VLOOKUP($B24,Formulacion!$A:$BE,MATCH(AC$1,Formulacion!$1:$1,0),FALSE)="NA",1,IF(N24=0,0,IF(OR(I24/N24<=MObraMin,I24/N24>=MObraMax),MDOmin,1))) -> 1 | AD24: =IF(VLOOKUP($B24,Formulacion!$A:$BE,MATCH(AD$1,Formulacion!$1:$1,0),FALSE)="NA",1,IF(N24<=CostoTotalMin,0,1)) -> 1 | AE24: =IF(VLOOKUP($B24,Formulacion!$A:$BE,MATCH(AE$1,Formulacion!$1:$1,0),FALSE)="NA",1,IF(Q24<=PostesMin,0,1)) -> 1 | AF24: =IF(VLOOKUP($B24,Formulacion!$A:$BE,MATCH(AF$1,Formulacion!$1:$1,0),FALSE)="NA",1,IF(R24<=INDIRECT(VLOOKUP(B24,Formulacion!$A:$BE,2,FALSE)),0,1)) -> 1 | AG24: 1 | AH24: 2688.55 | AJ24: =IF(VLOOKUP($B24,Formulacion!$A:$BE,MATCH(AJ$1,Formulacion!$1:$1,0),FALSE)="NA","NA",HLOOKUP(VLOOKUP($B24,Formulacion!$A:$BE,MATCH(AJ$1,Formulacion!$1:$1,0),FALSE),$Q:$Z,ROW(AJ24),FALSE)) -> 46 | AK24: =IF(VLOOKUP($B24,Formulacion!$A:$BE,MATCH(AK$1,Formulacion!$1:$1,0),FALSE)="NA",1,VLOOKUP($B24,Formulacion!$A:$BE,MATCH(AK$1,Formulacion!$1:$1,0),FALSE)) -> 30 | AL24: =IF(VLOOKUP($B24,Formulacion!$A:$BE,MATCH(AL$1,Formulacion!$1:$1,0),FALSE)="NA",1,VLOOKUP($B24,Formulacion!$A:$BE,MATCH(AL$1,Formulacion!$1:$1,0),FALSE)) -> 0.3 | AM24: NC | AN24: =IF(VLOOKUP($B24,Formulacion!$A:$BE,MATCH(AN$1,Formulacion!$1:$1,0),FALSE)="NA","NA",IF(D24=0,"",VLOOKUP($B24,Formulacion!$A:$BE,MATCH(AN$1,Formulacion!$1:$1,0),FALSE))) -> 0206170220032403 | AO24: LABTM1 | AP24: HO | AQ24: 3AL | AR24: 006 | AV24: =IF(VLOOKUP($B24,Formulacion!$A:$BE,MATCH(AV$1,Formulacion!$1:$1,0),FALSE)="NA","NA",VLOOKUP(CONCATENATE(AO24,AP24,AQ24,AR24,AS24,AT24,AU24),ValoresReferenciales!$A:$D,4,FALSE)) -> 14.76593257 | AW24: =IF(VLOOKUP($B24,Formulacion!$A:$BE,MATCH(AW$1,Formulacion!$1:$1,0),FALSE)="NA","NA",HLOOKUP(VLOOKUP($B24,Formulacion!$A:$BE,MATCH(AW$1,Formulacion!$1:$1,0),FALSE),$Q:$Z,ROW(AW24),FALSE)) -> 184 | AX24: 14.61168478 | AY24: 1 | AZ24: =IF(VLOOKUP($B24,Formulacion!$A:$BE,MATCH(AZ$1,Formulacion!$1:$1,0),FALSE)="NA",1,VLOOKUP($B24,Formulacion!$A:$BE,MATCH(AZ$1,Formulacion!$1:$1,0),FALSE)) -> 1 | BA24: =IF(VLOOKUP($B24,Formulacion!$A:$BE,MATCH(BA$1,Formulacion!$1:$1,0),FALSE)="NA",1,VLOOKUP($B24,Formulacion!$A:$BE,MATCH(BA$1,Formulacion!$1:$1,0),FALSE)) -> 1 | BB24: 2688.55 | BC24: 2688.55
A25: CC-01-AD-2010-EDECHI.xls | B25: DLABT | C25: 301012009050057 | D25: DLABTM100102P002HOC3ALA002 | E25: 2010-02-19 | F25: LOS ANASTACIOS | G25: 102 | H25: 1197.44 | I25: 2160.49 | J25: 0 | K25: 0 | L25: 0 | M25: 0 | N25: 3357.93 | O25: 1010 | P25: 0 | Q25: =IF(OR(VLOOKUP($B25,Formulacion!$A:$BE,MATCH(Q$1,Formulacion!$1:$1,0),FALSE)="NA",$D25=0),"NA",IF($B25="DLABT",MID($D25,PosteInicioBT,PosteFinBT-PosteInicioBT+1)*1,MID($D25,PosteInicio,PosteFin-PosteInicio+1)*1)) -> 2 | R25: =IF(OR(VLOOKUP($B25,Formulacion!$A:$BE,MATCH(R$1,Formulacion!$1:$1,0),FALSE)="NA",$D25=0),"NA",IF(OR($B25="DLABT",$B25="DLSBT"),MID($D25,CondInicioBT,CondFinBT-CondInicioBT+1)*1,MID($D25,CondInicio,CondFin-CondInicio+1)*1)) -> 102 | S25: 51 | T25: =IF(OR(VLOOKUP($B25,Formulacion!$A:$BE,MATCH(T$1,Formulacion!$1:$1,0),FALSE)="NA",$D25=0),"NA",IF($B25="DLSBT",MID($D25,ZanjaInicioBT,ZanjaFinBT-ZanjaInicioBT+1)*1,MID($D25,ZanjaInicio,ZanjaFin-ZanjaInicio+1)*1)) -> NA | U25: 1 | V25: =IF(OR(VLOOKUP($B25,Formulacion!$A:$BE,MATCH(V$1,Formulacion!$1:$1,0),FALSE)="NA",$D25=0),"NA",MID($D25,m2Inicio+INDIRECT(B25),m2Fin-m2Inicio+1)*1) -> NA | W25: =IF(OR(VLOOKUP($B25,Formulacion!$A:$BE,MATCH(W$1,Formulacion!$1:$1,0),FALSE)="NA",$D25=0),"NA",RIGHT($D25,4)*1) -> NA | X25: =IF(OR(VLOOKUP($B25,Formulacion!$A:$BE,MATCH(X$1,Formulacion!$1:$1,0),FALSE)="NA",$D25=0),"NA",RIGHT($D25,3)*1) -> NA | Y25: 1 | Z25: =IF(VLOOKUP($B25,Formulacion!$A:$BE,MATCH(Z$1,Formulacion!$1:$1,0),FALSE)="NA",1,IF(V25<=m2Min,0,1)) -> 1 | AA25: =IF(VLOOKUP($B25,Formulacion!$A:$BE,MATCH(AA$1,Formulacion!$1:$1,0),FALSE)="NA",1,IF(OR(E25<=FechaMin,E25>FechaMax),0,1)) -> 1 | AB25: =IF(VLOOKUP($B25,Formulacion!$A:$BE,MATCH(AB$1,Formulacion!$1:$1,0),FALSE)="NA",1,IF(H25<=MaterialesMin,0,1)) -> 1 | AC25: =IF(VLOOKUP($B25,Formulacion!$A:$BE,MATCH(AC$1,Formulacion!$1:$1,0),FALSE)="NA",1,IF(N25=0,0,IF(OR(I25/N25<=MObraMin,I25/N25>=MObraMax),MDOmin,1))) -> 1 | AD25: =IF(VLOOKUP($B25,Formulacion!$A:$BE,MATCH(AD$1,Formulacion!$1:$1,0),FALSE)="NA",1,IF(N25<=CostoTotalMin,0,1)) -> 1 | AE25: =IF(VLOOKUP($B25,Formulacion!$A:$BE,MATCH(AE$1,Formulacion!$1:$1,0),FALSE)="NA",1,IF(Q25<=PostesMin,0,1)) -> 0 | AF25: =IF(VLOOKUP($B25,Formulacion!$A:$BE,MATCH(AF$1,Formulacion!$1:$1,0),FALSE)="NA",1,IF(R25<=INDIRECT(VLOOKUP(B25,Formulacion!$A:$BE,2,FALSE)),0,1)) -> 1 | AG25: 1 | AH25: 3357.93 | AJ25: =IF(VLOOKUP($B25,Formulacion!$A:$BE,MATCH(AJ$1,Formulacion!$1:$1,0),FALSE)="NA","NA",HLOOKUP(VLOOKUP($B25,Formulacion!$A:$BE,MATCH(AJ$1,Formulacion!$1:$1,0),FALSE),$Q:$Z,ROW(AJ25),FALSE)) -> 51 | AK25: =IF(VLOOKUP($B25,Formulacion!$A:$BE,MATCH(AK$1,Formulacion!$1:$1,0),FALSE)="NA",1,VLOOKUP($B25,Formulacion!$A:$BE,MATCH(AK$1,Formulacion!$1:$1,0),FALSE)) -> 30 | AL25: =IF(VLOOKUP($B25,Formulacion!$A:$BE,MATCH(AL$1,Formulacion!$1:$1,0),FALSE)="NA",1,VLOOKUP($B25,Formulacion!$A:$BE,MATCH(AL$1,Formulacion!$1:$1,0),FALSE)) -> 0.3 | AM25: NC | AN25: =IF(VLOOKUP($B25,Formulacion!$A:$BE,MATCH(AN$1,Formulacion!$1:$1,0),FALSE)="NA","NA",IF(D25=0,"",VLOOKUP($B25,Formulacion!$A:$BE,MATCH(AN$1,Formulacion!$1:$1,0),FALSE))) -> 0206170220032403 | AO25: LABTM1 | AP25: HO | AQ25: 3AL | AR25: 002 | AV25: =IF(VLOOKUP($B25,Formulacion!$A:$BE,MATCH(AV$1,Formulacion!$1:$1,0),FALSE)="NA","NA",VLOOKUP(CONCATENATE(AO25,AP25,AQ25,AR25,AS25,AT25,AU25),ValoresReferenciales!$A:$D,4,FALSE)) -> 15.63451684 | AW25: =IF(VLOOKUP($B25,Formulacion!$A:$BE,MATCH(AW$1,Formulacion!$1:$1,0),FALSE)="NA","NA",HLOOKUP(VLOOKUP($B25,Formulacion!$A:$BE,MATCH(AW$1,Formulacion!$1:$1,0),FALSE),$Q:$Z,ROW(AW25),FALSE)) -> 102 | AX25: 32.92088235 | AY25: 1 | AZ25: =IF(VLOOKUP($B25,Formulacion!$A:$BE,MATCH(AZ$1,Formulacion!$1:$1,0),FALSE)="NA",1,VLOOKUP($B25,Formulacion!$A:$BE,MATCH(AZ$1,Formulacion!$1:$1,0),FALSE)) -> 1 | BA25: =IF(VLOOKUP($B25,Formulacion!$A:$BE,MATCH(BA$1,Formulacion!$1:$1,0),FALSE)="NA",1,VLOOKUP($B25,Formulacion!$A:$BE,MATCH(BA$1,Formulacion!$1:$1,0),FALSE)) -> 1 | BB25: 3357.93 | BC25: 3357.93
A26: CC-01-AD-2010-EDECHI.xls | B26: DLABT | C26: 301012009050336 | D26: DLABTM100342P002HOC3ALA1/0 | E26: 2010-02-11 | F26: VELADERO (P) | G26: 342 | H26: 3084.1 | I26: 1096.24 | J26: 0 | K26: 313.18 | L26: 0 | M26: 0 | N26: 4493.52 | O26: 149 | P26: 0 | Q26: =IF(OR(VLOOKUP($B26,Formulacion!$A:$BE,MATCH(Q$1,Formulacion!$1:$1,0),FALSE)="NA",$D26=0),"NA",IF($B26="DLABT",MID($D26,PosteInicioBT,PosteFinBT-PosteInicioBT+1)*1,MID($D26,PosteInicio,PosteFin-PosteInicio+1)*1)) -> 2 | R26: =IF(OR(VLOOKUP($B26,Formulacion!$A:$BE,MATCH(R$1,Formulacion!$1:$1,0),FALSE)="NA",$D26=0),"NA",IF(OR($B26="DLABT",$B26="DLSBT"),MID($D26,CondInicioBT,CondFinBT-CondInicioBT+1)*1,MID($D26,CondInicio,CondFin-CondInicio+1)*1)) -> 342 | S26: 171 | T26: =IF(OR(VLOOKUP($B26,Formulacion!$A:$BE,MATCH(T$1,Formulacion!$1:$1,0),FALSE)="NA",$D26=0),"NA",IF($B26="DLSBT",MID($D26,ZanjaInicioBT,ZanjaFinBT-ZanjaInicioBT+1)*1,MID($D26,ZanjaInicio,ZanjaFin-ZanjaInicio+1)*1)) -> NA | U26: 1 | V26: =IF(OR(VLOOKUP($B26,Formulacion!$A:$BE,MATCH(V$1,Formulacion!$1:$1,0),FALSE)="NA",$D26=0),"NA",MID($D26,m2Inicio+INDIRECT(B26),m2Fin-m2Inicio+1)*1) -> NA | W26: =IF(OR(VLOOKUP($B26,Formulacion!$A:$BE,MATCH(W$1,Formulacion!$1:$1,0),FALSE)="NA",$D26=0),"NA",RIGHT($D26,4)*1) -> NA | X26: =IF(OR(VLOOKUP($B26,Formulacion!$A:$BE,MATCH(X$1,Formulacion!$1:$1,0),FALSE)="NA",$D26=0),"NA",RIGHT($D26,3)*1) -> NA | Y26: 1 | Z26: =IF(VLOOKUP($B26,Formulacion!$A:$BE,MATCH(Z$1,Formulacion!$1:$1,0),FALSE)="NA",1,IF(V26<=m2Min,0,1)) -> 1 | AA26: =IF(VLOOKUP($B26,Formulacion!$A:$BE,MATCH(AA$1,Formulacion!$1:$1,0),FALSE)="NA",1,IF(OR(E26<=FechaMin,E26>FechaMax),0,1)) -> 1 | AB26: =IF(VLOOKUP($B26,Formulacion!$A:$BE,MATCH(AB$1,Formulacion!$1:$1,0),FALSE)="NA",1,IF(H26<=MaterialesMin,0,1)) -> 1 | AC26: =IF(VLOOKUP($B26,Formulacion!$A:$BE,MATCH(AC$1,Formulacion!$1:$1,0),FALSE)="NA",1,IF(N26=0,0,IF(OR(I26/N26<=MObraMin,I26/N26>=MObraMax),MDOmin,1))) -> 1 | AD26: =IF(VLOOKUP($B26,Formulacion!$A:$BE,MATCH(AD$1,Formulacion!$1:$1,0),FALSE)="NA",1,IF(N26<=CostoTotalMin,0,1)) -> 1 | AE26: =IF(VLOOKUP($B26,Formulacion!$A:$BE,MATCH(AE$1,Formulacion!$1:$1,0),FALSE)="NA",1,IF(Q26<=PostesMin,0,1)) -> 0 | AF26: =IF(VLOOKUP($B26,Formulacion!$A:$BE,MATCH(AF$1,Formulacion!$1:$1,0),FALSE)="NA",1,IF(R26<=INDIRECT(VLOOKUP(B26,Formulacion!$A:$BE,2,FALSE)),0,1)) -> 1 | AG26: 1 | AH26: 4493.52 | AJ26: =IF(VLOOKUP($B26,Formulacion!$A:$BE,MATCH(AJ$1,Formulacion!$1:$1,0),FALSE)="NA","NA",HLOOKUP(VLOOKUP($B26,Formulacion!$A:$BE,MATCH(AJ$1,Formulacion!$1:$1,0),FALSE),$Q:$Z,ROW(AJ26),FALSE)) -> 171 | AK26: =IF(VLOOKUP($B26,Formulacion!$A:$BE,MATCH(AK$1,Formulacion!$1:$1,0),FALSE)="NA",1,VLOOKUP($B26,Formulacion!$A:$BE,MATCH(AK$1,Formulacion!$1:$1,0),FALSE)) -> 30 | AL26: =IF(VLOOKUP($B26,Formulacion!$A:$BE,MATCH(AL$1,Formulacion!$1:$1,0),FALSE)="NA",1,VLOOKUP($B26,Formulacion!$A:$BE,MATCH(AL$1,Formulacion!$1:$1,0),FALSE)) -> 0.3 | AM26: NC | AN26: =IF(VLOOKUP($B26,Formulacion!$A:$BE,MATCH(AN$1,Formulacion!$1:$1,0),FALSE)="NA","NA",IF(D26=0,"",VLOOKUP($B26,Formulacion!$A:$BE,MATCH(AN$1,Formulacion!$1:$1,0),FALSE))) -> 0206170220032403 | AO26: LABTM1 | AP26: HO | AQ26: 3AL | AR26: 1/0 | AV26: =IF(VLOOKUP($B26,Formulacion!$A:$BE,MATCH(AV$1,Formulacion!$1:$1,0),FALSE)="NA","NA",VLOOKUP(CONCATENATE(AO26,AP26,AQ26,AR26,AS26,AT26,AU26),ValoresReferenciales!$A:$D,4,FALSE)) -> 17.37168537 | AW26: =IF(VLOOKUP($B26,Formulacion!$A:$BE,MATCH(AW$1,Formulacion!$1:$1,0),FALSE)="NA","NA",HLOOKUP(VLOOKUP($B26,Formulacion!$A:$BE,MATCH(AW$1,Formulacion!$1:$1,0),FALSE),$Q:$Z,ROW(AW26),FALSE)) -> 342 | AX26: 13.13894737 | AY26: 1 | AZ26: =IF(VLOOKUP($B26,Formulacion!$A:$BE,MATCH(AZ$1,Formulacion!$1:$1,0),FALSE)="NA",1,VLOOKUP($B26,Formulacion!$A:$BE,MATCH(AZ$1,Formulacion!$1:$1,0),FALSE)) -> 1 | BA26: =IF(VLOOKUP($B26,Formulacion!$A:$BE,MATCH(BA$1,Formulacion!$1:$1,0),FALSE)="NA",1,VLOOKUP($B26,Formulacion!$A:$BE,MATCH(BA$1,Formulacion!$1:$1,0),FALSE)) -> 1 | BB26: 4493.52 | BC26: 4493.52
A27: CC-01-AD-2010-EDECHI.xls | B27: DLABT | C27: 301012009060425 | D27: DLABTM100009P001HOC3ALA4/0 | E27: 2010-02-04 | F27: BOCAS DEL TORO | G27: 9 | H27: 251.13 | I27: 78.81 | J27: 0 | K27: 0 | L27: 0 | M27: 0 | N27: 329.94 | O27: 679 | P27: 0 | Q27: =IF(OR(VLOOKUP($B27,Formulacion!$A:$BE,MATCH(Q$1,Formulacion!$1:$1,0),FALSE)="NA",$D27=0),"NA",IF($B27="DLABT",MID($D27,PosteInicioBT,PosteFinBT-PosteInicioBT+1)*1,MID($D27,PosteInicio,PosteFin-PosteInicio+1)*1)) -> 1 | R27: =IF(OR(VLOOKUP($B27,Formulacion!$A:$BE,MATCH(R$1,Formulacion!$1:$1,0),FALSE)="NA",$D27=0),"NA",IF(OR($B27="DLABT",$B27="DLSBT"),MID($D27,CondInicioBT,CondFinBT-CondInicioBT+1)*1,MID($D27,CondInicio,CondFin-CondInicio+1)*1)) -> 9 | S27: 9 | T27: =IF(OR(VLOOKUP($B27,Formulacion!$A:$BE,MATCH(T$1,Formulacion!$1:$1,0),FALSE)="NA",$D27=0),"NA",IF($B27="DLSBT",MID($D27,ZanjaInicioBT,ZanjaFinBT-ZanjaInicioBT+1)*1,MID($D27,ZanjaInicio,ZanjaFin-ZanjaInicio+1)*1)) -> NA | U27: 1 | V27: =IF(OR(VLOOKUP($B27,Formulacion!$A:$BE,MATCH(V$1,Formulacion!$1:$1,0),FALSE)="NA",$D27=0),"NA",MID($D27,m2Inicio+INDIRECT(B27),m2Fin-m2Inicio+1)*1) -> NA | W27: =IF(OR(VLOOKUP($B27,Formulacion!$A:$BE,MATCH(W$1,Formulacion!$1:$1,0),FALSE)="NA",$D27=0),"NA",RIGHT($D27,4)*1) -> NA | X27: =IF(OR(VLOOKUP($B27,Formulacion!$A:$BE,MATCH(X$1,Formulacion!$1:$1,0),FALSE)="NA",$D27=0),"NA",RIGHT($D27,3)*1) -> NA | Y27: 1 | Z27: =IF(VLOOKUP($B27,Formulacion!$A:$BE,MATCH(Z$1,Formulacion!$1:$1,0),FALSE)="NA",1,IF(V27<=m2Min,0,1)) -> 1 | AA27: =IF(VLOOKUP($B27,Formulacion!$A:$BE,MATCH(AA$1,Formulacion!$1:$1,0),FALSE)="NA",1,IF(OR(E27<=FechaMin,E27>FechaMax),0,1)) -> 1 | AB27: =IF(VLOOKUP($B27,Formulacion!$A:$BE,MATCH(AB$1,Formulacion!$1:$1,0),FALSE)="NA",1,IF(H27<=MaterialesMin,0,1)) -> 1 | AC27: =IF(VLOOKUP($B27,Formulacion!$A:$BE,MATCH(AC$1,Formulacion!$1:$1,0),FALSE)="NA",1,IF(N27=0,0,IF(OR(I27/N27<=MObraMin,I27/N27>=MObraMax),MDOmin,1))) -> 1 | AD27: =IF(VLOOKUP($B27,Formulacion!$A:$BE,MATCH(AD$1,Formulacion!$1:$1,0),FALSE)="NA",1,IF(N27<=CostoTotalMin,0,1)) -> 1 | AE27: =IF(VLOOKUP($B27,Formulacion!$A:$BE,MATCH(AE$1,Formulacion!$1:$1,0),FALSE)="NA",1,IF(Q27<=PostesMin,0,1)) -> 0 | AF27: =IF(VLOOKUP($B27,Formulacion!$A:$BE,MATCH(AF$1,Formulacion!$1:$1,0),FALSE)="NA",1,IF(R27<=INDIRECT(VLOOKUP(B27,Formulacion!$A:$BE,2,FALSE)),0,1)) -> 0 | AG27: 0 | AH27: 0 | AJ27: =IF(VLOOKUP($B27,Formulacion!$A:$BE,MATCH(AJ$1,Formulacion!$1:$1,0),FALSE)="NA","NA",HLOOKUP(VLOOKUP($B27,Formulacion!$A:$BE,MATCH(AJ$1,Formulacion!$1:$1,0),FALSE),$Q:$Z,ROW(AJ27),FALSE)) -> 9 | AK27: =IF(VLOOKUP($B27,Formulacion!$A:$BE,MATCH(AK$1,Formulacion!$1:$1,0),FALSE)="NA",1,VLOOKUP($B27,Formulacion!$A:$BE,MATCH(AK$1,Formulacion!$1:$1,0),FALSE)) -> 30 | AL27: =IF(VLOOKUP($B27,Formulacion!$A:$BE,MATCH(AL$1,Formulacion!$1:$1,0),FALSE)="NA",1,VLOOKUP($B27,Formulacion!$A:$BE,MATCH(AL$1,Formulacion!$1:$1,0),FALSE)) -> 0.3 | AM27: CU | AN27: =IF(VLOOKUP($B27,Formulacion!$A:$BE,MATCH(AN$1,Formulacion!$1:$1,0),FALSE)="NA","NA",IF(D27=0,"",VLOOKUP($B27,Formulacion!$A:$BE,MATCH(AN$1,Formulacion!$1:$1,0),FALSE))) -> 0206170220032403 | AO27: LABTM1 | AP27: HO | AQ27: 3AL | AR27: 4/0 | AV27: =IF(VLOOKUP($B27,Formulacion!$A:$BE,MATCH(AV$1,Formulacion!$1:$1,0),FALSE)="NA","NA",VLOOKUP(CONCATENATE(AO27,AP27,AQ27,AR27,AS27,AT27,AU27),ValoresReferenciales!$A:$D,4,FALSE)) -> 19.10885391 | AW27: =IF(VLOOKUP($B27,Formulacion!$A:$BE,MATCH(AW$1,Formulacion!$1:$1,0),FALSE)="NA","NA",HLOOKUP(VLOOKUP($B27,Formulacion!$A:$BE,MATCH(AW$1,Formulacion!$1:$1,0),FALSE),$Q:$Z,ROW(AW27),FALSE)) -> 9 | AX27: 36.66 | AY27: 0.521245333 | AZ27: =IF(VLOOKUP($B27,Formulacion!$A:$BE,MATCH(AZ$1,Formulacion!$1:$1,0),FALSE)="NA",1,VLOOKUP($B27,Formulacion!$A:$BE,MATCH(AZ$1,Formulacion!$1:$1,0),FALSE)) -> 1 | BA27: =IF(VLOOKUP($B27,Formulacion!$A:$BE,MATCH(BA$1,Formulacion!$1:$1,0),FALSE)="NA",1,VLOOKUP($B27,Formulacion!$A:$BE,MATCH(BA$1,Formulacion!$1:$1,0),FALSE)) -> 1 | BB27: 0 | BC27: 329.94
A28: CC-01-AD-2010-EDECHI.xls | B28: DLABT | C28: 301012009070105 | D28: DLABTM100050P001HOC3ALA1/0 | E28: 2010-04-16 | F28: LA CONCEPCION ( | G28: 50 | H28: 314.44 | I28: 418.3 | J28: 0 | K28: 125.26 | L28: 0 | M28: 0 | N28: 858 | O28: 678 | P28: 0 | Q28: =IF(OR(VLOOKUP($B28,Formulacion!$A:$BE,MATCH(Q$1,Formulacion!$1:$1,0),FALSE)="NA",$D28=0),"NA",IF($B28="DLABT",MID($D28,PosteInicioBT,PosteFinBT-PosteInicioBT+1)*1,MID($D28,PosteInicio,PosteFin-PosteInicio+1)*1)) -> 1 | R28: =IF(OR(VLOOKUP($B28,Formulacion!$A:$BE,MATCH(R$1,Formulacion!$1:$1,0),FALSE)="NA",$D28=0),"NA",IF(OR($B28="DLABT",$B28="DLSBT"),MID($D28,CondInicioBT,CondFinBT-CondInicioBT+1)*1,MID($D28,CondInicio,CondFin-CondInicio+1)*1)) -> 50 | S28: 50 | T28: =IF(OR(VLOOKUP($B28,Formulacion!$A:$BE,MATCH(T$1,Formulacion!$1:$1,0),FALSE)="NA",$D28=0),"NA",IF($B28="DLSBT",MID($D28,ZanjaInicioBT,ZanjaFinBT-ZanjaInicioBT+1)*1,MID($D28,ZanjaInicio,ZanjaFin-ZanjaInicio+1)*1)) -> NA | U28: 1 | V28: =IF(OR(VLOOKUP($B28,Formulacion!$A:$BE,MATCH(V$1,Formulacion!$1:$1,0),FALSE)="NA",$D28=0),"NA",MID($D28,m2Inicio+INDIRECT(B28),m2Fin-m2Inicio+1)*1) -> NA | W28: =IF(OR(VLOOKUP($B28,Formulacion!$A:$BE,MATCH(W$1,Formulacion!$1:$1,0),FALSE)="NA",$D28=0),"NA",RIGHT($D28,4)*1) -> NA | X28: =IF(OR(VLOOKUP($B28,Formulacion!$A:$BE,MATCH(X$1,Formulacion!$1:$1,0),FALSE)="NA",$D28=0),"NA",RIGHT($D28,3)*1) -> NA | Y28: 1 | Z28: =IF(VLOOKUP($B28,Formulacion!$A:$BE,MATCH(Z$1,Formulacion!$1:$1,0),FALSE)="NA",1,IF(V28<=m2Min,0,1)) -> 1 | AA28: =IF(VLOOKUP($B28,Formulacion!$A:$BE,MATCH(AA$1,Formulacion!$1:$1,0),FALSE)="NA",1,IF(OR(E28<=FechaMin,E28>FechaMax),0,1)) -> 1 | AB28: =IF(VLOOKUP($B28,Formulacion!$A:$BE,MATCH(AB$1,Formulacion!$1:$1,0),FALSE)="NA",1,IF(H28<=MaterialesMin,0,1)) -> 1 | AC28: =IF(VLOOKUP($B28,Formulacion!$A:$BE,MATCH(AC$1,Formulacion!$1:$1,0),FALSE)="NA",1,IF(N28=0,0,IF(OR(I28/N28<=MObraMin,I28/N28>=MObraMax),MDOmin,1))) -> 1 | AD28: =IF(VLOOKUP($B28,Formulacion!$A:$BE,MATCH(AD$1,Formulacion!$1:$1,0),FALSE)="NA",1,IF(N28<=CostoTotalMin,0,1)) -> 1 | AE28: =IF(VLOOKUP($B28,Formulacion!$A:$BE,MATCH(AE$1,Formulacion!$1:$1,0),FALSE)="NA",1,IF(Q28<=PostesMin,0,1)) -> 0 | AF28: =IF(VLOOKUP($B28,Formulacion!$A:$BE,MATCH(AF$1,Formulacion!$1:$1,0),FALSE)="NA",1,IF(R28<=INDIRECT(VLOOKUP(B28,Formulacion!$A:$BE,2,FALSE)),0,1)) -> 0 | AG28: 0 | AH28: 0 | AJ28: =IF(VLOOKUP($B28,Formulacion!$A:$BE,MATCH(AJ$1,Formulacion!$1:$1,0),FALSE)="NA","NA",HLOOKUP(VLOOKUP($B28,Formulacion!$A:$BE,MATCH(AJ$1,Formulacion!$1:$1,0),FALSE),$Q:$Z,ROW(AJ28),FALSE)) -> 50 | AK28: =IF(VLOOKUP($B28,Formulacion!$A:$BE,MATCH(AK$1,Formulacion!$1:$1,0),FALSE)="NA",1,VLOOKUP($B28,Formulacion!$A:$BE,MATCH(AK$1,Formulacion!$1:$1,0),FALSE)) -> 30 | AL28: =IF(VLOOKUP($B28,Formulacion!$A:$BE,MATCH(AL$1,Formulacion!$1:$1,0),FALSE)="NA",1,VLOOKUP($B28,Formulacion!$A:$BE,MATCH(AL$1,Formulacion!$1:$1,0),FALSE)) -> 0.3 | AM28: NC | AN28: =IF(VLOOKUP($B28,Formulacion!$A:$BE,MATCH(AN$1,Formulacion!$1:$1,0),FALSE)="NA","NA",IF(D28=0,"",VLOOKUP($B28,Formulacion!$A:$BE,MATCH(AN$1,Formulacion!$1:$1,0),FALSE))) -> 0206170220032403 | AO28: LABTM1 | AP28: HO | AQ28: 3AL | AR28: 1/0 | AV28: =IF(VLOOKUP($B28,Formulacion!$A:$BE,MATCH(AV$1,Formulacion!$1:$1,0),FALSE)="NA","NA",VLOOKUP(CONCATENATE(AO28,AP28,AQ28,AR28,AS28,AT28,AU28),ValoresReferenciales!$A:$D,4,FALSE)) -> 17.37168537 | AW28: =IF(VLOOKUP($B28,Formulacion!$A:$BE,MATCH(AW$1,Formulacion!$1:$1,0),FALSE)="NA","NA",HLOOKUP(VLOOKUP($B28,Formulacion!$A:$BE,MATCH(AW$1,Formulacion!$1:$1,0),FALSE),$Q:$Z,ROW(AW28),FALSE)) -> 50 | AX28: 17.16 | AY28: 1 | AZ28: =IF(VLOOKUP($B28,Formulacion!$A:$BE,MATCH(AZ$1,Formulacion!$1:$1,0),FALSE)="NA",1,VLOOKUP($B28,Formulacion!$A:$BE,MATCH(AZ$1,Formulacion!$1:$1,0),FALSE)) -> 1 | BA28: =IF(VLOOKUP($B28,Formulacion!$A:$BE,MATCH(BA$1,Formulacion!$1:$1,0),FALSE)="NA",1,VLOOKUP($B28,Formulacion!$A:$BE,MATCH(BA$1,Formulacion!$1:$1,0),FALSE)) -> 1 | BB28: 0 | BC28: 858
A29: CC-01-AD-2010-EDECHI.xls | B29: DLABT | C29: 301012009070178 | D29: DLABTM100239P004HOC3ALA1/0 | E29: 2010-04-08 | F29: LA CONCEPCION ( | G29: 239 | H29: 3826.53 | I29: 957.11 | J29: 0 | K29: 387.74 | L29: 0 | M29: 0 | N29: 5171.38 | O29: 964 | P29: 0 | Q29: =IF(OR(VLOOKUP($B29,Formulacion!$A:$BE,MATCH(Q$1,Formulacion!$1:$1,0),FALSE)="NA",$D29=0),"NA",IF($B29="DLABT",MID($D29,PosteInicioBT,PosteFinBT-PosteInicioBT+1)*1,MID($D29,PosteInicio,PosteFin-PosteInicio+1)*1)) -> 4 | R29: =IF(OR(VLOOKUP($B29,Formulacion!$A:$BE,MATCH(R$1,Formulacion!$1:$1,0),FALSE)="NA",$D29=0),"NA",IF(OR($B29="DLABT",$B29="DLSBT"),MID($D29,CondInicioBT,CondFinBT-CondInicioBT+1)*1,MID($D29,CondInicio,CondFin-CondInicio+1)*1)) -> 239 | S29: 59.75 | T29: =IF(OR(VLOOKUP($B29,Formulacion!$A:$BE,MATCH(T$1,Formulacion!$1:$1,0),FALSE)="NA",$D29=0),"NA",IF($B29="DLSBT",MID($D29,ZanjaInicioBT,ZanjaFinBT-ZanjaInicioBT+1)*1,MID($D29,ZanjaInicio,ZanjaFin-ZanjaInicio+1)*1)) -> NA | U29: 1 | V29: =IF(OR(VLOOKUP($B29,Formulacion!$A:$BE,MATCH(V$1,Formulacion!$1:$1,0),FALSE)="NA",$D29=0),"NA",MID($D29,m2Inicio+INDIRECT(B29),m2Fin-m2Inicio+1)*1) -> NA | W29: =IF(OR(VLOOKUP($B29,Formulacion!$A:$BE,MATCH(W$1,Formulacion!$1:$1,0),FALSE)="NA",$D29=0),"NA",RIGHT($D29,4)*1) -> NA | X29: =IF(OR(VLOOKUP($B29,Formulacion!$A:$BE,MATCH(X$1,Formulacion!$1:$1,0),FALSE)="NA",$D29=0),"NA",RIGHT($D29,3)*1) -> NA | Y29: 1 | Z29: =IF(VLOOKUP($B29,Formulacion!$A:$BE,MATCH(Z$1,Formulacion!$1:$1,0),FALSE)="NA",1,IF(V29<=m2Min,0,1)) -> 1 | AA29: =IF(VLOOKUP($B29,Formulacion!$A:$BE,MATCH(AA$1,Formulacion!$1:$1,0),FALSE)="NA",1,IF(OR(E29<=FechaMin,E29>FechaMax),0,1)) -> 1 | AB29: =IF(VLOOKUP($B29,Formulacion!$A:$BE,MATCH(AB$1,Formulacion!$1:$1,0),FALSE)="NA",1,IF(H29<=MaterialesMin,0,1)) -> 1 | AC29: =IF(VLOOKUP($B29,Formulacion!$A:$BE,MATCH(AC$1,Formulacion!$1:$1,0),FALSE)="NA",1,IF(N29=0,0,IF(OR(I29/N29<=MObraMin,I29/N29>=MObraMax),MDOmin,1))) -> 1 | AD29: =IF(VLOOKUP($B29,Formulacion!$A:$BE,MATCH(AD$1,Formulacion!$1:$1,0),FALSE)="NA",1,IF(N29<=CostoTotalMin,0,1)) -> 1 | AE29: =IF(VLOOKUP($B29,Formulacion!$A:$BE,MATCH(AE$1,Formulacion!$1:$1,0),FALSE)="NA",1,IF(Q29<=PostesMin,0,1)) -> 1 | AF29: =IF(VLOOKUP($B29,Formulacion!$A:$BE,MATCH(AF$1,Formulacion!$1:$1,0),FALSE)="NA",1,IF(R29<=INDIRECT(VLOOKUP(B29,Formulacion!$A:$BE,2,FALSE)),0,1)) -> 1 | AG29: 1 | AH29: 5171.38 | AJ29: =IF(VLOOKUP($B29,Formulacion!$A:$BE,MATCH(AJ$1,Formulacion!$1:$1,0),FALSE)="NA","NA",HLOOKUP(VLOOKUP($B29,Formulacion!$A:$BE,MATCH(AJ$1,Formulacion!$1:$1,0),FALSE),$Q:$Z,ROW(AJ29),FALSE)) -> 59.75 | AK29: =IF(VLOOKUP($B29,Formulacion!$A:$BE,MATCH(AK$1,Formulacion!$1:$1,0),FALSE)="NA",1,VLOOKUP($B29,Formulacion!$A:$BE,MATCH(AK$1,Formulacion!$1:$1,0),FALSE)) -> 30 | AL29: =IF(VLOOKUP($B29,Formulacion!$A:$BE,MATCH(AL$1,Formulacion!$1:$1,0),FALSE)="NA",1,VLOOKUP($B29,Formulacion!$A:$BE,MATCH(AL$1,Formulacion!$1:$1,0),FALSE)) -> 0.3 | AM29: NC | AN29: =IF(VLOOKUP($B29,Formulacion!$A:$BE,MATCH(AN$1,Formulacion!$1:$1,0),FALSE)="NA","NA",IF(D29=0,"",VLOOKUP($B29,Formulacion!$A:$BE,MATCH(AN$1,Formulacion!$1:$1,0),FALSE))) -> 0206170220032403 | AO29: LABTM1 | AP29: HO | AQ29: 3AL | AR29: 1/0 | AV29: =IF(VLOOKUP($B29,Formulacion!$A:$BE,MATCH(AV$1,Formulacion!$1:$1,0),FALSE)="NA","NA",VLOOKUP(CONCATENATE(AO29,AP29,AQ29,AR29,AS29,AT29,AU29),ValoresReferenciales!$A:$D,4,FALSE)) -> 17.37168537 | AW29: =IF(VLOOKUP($B29,Formulacion!$A:$BE,MATCH(AW$1,Formulacion!$1:$1,0),FALSE)="NA","NA",HLOOKUP(VLOOKUP($B29,Formulacion!$A:$BE,MATCH(AW$1,Formulacion!$1:$1,0),FALSE),$Q:$Z,ROW(AW29),FALSE)) -> 239 | AX29: 21.63757322 | AY29: 1 | AZ29: =IF(VLOOKUP($B29,Formulacion!$A:$BE,MATCH(AZ$1,Formulacion!$1:$1,0),FALSE)="NA",1,VLOOKUP($B29,Formulacion!$A:$BE,MATCH(AZ$1,Formulacion!$1:$1,0),FALSE)) -> 1 | BA29: =IF(VLOOKUP($B29,Formulacion!$A:$BE,MATCH(BA$1,Formulacion!$1:$1,0),FALSE)="NA",1,VLOOKUP($B29,Formulacion!$A:$BE,MATCH(BA$1,Formulacion!$1:$1,0),FALSE)) -> 1 | BB29: 5171.38 | BC29: 5171.38
A30: CC-01-AD-2010-EDECHI.xls | B30: DLABT | C30: 301012009070263 | D30: DLABTM100004P000HOC3ALA4/0 | E30: 2010-02-18 | F30: VOLCAN | G30: 4 | H30: 70.04 | I30: 43.41 | J30: 0 | K30: 88.9 | L30: 0 | M30: 0 | N30: 202.35 | O30: 55 | P30: 0 | Q30: =IF(OR(VLOOKUP($B30,Formulacion!$A:$BE,MATCH(Q$1,Formulacion!$1:$1,0),FALSE)="NA",$D30=0),"NA",IF($B30="DLABT",MID($D30,PosteInicioBT,PosteFinBT-PosteInicioBT+1)*1,MID($D30,PosteInicio,PosteFin-PosteInicio+1)*1)) -> 0 | R30: =IF(OR(VLOOKUP($B30,Formulacion!$A:$BE,MATCH(R$1,Formulacion!$1:$1,0),FALSE)="NA",$D30=0),"NA",IF(OR($B30="DLABT",$B30="DLSBT"),MID($D30,CondInicioBT,CondFinBT-CondInicioBT+1)*1,MID($D30,CondInicio,CondFin-CondInicio+1)*1)) -> 4 | S30: SP | T30: =IF(OR(VLOOKUP($B30,Formulacion!$A:$BE,MATCH(T$1,Formulacion!$1:$1,0),FALSE)="NA",$D30=0),"NA",IF($B30="DLSBT",MID($D30,ZanjaInicioBT,ZanjaFinBT-ZanjaInicioBT+1)*1,MID($D30,ZanjaInicio,ZanjaFin-ZanjaInicio+1)*1)) -> NA | U30: 1 | V30: =IF(OR(VLOOKUP($B30,Formulacion!$A:$BE,MATCH(V$1,Formulacion!$1:$1,0),FALSE)="NA",$D30=0),"NA",MID($D30,m2Inicio+INDIRECT(B30),m2Fin-m2Inicio+1)*1) -> NA | W30: =IF(OR(VLOOKUP($B30,Formulacion!$A:$BE,MATCH(W$1,Formulacion!$1:$1,0),FALSE)="NA",$D30=0),"NA",RIGHT($D30,4)*1) -> NA | X30: =IF(OR(VLOOKUP($B30,Formulacion!$A:$BE,MATCH(X$1,Formulacion!$1:$1,0),FALSE)="NA",$D30=0),"NA",RIGHT($D30,3)*1) -> NA | Y30: 1 | Z30: =IF(VLOOKUP($B30,Formulacion!$A:$BE,MATCH(Z$1,Formulacion!$1:$1,0),FALSE)="NA",1,IF(V30<=m2Min,0,1)) -> 1 | AA30: =IF(VLOOKUP($B30,Formulacion!$A:$BE,MATCH(AA$1,Formulacion!$1:$1,0),FALSE)="NA",1,IF(OR(E30<=FechaMin,E30>FechaMax),0,1)) -> 1 | AB30: =IF(VLOOKUP($B30,Formulacion!$A:$BE,MATCH(AB$1,Formulacion!$1:$1,0),FALSE)="NA",1,IF(H30<=MaterialesMin,0,1)) -> 1 | AC30: =IF(VLOOKUP($B30,Formulacion!$A:$BE,MATCH(AC$1,Formulacion!$1:$1,0),FALSE)="NA",1,IF(N30=0,0,IF(OR(I30/N30<=MObraMin,I30/N30>=MObraMax),MDOmin,1))) -> 1 | AD30: =IF(VLOOKUP($B30,Formulacion!$A:$BE,MATCH(AD$1,Formulacion!$1:$1,0),FALSE)="NA",1,IF(N30<=CostoTotalMin,0,1)) -> 1 | AE30: =IF(VLOOKUP($B30,Formulacion!$A:$BE,MATCH(AE$1,Formulacion!$1:$1,0),FALSE)="NA",1,IF(Q30<=PostesMin,0,1)) -> 0 | AF30: =IF(VLOOKUP($B30,Formulacion!$A:$BE,MATCH(AF$1,Formulacion!$1:$1,0),FALSE)="NA",1,IF(R30<=INDIRECT(VLOOKUP(B30,Formulacion!$A:$BE,2,FALSE)),0,1)) -> 0 | AG30: 0 | AH30: 0 | AJ30: =IF(VLOOKUP($B30,Formulacion!$A:$BE,MATCH(AJ$1,Formulacion!$1:$1,0),FALSE)="NA","NA",HLOOKUP(VLOOKUP($B30,Formulacion!$A:$BE,MATCH(AJ$1,Formulacion!$1:$1,0),FALSE),$Q:$Z,ROW(AJ30),FALSE)) -> SP | AK30: =IF(VLOOKUP($B30,Formulacion!$A:$BE,MATCH(AK$1,Formulacion!$1:$1,0),FALSE)="NA",1,VLOOKUP($B30,Formulacion!$A:$BE,MATCH(AK$1,Formulacion!$1:$1,0),FALSE)) -> 30 | AL30: =IF(VLOOKUP($B30,Formulacion!$A:$BE,MATCH(AL$1,Formulacion!$1:$1,0),FALSE)="NA",1,VLOOKUP($B30,Formulacion!$A:$BE,MATCH(AL$1,Formulacion!$1:$1,0),FALSE)) -> 0.3 | AM30: NC | AN30: =IF(VLOOKUP($B30,Formulacion!$A:$BE,MATCH(AN$1,Formulacion!$1:$1,0),FALSE)="NA","NA",IF(D30=0,"",VLOOKUP($B30,Formulacion!$A:$BE,MATCH(AN$1,Formulacion!$1:$1,0),FALSE))) -> 0206170220032403 | AO30: LABTM1 | AP30: HO | AQ30: 3AL | AR30: 4/0 | AV30: =IF(VLOOKUP($B30,Formulacion!$A:$BE,MATCH(AV$1,Formulacion!$1:$1,0),FALSE)="NA","NA",VLOOKUP(CONCATENATE(AO30,AP30,AQ30,AR30,AS30,AT30,AU30),ValoresReferenciales!$A:$D,4,FALSE)) -> 19.10885391 | AW30: =IF(VLOOKUP($B30,Formulacion!$A:$BE,MATCH(AW$1,Formulacion!$1:$1,0),FALSE)="NA","NA",HLOOKUP(VLOOKUP($B30,Formulacion!$A:$BE,MATCH(AW$1,Formulacion!$1:$1,0),FALSE),$Q:$Z,ROW(AW30),FALSE)) -> 4 | AX30: 50.5875 | AY30: 1 | AZ30: =IF(VLOOKUP($B30,Formulacion!$A:$BE,MATCH(AZ$1,Formulacion!$1:$1,0),FALSE)="NA",1,VLOOKUP($B30,Formulacion!$A:$BE,MATCH(AZ$1,Formulacion!$1:$1,0),FALSE)) -> 1 | BA30: =IF(VLOOKUP($B30,Formulacion!$A:$BE,MATCH(BA$1,Formulacion!$1:$1,0),FALSE)="NA",1,VLOOKUP($B30,Formulacion!$A:$BE,MATCH(BA$1,Formulacion!$1:$1,0),FALSE)) -> 1 | BB30: 0 | BC30: 202.35
A31: CC-01-AD-2010-EDECHI.xls | B31: DLABT | C31: 301012009070263 | D31: DLABTM100017P001HOC3ALA1/0 | E31: 2010-02-18 | F31: VOLCAN | G31: 17 | H31: 147.11 | I31: 91.18 | J31: 0 | K31: 186.71 | L31: 0 | M31: 0 | N31: 425 | O31: 54 | P31: 0 | Q31: =IF(OR(VLOOKUP($B31,Formulacion!$A:$BE,MATCH(Q$1,Formulacion!$1:$1,0),FALSE)="NA",$D31=0),"NA",IF($B31="DLABT",MID($D31,PosteInicioBT,PosteFinBT-PosteInicioBT+1)*1,MID($D31,PosteInicio,PosteFin-PosteInicio+1)*1)) -> 1 | R31: =IF(OR(VLOOKUP($B31,Formulacion!$A:$BE,MATCH(R$1,Formulacion!$1:$1,0),FALSE)="NA",$D31=0),"NA",IF(OR($B31="DLABT",$B31="DLSBT"),MID($D31,CondInicioBT,CondFinBT-CondInicioBT+1)*1,MID($D31,CondInicio,CondFin-CondInicio+1)*1)) -> 17 | S31: 17 | T31: =IF(OR(VLOOKUP($B31,Formulacion!$A:$BE,MATCH(T$1,Formulacion!$1:$1,0),FALSE)="NA",$D31=0),"NA",IF($B31="DLSBT",MID($D31,ZanjaInicioBT,ZanjaFinBT-ZanjaInicioBT+1)*1,MID($D31,ZanjaInicio,ZanjaFin-ZanjaInicio+1)*1)) -> NA | U31: 1 | V31: =IF(OR(VLOOKUP($B31,Formulacion!$A:$BE,MATCH(V$1,Formulacion!$1:$1,0),FALSE)="NA",$D31=0),"NA",MID($D31,m2Inicio+INDIRECT(B31),m2Fin-m2Inicio+1)*1) -> NA | W31: =IF(OR(VLOOKUP($B31,Formulacion!$A:$BE,MATCH(W$1,Formulacion!$1:$1,0),FALSE)="NA",$D31=0),"NA",RIGHT($D31,4)*1) -> NA | X31: =IF(OR(VLOOKUP($B31,Formulacion!$A:$BE,MATCH(X$1,Formulacion!$1:$1,0),FALSE)="NA",$D31=0),"NA",RIGHT($D31,3)*1) -> NA | Y31: 1 | Z31: =IF(VLOOKUP($B31,Formulacion!$A:$BE,MATCH(Z$1,Formulacion!$1:$1,0),FALSE)="NA",1,IF(V31<=m2Min,0,1)) -> 1 | AA31: =IF(VLOOKUP($B31,Formulacion!$A:$BE,MATCH(AA$1,Formulacion!$1:$1,0),FALSE)="NA",1,IF(OR(E31<=FechaMin,E31>FechaMax),0,1)) -> 1 | AB31: =IF(VLOOKUP($B31,Formulacion!$A:$BE,MATCH(AB$1,Formulacion!$1:$1,0),FALSE)="NA",1,IF(H31<=MaterialesMin,0,1)) -> 1 | AC31: =IF(VLOOKUP($B31,Formulacion!$A:$BE,MATCH(AC$1,Formulacion!$1:$1,0),FALSE)="NA",1,IF(N31=0,0,IF(OR(I31/N31<=MObraMin,I31/N31>=MObraMax),MDOmin,1))) -> 1 | AD31: =IF(VLOOKUP($B31,Formulacion!$A:$BE,MATCH(AD$1,Formulacion!$1:$1,0),FALSE)="NA",1,IF(N31<=CostoTotalMin,0,1)) -> 1 | AE31: =IF(VLOOKUP($B31,Formulacion!$A:$BE,MATCH(AE$1,Formulacion!$1:$1,0),FALSE)="NA",1,IF(Q31<=PostesMin,0,1)) -> 0 | AF31: =IF(VLOOKUP($B31,Formulacion!$A:$BE,MATCH(AF$1,Formulacion!$1:$1,0),FALSE)="NA",1,IF(R31<=INDIRECT(VLOOKUP(B31,Formulacion!$A:$BE,2,FALSE)),0,1)) -> 0 | AG31: 0 | AH31: 0 | AJ31: =IF(VLOOKUP($B31,Formulacion!$A:$BE,MATCH(AJ$1,Formulacion!$1:$1,0),FALSE)="NA","NA",HLOOKUP(VLOOKUP($B31,Formulacion!$A:$BE,MATCH(AJ$1,Formulacion!$1:$1,0),FALSE),$Q:$Z,ROW(AJ31),FALSE)) -> 17 | AK31: =IF(VLOOKUP($B31,Formulacion!$A:$BE,MATCH(AK$1,Formulacion!$1:$1,0),FALSE)="NA",1,VLOOKUP($B31,Formulacion!$A:$BE,MATCH(AK$1,Formulacion!$1:$1,0),FALSE)) -> 30 | AL31: =IF(VLOOKUP($B31,Formulacion!$A:$BE,MATCH(AL$1,Formulacion!$1:$1,0),FALSE)="NA",1,VLOOKUP($B31,Formulacion!$A:$BE,MATCH(AL$1,Formulacion!$1:$1,0),FALSE)) -> 0.3 | AM31: CU | AN31: =IF(VLOOKUP($B31,Formulacion!$A:$BE,MATCH(AN$1,Formulacion!$1:$1,0),FALSE)="NA","NA",IF(D31=0,"",VLOOKUP($B31,Formulacion!$A:$BE,MATCH(AN$1,Formulacion!$1:$1,0),FALSE))) -> 0206170220032403 | AO31: LABTM1 | AP31: HO | AQ31: 3AL | AR31: 1/0 | AV31: =IF(VLOOKUP($B31,Formulacion!$A:$BE,MATCH(AV$1,Formulacion!$1:$1,0),FALSE)="NA","NA",VLOOKUP(CONCATENATE(AO31,AP31,AQ31,AR31,AS31,AT31,AU31),ValoresReferenciales!$A:$D,4,FALSE)) -> 17.37168537 | AW31: =IF(VLOOKUP($B31,Formulacion!$A:$BE,MATCH(AW$1,Formulacion!$1:$1,0),FALSE)="NA","NA",HLOOKUP(VLOOKUP($B31,Formulacion!$A:$BE,MATCH(AW$1,Formulacion!$1:$1,0),FALSE),$Q:$Z,ROW(AW31),FALSE)) -> 17 | AX31: 25 | AY31: 0.6948674149 | AZ31: =IF(VLOOKUP($B31,Formulacion!$A:$BE,MATCH(AZ$1,Formulacion!$1:$1,0),FALSE)="NA",1,VLOOKUP($B31,Formulacion!$A:$BE,MATCH(AZ$1,Formulacion!$1:$1,0),FALSE)) -> 1 | BA31: =IF(VLOOKUP($B31,Formulacion!$A:$BE,MATCH(BA$1,Formulacion!$1:$1,0),FALSE)="NA",1,VLOOKUP($B31,Formulacion!$A:$BE,MATCH(BA$1,Formulacion!$1:$1,0),FALSE)) -> 1 | BB31: 0 | BC31: 425
A32: CC-01-AD-2010-EDECHI.xls | B32: DLABT | C32: 301012009070625 | D32: DLABTM100000P000HOC3ALA006 | E32: 2010-02-09 | F32: LA ISLETA | G32: 0 | H32: 98.59 | I32: 32.52 | J32: 0 | K32: 16.54 | L32: 0 | M32: 0 | N32: 147.65 | O32: 903 | P32: 0 | Q32: =IF(OR(VLOOKUP($B32,Formulacion!$A:$BE,MATCH(Q$1,Formulacion!$1:$1,0),FALSE)="NA",$D32=0),"NA",IF($B32="DLABT",MID($D32,PosteInicioBT,PosteFinBT-PosteInicioBT+1)*1,MID($D32,PosteInicio,PosteFin-PosteInicio+1)*1)) -> 0 | R32: =IF(OR(VLOOKUP($B32,Formulacion!$A:$BE,MATCH(R$1,Formulacion!$1:$1,0),FALSE)="NA",$D32=0),"NA",IF(OR($B32="DLABT",$B32="DLSBT"),MID($D32,CondInicioBT,CondFinBT-CondInicioBT+1)*1,MID($D32,CondInicio,CondFin-CondInicio+1)*1)) -> 0 | S32: SP | T32: =IF(OR(VLOOKUP($B32,Formulacion!$A:$BE,MATCH(T$1,Formulacion!$1:$1,0),FALSE)="NA",$D32=0),"NA",IF($B32="DLSBT",MID($D32,ZanjaInicioBT,ZanjaFinBT-ZanjaInicioBT+1)*1,MID($D32,ZanjaInicio,ZanjaFin-ZanjaInicio+1)*1)) -> NA | U32: 1 | V32: =IF(OR(VLOOKUP($B32,Formulacion!$A:$BE,MATCH(V$1,Formulacion!$1:$1,0),FALSE)="NA",$D32=0),"NA",MID($D32,m2Inicio+INDIRECT(B32),m2Fin-m2Inicio+1)*1) -> NA | W32: =IF(OR(VLOOKUP($B32,Formulacion!$A:$BE,MATCH(W$1,Formulacion!$1:$1,0),FALSE)="NA",$D32=0),"NA",RIGHT($D32,4)*1) -> NA | X32: =IF(OR(VLOOKUP($B32,Formulacion!$A:$BE,MATCH(X$1,Formulacion!$1:$1,0),FALSE)="NA",$D32=0),"NA",RIGHT($D32,3)*1) -> NA | Y32: 1 | Z32: =IF(VLOOKUP($B32,Formulacion!$A:$BE,MATCH(Z$1,Formulacion!$1:$1,0),FALSE)="NA",1,IF(V32<=m2Min,0,1)) -> 1 | AA32: =IF(VLOOKUP($B32,Formulacion!$A:$BE,MATCH(AA$1,Formulacion!$1:$1,0),FALSE)="NA",1,IF(OR(E32<=FechaMin,E32>FechaMax),0,1)) -> 1 | AB32: =IF(VLOOKUP($B32,Formulacion!$A:$BE,MATCH(AB$1,Formulacion!$1:$1,0),FALSE)="NA",1,IF(H32<=MaterialesMin,0,1)) -> 1 | AC32: =IF(VLOOKUP($B32,Formulacion!$A:$BE,MATCH(AC$1,Formulacion!$1:$1,0),FALSE)="NA",1,IF(N32=0,0,IF(OR(I32/N32<=MObraMin,I32/N32>=MObraMax),MDOmin,1))) -> 1 | AD32: =IF(VLOOKUP($B32,Formulacion!$A:$BE,MATCH(AD$1,Formulacion!$1:$1,0),FALSE)="NA",1,IF(N32<=CostoTotalMin,0,1)) -> 1 | AE32: =IF(VLOOKUP($B32,Formulacion!$A:$BE,MATCH(AE$1,Formulacion!$1:$1,0),FALSE)="NA",1,IF(Q32<=PostesMin,0,1)) -> 0 | AF32: =IF(VLOOKUP($B32,Formulacion!$A:$BE,MATCH(AF$1,Formulacion!$1:$1,0),FALSE)="NA",1,IF(R32<=INDIRECT(VLOOKUP(B32,Formulacion!$A:$BE,2,FALSE)),0,1)) -> 0 | AG32: 0 | AH32: 0 | AJ32: =IF(VLOOKUP($B32,Formulacion!$A:$BE,MATCH(AJ$1,Formulacion!$1:$1,0),FALSE)="NA","NA",HLOOKUP(VLOOKUP($B32,Formulacion!$A:$BE,MATCH(AJ$1,Formulacion!$1:$1,0),FALSE),$Q:$Z,ROW(AJ32),FALSE)) -> SP | AK32: =IF(VLOOKUP($B32,Formulacion!$A:$BE,MATCH(AK$1,Formulacion!$1:$1,0),FALSE)="NA",1,VLOOKUP($B32,Formulacion!$A:$BE,MATCH(AK$1,Formulacion!$1:$1,0),FALSE)) -> 30 | AL32: =IF(VLOOKUP($B32,Formulacion!$A:$BE,MATCH(AL$1,Formulacion!$1:$1,0),FALSE)="NA",1,VLOOKUP($B32,Formulacion!$A:$BE,MATCH(AL$1,Formulacion!$1:$1,0),FALSE)) -> 0.3 | AM32: NC | AN32: =IF(VLOOKUP($B32,Formulacion!$A:$BE,MATCH(AN$1,Formulacion!$1:$1,0),FALSE)="NA","NA",IF(D32=0,"",VLOOKUP($B32,Formulacion!$A:$BE,MATCH(AN$1,Formulacion!$1:$1,0),FALSE))) -> 0206170220032403 | AO32: LABTM1 | AP32: HO | AQ32: 3AL | AR32: 006 | AV32: =IF(VLOOKUP($B32,Formulacion!$A:$BE,MATCH(AV$1,Formulacion!$1:$1,0),FALSE)="NA","NA",VLOOKUP(CONCATENATE(AO32,AP32,AQ32,AR32,AS32,AT32,AU32),ValoresReferenciales!$A:$D,4,FALSE)) -> 14.76593257 | AW32: =IF(VLOOKUP($B32,Formulacion!$A:$BE,MATCH(AW$1,Formulacion!$1:$1,0),FALSE)="NA","NA",HLOOKUP(VLOOKUP($B32,Formulacion!$A:$BE,MATCH(AW$1,Formulacion!$1:$1,0),FALSE),$Q:$Z,ROW(AW32),FALSE)) -> 0 | AX32: 0 | AY32: 1 | AZ32: =IF(VLOOKUP($B32,Formulacion!$A:$BE,MATCH(AZ$1,Formulacion!$1:$1,0),FALSE)="NA",1,VLOOKUP($B32,Formulacion!$A:$BE,MATCH(AZ$1,Formulacion!$1:$1,0),FALSE)) -> 1 | BA32: =IF(VLOOKUP($B32,Formulacion!$A:$BE,MATCH(BA$1,Formulacion!$1:$1,0),FALSE)="NA",1,VLOOKUP($B32,Formulacion!$A:$BE,MATCH(BA$1,Formulacion!$1:$1,0),FALSE)) -> 1 | BB32: 0 | BC32: 147.65
A33: CC-01-AD-2010-EDECHI.xls | B33: DLABT | C33: 301012009070625 | D33: DLABTM100102P002HOC3ALA1/0 | E33: 2010-02-09 | F33: LA ISLETA | G33: 102 | H33: 1544.57 | I33: 509.6 | J33: 0 | K33: 259.06 | L33: 0 | M33: 0 | N33: 2313.23 | O33: 904 | P33: 0 | Q33: =IF(OR(VLOOKUP($B33,Formulacion!$A:$BE,MATCH(Q$1,Formulacion!$1:$1,0),FALSE)="NA",$D33=0),"NA",IF($B33="DLABT",MID($D33,PosteInicioBT,PosteFinBT-PosteInicioBT+1)*1,MID($D33,PosteInicio,PosteFin-PosteInicio+1)*1)) -> 2 | R33: =IF(OR(VLOOKUP($B33,Formulacion!$A:$BE,MATCH(R$1,Formulacion!$1:$1,0),FALSE)="NA",$D33=0),"NA",IF(OR($B33="DLABT",$B33="DLSBT"),MID($D33,CondInicioBT,CondFinBT-CondInicioBT+1)*1,MID($D33,CondInicio,CondFin-CondInicio+1)*1)) -> 102 | S33: 51 | T33: =IF(OR(VLOOKUP($B33,Formulacion!$A:$BE,MATCH(T$1,Formulacion!$1:$1,0),FALSE)="NA",$D33=0),"NA",IF($B33="DLSBT",MID($D33,ZanjaInicioBT,ZanjaFinBT-ZanjaInicioBT+1)*1,MID($D33,ZanjaInicio,ZanjaFin-ZanjaInicio+1)*1)) -> NA | U33: 1 | V33: =IF(OR(VLOOKUP($B33,Formulacion!$A:$BE,MATCH(V$1,Formulacion!$1:$1,0),FALSE)="NA",$D33=0),"NA",MID($D33,m2Inicio+INDIRECT(B33),m2Fin-m2Inicio+1)*1) -> NA | W33: =IF(OR(VLOOKUP($B33,Formulacion!$A:$BE,MATCH(W$1,Formulacion!$1:$1,0),FALSE)="NA",$D33=0),"NA",RIGHT($D33,4)*1) -> NA | X33: =IF(OR(VLOOKUP($B33,Formulacion!$A:$BE,MATCH(X$1,Formulacion!$1:$1,0),FALSE)="NA",$D33=0),"NA",RIGHT($D33,3)*1) -> NA | Y33: 1 | Z33: =IF(VLOOKUP($B33,Formulacion!$A:$BE,MATCH(Z$1,Formulacion!$1:$1,0),FALSE)="NA",1,IF(V33<=m2Min,0,1)) -> 1 | AA33: =IF(VLOOKUP($B33,Formulacion!$A:$BE,MATCH(AA$1,Formulacion!$1:$1,0),FALSE)="NA",1,IF(OR(E33<=FechaMin,E33>FechaMax),0,1)) -> 1 | AB33: =IF(VLOOKUP($B33,Formulacion!$A:$BE,MATCH(AB$1,Formulacion!$1:$1,0),FALSE)="NA",1,IF(H33<=MaterialesMin,0,1)) -> 1 | AC33: =IF(VLOOKUP($B33,Formulacion!$A:$BE,MATCH(AC$1,Formulacion!$1:$1,0),FALSE)="NA",1,IF(N33=0,0,IF(OR(I33/N33<=MObraMin,I33/N33>=MObraMax),MDOmin,1))) -> 1 | AD33: =IF(VLOOKUP($B33,Formulacion!$A:$BE,MATCH(AD$1,Formulacion!$1:$1,0),FALSE)="NA",1,IF(N33<=CostoTotalMin,0,1)) -> 1 | AE33: =IF(VLOOKUP($B33,Formulacion!$A:$BE,MATCH(AE$1,Formulacion!$1:$1,0),FALSE)="NA",1,IF(Q33<=PostesMin,0,1)) -> 0 | AF33: =IF(VLOOKUP($B33,Formulacion!$A:$BE,MATCH(AF$1,Formulacion!$1:$1,0),FALSE)="NA",1,IF(R33<=INDIRECT(VLOOKUP(B33,Formulacion!$A:$BE,2,FALSE)),0,1)) -> 1 | AG33: 1 | AH33: 2313.23 | AJ33: =IF(VLOOKUP($B33,Formulacion!$A:$BE,MATCH(AJ$1,Formulacion!$1:$1,0),FALSE)="NA","NA",HLOOKUP(VLOOKUP($B33,Formulacion!$A:$BE,MATCH(AJ$1,Formulacion!$1:$1,0),FALSE),$Q:$Z,ROW(AJ33),FALSE)) -> 51 | AK33: =IF(VLOOKUP($B33,Formulacion!$A:$BE,MATCH(AK$1,Formulacion!$1:$1,0),FALSE)="NA",1,VLOOKUP($B33,Formulacion!$A:$BE,MATCH(AK$1,Formulacion!$1:$1,0),FALSE)) -> 30 | AL33: =IF(VLOOKUP($B33,Formulacion!$A:$BE,MATCH(AL$1,Formulacion!$1:$1,0),FALSE)="NA",1,VLOOKUP($B33,Formulacion!$A:$BE,MATCH(AL$1,Formulacion!$1:$1,0),FALSE)) -> 0.3 | AM33: NC | AN33: =IF(VLOOKUP($B33,Formulacion!$A:$BE,MATCH(AN$1,Formulacion!$1:$1,0),FALSE)="NA","NA",IF(D33=0,"",VLOOKUP($B33,Formulacion!$A:$BE,MATCH(AN$1,Formulacion!$1:$1,0),FALSE))) -> 0206170220032403 | AO33: LABTM1 | AP33: HO | AQ33: 3AL | AR33: 1/0 | AV33: =IF(VLOOKUP($B33,Formulacion!$A:$BE,MATCH(AV$1,Formulacion!$1:$1,0),FALSE)="NA","NA",VLOOKUP(CONCATENATE(AO33,AP33,AQ33,AR33,AS33,AT33,AU33),ValoresReferenciales!$A:$D,4,FALSE)) -> 17.37168537 | AW33: =IF(VLOOKUP($B33,Formulacion!$A:$BE,MATCH(AW$1,Formulacion!$1:$1,0),FALSE)="NA","NA",HLOOKUP(VLOOKUP($B33,Formulacion!$A:$BE,MATCH(AW$1,Formulacion!$1:$1,0),FALSE),$Q:$Z,ROW(AW33),FALSE)) -> 102 | AX33: 22.67872549 | AY33: 1 | AZ33: =IF(VLOOKUP($B33,Formulacion!$A:$BE,MATCH(AZ$1,Formulacion!$1:$1,0),FALSE)="NA",1,VLOOKUP($B33,Formulacion!$A:$BE,MATCH(AZ$1,Formulacion!$1:$1,0),FALSE)) -> 1 | BA33: =IF(VLOOKUP($B33,Formulacion!$A:$BE,MATCH(BA$1,Formulacion!$1:$1,0),FALSE)="NA",1,VLOOKUP($B33,Formulacion!$A:$BE,MATCH(BA$1,Formulacion!$1:$1,0),FALSE)) -> 1 | BB33: 2313.23 | BC33: 2313.23
A34: CC-01-AD-2010-EDECHI.xls | B34: DLABT | C34: 301012009080099 | D34: DLABTM100002P001HOC2ALA006 | E34: 2010-01-29 | F34: VARITAL (P) | G34: 2 | H34: 55.79 | I34: 307.3 | J34: 0 | K34: 0 | L34: 0 | M34: 0 | N34: 363.09 | O34: 788 | P34: 0 | Q34: =IF(OR(VLOOKUP($B34,Formulacion!$A:$BE,MATCH(Q$1,Formulacion!$1:$1,0),FALSE)="NA",$D34=0),"NA",IF($B34="DLABT",MID($D34,PosteInicioBT,PosteFinBT-PosteInicioBT+1)*1,MID($D34,PosteInicio,PosteFin-PosteInicio+1)*1)) -> 1 | R34: =IF(OR(VLOOKUP($B34,Formulacion!$A:$BE,MATCH(R$1,Formulacion!$1:$1,0),FALSE)="NA",$D34=0),"NA",IF(OR($B34="DLABT",$B34="DLSBT"),MID($D34,CondInicioBT,CondFinBT-CondInicioBT+1)*1,MID($D34,CondInicio,CondFin-CondInicio+1)*1)) -> 2 | S34: 2 | T34: =IF(OR(VLOOKUP($B34,Formulacion!$A:$BE,MATCH(T$1,Formulacion!$1:$1,0),FALSE)="NA",$D34=0),"NA",IF($B34="DLSBT",MID($D34,ZanjaInicioBT,ZanjaFinBT-ZanjaInicioBT+1)*1,MID($D34,ZanjaInicio,ZanjaFin-ZanjaInicio+1)*1)) -> NA | U34: 1 | V34: =IF(OR(VLOOKUP($B34,Formulacion!$A:$BE,MATCH(V$1,Formulacion!$1:$1,0),FALSE)="NA",$D34=0),"NA",MID($D34,m2Inicio+INDIRECT(B34),m2Fin-m2Inicio+1)*1) -> NA | W34: =IF(OR(VLOOKUP($B34,Formulacion!$A:$BE,MATCH(W$1,Formulacion!$1:$1,0),FALSE)="NA",$D34=0),"NA",RIGHT($D34,4)*1) -> NA | X34: =IF(OR(VLOOKUP($B34,Formulacion!$A:$BE,MATCH(X$1,Formulacion!$1:$1,0),FALSE)="NA",$D34=0),"NA",RIGHT($D34,3)*1) -> NA | Y34: 1 | Z34: =IF(VLOOKUP($B34,Formulacion!$A:$BE,MATCH(Z$1,Formulacion!$1:$1,0),FALSE)="NA",1,IF(V34<=m2Min,0,1)) -> 1 | AA34: =IF(VLOOKUP($B34,Formulacion!$A:$BE,MATCH(AA$1,Formulacion!$1:$1,0),FALSE)="NA",1,IF(OR(E34<=FechaMin,E34>FechaMax),0,1)) -> 1 | AB34: =IF(VLOOKUP($B34,Formulacion!$A:$BE,MATCH(AB$1,Formulacion!$1:$1,0),FALSE)="NA",1,IF(H34<=MaterialesMin,0,1)) -> 1 | AC34: =IF(VLOOKUP($B34,Formulacion!$A:$BE,MATCH(AC$1,Formulacion!$1:$1,0),FALSE)="NA",1,IF(N34=0,0,IF(OR(I34/N34<=MObraMin,I34/N34>=MObraMax),MDOmin,1))) -> 1 | AD34: =IF(VLOOKUP($B34,Formulacion!$A:$BE,MATCH(AD$1,Formulacion!$1:$1,0),FALSE)="NA",1,IF(N34<=CostoTotalMin,0,1)) -> 1 | AE34: =IF(VLOOKUP($B34,Formulacion!$A:$BE,MATCH(AE$1,Formulacion!$1:$1,0),FALSE)="NA",1,IF(Q34<=PostesMin,0,1)) -> 0 | AF34: =IF(VLOOKUP($B34,Formulacion!$A:$BE,MATCH(AF$1,Formulacion!$1:$1,0),FALSE)="NA",1,IF(R34<=INDIRECT(VLOOKUP(B34,Formulacion!$A:$BE,2,FALSE)),0,1)) -> 0 | AG34: 0 | AH34: 0 | AJ34: =IF(VLOOKUP($B34,Formulacion!$A:$BE,MATCH(AJ$1,Formulacion!$1:$1,0),FALSE)="NA","NA",HLOOKUP(VLOOKUP($B34,Formulacion!$A:$BE,MATCH(AJ$1,Formulacion!$1:$1,0),FALSE),$Q:$Z,ROW(AJ34),FALSE)) -> 2 | AK34: =IF(VLOOKUP($B34,Formulacion!$A:$BE,MATCH(AK$1,Formulacion!$1:$1,0),FALSE)="NA",1,VLOOKUP($B34,Formulacion!$A:$BE,MATCH(AK$1,Formulacion!$1:$1,0),FALSE)) -> 30 | AL34: =IF(VLOOKUP($B34,Formulacion!$A:$BE,MATCH(AL$1,Formulacion!$1:$1,0),FALSE)="NA",1,VLOOKUP($B34,Formulacion!$A:$BE,MATCH(AL$1,Formulacion!$1:$1,0),FALSE)) -> 0.3 | AM34: CU | AN34: =IF(VLOOKUP($B34,Formulacion!$A:$BE,MATCH(AN$1,Formulacion!$1:$1,0),FALSE)="NA","NA",IF(D34=0,"",VLOOKUP($B34,Formulacion!$A:$BE,MATCH(AN$1,Formulacion!$1:$1,0),FALSE))) -> 0206170220032403 | AO34: LABTM1 | AP34: HO | AQ34: 2AL | AR34: 006 | AV34: =IF(VLOOKUP($B34,Formulacion!$A:$BE,MATCH(AV$1,Formulacion!$1:$1,0),FALSE)="NA","NA",VLOOKUP(CONCATENATE(AO34,AP34,AQ34,AR34,AS34,AT34,AU34),ValoresReferenciales!$A:$D,4,FALSE)) -> 18.09655661 | AW34: =IF(VLOOKUP($B34,Formulacion!$A:$BE,MATCH(AW$1,Formulacion!$1:$1,0),FALSE)="NA","NA",HLOOKUP(VLOOKUP($B34,Formulacion!$A:$BE,MATCH(AW$1,Formulacion!$1:$1,0),FALSE),$Q:$Z,ROW(AW34),FALSE)) -> 2 | AX34: 181.545 | AY34: =IF(OR(AX34="NA",AM34="NC"),1,IF(AX34<AV34,1,AV34/AX34)) -> 0.09968083178 | AZ34: =IF(VLOOKUP($B34,Formulacion!$A:$BE,MATCH(AZ$1,Formulacion!$1:$1,0),FALSE)="NA",1,VLOOKUP($B34,Formulacion!$A:$BE,MATCH(AZ$1,Formulacion!$1:$1,0),FALSE)) -> 1 | BA34: =IF(VLOOKUP($B34,Formulacion!$A:$BE,MATCH(BA$1,Formulacion!$1:$1,0),FALSE)="NA",1,VLOOKUP($B34,Formulacion!$A:$BE,MATCH(BA$1,Formulacion!$1:$1,0),FALSE)) -> 1 | BB34: =AH34*AY34*AZ34*BA34 -> 0 | BC34: 363.09
A35: CC-01-AD-2010-EDECHI.xls | B35: DLABT | C35: 301012009080150 | D35: DLABTM100014P000HOC3ALA006 | E35: 2010-02-06 | F35: BAJO CHIRIQUI-B | G35: 14 | H35: 300.52 | I35: 191.6 | J35: 0 | K35: 99.22 | L35: 0 | M35: 0 | N35: 591.34 | O35: 485 | P35: 0 | Q35: =IF(OR(VLOOKUP($B35,Formulacion!$A:$BE,MATCH(Q$1,Formulacion!$1:$1,0),FALSE)="NA",$D35=0),"NA",IF($B35="DLABT",MID($D35,PosteInicioBT,PosteFinBT-PosteInicioBT+1)*1,MID($D35,PosteInicio,PosteFin-PosteInicio+1)*1)) -> 0 | R35: =IF(OR(VLOOKUP($B35,Formulacion!$A:$BE,MATCH(R$1,Formulacion!$1:$1,0),FALSE)="NA",$D35=0),"NA",IF(OR($B35="DLABT",$B35="DLSBT"),MID($D35,CondInicioBT,CondFinBT-CondInicioBT+1)*1,MID($D35,CondInicio,CondFin-CondInicio+1)*1)) -> 14 | S35: SP | T35: =IF(OR(VLOOKUP($B35,Formulacion!$A:$BE,MATCH(T$1,Formulacion!$1:$1,0),FALSE)="NA",$D35=0),"NA",IF($B35="DLSBT",MID($D35,ZanjaInicioBT,ZanjaFinBT-ZanjaInicioBT+1)*1,MID($D35,ZanjaInicio,ZanjaFin-ZanjaInicio+1)*1)) -> NA | U35: 1 | V35: =IF(OR(VLOOKUP($B35,Formulacion!$A:$BE,MATCH(V$1,Formulacion!$1:$1,0),FALSE)="NA",$D35=0),"NA",MID($D35,m2Inicio+INDIRECT(B35),m2Fin-m2Inicio+1)*1) -> NA | W35: =IF(OR(VLOOKUP($B35,Formulacion!$A:$BE,MATCH(W$1,Formulacion!$1:$1,0),FALSE)="NA",$D35=0),"NA",RIGHT($D35,4)*1) -> NA | X35: =IF(OR(VLOOKUP($B35,Formulacion!$A:$BE,MATCH(X$1,Formulacion!$1:$1,0),FALSE)="NA",$D35=0),"NA",RIGHT($D35,3)*1) -> NA | Y35: 1 | Z35: =IF(VLOOKUP($B35,Formulacion!$A:$BE,MATCH(Z$1,Formulacion!$1:$1,0),FALSE)="NA",1,IF(V35<=m2Min,0,1)) -> 1 | AA35: =IF(VLOOKUP($B35,Formulacion!$A:$BE,MATCH(AA$1,Formulacion!$1:$1,0),FALSE)="NA",1,IF(OR(E35<=FechaMin,E35>FechaMax),0,1)) -> 1 | AB35: =IF(VLOOKUP($B35,Formulacion!$A:$BE,MATCH(AB$1,Formulacion!$1:$1,0),FALSE)="NA",1,IF(H35<=MaterialesMin,0,1)) -> 1 | AC35: =IF(VLOOKUP($B35,Formulacion!$A:$BE,MATCH(AC$1,Formulacion!$1:$1,0),FALSE)="NA",1,IF(N35=0,0,IF(OR(I35/N35<=MObraMin,I35/N35>=MObraMax),MDOmin,1))) -> 1 | AD35: =IF(VLOOKUP($B35,Formulacion!$A:$BE,MATCH(AD$1,Formulacion!$1:$1,0),FALSE)="NA",1,IF(N35<=CostoTotalMin,0,1)) -> 1 | AE35: =IF(VLOOKUP($B35,Formulacion!$A:$BE,MATCH(AE$1,Formulacion!$1:$1,0),FALSE)="NA",1,IF(Q35<=PostesMin,0,1)) -> 0 | AF35: =IF(VLOOKUP($B35,Formulacion!$A:$BE,MATCH(AF$1,Formulacion!$1:$1,0),FALSE)="NA",1,IF(R35<=INDIRECT(VLOOKUP(B35,Formulacion!$A:$BE,2,FALSE)),0,1)) -> 0 | AG35: 0 | AH35: 0 | AJ35: =IF(VLOOKUP($B35,Formulacion!$A:$BE,MATCH(AJ$1,Formulacion!$1:$1,0),FALSE)="NA","NA",HLOOKUP(VLOOKUP($B35,Formulacion!$A:$BE,MATCH(AJ$1,Formulacion!$1:$1,0),FALSE),$Q:$Z,ROW(AJ35),FALSE)) -> SP | AK35: =IF(VLOOKUP($B35,Formulacion!$A:$BE,MATCH(AK$1,Formulacion!$1:$1,0),FALSE)="NA",1,VLOOKUP($B35,Formulacion!$A:$BE,MATCH(AK$1,Formulacion!$1:$1,0),FALSE)) -> 30 | AL35: =IF(VLOOKUP($B35,Formulacion!$A:$BE,MATCH(AL$1,Formulacion!$1:$1,0),FALSE)="NA",1,VLOOKUP($B35,Formulacion!$A:$BE,MATCH(AL$1,Formulacion!$1:$1,0),FALSE)) -> 0.3 | AM35: NC | AN35: =IF(VLOOKUP($B35,Formulacion!$A:$BE,MATCH(AN$1,Formulacion!$1:$1,0),FALSE)="NA","NA",IF(D35=0,"",VLOOKUP($B35,Formulacion!$A:$BE,MATCH(AN$1,Formulacion!$1:$1,0),FALSE))) -> 0206170220032403 | AO35: LABTM1 | AP35: HO | AQ35: 3AL | AR35: 006 | AV35: =IF(VLOOKUP($B35,Formulacion!$A:$BE,MATCH(AV$1,Formulacion!$1:$1,0),FALSE)="NA","NA",VLOOKUP(CONCATENATE(AO35,AP35,AQ35,AR35,AS35,AT35,AU35),ValoresReferenciales!$A:$D,4,FALSE)) -> 14.76593257 | AW35: =IF(VLOOKUP($B35,Formulacion!$A:$BE,MATCH(AW$1,Formulacion!$1:$1,0),FALSE)="NA","NA",HLOOKUP(VLOOKUP($B35,Formulacion!$A:$BE,MATCH(AW$1,Formulacion!$1:$1,0),FALSE),$Q:$Z,ROW(AW35),FALSE)) -> 14 | AX35: 42.23857143 | AY35: 1 | AZ35: =IF(VLOOKUP($B35,Formulacion!$A:$BE,MATCH(AZ$1,Formulacion!$1:$1,0),FALSE)="NA",1,VLOOKUP($B35,Formulacion!$A:$BE,MATCH(AZ$1,Formulacion!$1:$1,0),FALSE)) -> 1 | BA35: =IF(VLOOKUP($B35,Formulacion!$A:$BE,MATCH(BA$1,Formulacion!$1:$1,0),FALSE)="NA",1,VLOOKUP($B35,Formulacion!$A:$BE,MATCH(BA$1,Formulacion!$1:$1,0),FALSE)) -> 1 | BB35: 0 | BC35: 591.34
A36: CC-01-AD-2010-EDECHI.xls | B36: DLABT | C36: 301012009080150 | D36: DLABTM100050P001HOC3ALA1/0 | E36: 2010-02-06 | F36: BAJO CHIRIQUI-B | G36: 50 | H36: 566.7 | I36: 361.32 | J36: 0 | K36: 187.11 | L36: 0 | M36: 0 | N36: 1115.13 | O36: 486 | P36: 0 | Q36: =IF(OR(VLOOKUP($B36,Formulacion!$A:$BE,MATCH(Q$1,Formulacion!$1:$1,0),FALSE)="NA",$D36=0),"NA",IF($B36="DLABT",MID($D36,PosteInicioBT,PosteFinBT-PosteInicioBT+1)*1,MID($D36,PosteInicio,PosteFin-PosteInicio+1)*1)) -> 1 | R36: =IF(OR(VLOOKUP($B36,Formulacion!$A:$BE,MATCH(R$1,Formulacion!$1:$1,0),FALSE)="NA",$D36=0),"NA",IF(OR($B36="DLABT",$B36="DLSBT"),MID($D36,CondInicioBT,CondFinBT-CondInicioBT+1)*1,MID($D36,CondInicio,CondFin-CondInicio+1)*1)) -> 50 | S36: 50 | T36: =IF(OR(VLOOKUP($B36,Formulacion!$A:$BE,MATCH(T$1,Formulacion!$1:$1,0),FALSE)="NA",$D36=0),"NA",IF($B36="DLSBT",MID($D36,ZanjaInicioBT,ZanjaFinBT-ZanjaInicioBT+1)*1,MID($D36,ZanjaInicio,ZanjaFin-ZanjaInicio+1)*1)) -> NA | U36: 1 | V36: =IF(OR(VLOOKUP($B36,Formulacion!$A:$BE,MATCH(V$1,Formulacion!$1:$1,0),FALSE)="NA",$D36=0),"NA",MID($D36,m2Inicio+INDIRECT(B36),m2Fin-m2Inicio+1)*1) -> NA | W36: =IF(OR(VLOOKUP($B36,Formulacion!$A:$BE,MATCH(W$1,Formulacion!$1:$1,0),FALSE)="NA",$D36=0),"NA",RIGHT($D36,4)*1) -> NA | X36: =IF(OR(VLOOKUP($B36,Formulacion!$A:$BE,MATCH(X$1,Formulacion!$1:$1,0),FALSE)="NA",$D36=0),"NA",RIGHT($D36,3)*1) -> NA | Y36: 1 | Z36: =IF(VLOOKUP($B36,Formulacion!$A:$BE,MATCH(Z$1,Formulacion!$1:$1,0),FALSE)="NA",1,IF(V36<=m2Min,0,1)) -> 1 | AA36: =IF(VLOOKUP($B36,Formulacion!$A:$BE,MATCH(AA$1,Formulacion!$1:$1,0),FALSE)="NA",1,IF(OR(E36<=FechaMin,E36>FechaMax),0,1)) -> 1 | AB36: =IF(VLOOKUP($B36,Formulacion!$A:$BE,MATCH(AB$1,Formulacion!$1:$1,0),FALSE)="NA",1,IF(H36<=MaterialesMin,0,1)) -> 1 | AC36: =IF(VLOOKUP($B36,Formulacion!$A:$BE,MATCH(AC$1,Formulacion!$1:$1,0),FALSE)="NA",1,IF(N36=0,0,IF(OR(I36/N36<=MObraMin,I36/N36>=MObraMax),MDOmin,1))) -> 1 | AD36: =IF(VLOOKUP($B36,Formulacion!$A:$BE,MATCH(AD$1,Formulacion!$1:$1,0),FALSE)="NA",1,IF(N36<=CostoTotalMin,0,1)) -> 1 | AE36: =IF(VLOOKUP($B36,Formulacion!$A:$BE,MATCH(AE$1,Formulacion!$1:$1,0),FALSE)="NA",1,IF(Q36<=PostesMin,0,1)) -> 0 | AF36: =IF(VLOOKUP($B36,Formulacion!$A:$BE,MATCH(AF$1,Formulacion!$1:$1,0),FALSE)="NA",1,IF(R36<=INDIRECT(VLOOKUP(B36,Formulacion!$A:$BE,2,FALSE)),0,1)) -> 0 | AG36: 0 | AH36: 0 | AJ36: =IF(VLOOKUP($B36,Formulacion!$A:$BE,MATCH(AJ$1,Formulacion!$1:$1,0),FALSE)="NA","NA",HLOOKUP(VLOOKUP($B36,Formulacion!$A:$BE,MATCH(AJ$1,Formulacion!$1:$1,0),FALSE),$Q:$Z,ROW(AJ36),FALSE)) -> 50 | AK36: =IF(VLOOKUP($B36,Formulacion!$A:$BE,MATCH(AK$1,Formulacion!$1:$1,0),FALSE)="NA",1,VLOOKUP($B36,Formulacion!$A:$BE,MATCH(AK$1,Formulacion!$1:$1,0),FALSE)) -> 30 | AL36: =IF(VLOOKUP($B36,Formulacion!$A:$BE,MATCH(AL$1,Formulacion!$1:$1,0),FALSE)="NA",1,VLOOKUP($B36,Formulacion!$A:$BE,MATCH(AL$1,Formulacion!$1:$1,0),FALSE)) -> 0.3 | AM36: NC | AN36: =IF(VLOOKUP($B36,Formulacion!$A:$BE,MATCH(AN$1,Formulacion!$1:$1,0),FALSE)="NA","NA",IF(D36=0,"",VLOOKUP($B36,Formulacion!$A:$BE,MATCH(AN$1,Formulacion!$1:$1,0),FALSE))) -> 0206170220032403 | AO36: LABTM1 | AP36: HO | AQ36: 3AL | AR36: 1/0 | AV36: =IF(VLOOKUP($B36,Formulacion!$A:$BE,MATCH(AV$1,Formulacion!$1:$1,0),FALSE)="NA","NA",VLOOKUP(CONCATENATE(AO36,AP36,AQ36,AR36,AS36,AT36,AU36),ValoresReferenciales!$A:$D,4,FALSE)) -> 17.37168537 | AW36: =IF(VLOOKUP($B36,Formulacion!$A:$BE,MATCH(AW$1,Formulacion!$1:$1,0),FALSE)="NA","NA",HLOOKUP(VLOOKUP($B36,Formulacion!$A:$BE,MATCH(AW$1,Formulacion!$1:$1,0),FALSE),$Q:$Z,ROW(AW36),FALSE)) -> 50 | AX36: 22.3026 | AY36: 1 | AZ36: =IF(VLOOKUP($B36,Formulacion!$A:$BE,MATCH(AZ$1,Formulacion!$1:$1,0),FALSE)="NA",1,VLOOKUP($B36,Formulacion!$A:$BE,MATCH(AZ$1,Formulacion!$1:$1,0),FALSE)) -> 1 | BA36: =IF(VLOOKUP($B36,Formulacion!$A:$BE,MATCH(BA$1,Formulacion!$1:$1,0),FALSE)="NA",1,VLOOKUP($B36,Formulacion!$A:$BE,MATCH(BA$1,Formulacion!$1:$1,0),FALSE)) -> 1 | BB36: 0 | BC36: 1115.13
A37: CC-01-AD-2010-EDECHI.xls | B37: DLABT | C37: 301012009080168 | D37: DLABTM100000P000HOC3ALA006 | E37: 2010-04-01 | F37: PLAZA DE CAISAN | G37: 0 | H37: 89.9 | I37: 31.86 | J37: 0 | K37: 11.77 | L37: 0 | M37: 0 | N37: 133.53 | O37: 769 | P37: 0 | Q37: =IF(OR(VLOOKUP($B37,Formulacion!$A:$BE,MATCH(Q$1,Formulacion!$1:$1,0),FALSE)="NA",$D37=0),"NA",IF($B37="DLABT",MID($D37,PosteInicioBT,PosteFinBT-PosteInicioBT+1)*1,MID($D37,PosteInicio,PosteFin-PosteInicio+1)*1)) -> 0 | R37: =IF(OR(VLOOKUP($B37,Formulacion!$A:$BE,MATCH(R$1,Formulacion!$1:$1,0),FALSE)="NA",$D37=0),"NA",IF(OR($B37="DLABT",$B37="DLSBT"),MID($D37,CondInicioBT,CondFinBT-CondInicioBT+1)*1,MID($D37,CondInicio,CondFin-CondInicio+1)*1)) -> 0 | S37: SP | T37: =IF(OR(VLOOKUP($B37,Formulacion!$A:$BE,MATCH(T$1,Formulacion!$1:$1,0),FALSE)="NA",$D37=0),"NA",IF($B37="DLSBT",MID($D37,ZanjaInicioBT,ZanjaFinBT-ZanjaInicioBT+1)*1,MID($D37,ZanjaInicio,ZanjaFin-ZanjaInicio+1)*1)) -> NA | U37: 1 | V37: =IF(OR(VLOOKUP($B37,Formulacion!$A:$BE,MATCH(V$1,Formulacion!$1:$1,0),FALSE)="NA",$D37=0),"NA",MID($D37,m2Inicio+INDIRECT(B37),m2Fin-m2Inicio+1)*1) -> NA | W37: =IF(OR(VLOOKUP($B37,Formulacion!$A:$BE,MATCH(W$1,Formulacion!$1:$1,0),FALSE)="NA",$D37=0),"NA",RIGHT($D37,4)*1) -> NA | X37: =IF(OR(VLOOKUP($B37,Formulacion!$A:$BE,MATCH(X$1,Formulacion!$1:$1,0),FALSE)="NA",$D37=0),"NA",RIGHT($D37,3)*1) -> NA | Y37: 1 | Z37: =IF(VLOOKUP($B37,Formulacion!$A:$BE,MATCH(Z$1,Formulacion!$1:$1,0),FALSE)="NA",1,IF(V37<=m2Min,0,1)) -> 1 | AA37: =IF(VLOOKUP($B37,Formulacion!$A:$BE,MATCH(AA$1,Formulacion!$1:$1,0),FALSE)="NA",1,IF(OR(E37<=FechaMin,E37>FechaMax),0,1)) -> 1 | AB37: =IF(VLOOKUP($B37,Formulacion!$A:$BE,MATCH(AB$1,Formulacion!$1:$1,0),FALSE)="NA",1,IF(H37<=MaterialesMin,0,1)) -> 1 | AC37: =IF(VLOOKUP($B37,Formulacion!$A:$BE,MATCH(AC$1,Formulacion!$1:$1,0),FALSE)="NA",1,IF(N37=0,0,IF(OR(I37/N37<=MObraMin,I37/N37>=MObraMax),MDOmin,1))) -> 1 | AD37: =IF(VLOOKUP($B37,Formulacion!$A:$BE,MATCH(AD$1,Formulacion!$1:$1,0),FALSE)="NA",1,IF(N37<=CostoTotalMin,0,1)) -> 1 | AE37: =IF(VLOOKUP($B37,Formulacion!$A:$BE,MATCH(AE$1,Formulacion!$1:$1,0),FALSE)="NA",1,IF(Q37<=PostesMin,0,1)) -> 0 | AF37: =IF(VLOOKUP($B37,Formulacion!$A:$BE,MATCH(AF$1,Formulacion!$1:$1,0),FALSE)="NA",1,IF(R37<=INDIRECT(VLOOKUP(B37,Formulacion!$A:$BE,2,FALSE)),0,1)) -> 0 | AG37: 0 | AH37: 0 | AJ37: =IF(VLOOKUP($B37,Formulacion!$A:$BE,MATCH(AJ$1,Formulacion!$1:$1,0),FALSE)="NA","NA",HLOOKUP(VLOOKUP($B37,Formulacion!$A:$BE,MATCH(AJ$1,Formulacion!$1:$1,0),FALSE),$Q:$Z,ROW(AJ37),FALSE)) -> SP | AK37: =IF(VLOOKUP($B37,Formulacion!$A:$BE,MATCH(AK$1,Formulacion!$1:$1,0),FALSE)="NA",1,VLOOKUP($B37,Formulacion!$A:$BE,MATCH(AK$1,Formulacion!$1:$1,0),FALSE)) -> 30 | AL37: =IF(VLOOKUP($B37,Formulacion!$A:$BE,MATCH(AL$1,Formulacion!$1:$1,0),FALSE)="NA",1,VLOOKUP($B37,Formulacion!$A:$BE,MATCH(AL$1,Formulacion!$1:$1,0),FALSE)) -> 0.3 | AM37: NC | AN37: =IF(VLOOKUP($B37,Formulacion!$A:$BE,MATCH(AN$1,Formulacion!$1:$1,0),FALSE)="NA","NA",IF(D37=0,"",VLOOKUP($B37,Formulacion!$A:$BE,MATCH(AN$1,Formulacion!$1:$1,0),FALSE))) -> 0206170220032403 | AO37: LABTM1 | AP37: HO | AQ37: 3AL | AR37: 006 | AV37: =IF(VLOOKUP($B37,Formulacion!$A:$BE,MATCH(AV$1,Formulacion!$1:$1,0),FALSE)="NA","NA",VLOOKUP(CONCATENATE(AO37,AP37,AQ37,AR37,AS37,AT37,AU37),ValoresReferenciales!$A:$D,4,FALSE)) -> 14.76593257 | AW37: =IF(VLOOKUP($B37,Formulacion!$A:$BE,MATCH(AW$1,Formulacion!$1:$1,0),FALSE)="NA","NA",HLOOKUP(VLOOKUP($B37,Formulacion!$A:$BE,MATCH(AW$1,Formulacion!$1:$1,0),FALSE),$Q:$Z,ROW(AW37),FALSE)) -> 0 | AX37: 0 | AY37: 1 | AZ37: =IF(VLOOKUP($B37,Formulacion!$A:$BE,MATCH(AZ$1,Formulacion!$1:$1,0),FALSE)="NA",1,VLOOKUP($B37,Formulacion!$A:$BE,MATCH(AZ$1,Formulacion!$1:$1,0),FALSE)) -> 1 | BA37: =IF(VLOOKUP($B37,Formulacion!$A:$BE,MATCH(BA$1,Formulacion!$1:$1,0),FALSE)="NA",1,VLOOKUP($B37,Formulacion!$A:$BE,MATCH(BA$1,Formulacion!$1:$1,0),FALSE)) -> 1 | BB37: 0 | BC37: 133.53
A38: CC-01-AD-2010-EDECHI.xls | B38: DLABT | C38: 301012009080168 | D38: DLABTM100283P004HOC3ALA002 | E38: 2010-04-01 | F38: PLAZA DE CAISAN | G38: 283 | H38: 2301.68 | I38: 815.67 | J38: 0 | K38: 301.41 | L38: 0 | M38: 0 | N38: 3418.76 | O38: 768 | P38: 0 | Q38: =IF(OR(VLOOKUP($B38,Formulacion!$A:$BE,MATCH(Q$1,Formulacion!$1:$1,0),FALSE)="NA",$D38=0),"NA",IF($B38="DLABT",MID($D38,PosteInicioBT,PosteFinBT-PosteInicioBT+1)*1,MID($D38,PosteInicio,PosteFin-PosteInicio+1)*1)) -> 4 | R38: =IF(OR(VLOOKUP($B38,Formulacion!$A:$BE,MATCH(R$1,Formulacion!$1:$1,0),FALSE)="NA",$D38=0),"NA",IF(OR($B38="DLABT",$B38="DLSBT"),MID($D38,CondInicioBT,CondFinBT-CondInicioBT+1)*1,MID($D38,CondInicio,CondFin-CondInicio+1)*1)) -> 283 | S38: 70.75 | T38: =IF(OR(VLOOKUP($B38,Formulacion!$A:$BE,MATCH(T$1,Formulacion!$1:$1,0),FALSE)="NA",$D38=0),"NA",IF($B38="DLSBT",MID($D38,ZanjaInicioBT,ZanjaFinBT-ZanjaInicioBT+1)*1,MID($D38,ZanjaInicio,ZanjaFin-ZanjaInicio+1)*1)) -> NA | U38: 1 | V38: =IF(OR(VLOOKUP($B38,Formulacion!$A:$BE,MATCH(V$1,Formulacion!$1:$1,0),FALSE)="NA",$D38=0),"NA",MID($D38,m2Inicio+INDIRECT(B38),m2Fin-m2Inicio+1)*1) -> NA | W38: =IF(OR(VLOOKUP($B38,Formulacion!$A:$BE,MATCH(W$1,Formulacion!$1:$1,0),FALSE)="NA",$D38=0),"NA",RIGHT($D38,4)*1) -> NA | X38: =IF(OR(VLOOKUP($B38,Formulacion!$A:$BE,MATCH(X$1,Formulacion!$1:$1,0),FALSE)="NA",$D38=0),"NA",RIGHT($D38,3)*1) -> NA | Y38: 1 | Z38: =IF(VLOOKUP($B38,Formulacion!$A:$BE,MATCH(Z$1,Formulacion!$1:$1,0),FALSE)="NA",1,IF(V38<=m2Min,0,1)) -> 1 | AA38: =IF(VLOOKUP($B38,Formulacion!$A:$BE,MATCH(AA$1,Formulacion!$1:$1,0),FALSE)="NA",1,IF(OR(E38<=FechaMin,E38>FechaMax),0,1)) -> 1 | AB38: =IF(VLOOKUP($B38,Formulacion!$A:$BE,MATCH(AB$1,Formulacion!$1:$1,0),FALSE)="NA",1,IF(H38<=MaterialesMin,0,1)) -> 1 | AC38: =IF(VLOOKUP($B38,Formulacion!$A:$BE,MATCH(AC$1,Formulacion!$1:$1,0),FALSE)="NA",1,IF(N38=0,0,IF(OR(I38/N38<=MObraMin,I38/N38>=MObraMax),MDOmin,1))) -> 1 | AD38: =IF(VLOOKUP($B38,Formulacion!$A:$BE,MATCH(AD$1,Formulacion!$1:$1,0),FALSE)="NA",1,IF(N38<=CostoTotalMin,0,1)) -> 1 | AE38: =IF(VLOOKUP($B38,Formulacion!$A:$BE,MATCH(AE$1,Formulacion!$1:$1,0),FALSE)="NA",1,IF(Q38<=PostesMin,0,1)) -> 1 | AF38: =IF(VLOOKUP($B38,Formulacion!$A:$BE,MATCH(AF$1,Formulacion!$1:$1,0),FALSE)="NA",1,IF(R38<=INDIRECT(VLOOKUP(B38,Formulacion!$A:$BE,2,FALSE)),0,1)) -> 1 | AG38: 1 | AH38: 3418.76 | AJ38: =IF(VLOOKUP($B38,Formulacion!$A:$BE,MATCH(AJ$1,Formulacion!$1:$1,0),FALSE)="NA","NA",HLOOKUP(VLOOKUP($B38,Formulacion!$A:$BE,MATCH(AJ$1,Formulacion!$1:$1,0),FALSE),$Q:$Z,ROW(AJ38),FALSE)) -> 70.75 | AK38: =IF(VLOOKUP($B38,Formulacion!$A:$BE,MATCH(AK$1,Formulacion!$1:$1,0),FALSE)="NA",1,VLOOKUP($B38,Formulacion!$A:$BE,MATCH(AK$1,Formulacion!$1:$1,0),FALSE)) -> 30 | AL38: =IF(VLOOKUP($B38,Formulacion!$A:$BE,MATCH(AL$1,Formulacion!$1:$1,0),FALSE)="NA",1,VLOOKUP($B38,Formulacion!$A:$BE,MATCH(AL$1,Formulacion!$1:$1,0),FALSE)) -> 0.3 | AM38: NC | AN38: =IF(VLOOKUP($B38,Formulacion!$A:$BE,MATCH(AN$1,Formulacion!$1:$1,0),FALSE)="NA","NA",IF(D38=0,"",VLOOKUP($B38,Formulacion!$A:$BE,MATCH(AN$1,Formulacion!$1:$1,0),FALSE))) -> 0206170220032403 | AO38: LABTM1 | AP38: HO | AQ38: 3AL | AR38: 002 | AV38: =IF(VLOOKUP($B38,Formulacion!$A:$BE,MATCH(AV$1,Formulacion!$1:$1,0),FALSE)="NA","NA",VLOOKUP(CONCATENATE(AO38,AP38,AQ38,AR38,AS38,AT38,AU38),ValoresReferenciales!$A:$D,4,FALSE)) -> 15.63451684 | AW38: =IF(VLOOKUP($B38,Formulacion!$A:$BE,MATCH(AW$1,Formulacion!$1:$1,0),FALSE)="NA","NA",HLOOKUP(VLOOKUP($B38,Formulacion!$A:$BE,MATCH(AW$1,Formulacion!$1:$1,0),FALSE),$Q:$Z,ROW(AW38),FALSE)) -> 283 | AX38: 12.08042403 | AY38: 1 | AZ38: =IF(VLOOKUP($B38,Formulacion!$A:$BE,MATCH(AZ$1,Formulacion!$1:$1,0),FALSE)="NA",1,VLOOKUP($B38,Formulacion!$A:$BE,MATCH(AZ$1,Formulacion!$1:$1,0),FALSE)) -> 1 | BA38: =IF(VLOOKUP($B38,Formulacion!$A:$BE,MATCH(BA$1,Formulacion!$1:$1,0),FALSE)="NA",1,VLOOKUP($B38,Formulacion!$A:$BE,MATCH(BA$1,Formulacion!$1:$1,0),FALSE)) -> 1 | BB38: 3418.76 | BC38: 3418.76
A39: CC-01-AD-2010-EDECHI.xls | B39: DLABT | C39: 301012009080308 | D39: DLABTM100041P001HOC3ALA006 | E39: 2010-02-23 | F39: ALTO QUIEL | G39: 41 | H39: 376.36 | I39: 194.47 | J39: 0 | K39: 75.17 | L39: 0 | M39: 0 | N39: 646 | O39: 318 | P39: 0 | Q39: =IF(OR(VLOOKUP($B39,Formulacion!$A:$BE,MATCH(Q$1,Formulacion!$1:$1,0),FALSE)="NA",$D39=0),"NA",IF($B39="DLABT",MID($D39,PosteInicioBT,PosteFinBT-PosteInicioBT+1)*1,MID($D39,PosteInicio,PosteFin-PosteInicio+1)*1)) -> 1 | R39: =IF(OR(VLOOKUP($B39,Formulacion!$A:$BE,MATCH(R$1,Formulacion!$1:$1,0),FALSE)="NA",$D39=0),"NA",IF(OR($B39="DLABT",$B39="DLSBT"),MID($D39,CondInicioBT,CondFinBT-CondInicioBT+1)*1,MID($D39,CondInicio,CondFin-CondInicio+1)*1)) -> 41 | S39: 41 | T39: =IF(OR(VLOOKUP($B39,Formulacion!$A:$BE,MATCH(T$1,Formulacion!$1:$1,0),FALSE)="NA",$D39=0),"NA",IF($B39="DLSBT",MID($D39,ZanjaInicioBT,ZanjaFinBT-ZanjaInicioBT+1)*1,MID($D39,ZanjaInicio,ZanjaFin-ZanjaInicio+1)*1)) -> NA | U39: 1 | V39: =IF(OR(VLOOKUP($B39,Formulacion!$A:$BE,MATCH(V$1,Formulacion!$1:$1,0),FALSE)="NA",$D39=0),"NA",MID($D39,m2Inicio+INDIRECT(B39),m2Fin-m2Inicio+1)*1) -> NA | W39: =IF(OR(VLOOKUP($B39,Formulacion!$A:$BE,MATCH(W$1,Formulacion!$1:$1,0),FALSE)="NA",$D39=0),"NA",RIGHT($D39,4)*1) -> NA | X39: =IF(OR(VLOOKUP($B39,Formulacion!$A:$BE,MATCH(X$1,Formulacion!$1:$1,0),FALSE)="NA",$D39=0),"NA",RIGHT($D39,3)*1) -> NA | Y39: 1 | Z39: =IF(VLOOKUP($B39,Formulacion!$A:$BE,MATCH(Z$1,Formulacion!$1:$1,0),FALSE)="NA",1,IF(V39<=m2Min,0,1)) -> 1 | AA39: =IF(VLOOKUP($B39,Formulacion!$A:$BE,MATCH(AA$1,Formulacion!$1:$1,0),FALSE)="NA",1,IF(OR(E39<=FechaMin,E39>FechaMax),0,1)) -> 1 | AB39: =IF(VLOOKUP($B39,Formulacion!$A:$BE,MATCH(AB$1,Formulacion!$1:$1,0),FALSE)="NA",1,IF(H39<=MaterialesMin,0,1)) -> 1 | AC39: =IF(VLOOKUP($B39,Formulacion!$A:$BE,MATCH(AC$1,Formulacion!$1:$1,0),FALSE)="NA",1,IF(N39=0,0,IF(OR(I39/N39<=MObraMin,I39/N39>=MObraMax),MDOmin,1))) -> 1 | AD39: =IF(VLOOKUP($B39,Formulacion!$A:$BE,MATCH(AD$1,Formulacion!$1:$1,0),FALSE)="NA",1,IF(N39<=CostoTotalMin,0,1)) -> 1 | AE39: =IF(VLOOKUP($B39,Formulacion!$A:$BE,MATCH(AE$1,Formulacion!$1:$1,0),FALSE)="NA",1,IF(Q39<=PostesMin,0,1)) -> 0 | AF39: =IF(VLOOKUP($B39,Formulacion!$A:$BE,MATCH(AF$1,Formulacion!$1:$1,0),FALSE)="NA",1,IF(R39<=INDIRECT(VLOOKUP(B39,Formulacion!$A:$BE,2,FALSE)),0,1)) -> 0 | AG39: 0 | AH39: 0 | AJ39: =IF(VLOOKUP($B39,Formulacion!$A:$BE,MATCH(AJ$1,Formulacion!$1:$1,0),FALSE)="NA","NA",HLOOKUP(VLOOKUP($B39,Formulacion!$A:$BE,MATCH(AJ$1,Formulacion!$1:$1,0),FALSE),$Q:$Z,ROW(AJ39),FALSE)) -> 41 | AK39: =IF(VLOOKUP($B39,Formulacion!$A:$BE,MATCH(AK$1,Formulacion!$1:$1,0),FALSE)="NA",1,VLOOKUP($B39,Formulacion!$A:$BE,MATCH(AK$1,Formulacion!$1:$1,0),FALSE)) -> 30 | AL39: =IF(VLOOKUP($B39,Formulacion!$A:$BE,MATCH(AL$1,Formulacion!$1:$1,0),FALSE)="NA",1,VLOOKUP($B39,Formulacion!$A:$BE,MATCH(AL$1,Formulacion!$1:$1,0),FALSE)) -> 0.3 | AM39: NC | AN39: =IF(VLOOKUP($B39,Formulacion!$A:$BE,MATCH(AN$1,Formulacion!$1:$1,0),FALSE)="NA","NA",IF(D39=0,"",VLOOKUP($B39,Formulacion!$A:$BE,MATCH(AN$1,Formulacion!$1:$1,0),FALSE))) -> 0206170220032403 | AO39: LABTM1 | AP39: HO | AQ39: 3AL | AR39: 006 | AV39: =IF(VLOOKUP($B39,Formulacion!$A:$BE,MATCH(AV$1,Formulacion!$1:$1,0),FALSE)="NA","NA",VLOOKUP(CONCATENATE(AO39,AP39,AQ39,AR39,AS39,AT39,AU39),ValoresReferenciales!$A:$D,4,FALSE)) -> 14.76593257 | AW39: =IF(VLOOKUP($B39,Formulacion!$A:$BE,MATCH(AW$1,Formulacion!$1:$1,0),FALSE)="NA","NA",HLOOKUP(VLOOKUP($B39,Formulacion!$A:$BE,MATCH(AW$1,Formulacion!$1:$1,0),FALSE),$Q:$Z,ROW(AW39),FALSE)) -> 41 | AX39: 15.75609756 | AY39: 1 | AZ39: =IF(VLOOKUP($B39,Formulacion!$A:$BE,MATCH(AZ$1,Formulacion!$1:$1,0),FALSE)="NA",1,VLOOKUP($B39,Formulacion!$A:$BE,MATCH(AZ$1,Formulacion!$1:$1,0),FALSE)) -> 1 | BA39: =IF(VLOOKUP($B39,Formulacion!$A:$BE,MATCH(BA$1,Formulacion!$1:$1,0),FALSE)="NA",1,VLOOKUP($B39,Formulacion!$A:$BE,MATCH(BA$1,Formulacion!$1:$1,0),FALSE)) -> 1 | BB39: 0 | BC39: 646
A40: CC-01-AD-2010-EDECHI.xls | B40: DLABT | C40: 301012009080379 | D40: DLABTM100038P001HOC3ALA002 | E40: 2010-02-23 | F40: BUENOS AIRES | G40: 38 | H40: 128.46 | I40: 46.02 | J40: 0 | K40: 463.55 | L40: 0 | M40: 0 | N40: 638.03 | O40: 205 | P40: 0 | Q40: =IF(OR(VLOOKUP($B40,Formulacion!$A:$BE,MATCH(Q$1,Formulacion!$1:$1,0),FALSE)="NA",$D40=0),"NA",IF($B40="DLABT",MID($D40,PosteInicioBT,PosteFinBT-PosteInicioBT+1)*1,MID($D40,PosteInicio,PosteFin-PosteInicio+1)*1)) -> 1 | R40: =IF(OR(VLOOKUP($B40,Formulacion!$A:$BE,MATCH(R$1,Formulacion!$1:$1,0),FALSE)="NA",$D40=0),"NA",IF(OR($B40="DLABT",$B40="DLSBT"),MID($D40,CondInicioBT,CondFinBT-CondInicioBT+1)*1,MID($D40,CondInicio,CondFin-CondInicio+1)*1)) -> 38 | S40: 38 | T40: =IF(OR(VLOOKUP($B40,Formulacion!$A:$BE,MATCH(T$1,Formulacion!$1:$1,0),FALSE)="NA",$D40=0),"NA",IF($B40="DLSBT",MID($D40,ZanjaInicioBT,ZanjaFinBT-ZanjaInicioBT+1)*1,MID($D40,ZanjaInicio,ZanjaFin-ZanjaInicio+1)*1)) -> NA | U40: 1 | V40: =IF(OR(VLOOKUP($B40,Formulacion!$A:$BE,MATCH(V$1,Formulacion!$1:$1,0),FALSE)="NA",$D40=0),"NA",MID($D40,m2Inicio+INDIRECT(B40),m2Fin-m2Inicio+1)*1) -> NA | W40: =IF(OR(VLOOKUP($B40,Formulacion!$A:$BE,MATCH(W$1,Formulacion!$1:$1,0),FALSE)="NA",$D40=0),"NA",RIGHT($D40,4)*1) -> NA | X40: =IF(OR(VLOOKUP($B40,Formulacion!$A:$BE,MATCH(X$1,Formulacion!$1:$1,0),FALSE)="NA",$D40=0),"NA",RIGHT($D40,3)*1) -> NA | Y40: 1 | Z40: =IF(VLOOKUP($B40,Formulacion!$A:$BE,MATCH(Z$1,Formulacion!$1:$1,0),FALSE)="NA",1,IF(V40<=m2Min,0,1)) -> 1 | AA40: =IF(VLOOKUP($B40,Formulacion!$A:$BE,MATCH(AA$1,Formulacion!$1:$1,0),FALSE)="NA",1,IF(OR(E40<=FechaMin,E40>FechaMax),0,1)) -> 1 | AB40: =IF(VLOOKUP($B40,Formulacion!$A:$BE,MATCH(AB$1,Formulacion!$1:$1,0),FALSE)="NA",1,IF(H40<=MaterialesMin,0,1)) -> 1 | AC40: =IF(VLOOKUP($B40,Formulacion!$A:$BE,MATCH(AC$1,Formulacion!$1:$1,0),FALSE)="NA",1,IF(N40=0,0,IF(OR(I40/N40<=MObraMin,I40/N40>=MObraMax),MDOmin,1))) -> 1 | AD40: =IF(VLOOKUP($B40,Formulacion!$A:$BE,MATCH(AD$1,Formulacion!$1:$1,0),FALSE)="NA",1,IF(N40<=CostoTotalMin,0,1)) -> 1 | AE40: =IF(VLOOKUP($B40,Formulacion!$A:$BE,MATCH(AE$1,Formulacion!$1:$1,0),FALSE)="NA",1,IF(Q40<=PostesMin,0,1)) -> 0 | AF40: =IF(VLOOKUP($B40,Formulacion!$A:$BE,MATCH(AF$1,Formulacion!$1:$1,0),FALSE)="NA",1,IF(R40<=INDIRECT(VLOOKUP(B40,Formulacion!$A:$BE,2,FALSE)),0,1)) -> 0 | AG40: 0 | AH40: 0 | AJ40: =IF(VLOOKUP($B40,Formulacion!$A:$BE,MATCH(AJ$1,Formulacion!$1:$1,0),FALSE)="NA","NA",HLOOKUP(VLOOKUP($B40,Formulacion!$A:$BE,MATCH(AJ$1,Formulacion!$1:$1,0),FALSE),$Q:$Z,ROW(AJ40),FALSE)) -> 38 | AK40: =IF(VLOOKUP($B40,Formulacion!$A:$BE,MATCH(AK$1,Formulacion!$1:$1,0),FALSE)="NA",1,VLOOKUP($B40,Formulacion!$A:$BE,MATCH(AK$1,Formulacion!$1:$1,0),FALSE)) -> 30 | AL40: =IF(VLOOKUP($B40,Formulacion!$A:$BE,MATCH(AL$1,Formulacion!$1:$1,0),FALSE)="NA",1,VLOOKUP($B40,Formulacion!$A:$BE,MATCH(AL$1,Formulacion!$1:$1,0),FALSE)) -> 0.3 | AM40: CU | AN40: =IF(VLOOKUP($B40,Formulacion!$A:$BE,MATCH(AN$1,Formulacion!$1:$1,0),FALSE)="NA","NA",IF(D40=0,"",VLOOKUP($B40,Formulacion!$A:$BE,MATCH(AN$1,Formulacion!$1:$1,0),FALSE))) -> 0206170220032403 | AO40: LABTM1 | AP40: HO | AQ40: 3AL | AR40: 002 | AV40: =IF(VLOOKUP($B40,Formulacion!$A:$BE,MATCH(AV$1,Formulacion!$1:$1,0),FALSE)="NA","NA",VLOOKUP(CONCATENATE(AO40,AP40,AQ40,AR40,AS40,AT40,AU40),ValoresReferenciales!$A:$D,4,FALSE)) -> 15.63451684 | AW40: =IF(VLOOKUP($B40,Formulacion!$A:$BE,MATCH(AW$1,Formulacion!$1:$1,0),FALSE)="NA","NA",HLOOKUP(VLOOKUP($B40,Formulacion!$A:$BE,MATCH(AW$1,Formulacion!$1:$1,0),FALSE),$Q:$Z,ROW(AW40),FALSE)) -> 38 | AX40: 16.79026316 | AY40: 0.9311656814 | AZ40: =IF(VLOOKUP($B40,Formulacion!$A:$BE,MATCH(AZ$1,Formulacion!$1:$1,0),FALSE)="NA",1,VLOOKUP($B40,Formulacion!$A:$BE,MATCH(AZ$1,Formulacion!$1:$1,0),FALSE)) -> 1 | BA40: =IF(VLOOKUP($B40,Formulacion!$A:$BE,MATCH(BA$1,Formulacion!$1:$1,0),FALSE)="NA",1,VLOOKUP($B40,Formulacion!$A:$BE,MATCH(BA$1,Formulacion!$1:$1,0),FALSE)) -> 1 | BB40: 0 | BC40: 638.03
A41: CC-01-AD-2010-EDECHI.xls | B41: DLABT | C41: 301012009080540 | D41: DLABTM100002P000HOC3ALA006 | E41: 2010-01-27 | F41: DAVID (CABECERA | G41: 2 | H41: 124.61 | I41: 22.98 | J41: 0 | K41: 0 | L41: 0 | M41: 0 | N41: 147.59 | O41: 735 | P41: 0 | Q41: =IF(OR(VLOOKUP($B41,Formulacion!$A:$BE,MATCH(Q$1,Formulacion!$1:$1,0),FALSE)="NA",$D41=0),"NA",IF($B41="DLABT",MID($D41,PosteInicioBT,PosteFinBT-PosteInicioBT+1)*1,MID($D41,PosteInicio,PosteFin-PosteInicio+1)*1)) -> 0 | R41: =IF(OR(VLOOKUP($B41,Formulacion!$A:$BE,MATCH(R$1,Formulacion!$1:$1,0),FALSE)="NA",$D41=0),"NA",IF(OR($B41="DLABT",$B41="DLSBT"),MID($D41,CondInicioBT,CondFinBT-CondInicioBT+1)*1,MID($D41,CondInicio,CondFin-CondInicio+1)*1)) -> 2 | S41: SP | T41: =IF(OR(VLOOKUP($B41,Formulacion!$A:$BE,MATCH(T$1,Formulacion!$1:$1,0),FALSE)="NA",$D41=0),"NA",IF($B41="DLSBT",MID($D41,ZanjaInicioBT,ZanjaFinBT-ZanjaInicioBT+1)*1,MID($D41,ZanjaInicio,ZanjaFin-ZanjaInicio+1)*1)) -> NA | U41: 1 | V41: =IF(OR(VLOOKUP($B41,Formulacion!$A:$BE,MATCH(V$1,Formulacion!$1:$1,0),FALSE)="NA",$D41=0),"NA",MID($D41,m2Inicio+INDIRECT(B41),m2Fin-m2Inicio+1)*1) -> NA | W41: =IF(OR(VLOOKUP($B41,Formulacion!$A:$BE,MATCH(W$1,Formulacion!$1:$1,0),FALSE)="NA",$D41=0),"NA",RIGHT($D41,4)*1) -> NA | X41: =IF(OR(VLOOKUP($B41,Formulacion!$A:$BE,MATCH(X$1,Formulacion!$1:$1,0),FALSE)="NA",$D41=0),"NA",RIGHT($D41,3)*1) -> NA | Y41: 1 | Z41: =IF(VLOOKUP($B41,Formulacion!$A:$BE,MATCH(Z$1,Formulacion!$1:$1,0),FALSE)="NA",1,IF(V41<=m2Min,0,1)) -> 1 | AA41: =IF(VLOOKUP($B41,Formulacion!$A:$BE,MATCH(AA$1,Formulacion!$1:$1,0),FALSE)="NA",1,IF(OR(E41<=FechaMin,E41>FechaMax),0,1)) -> 1 | AB41: =IF(VLOOKUP($B41,Formulacion!$A:$BE,MATCH(AB$1,Formulacion!$1:$1,0),FALSE)="NA",1,IF(H41<=MaterialesMin,0,1)) -> 1 | AC41: =IF(VLOOKUP($B41,Formulacion!$A:$BE,MATCH(AC$1,Formulacion!$1:$1,0),FALSE)="NA",1,IF(N41=0,0,IF(OR(I41/N41<=MObraMin,I41/N41>=MObraMax),MDOmin,1))) -> 1 | AD41: =IF(VLOOKUP($B41,Formulacion!$A:$BE,MATCH(AD$1,Formulacion!$1:$1,0),FALSE)="NA",1,IF(N41<=CostoTotalMin,0,1)) -> 1 | AE41: =IF(VLOOKUP($B41,Formulacion!$A:$BE,MATCH(AE$1,Formulacion!$1:$1,0),FALSE)="NA",1,IF(Q41<=PostesMin,0,1)) -> 0 | AF41: =IF(VLOOKUP($B41,Formulacion!$A:$BE,MATCH(AF$1,Formulacion!$1:$1,0),FALSE)="NA",1,IF(R41<=INDIRECT(VLOOKUP(B41,Formulacion!$A:$BE,2,FALSE)),0,1)) -> 0 | AG41: 0 | AH41: 0 | AJ41: =IF(VLOOKUP($B41,Formulacion!$A:$BE,MATCH(AJ$1,Formulacion!$1:$1,0),FALSE)="NA","NA",HLOOKUP(VLOOKUP($B41,Formulacion!$A:$BE,MATCH(AJ$1,Formulacion!$1:$1,0),FALSE),$Q:$Z,ROW(AJ41),FALSE)) -> SP | AK41: =IF(VLOOKUP($B41,Formulacion!$A:$BE,MATCH(AK$1,Formulacion!$1:$1,0),FALSE)="NA",1,VLOOKUP($B41,Formulacion!$A:$BE,MATCH(AK$1,Formulacion!$1:$1,0),FALSE)) -> 30 | AL41: =IF(VLOOKUP($B41,Formulacion!$A:$BE,MATCH(AL$1,Formulacion!$1:$1,0),FALSE)="NA",1,VLOOKUP($B41,Formulacion!$A:$BE,MATCH(AL$1,Formulacion!$1:$1,0),FALSE)) -> 0.3 | AM41: NC | AN41: =IF(VLOOKUP($B41,Formulacion!$A:$BE,MATCH(AN$1,Formulacion!$1:$1,0),FALSE)="NA","NA",IF(D41=0,"",VLOOKUP($B41,Formulacion!$A:$BE,MATCH(AN$1,Formulacion!$1:$1,0),FALSE))) -> 0206170220032403 | AO41: LABTM1 | AP41: HO | AQ41: 3AL | AR41: 006 | AV41: =IF(VLOOKUP($B41,Formulacion!$A:$BE,MATCH(AV$1,Formulacion!$1:$1,0),FALSE)="NA","NA",VLOOKUP(CONCATENATE(AO41,AP41,AQ41,AR41,AS41,AT41,AU41),ValoresReferenciales!$A:$D,4,FALSE)) -> 14.76593257 | AW41: =IF(VLOOKUP($B41,Formulacion!$A:$BE,MATCH(AW$1,Formulacion!$1:$1,0),FALSE)="NA","NA",HLOOKUP(VLOOKUP($B41,Formulacion!$A:$BE,MATCH(AW$1,Formulacion!$1:$1,0),FALSE),$Q:$Z,ROW(AW41),FALSE)) -> 2 | AX41: 73.795 | AY41: 1 | AZ41: =IF(VLOOKUP($B41,Formulacion!$A:$BE,MATCH(AZ$1,Formulacion!$1:$1,0),FALSE)="NA",1,VLOOKUP($B41,Formulacion!$A:$BE,MATCH(AZ$1,Formulacion!$1:$1,0),FALSE)) -> 1 | BA41: =IF(VLOOKUP($B41,Formulacion!$A:$BE,MATCH(BA$1,Formulacion!$1:$1,0),FALSE)="NA",1,VLOOKUP($B41,Formulacion!$A:$BE,MATCH(BA$1,Formulacion!$1:$1,0),FALSE)) -> 1 | BB41: 0 | BC41: 147.59
A42: CC-01-AD-2010-EDECHI.xls | B42: DLABT | C42: 301012009080540 | D42: DLABTM100251P001HOC3ALA1/0 | E42: 2010-01-27 | F42: DAVID (CABECERA | G42: 251 | H42: 2378.19 | I42: 438.48 | J42: 0 | K42: 0 | L42: 0 | M42: 0 | N42: 2816.67 | O42: 736 | P42: 0 | Q42: =IF(OR(VLOOKUP($B42,Formulacion!$A:$BE,MATCH(Q$1,Formulacion!$1:$1,0),FALSE)="NA",$D42=0),"NA",IF($B42="DLABT",MID($D42,PosteInicioBT,PosteFinBT-PosteInicioBT+1)*1,MID($D42,PosteInicio,PosteFin-PosteInicio+1)*1)) -> 1 | R42: =IF(OR(VLOOKUP($B42,Formulacion!$A:$BE,MATCH(R$1,Formulacion!$1:$1,0),FALSE)="NA",$D42=0),"NA",IF(OR($B42="DLABT",$B42="DLSBT"),MID($D42,CondInicioBT,CondFinBT-CondInicioBT+1)*1,MID($D42,CondInicio,CondFin-CondInicio+1)*1)) -> 251 | S42: 251 | T42: =IF(OR(VLOOKUP($B42,Formulacion!$A:$BE,MATCH(T$1,Formulacion!$1:$1,0),FALSE)="NA",$D42=0),"NA",IF($B42="DLSBT",MID($D42,ZanjaInicioBT,ZanjaFinBT-ZanjaInicioBT+1)*1,MID($D42,ZanjaInicio,ZanjaFin-ZanjaInicio+1)*1)) -> NA | U42: 1 | V42: =IF(OR(VLOOKUP($B42,Formulacion!$A:$BE,MATCH(V$1,Formulacion!$1:$1,0),FALSE)="NA",$D42=0),"NA",MID($D42,m2Inicio+INDIRECT(B42),m2Fin-m2Inicio+1)*1) -> NA | W42: =IF(OR(VLOOKUP($B42,Formulacion!$A:$BE,MATCH(W$1,Formulacion!$1:$1,0),FALSE)="NA",$D42=0),"NA",RIGHT($D42,4)*1) -> NA | X42: =IF(OR(VLOOKUP($B42,Formulacion!$A:$BE,MATCH(X$1,Formulacion!$1:$1,0),FALSE)="NA",$D42=0),"NA",RIGHT($D42,3)*1) -> NA | Y42: 1 | Z42: =IF(VLOOKUP($B42,Formulacion!$A:$BE,MATCH(Z$1,Formulacion!$1:$1,0),FALSE)="NA",1,IF(V42<=m2Min,0,1)) -> 1 | AA42: =IF(VLOOKUP($B42,Formulacion!$A:$BE,MATCH(AA$1,Formulacion!$1:$1,0),FALSE)="NA",1,IF(OR(E42<=FechaMin,E42>FechaMax),0,1)) -> 1 | AB42: =IF(VLOOKUP($B42,Formulacion!$A:$BE,MATCH(AB$1,Formulacion!$1:$1,0),FALSE)="NA",1,IF(H42<=MaterialesMin,0,1)) -> 1 | AC42: =IF(VLOOKUP($B42,Formulacion!$A:$BE,MATCH(AC$1,Formulacion!$1:$1,0),FALSE)="NA",1,IF(N42=0,0,IF(OR(I42/N42<=MObraMin,I42/N42>=MObraMax),MDOmin,1))) -> 1 | AD42: =IF(VLOOKUP($B42,Formulacion!$A:$BE,MATCH(AD$1,Formulacion!$1:$1,0),FALSE)="NA",1,IF(N42<=CostoTotalMin,0,1)) -> 1 | AE42: =IF(VLOOKUP($B42,Formulacion!$A:$BE,MATCH(AE$1,Formulacion!$1:$1,0),FALSE)="NA",1,IF(Q42<=PostesMin,0,1)) -> 0 | AF42: =IF(VLOOKUP($B42,Formulacion!$A:$BE,MATCH(AF$1,Formulacion!$1:$1,0),FALSE)="NA",1,IF(R42<=INDIRECT(VLOOKUP(B42,Formulacion!$A:$BE,2,FALSE)),0,1)) -> 1 | AG42: 1 | AH42: 2816.67 | AJ42: =IF(VLOOKUP($B42,Formulacion!$A:$BE,MATCH(AJ$1,Formulacion!$1:$1,0),FALSE)="NA","NA",HLOOKUP(VLOOKUP($B42,Formulacion!$A:$BE,MATCH(AJ$1,Formulacion!$1:$1,0),FALSE),$Q:$Z,ROW(AJ42),FALSE)) -> 251 | AK42: =IF(VLOOKUP($B42,Formulacion!$A:$BE,MATCH(AK$1,Formulacion!$1:$1,0),FALSE)="NA",1,VLOOKUP($B42,Formulacion!$A:$BE,MATCH(AK$1,Formulacion!$1:$1,0),FALSE)) -> 30 | AL42: =IF(VLOOKUP($B42,Formulacion!$A:$BE,MATCH(AL$1,Formulacion!$1:$1,0),FALSE)="NA",1,VLOOKUP($B42,Formulacion!$A:$BE,MATCH(AL$1,Formulacion!$1:$1,0),FALSE)) -> 0.3 | AM42: NC | AN42: =IF(VLOOKUP($B42,Formulacion!$A:$BE,MATCH(AN$1,Formulacion!$1:$1,0),FALSE)="NA","NA",IF(D42=0,"",VLOOKUP($B42,Formulacion!$A:$BE,MATCH(AN$1,Formulacion!$1:$1,0),FALSE))) -> 0206170220032403 | AO42: LABTM1 | AP42: HO | AQ42: 3AL | AR42: 1/0 | AV42: =IF(VLOOKUP($B42,Formulacion!$A:$BE,MATCH(AV$1,Formulacion!$1:$1,0),FALSE)="NA","NA",VLOOKUP(CONCATENATE(AO42,AP42,AQ42,AR42,AS42,AT42,AU42),ValoresReferenciales!$A:$D,4,FALSE)) -> 17.37168537 | AW42: =IF(VLOOKUP($B42,Formulacion!$A:$BE,MATCH(AW$1,Formulacion!$1:$1,0),FALSE)="NA","NA",HLOOKUP(VLOOKUP($B42,Formulacion!$A:$BE,MATCH(AW$1,Formulacion!$1:$1,0),FALSE),$Q:$Z,ROW(AW42),FALSE)) -> 251 | AX42: 11.22179283 | AY42: 1 | AZ42: =IF(VLOOKUP($B42,Formulacion!$A:$BE,MATCH(AZ$1,Formulacion!$1:$1,0),FALSE)="NA",1,VLOOKUP($B42,Formulacion!$A:$BE,MATCH(AZ$1,Formulacion!$1:$1,0),FALSE)) -> 1 | BA42: =IF(VLOOKUP($B42,Formulacion!$A:$BE,MATCH(BA$1,Formulacion!$1:$1,0),FALSE)="NA",1,VLOOKUP($B42,Formulacion!$A:$BE,MATCH(BA$1,Formulacion!$1:$1,0),FALSE)) -> 1 | BB42: 2816.67 | BC42: 2816.67
A43: CC-01-AD-2010-EDECHI.xls | B43: DLABT | C43: 301012009080564 | D43: DLABTM100049P001HOC3ALA4/0 | E43: 2010-02-11 | F43: CERRO PUNTA | G43: 49 | H43: 290.95 | I43: 92.06 | J43: 0 | K43: 324.51 | L43: 0 | M43: 0 | N43: 707.52 | O43: 277 | P43: 0 | Q43: =IF(OR(VLOOKUP($B43,Formulacion!$A:$BE,MATCH(Q$1,Formulacion!$1:$1,0),FALSE)="NA",$D43=0),"NA",IF($B43="DLABT",MID($D43,PosteInicioBT,PosteFinBT-PosteInicioBT+1)*1,MID($D43,PosteInicio,PosteFin-PosteInicio+1)*1)) -> 1 | R43: =IF(OR(VLOOKUP($B43,Formulacion!$A:$BE,MATCH(R$1,Formulacion!$1:$1,0),FALSE)="NA",$D43=0),"NA",IF(OR($B43="DLABT",$B43="DLSBT"),MID($D43,CondInicioBT,CondFinBT-CondInicioBT+1)*1,MID($D43,CondInicio,CondFin-CondInicio+1)*1)) -> 49 | S43: 49 | T43: =IF(OR(VLOOKUP($B43,Formulacion!$A:$BE,MATCH(T$1,Formulacion!$1:$1,0),FALSE)="NA",$D43=0),"NA",IF($B43="DLSBT",MID($D43,ZanjaInicioBT,ZanjaFinBT-ZanjaInicioBT+1)*1,MID($D43,ZanjaInicio,ZanjaFin-ZanjaInicio+1)*1)) -> NA | U43: 1 | V43: =IF(OR(VLOOKUP($B43,Formulacion!$A:$BE,MATCH(V$1,Formulacion!$1:$1,0),FALSE)="NA",$D43=0),"NA",MID($D43,m2Inicio+INDIRECT(B43),m2Fin-m2Inicio+1)*1) -> NA | W43: =IF(OR(VLOOKUP($B43,Formulacion!$A:$BE,MATCH(W$1,Formulacion!$1:$1,0),FALSE)="NA",$D43=0),"NA",RIGHT($D43,4)*1) -> NA | X43: =IF(OR(VLOOKUP($B43,Formulacion!$A:$BE,MATCH(X$1,Formulacion!$1:$1,0),FALSE)="NA",$D43=0),"NA",RIGHT($D43,3)*1) -> NA | Y43: 1 | Z43: =IF(VLOOKUP($B43,Formulacion!$A:$BE,MATCH(Z$1,Formulacion!$1:$1,0),FALSE)="NA",1,IF(V43<=m2Min,0,1)) -> 1 | AA43: =IF(VLOOKUP($B43,Formulacion!$A:$BE,MATCH(AA$1,Formulacion!$1:$1,0),FALSE)="NA",1,IF(OR(E43<=FechaMin,E43>FechaMax),0,1)) -> 1 | AB43: =IF(VLOOKUP($B43,Formulacion!$A:$BE,MATCH(AB$1,Formulacion!$1:$1,0),FALSE)="NA",1,IF(H43<=MaterialesMin,0,1)) -> 1 | AC43: =IF(VLOOKUP($B43,Formulacion!$A:$BE,MATCH(AC$1,Formulacion!$1:$1,0),FALSE)="NA",1,IF(N43=0,0,IF(OR(I43/N43<=MObraMin,I43/N43>=MObraMax),MDOmin,1))) -> 1 | AD43: =IF(VLOOKUP($B43,Formulacion!$A:$BE,MATCH(AD$1,Formulacion!$1:$1,0),FALSE)="NA",1,IF(N43<=CostoTotalMin,0,1)) -> 1 | AE43: =IF(VLOOKUP($B43,Formulacion!$A:$BE,MATCH(AE$1,Formulacion!$1:$1,0),FALSE)="NA",1,IF(Q43<=PostesMin,0,1)) -> 0 | AF43: =IF(VLOOKUP($B43,Formulacion!$A:$BE,MATCH(AF$1,Formulacion!$1:$1,0),FALSE)="NA",1,IF(R43<=INDIRECT(VLOOKUP(B43,Formulacion!$A:$BE,2,FALSE)),0,1)) -> 0 | AG43: 0 | AH43: 0 | AJ43: =IF(VLOOKUP($B43,Formulacion!$A:$BE,MATCH(AJ$1,Formulacion!$1:$1,0),FALSE)="NA","NA",HLOOKUP(VLOOKUP($B43,Formulacion!$A:$BE,MATCH(AJ$1,Formulacion!$1:$1,0),FALSE),$Q:$Z,ROW(AJ43),FALSE)) -> 49 | AK43: =IF(VLOOKUP($B43,Formulacion!$A:$BE,MATCH(AK$1,Formulacion!$1:$1,0),FALSE)="NA",1,VLOOKUP($B43,Formulacion!$A:$BE,MATCH(AK$1,Formulacion!$1:$1,0),FALSE)) -> 30 | AL43: =IF(VLOOKUP($B43,Formulacion!$A:$BE,MATCH(AL$1,Formulacion!$1:$1,0),FALSE)="NA",1,VLOOKUP($B43,Formulacion!$A:$BE,MATCH(AL$1,Formulacion!$1:$1,0),FALSE)) -> 0.3 | AM43: NC | AN43: =IF(VLOOKUP($B43,Formulacion!$A:$BE,MATCH(AN$1,Formulacion!$1:$1,0),FALSE)="NA","NA",IF(D43=0,"",VLOOKUP($B43,Formulacion!$A:$BE,MATCH(AN$1,Formulacion!$1:$1,0),FALSE))) -> 0206170220032403 | AO43: LABTM1 | AP43: HO | AQ43: 3AL | AR43: 4/0 | AV43: =IF(VLOOKUP($B43,Formulacion!$A:$BE,MATCH(AV$1,Formulacion!$1:$1,0),FALSE)="NA","NA",VLOOKUP(CONCATENATE(AO43,AP43,AQ43,AR43,AS43,AT43,AU43),ValoresReferenciales!$A:$D,4,FALSE)) -> 19.10885391 | AW43: =IF(VLOOKUP($B43,Formulacion!$A:$BE,MATCH(AW$1,Formulacion!$1:$1,0),FALSE)="NA","NA",HLOOKUP(VLOOKUP($B43,Formulacion!$A:$BE,MATCH(AW$1,Formulacion!$1:$1,0),FALSE),$Q:$Z,ROW(AW43),FALSE)) -> 49 | AX43: 14.43918367 | AY43: 1 | AZ43: =IF(VLOOKUP($B43,Formulacion!$A:$BE,MATCH(AZ$1,Formulacion!$1:$1,0),FALSE)="NA",1,VLOOKUP($B43,Formulacion!$A:$BE,MATCH(AZ$1,Formulacion!$1:$1,0),FALSE)) -> 1 | BA43: =IF(VLOOKUP($B43,Formulacion!$A:$BE,MATCH(BA$1,Formulacion!$1:$1,0),FALSE)="NA",1,VLOOKUP($B43,Formulacion!$A:$BE,MATCH(BA$1,Formulacion!$1:$1,0),FALSE)) -> 1 | BB43: 0 | BC43: 707.52
A44: CC-01-AD-2010-EDECHI.xls | B44: DLABT | C44: 301012009080686 | D44: DLABTM100002P001HOC2ALA006 | E44: 2010-02-17 | F44: PASO CANOA INTE | G44: 2 | H44: 176.68 | I44: 185.98 | J44: 0 | K44: 0 | L44: 0 | M44: 0 | N44: 362.66 | O44: 252 | P44: 0 | Q44: =IF(OR(VLOOKUP($B44,Formulacion!$A:$BE,MATCH(Q$1,Formulacion!$1:$1,0),FALSE)="NA",$D44=0),"NA",IF($B44="DLABT",MID($D44,PosteInicioBT,PosteFinBT-PosteInicioBT+1)*1,MID($D44,PosteInicio,PosteFin-PosteInicio+1)*1)) -> 1 | R44: =IF(OR(VLOOKUP($B44,Formulacion!$A:$BE,MATCH(R$1,Formulacion!$1:$1,0),FALSE)="NA",$D44=0),"NA",IF(OR($B44="DLABT",$B44="DLSBT"),MID($D44,CondInicioBT,CondFinBT-CondInicioBT+1)*1,MID($D44,CondInicio,CondFin-CondInicio+1)*1)) -> 2 | S44: 2 | T44: =IF(OR(VLOOKUP($B44,Formulacion!$A:$BE,MATCH(T$1,Formulacion!$1:$1,0),FALSE)="NA",$D44=0),"NA",IF($B44="DLSBT",MID($D44,ZanjaInicioBT,ZanjaFinBT-ZanjaInicioBT+1)*1,MID($D44,ZanjaInicio,ZanjaFin-ZanjaInicio+1)*1)) -> NA | U44: 1 | V44: =IF(OR(VLOOKUP($B44,Formulacion!$A:$BE,MATCH(V$1,Formulacion!$1:$1,0),FALSE)="NA",$D44=0),"NA",MID($D44,m2Inicio+INDIRECT(B44),m2Fin-m2Inicio+1)*1) -> NA | W44: =IF(OR(VLOOKUP($B44,Formulacion!$A:$BE,MATCH(W$1,Formulacion!$1:$1,0),FALSE)="NA",$D44=0),"NA",RIGHT($D44,4)*1) -> NA | X44: =IF(OR(VLOOKUP($B44,Formulacion!$A:$BE,MATCH(X$1,Formulacion!$1:$1,0),FALSE)="NA",$D44=0),"NA",RIGHT($D44,3)*1) -> NA | Y44: 1 | Z44: =IF(VLOOKUP($B44,Formulacion!$A:$BE,MATCH(Z$1,Formulacion!$1:$1,0),FALSE)="NA",1,IF(V44<=m2Min,0,1)) -> 1 | AA44: =IF(VLOOKUP($B44,Formulacion!$A:$BE,MATCH(AA$1,Formulacion!$1:$1,0),FALSE)="NA",1,IF(OR(E44<=FechaMin,E44>FechaMax),0,1)) -> 1 | AB44: =IF(VLOOKUP($B44,Formulacion!$A:$BE,MATCH(AB$1,Formulacion!$1:$1,0),FALSE)="NA",1,IF(H44<=MaterialesMin,0,1)) -> 1 | AC44: =IF(VLOOKUP($B44,Formulacion!$A:$BE,MATCH(AC$1,Formulacion!$1:$1,0),FALSE)="NA",1,IF(N44=0,0,IF(OR(I44/N44<=MObraMin,I44/N44>=MObraMax),MDOmin,1))) -> 1 | AD44: =IF(VLOOKUP($B44,Formulacion!$A:$BE,MATCH(AD$1,Formulacion!$1:$1,0),FALSE)="NA",1,IF(N44<=CostoTotalMin,0,1)) -> 1 | AE44: =IF(VLOOKUP($B44,Formulacion!$A:$BE,MATCH(AE$1,Formulacion!$1:$1,0),FALSE)="NA",1,IF(Q44<=PostesMin,0,1)) -> 0 | AF44: =IF(VLOOKUP($B44,Formulacion!$A:$BE,MATCH(AF$1,Formulacion!$1:$1,0),FALSE)="NA",1,IF(R44<=INDIRECT(VLOOKUP(B44,Formulacion!$A:$BE,2,FALSE)),0,1)) -> 0 | AG44: 0 | AH44: 0 | AJ44: =IF(VLOOKUP($B44,Formulacion!$A:$BE,MATCH(AJ$1,Formulacion!$1:$1,0),FALSE)="NA","NA",HLOOKUP(VLOOKUP($B44,Formulacion!$A:$BE,MATCH(AJ$1,Formulacion!$1:$1,0),FALSE),$Q:$Z,ROW(AJ44),FALSE)) -> 2 | AK44: =IF(VLOOKUP($B44,Formulacion!$A:$BE,MATCH(AK$1,Formulacion!$1:$1,0),FALSE)="NA",1,VLOOKUP($B44,Formulacion!$A:$BE,MATCH(AK$1,Formulacion!$1:$1,0),FALSE)) -> 30 | AL44: =IF(VLOOKUP($B44,Formulacion!$A:$BE,MATCH(AL$1,Formulacion!$1:$1,0),FALSE)="NA",1,VLOOKUP($B44,Formulacion!$A:$BE,MATCH(AL$1,Formulacion!$1:$1,0),FALSE)) -> 0.3 | AM44: CU | AN44: =IF(VLOOKUP($B44,Formulacion!$A:$BE,MATCH(AN$1,Formulacion!$1:$1,0),FALSE)="NA","NA",IF(D44=0,"",VLOOKUP($B44,Formulacion!$A:$BE,MATCH(AN$1,Formulacion!$1:$1,0),FALSE))) -> 0206170220032403 | AO44: LABTM1 | AP44: HO | AQ44: 2AL | AR44: 006 | AV44: =IF(VLOOKUP($B44,Formulacion!$A:$BE,MATCH(AV$1,Formulacion!$1:$1,0),FALSE)="NA","NA",VLOOKUP(CONCATENATE(AO44,AP44,AQ44,AR44,AS44,AT44,AU44),ValoresReferenciales!$A:$D,4,FALSE)) -> 18.09655661 | AW44: =IF(VLOOKUP($B44,Formulacion!$A:$BE,MATCH(AW$1,Formulacion!$1:$1,0),FALSE)="NA","NA",HLOOKUP(VLOOKUP($B44,Formulacion!$A:$BE,MATCH(AW$1,Formulacion!$1:$1,0),FALSE),$Q:$Z,ROW(AW44),FALSE)) -> 2 | AX44: 181.33 | AY44: 0.09979902171 | AZ44: =IF(VLOOKUP($B44,Formulacion!$A:$BE,MATCH(AZ$1,Formulacion!$1:$1,0),FALSE)="NA",1,VLOOKUP($B44,Formulacion!$A:$BE,MATCH(AZ$1,Formulacion!$1:$1,0),FALSE)) -> 1 | BA44: =IF(VLOOKUP($B44,Formulacion!$A:$BE,MATCH(BA$1,Formulacion!$1:$1,0),FALSE)="NA",1,VLOOKUP($B44,Formulacion!$A:$BE,MATCH(BA$1,Formulacion!$1:$1,0),FALSE)) -> 1 | BB44: 0 | BC44: 362.66
A45: CC-01-AD-2010-EDECHI.xls | B45: DLABT | C45: 301012009090051 | D45: DLABTM100002P001HOC2ALA006 | E45: 2010-03-10 | F45: JARAMILLO ARRIB | G45: 2 | H45: 0 | I45: 8.58 | J45: 0 | K45: 0 | L45: 0 | M45: 0 | N45: 8.58 | O45: 368 | P45: 0 | Q45: =IF(OR(VLOOKUP($B45,Formulacion!$A:$BE,MATCH(Q$1,Formulacion!$1:$1,0),FALSE)="NA",$D45=0),"NA",IF($B45="DLABT",MID($D45,PosteInicioBT,PosteFinBT-PosteInicioBT+1)*1,MID($D45,PosteInicio,PosteFin-PosteInicio+1)*1)) -> 1 | R45: =IF(OR(VLOOKUP($B45,Formulacion!$A:$BE,MATCH(R$1,Formulacion!$1:$1,0),FALSE)="NA",$D45=0),"NA",IF(OR($B45="DLABT",$B45="DLSBT"),MID($D45,CondInicioBT,CondFinBT-CondInicioBT+1)*1,MID($D45,CondInicio,CondFin-CondInicio+1)*1)) -> 2 | S45: 2 | T45: =IF(OR(VLOOKUP($B45,Formulacion!$A:$BE,MATCH(T$1,Formulacion!$1:$1,0),FALSE)="NA",$D45=0),"NA",IF($B45="DLSBT",MID($D45,ZanjaInicioBT,ZanjaFinBT-ZanjaInicioBT+1)*1,MID($D45,ZanjaInicio,ZanjaFin-ZanjaInicio+1)*1)) -> NA | U45: 1 | V45: =IF(OR(VLOOKUP($B45,Formulacion!$A:$BE,MATCH(V$1,Formulacion!$1:$1,0),FALSE)="NA",$D45=0),"NA",MID($D45,m2Inicio+INDIRECT(B45),m2Fin-m2Inicio+1)*1) -> NA | W45: =IF(OR(VLOOKUP($B45,Formulacion!$A:$BE,MATCH(W$1,Formulacion!$1:$1,0),FALSE)="NA",$D45=0),"NA",RIGHT($D45,4)*1) -> NA | X45: =IF(OR(VLOOKUP($B45,Formulacion!$A:$BE,MATCH(X$1,Formulacion!$1:$1,0),FALSE)="NA",$D45=0),"NA",RIGHT($D45,3)*1) -> NA | Y45: 1 | Z45: =IF(VLOOKUP($B45,Formulacion!$A:$BE,MATCH(Z$1,Formulacion!$1:$1,0),FALSE)="NA",1,IF(V45<=m2Min,0,1)) -> 1 | AA45: =IF(VLOOKUP($B45,Formulacion!$A:$BE,MATCH(AA$1,Formulacion!$1:$1,0),FALSE)="NA",1,IF(OR(E45<=FechaMin,E45>FechaMax),0,1)) -> 1 | AB45: =IF(VLOOKUP($B45,Formulacion!$A:$BE,MATCH(AB$1,Formulacion!$1:$1,0),FALSE)="NA",1,IF(H45<=MaterialesMin,0,1)) -> 0 | AC45: =IF(VLOOKUP($B45,Formulacion!$A:$BE,MATCH(AC$1,Formulacion!$1:$1,0),FALSE)="NA",1,IF(N45=0,0,IF(OR(I45/N45<=MObraMin,I45/N45>=MObraMax),MDOmin,1))) -> 0 | AD45: =IF(VLOOKUP($B45,Formulacion!$A:$BE,MATCH(AD$1,Formulacion!$1:$1,0),FALSE)="NA",1,IF(N45<=CostoTotalMin,0,1)) -> 0 | AE45: =IF(VLOOKUP($B45,Formulacion!$A:$BE,MATCH(AE$1,Formulacion!$1:$1,0),FALSE)="NA",1,IF(Q45<=PostesMin,0,1)) -> 0 | AF45: =IF(VLOOKUP($B45,Formulacion!$A:$BE,MATCH(AF$1,Formulacion!$1:$1,0),FALSE)="NA",1,IF(R45<=INDIRECT(VLOOKUP(B45,Formulacion!$A:$BE,2,FALSE)),0,1)) -> 0 | AG45: 0 | AH45: 0 | AJ45: =IF(VLOOKUP($B45,Formulacion!$A:$BE,MATCH(AJ$1,Formulacion!$1:$1,0),FALSE)="NA","NA",HLOOKUP(VLOOKUP($B45,Formulacion!$A:$BE,MATCH(AJ$1,Formulacion!$1:$1,0),FALSE),$Q:$Z,ROW(AJ45),FALSE)) -> 2 | AK45: =IF(VLOOKUP($B45,Formulacion!$A:$BE,MATCH(AK$1,Formulacion!$1:$1,0),FALSE)="NA",1,VLOOKUP($B45,Formulacion!$A:$BE,MATCH(AK$1,Formulacion!$1:$1,0),FALSE)) -> 30 | AL45: =IF(VLOOKUP($B45,Formulacion!$A:$BE,MATCH(AL$1,Formulacion!$1:$1,0),FALSE)="NA",1,VLOOKUP($B45,Formulacion!$A:$BE,MATCH(AL$1,Formulacion!$1:$1,0),FALSE)) -> 0.3 | AM45: CU | AN45: =IF(VLOOKUP($B45,Formulacion!$A:$BE,MATCH(AN$1,Formulacion!$1:$1,0),FALSE)="NA","NA",IF(D45=0,"",VLOOKUP($B45,Formulacion!$A:$BE,MATCH(AN$1,Formulacion!$1:$1,0),FALSE))) -> 0206170220032403 | AO45: LABTM1 | AP45: HO | AQ45: 2AL | AR45: 006 | AV45: =IF(VLOOKUP($B45,Formulacion!$A:$BE,MATCH(AV$1,Formulacion!$1:$1,0),FALSE)="NA","NA",VLOOKUP(CONCATENATE(AO45,AP45,AQ45,AR45,AS45,AT45,AU45),ValoresReferenciales!$A:$D,4,FALSE)) -> 18.09655661 | AW45: =IF(VLOOKUP($B45,Formulacion!$A:$BE,MATCH(AW$1,Formulacion!$1:$1,0),FALSE)="NA","NA",HLOOKUP(VLOOKUP($B45,Formulacion!$A:$BE,MATCH(AW$1,Formulacion!$1:$1,0),FALSE),$Q:$Z,ROW(AW45),FALSE)) -> 2 | AX45: 4.29 | AY45: 1 | AZ45: =IF(VLOOKUP($B45,Formulacion!$A:$BE,MATCH(AZ$1,Formulacion!$1:$1,0),FALSE)="NA",1,VLOOKUP($B45,Formulacion!$A:$BE,MATCH(AZ$1,Formulacion!$1:$1,0),FALSE)) -> 1 | BA45: =IF(VLOOKUP($B45,Formulacion!$A:$BE,MATCH(BA$1,Formulacion!$1:$1,0),FALSE)="NA",1,VLOOKUP($B45,Formulacion!$A:$BE,MATCH(BA$1,Formulacion!$1:$1,0),FALSE)) -> 1 | BB45: 0 | BC45: 8.58
A46: CC-01-AD-2010-EDECHI.xls | B46: DLABT | C46: 301012009090073 | D46: DLABTM100035P001HOC3ALA006 | E46: 2010-03-08 | F46: NUEVA SUIZA | G46: 35 | H46: 73.96 | I46: 62.13 | J46: 0 | K46: 275.61 | L46: 0 | M46: 0 | N46: 411.7 | O46: 872 | P46: 0 | Q46: =IF(OR(VLOOKUP($B46,Formulacion!$A:$BE,MATCH(Q$1,Formulacion!$1:$1,0),FALSE)="NA",$D46=0),"NA",IF($B46="DLABT",MID($D46,PosteInicioBT,PosteFinBT-PosteInicioBT+1)*1,MID($D46,PosteInicio,PosteFin-PosteInicio+1)*1)) -> 1 | R46: =IF(OR(VLOOKUP($B46,Formulacion!$A:$BE,MATCH(R$1,Formulacion!$1:$1,0),FALSE)="NA",$D46=0),"NA",IF(OR($B46="DLABT",$B46="DLSBT"),MID($D46,CondInicioBT,CondFinBT-CondInicioBT+1)*1,MID($D46,CondInicio,CondFin-CondInicio+1)*1)) -> 35 | S46: 35 | T46: =IF(OR(VLOOKUP($B46,Formulacion!$A:$BE,MATCH(T$1,Formulacion!$1:$1,0),FALSE)="NA",$D46=0),"NA",IF($B46="DLSBT",MID($D46,ZanjaInicioBT,ZanjaFinBT-ZanjaInicioBT+1)*1,MID($D46,ZanjaInicio,ZanjaFin-ZanjaInicio+1)*1)) -> NA | U46: 1 | V46: =IF(OR(VLOOKUP($B46,Formulacion!$A:$BE,MATCH(V$1,Formulacion!$1:$1,0),FALSE)="NA",$D46=0),"NA",MID($D46,m2Inicio+INDIRECT(B46),m2Fin-m2Inicio+1)*1) -> NA | W46: =IF(OR(VLOOKUP($B46,Formulacion!$A:$BE,MATCH(W$1,Formulacion!$1:$1,0),FALSE)="NA",$D46=0),"NA",RIGHT($D46,4)*1) -> NA | X46: =IF(OR(VLOOKUP($B46,Formulacion!$A:$BE,MATCH(X$1,Formulacion!$1:$1,0),FALSE)="NA",$D46=0),"NA",RIGHT($D46,3)*1) -> NA | Y46: 1 | Z46: =IF(VLOOKUP($B46,Formulacion!$A:$BE,MATCH(Z$1,Formulacion!$1:$1,0),FALSE)="NA",1,IF(V46<=m2Min,0,1)) -> 1 | AA46: =IF(VLOOKUP($B46,Formulacion!$A:$BE,MATCH(AA$1,Formulacion!$1:$1,0),FALSE)="NA",1,IF(OR(E46<=FechaMin,E46>FechaMax),0,1)) -> 1 | AB46: =IF(VLOOKUP($B46,Formulacion!$A:$BE,MATCH(AB$1,Formulacion!$1:$1,0),FALSE)="NA",1,IF(H46<=MaterialesMin,0,1)) -> 1 | AC46: =IF(VLOOKUP($B46,Formulacion!$A:$BE,MATCH(AC$1,Formulacion!$1:$1,0),FALSE)="NA",1,IF(N46=0,0,IF(OR(I46/N46<=MObraMin,I46/N46>=MObraMax),MDOmin,1))) -> 1 | AD46: =IF(VLOOKUP($B46,Formulacion!$A:$BE,MATCH(AD$1,Formulacion!$1:$1,0),FALSE)="NA",1,IF(N46<=CostoTotalMin,0,1)) -> 1 | AE46: =IF(VLOOKUP($B46,Formulacion!$A:$BE,MATCH(AE$1,Formulacion!$1:$1,0),FALSE)="NA",1,IF(Q46<=PostesMin,0,1)) -> 0 | AF46: =IF(VLOOKUP($B46,Formulacion!$A:$BE,MATCH(AF$1,Formulacion!$1:$1,0),FALSE)="NA",1,IF(R46<=INDIRECT(VLOOKUP(B46,Formulacion!$A:$BE,2,FALSE)),0,1)) -> 0 | AG46: 0 | AH46: 0 | AJ46: =IF(VLOOKUP($B46,Formulacion!$A:$BE,MATCH(AJ$1,Formulacion!$1:$1,0),FALSE)="NA","NA",HLOOKUP(VLOOKUP($B46,Formulacion!$A:$BE,MATCH(AJ$1,Formulacion!$1:$1,0),FALSE),$Q:$Z,ROW(AJ46),FALSE)) -> 35 | AK46: =IF(VLOOKUP($B46,Formulacion!$A:$BE,MATCH(AK$1,Formulacion!$1:$1,0),FALSE)="NA",1,VLOOKUP($B46,Formulacion!$A:$BE,MATCH(AK$1,Formulacion!$1:$1,0),FALSE)) -> 30 | AL46: =IF(VLOOKUP($B46,Formulacion!$A:$BE,MATCH(AL$1,Formulacion!$1:$1,0),FALSE)="NA",1,VLOOKUP($B46,Formulacion!$A:$BE,MATCH(AL$1,Formulacion!$1:$1,0),FALSE)) -> 0.3 | AM46: CU | AN46: =IF(VLOOKUP($B46,Formulacion!$A:$BE,MATCH(AN$1,Formulacion!$1:$1,0),FALSE)="NA","NA",IF(D46=0,"",VLOOKUP($B46,Formulacion!$A:$BE,MATCH(AN$1,Formulacion!$1:$1,0),FALSE))) -> 0206170220032403 | AO46: LABTM1 | AP46: HO | AQ46: 3AL | AR46: 006 | AV46: =IF(VLOOKUP($B46,Formulacion!$A:$BE,MATCH(AV$1,Formulacion!$1:$1,0),FALSE)="NA","NA",VLOOKUP(CONCATENATE(AO46,AP46,AQ46,AR46,AS46,AT46,AU46),ValoresReferenciales!$A:$D,4,FALSE)) -> 14.76593257 | AW46: =IF(VLOOKUP($B46,Formulacion!$A:$BE,MATCH(AW$1,Formulacion!$1:$1,0),FALSE)="NA","NA",HLOOKUP(VLOOKUP($B46,Formulacion!$A:$BE,MATCH(AW$1,Formulacion!$1:$1,0),FALSE),$Q:$Z,ROW(AW46),FALSE)) -> 35 | AX46: 11.76285714 | AY46: 1 | AZ46: =IF(VLOOKUP($B46,Formulacion!$A:$BE,MATCH(AZ$1,Formulacion!$1:$1,0),FALSE)="NA",1,VLOOKUP($B46,Formulacion!$A:$BE,MATCH(AZ$1,Formulacion!$1:$1,0),FALSE)) -> 1 | BA46: =IF(VLOOKUP($B46,Formulacion!$A:$BE,MATCH(BA$1,Formulacion!$1:$1,0),FALSE)="NA",1,VLOOKUP($B46,Formulacion!$A:$BE,MATCH(BA$1,Formulacion!$1:$1,0),FALSE)) -> 1 | BB46: 0 | BC46: 411.7
A47: CC-01-AD-2010-EDECHI.xls | B47: DLABT | C47: 301012009090252 | D47: DLABTM100002P001HOC2ALA006 | E47: 2010-01-29 | F47: LA BARQUETA | G47: 2 | H47: 79.85 | I47: 159.13 | J47: 0 | K47: 0 | L47: 0 | M47: 0 | N47: 238.98 | O47: 356 | P47: 0 | Q47: =IF(OR(VLOOKUP($B47,Formulacion!$A:$BE,MATCH(Q$1,Formulacion!$1:$1,0),FALSE)="NA",$D47=0),"NA",IF($B47="DLABT",MID($D47,PosteInicioBT,PosteFinBT-PosteInicioBT+1)*1,MID($D47,PosteInicio,PosteFin-PosteInicio+1)*1)) -> 1 | R47: =IF(OR(VLOOKUP($B47,Formulacion!$A:$BE,MATCH(R$1,Formulacion!$1:$1,0),FALSE)="NA",$D47=0),"NA",IF(OR($B47="DLABT",$B47="DLSBT"),MID($D47,CondInicioBT,CondFinBT-CondInicioBT+1)*1,MID($D47,CondInicio,CondFin-CondInicio+1)*1)) -> 2 | S47: 2 | T47: =IF(OR(VLOOKUP($B47,Formulacion!$A:$BE,MATCH(T$1,Formulacion!$1:$1,0),FALSE)="NA",$D47=0),"NA",IF($B47="DLSBT",MID($D47,ZanjaInicioBT,ZanjaFinBT-ZanjaInicioBT+1)*1,MID($D47,ZanjaInicio,ZanjaFin-ZanjaInicio+1)*1)) -> NA | U47: 1 | V47: =IF(OR(VLOOKUP($B47,Formulacion!$A:$BE,MATCH(V$1,Formulacion!$1:$1,0),FALSE)="NA",$D47=0),"NA",MID($D47,m2Inicio+INDIRECT(B47),m2Fin-m2Inicio+1)*1) -> NA | W47: =IF(OR(VLOOKUP($B47,Formulacion!$A:$BE,MATCH(W$1,Formulacion!$1:$1,0),FALSE)="NA",$D47=0),"NA",RIGHT($D47,4)*1) -> NA | X47: =IF(OR(VLOOKUP($B47,Formulacion!$A:$BE,MATCH(X$1,Formulacion!$1:$1,0),FALSE)="NA",$D47=0),"NA",RIGHT($D47,3)*1) -> NA | Y47: 1 | Z47: =IF(VLOOKUP($B47,Formulacion!$A:$BE,MATCH(Z$1,Formulacion!$1:$1,0),FALSE)="NA",1,IF(V47<=m2Min,0,1)) -> 1 | AA47: =IF(VLOOKUP($B47,Formulacion!$A:$BE,MATCH(AA$1,Formulacion!$1:$1,0),FALSE)="NA",1,IF(OR(E47<=FechaMin,E47>FechaMax),0,1)) -> 1 | AB47: =IF(VLOOKUP($B47,Formulacion!$A:$BE,MATCH(AB$1,Formulacion!$1:$1,0),FALSE)="NA",1,IF(H47<=MaterialesMin,0,1)) -> 1 | AC47: =IF(VLOOKUP($B47,Formulacion!$A:$BE,MATCH(AC$1,Formulacion!$1:$1,0),FALSE)="NA",1,IF(N47=0,0,IF(OR(I47/N47<=MObraMin,I47/N47>=MObraMax),MDOmin,1))) -> 1 | AD47: =IF(VLOOKUP($B47,Formulacion!$A:$BE,MATCH(AD$1,Formulacion!$1:$1,0),FALSE)="NA",1,IF(N47<=CostoTotalMin,0,1)) -> 1 | AE47: =IF(VLOOKUP($B47,Formulacion!$A:$BE,MATCH(AE$1,Formulacion!$1:$1,0),FALSE)="NA",1,IF(Q47<=PostesMin,0,1)) -> 0 | AF47: =IF(VLOOKUP($B47,Formulacion!$A:$BE,MATCH(AF$1,Formulacion!$1:$1,0),FALSE)="NA",1,IF(R47<=INDIRECT(VLOOKUP(B47,Formulacion!$A:$BE,2,FALSE)),0,1)) -> 0 | AG47: 0 | AH47: 0 | AJ47: =IF(VLOOKUP($B47,Formulacion!$A:$BE,MATCH(AJ$1,Formulacion!$1:$1,0),FALSE)="NA","NA",HLOOKUP(VLOOKUP($B47,Formulacion!$A:$BE,MATCH(AJ$1,Formulacion!$1:$1,0),FALSE),$Q:$Z,ROW(AJ47),FALSE)) -> 2 | AK47: =IF(VLOOKUP($B47,Formulacion!$A:$BE,MATCH(AK$1,Formulacion!$1:$1,0),FALSE)="NA",1,VLOOKUP($B47,Formulacion!$A:$BE,MATCH(AK$1,Formulacion!$1:$1,0),FALSE)) -> 30 | AL47: =IF(VLOOKUP($B47,Formulacion!$A:$BE,MATCH(AL$1,Formulacion!$1:$1,0),FALSE)="NA",1,VLOOKUP($B47,Formulacion!$A:$BE,MATCH(AL$1,Formulacion!$1:$1,0),FALSE)) -> 0.3 | AM47: CU | AN47: =IF(VLOOKUP($B47,Formulacion!$A:$BE,MATCH(AN$1,Formulacion!$1:$1,0),FALSE)="NA","NA",IF(D47=0,"",VLOOKUP($B47,Formulacion!$A:$BE,MATCH(AN$1,Formulacion!$1:$1,0),FALSE))) -> 0206170220032403 | AO47: LABTM1 | AP47: HO | AQ47: 2AL | AR47: 006 | AV47: =IF(VLOOKUP($B47,Formulacion!$A:$BE,MATCH(AV$1,Formulacion!$1:$1,0),FALSE)="NA","NA",VLOOKUP(CONCATENATE(AO47,AP47,AQ47,AR47,AS47,AT47,AU47),ValoresReferenciales!$A:$D,4,FALSE)) -> 18.09655661 | AW47: =IF(VLOOKUP($B47,Formulacion!$A:$BE,MATCH(AW$1,Formulacion!$1:$1,0),FALSE)="NA","NA",HLOOKUP(VLOOKUP($B47,Formulacion!$A:$BE,MATCH(AW$1,Formulacion!$1:$1,0),FALSE),$Q:$Z,ROW(AW47),FALSE)) -> 2 | AX47: 119.49 | AY47: 0.1514482936 | AZ47: =IF(VLOOKUP($B47,Formulacion!$A:$BE,MATCH(AZ$1,Formulacion!$1:$1,0),FALSE)="NA",1,VLOOKUP($B47,Formulacion!$A:$BE,MATCH(AZ$1,Formulacion!$1:$1,0),FALSE)) -> 1 | BA47: =IF(VLOOKUP($B47,Formulacion!$A:$BE,MATCH(BA$1,Formulacion!$1:$1,0),FALSE)="NA",1,VLOOKUP($B47,Formulacion!$A:$BE,MATCH(BA$1,Formulacion!$1:$1,0),FALSE)) -> 1 | BB47: 0 | BC47: 238.98
A48: CC-01-AD-2010-EDECHI.xls | B48: DLABT | C48: 301012009090415 | D48: DLABTM100004P000HOC3ALA006 | E48: 2010-02-12 | F48: RINCON LARGO | G48: 4 | H48: 231.44 | I48: 103.67 | J48: 0 | K48: 56.53 | L48: 0 | M48: 0 | N48: 391.64 | O48: 62 | P48: 0 | Q48: =IF(OR(VLOOKUP($B48,Formulacion!$A:$BE,MATCH(Q$1,Formulacion!$1:$1,0),FALSE)="NA",$D48=0),"NA",IF($B48="DLABT",MID($D48,PosteInicioBT,PosteFinBT-PosteInicioBT+1)*1,MID($D48,PosteInicio,PosteFin-PosteInicio+1)*1)) -> 0 | R48: =IF(OR(VLOOKUP($B48,Formulacion!$A:$BE,MATCH(R$1,Formulacion!$1:$1,0),FALSE)="NA",$D48=0),"NA",IF(OR($B48="DLABT",$B48="DLSBT"),MID($D48,CondInicioBT,CondFinBT-CondInicioBT+1)*1,MID($D48,CondInicio,CondFin-CondInicio+1)*1)) -> 4 | S48: SP | T48: =IF(OR(VLOOKUP($B48,Formulacion!$A:$BE,MATCH(T$1,Formulacion!$1:$1,0),FALSE)="NA",$D48=0),"NA",IF($B48="DLSBT",MID($D48,ZanjaInicioBT,ZanjaFinBT-ZanjaInicioBT+1)*1,MID($D48,ZanjaInicio,ZanjaFin-ZanjaInicio+1)*1)) -> NA | U48: 1 | V48: =IF(OR(VLOOKUP($B48,Formulacion!$A:$BE,MATCH(V$1,Formulacion!$1:$1,0),FALSE)="NA",$D48=0),"NA",MID($D48,m2Inicio+INDIRECT(B48),m2Fin-m2Inicio+1)*1) -> NA | W48: =IF(OR(VLOOKUP($B48,Formulacion!$A:$BE,MATCH(W$1,Formulacion!$1:$1,0),FALSE)="NA",$D48=0),"NA",RIGHT($D48,4)*1) -> NA | X48: =IF(OR(VLOOKUP($B48,Formulacion!$A:$BE,MATCH(X$1,Formulacion!$1:$1,0),FALSE)="NA",$D48=0),"NA",RIGHT($D48,3)*1) -> NA | Y48: 1 | Z48: =IF(VLOOKUP($B48,Formulacion!$A:$BE,MATCH(Z$1,Formulacion!$1:$1,0),FALSE)="NA",1,IF(V48<=m2Min,0,1)) -> 1 | AA48: =IF(VLOOKUP($B48,Formulacion!$A:$BE,MATCH(AA$1,Formulacion!$1:$1,0),FALSE)="NA",1,IF(OR(E48<=FechaMin,E48>FechaMax),0,1)) -> 1 | AB48: =IF(VLOOKUP($B48,Formulacion!$A:$BE,MATCH(AB$1,Formulacion!$1:$1,0),FALSE)="NA",1,IF(H48<=MaterialesMin,0,1)) -> 1 | AC48: =IF(VLOOKUP($B48,Formulacion!$A:$BE,MATCH(AC$1,Formulacion!$1:$1,0),FALSE)="NA",1,IF(N48=0,0,IF(OR(I48/N48<=MObraMin,I48/N48>=MObraMax),MDOmin,1))) -> 1 | AD48: =IF(VLOOKUP($B48,Formulacion!$A:$BE,MATCH(AD$1,Formulacion!$1:$1,0),FALSE)="NA",1,IF(N48<=CostoTotalMin,0,1)) -> 1 | AE48: =IF(VLOOKUP($B48,Formulacion!$A:$BE,MATCH(AE$1,Formulacion!$1:$1,0),FALSE)="NA",1,IF(Q48<=PostesMin,0,1)) -> 0 | AF48: =IF(VLOOKUP($B48,Formulacion!$A:$BE,MATCH(AF$1,Formulacion!$1:$1,0),FALSE)="NA",1,IF(R48<=INDIRECT(VLOOKUP(B48,Formulacion!$A:$BE,2,FALSE)),0,1)) -> 0 | AG48: 0 | AH48: 0 | AJ48: =IF(VLOOKUP($B48,Formulacion!$A:$BE,MATCH(AJ$1,Formulacion!$1:$1,0),FALSE)="NA","NA",HLOOKUP(VLOOKUP($B48,Formulacion!$A:$BE,MATCH(AJ$1,Formulacion!$1:$1,0),FALSE),$Q:$Z,ROW(AJ48),FALSE)) -> SP | AK48: =IF(VLOOKUP($B48,Formulacion!$A:$BE,MATCH(AK$1,Formulacion!$1:$1,0),FALSE)="NA",1,VLOOKUP($B48,Formulacion!$A:$BE,MATCH(AK$1,Formulacion!$1:$1,0),FALSE)) -> 30 | AL48: =IF(VLOOKUP($B48,Formulacion!$A:$BE,MATCH(AL$1,Formulacion!$1:$1,0),FALSE)="NA",1,VLOOKUP($B48,Formulacion!$A:$BE,MATCH(AL$1,Formulacion!$1:$1,0),FALSE)) -> 0.3 | AM48: NC | AN48: =IF(VLOOKUP($B48,Formulacion!$A:$BE,MATCH(AN$1,Formulacion!$1:$1,0),FALSE)="NA","NA",IF(D48=0,"",VLOOKUP($B48,Formulacion!$A:$BE,MATCH(AN$1,Formulacion!$1:$1,0),FALSE))) -> 0206170220032403 | AO48: LABTM1 | AP48: HO | AQ48: 3AL | AR48: 006 | AV48: =IF(VLOOKUP($B48,Formulacion!$A:$BE,MATCH(AV$1,Formulacion!$1:$1,0),FALSE)="NA","NA",VLOOKUP(CONCATENATE(AO48,AP48,AQ48,AR48,AS48,AT48,AU48),ValoresReferenciales!$A:$D,4,FALSE)) -> 14.76593257 | AW48: =IF(VLOOKUP($B48,Formulacion!$A:$BE,MATCH(AW$1,Formulacion!$1:$1,0),FALSE)="NA","NA",HLOOKUP(VLOOKUP($B48,Formulacion!$A:$BE,MATCH(AW$1,Formulacion!$1:$1,0),FALSE),$Q:$Z,ROW(AW48),FALSE)) -> 4 | AX48: 97.91 | AY48: 1 | AZ48: =IF(VLOOKUP($B48,Formulacion!$A:$BE,MATCH(AZ$1,Formulacion!$1:$1,0),FALSE)="NA",1,VLOOKUP($B48,Formulacion!$A:$BE,MATCH(AZ$1,Formulacion!$1:$1,0),FALSE)) -> 1 | BA48: =IF(VLOOKUP($B48,Formulacion!$A:$BE,MATCH(BA$1,Formulacion!$1:$1,0),FALSE)="NA",1,VLOOKUP($B48,Formulacion!$A:$BE,MATCH(BA$1,Formulacion!$1:$1,0),FALSE)) -> 1 | BB48: 0 | BC48: 391.64
A49: CC-01-AD-2010-EDECHI.xls | B49: DLABT | C49: 301012009090415 | D49: DLABTM100057P001HOC3ALA002 | E49: 2010-02-12 | F49: RINCON LARGO | G49: 57 | H49: 896.82 | I49: 401.72 | J49: 0 | K49: 219.07 | L49: 0 | M49: 0 | N49: 1517.61 | O49: 61 | P49: 0 | Q49: =IF(OR(VLOOKUP($B49,Formulacion!$A:$BE,MATCH(Q$1,Formulacion!$1:$1,0),FALSE)="NA",$D49=0),"NA",IF($B49="DLABT",MID($D49,PosteInicioBT,PosteFinBT-PosteInicioBT+1)*1,MID($D49,PosteInicio,PosteFin-PosteInicio+1)*1)) -> 1 | R49: =IF(OR(VLOOKUP($B49,Formulacion!$A:$BE,MATCH(R$1,Formulacion!$1:$1,0),FALSE)="NA",$D49=0),"NA",IF(OR($B49="DLABT",$B49="DLSBT"),MID($D49,CondInicioBT,CondFinBT-CondInicioBT+1)*1,MID($D49,CondInicio,CondFin-CondInicio+1)*1)) -> 57 | S49: 57 | T49: =IF(OR(VLOOKUP($B49,Formulacion!$A:$BE,MATCH(T$1,Formulacion!$1:$1,0),FALSE)="NA",$D49=0),"NA",IF($B49="DLSBT",MID($D49,ZanjaInicioBT,ZanjaFinBT-ZanjaInicioBT+1)*1,MID($D49,ZanjaInicio,ZanjaFin-ZanjaInicio+1)*1)) -> NA | U49: 1 | V49: =IF(OR(VLOOKUP($B49,Formulacion!$A:$BE,MATCH(V$1,Formulacion!$1:$1,0),FALSE)="NA",$D49=0),"NA",MID($D49,m2Inicio+INDIRECT(B49),m2Fin-m2Inicio+1)*1) -> NA | W49: =IF(OR(VLOOKUP($B49,Formulacion!$A:$BE,MATCH(W$1,Formulacion!$1:$1,0),FALSE)="NA",$D49=0),"NA",RIGHT($D49,4)*1) -> NA | X49: =IF(OR(VLOOKUP($B49,Formulacion!$A:$BE,MATCH(X$1,Formulacion!$1:$1,0),FALSE)="NA",$D49=0),"NA",RIGHT($D49,3)*1) -> NA | Y49: 1 | Z49: =IF(VLOOKUP($B49,Formulacion!$A:$BE,MATCH(Z$1,Formulacion!$1:$1,0),FALSE)="NA",1,IF(V49<=m2Min,0,1)) -> 1 | AA49: =IF(VLOOKUP($B49,Formulacion!$A:$BE,MATCH(AA$1,Formulacion!$1:$1,0),FALSE)="NA",1,IF(OR(E49<=FechaMin,E49>FechaMax),0,1)) -> 1 | AB49: =IF(VLOOKUP($B49,Formulacion!$A:$BE,MATCH(AB$1,Formulacion!$1:$1,0),FALSE)="NA",1,IF(H49<=MaterialesMin,0,1)) -> 1 | AC49: =IF(VLOOKUP($B49,Formulacion!$A:$BE,MATCH(AC$1,Formulacion!$1:$1,0),FALSE)="NA",1,IF(N49=0,0,IF(OR(I49/N49<=MObraMin,I49/N49>=MObraMax),MDOmin,1))) -> 1 | AD49: =IF(VLOOKUP($B49,Formulacion!$A:$BE,MATCH(AD$1,Formulacion!$1:$1,0),FALSE)="NA",1,IF(N49<=CostoTotalMin,0,1)) -> 1 | AE49: =IF(VLOOKUP($B49,Formulacion!$A:$BE,MATCH(AE$1,Formulacion!$1:$1,0),FALSE)="NA",1,IF(Q49<=PostesMin,0,1)) -> 0 | AF49: =IF(VLOOKUP($B49,Formulacion!$A:$BE,MATCH(AF$1,Formulacion!$1:$1,0),FALSE)="NA",1,IF(R49<=INDIRECT(VLOOKUP(B49,Formulacion!$A:$BE,2,FALSE)),0,1)) -> 1 | AG49: 1 | AH49: 1517.61 | AJ49: =IF(VLOOKUP($B49,Formulacion!$A:$BE,MATCH(AJ$1,Formulacion!$1:$1,0),FALSE)="NA","NA",HLOOKUP(VLOOKUP($B49,Formulacion!$A:$BE,MATCH(AJ$1,Formulacion!$1:$1,0),FALSE),$Q:$Z,ROW(AJ49),FALSE)) -> 57 | AK49: =IF(VLOOKUP($B49,Formulacion!$A:$BE,MATCH(AK$1,Formulacion!$1:$1,0),FALSE)="NA",1,VLOOKUP($B49,Formulacion!$A:$BE,MATCH(AK$1,Formulacion!$1:$1,0),FALSE)) -> 30 | AL49: =IF(VLOOKUP($B49,Formulacion!$A:$BE,MATCH(AL$1,Formulacion!$1:$1,0),FALSE)="NA",1,VLOOKUP($B49,Formulacion!$A:$BE,MATCH(AL$1,Formulacion!$1:$1,0),FALSE)) -> 0.3 | AM49: NC | AN49: =IF(VLOOKUP($B49,Formulacion!$A:$BE,MATCH(AN$1,Formulacion!$1:$1,0),FALSE)="NA","NA",IF(D49=0,"",VLOOKUP($B49,Formulacion!$A:$BE,MATCH(AN$1,Formulacion!$1:$1,0),FALSE))) -> 0206170220032403 | AO49: LABTM1 | AP49: HO | AQ49: 3AL | AR49: 002 | AV49: =IF(VLOOKUP($B49,Formulacion!$A:$BE,MATCH(AV$1,Formulacion!$1:$1,0),FALSE)="NA","NA",VLOOKUP(CONCATENATE(AO49,AP49,AQ49,AR49,AS49,AT49,AU49),ValoresReferenciales!$A:$D,4,FALSE)) -> 15.63451684 | AW49: =IF(VLOOKUP($B49,Formulacion!$A:$BE,MATCH(AW$1,Formulacion!$1:$1,0),FALSE)="NA","NA",HLOOKUP(VLOOKUP($B49,Formulacion!$A:$BE,MATCH(AW$1,Formulacion!$1:$1,0),FALSE),$Q:$Z,ROW(AW49),FALSE)) -> 57 | AX49: 26.62473684 | AY49: 1 | AZ49: =IF(VLOOKUP($B49,Formulacion!$A:$BE,MATCH(AZ$1,Formulacion!$1:$1,0),FALSE)="NA",1,VLOOKUP($B49,Formulacion!$A:$BE,MATCH(AZ$1,Formulacion!$1:$1,0),FALSE)) -> 1 | BA49: =IF(VLOOKUP($B49,Formulacion!$A:$BE,MATCH(BA$1,Formulacion!$1:$1,0),FALSE)="NA",1,VLOOKUP($B49,Formulacion!$A:$BE,MATCH(BA$1,Formulacion!$1:$1,0),FALSE)) -> 1 | BB49: 1517.61 | BC49: 1517.61
A50: CC-01-AD-2010-EDECHI.xls | B50: DLABT | C50: 301012009090483 | D50: DLABTM100003P000HOC3ALA006 | E50: 2010-10-15 | F50: TOLE (CABECERA) | G50: 3 | H50: 164.12 | I50: 62.98 | J50: 0 | K50: 66 | L50: 0 | M50: 0 | N50: 293.1 | O50: 528 | P50: 0 | Q50: =IF(OR(VLOOKUP($B50,Formulacion!$A:$BE,MATCH(Q$1,Formulacion!$1:$1,0),FALSE)="NA",$D50=0),"NA",IF($B50="DLABT",MID($D50,PosteInicioBT,PosteFinBT-PosteInicioBT+1)*1,MID($D50,PosteInicio,PosteFin-PosteInicio+1)*1)) -> 0 | R50: =IF(OR(VLOOKUP($B50,Formulacion!$A:$BE,MATCH(R$1,Formulacion!$1:$1,0),FALSE)="NA",$D50=0),"NA",IF(OR($B50="DLABT",$B50="DLSBT"),MID($D50,CondInicioBT,CondFinBT-CondInicioBT+1)*1,MID($D50,CondInicio,CondFin-CondInicio+1)*1)) -> 3 | S50: SP | T50: =IF(OR(VLOOKUP($B50,Formulacion!$A:$BE,MATCH(T$1,Formulacion!$1:$1,0),FALSE)="NA",$D50=0),"NA",IF($B50="DLSBT",MID($D50,ZanjaInicioBT,ZanjaFinBT-ZanjaInicioBT+1)*1,MID($D50,ZanjaInicio,ZanjaFin-ZanjaInicio+1)*1)) -> NA | U50: 1 | V50: =IF(OR(VLOOKUP($B50,Formulacion!$A:$BE,MATCH(V$1,Formulacion!$1:$1,0),FALSE)="NA",$D50=0),"NA",MID($D50,m2Inicio+INDIRECT(B50),m2Fin-m2Inicio+1)*1) -> NA | W50: =IF(OR(VLOOKUP($B50,Formulacion!$A:$BE,MATCH(W$1,Formulacion!$1:$1,0),FALSE)="NA",$D50=0),"NA",RIGHT($D50,4)*1) -> NA | X50: =IF(OR(VLOOKUP($B50,Formulacion!$A:$BE,MATCH(X$1,Formulacion!$1:$1,0),FALSE)="NA",$D50=0),"NA",RIGHT($D50,3)*1) -> NA | Y50: 1 | Z50: =IF(VLOOKUP($B50,Formulacion!$A:$BE,MATCH(Z$1,Formulacion!$1:$1,0),FALSE)="NA",1,IF(V50<=m2Min,0,1)) -> 1 | AA50: =IF(VLOOKUP($B50,Formulacion!$A:$BE,MATCH(AA$1,Formulacion!$1:$1,0),FALSE)="NA",1,IF(OR(E50<=FechaMin,E50>FechaMax),0,1)) -> 1 | AB50: =IF(VLOOKUP($B50,Formulacion!$A:$BE,MATCH(AB$1,Formulacion!$1:$1,0),FALSE)="NA",1,IF(H50<=MaterialesMin,0,1)) -> 1 | AC50: =IF(VLOOKUP($B50,Formulacion!$A:$BE,MATCH(AC$1,Formulacion!$1:$1,0),FALSE)="NA",1,IF(N50=0,0,IF(OR(I50/N50<=MObraMin,I50/N50>=MObraMax),MDOmin,1))) -> 1 | AD50: =IF(VLOOKUP($B50,Formulacion!$A:$BE,MATCH(AD$1,Formulacion!$1:$1,0),FALSE)="NA",1,IF(N50<=CostoTotalMin,0,1)) -> 1 | AE50: =IF(VLOOKUP($B50,Formulacion!$A:$BE,MATCH(AE$1,Formulacion!$1:$1,0),FALSE)="NA",1,IF(Q50<=PostesMin,0,1)) -> 0 | AF50: =IF(VLOOKUP($B50,Formulacion!$A:$BE,MATCH(AF$1,Formulacion!$1:$1,0),FALSE)="NA",1,IF(R50<=INDIRECT(VLOOKUP(B50,Formulacion!$A:$BE,2,FALSE)),0,1)) -> 0 | AG50: 0 | AH50: 0 | AJ50: =IF(VLOOKUP($B50,Formulacion!$A:$BE,MATCH(AJ$1,Formulacion!$1:$1,0),FALSE)="NA","NA",HLOOKUP(VLOOKUP($B50,Formulacion!$A:$BE,MATCH(AJ$1,Formulacion!$1:$1,0),FALSE),$Q:$Z,ROW(AJ50),FALSE)) -> SP | AK50: =IF(VLOOKUP($B50,Formulacion!$A:$BE,MATCH(AK$1,Formulacion!$1:$1,0),FALSE)="NA",1,VLOOKUP($B50,Formulacion!$A:$BE,MATCH(AK$1,Formulacion!$1:$1,0),FALSE)) -> 30 | AL50: =IF(VLOOKUP($B50,Formulacion!$A:$BE,MATCH(AL$1,Formulacion!$1:$1,0),FALSE)="NA",1,VLOOKUP($B50,Formulacion!$A:$BE,MATCH(AL$1,Formulacion!$1:$1,0),FALSE)) -> 0.3 | AM50: NC | AN50: =IF(VLOOKUP($B50,Formulacion!$A:$BE,MATCH(AN$1,Formulacion!$1:$1,0),FALSE)="NA","NA",IF(D50=0,"",VLOOKUP($B50,Formulacion!$A:$BE,MATCH(AN$1,Formulacion!$1:$1,0),FALSE))) -> 0206170220032403 | AO50: LABTM1 | AP50: HO | AQ50: 3AL | AR50: 006 | AV50: =IF(VLOOKUP($B50,Formulacion!$A:$BE,MATCH(AV$1,Formulacion!$1:$1,0),FALSE)="NA","NA",VLOOKUP(CONCATENATE(AO50,AP50,AQ50,AR50,AS50,AT50,AU50),ValoresReferenciales!$A:$D,4,FALSE)) -> 14.76593257 | AW50: =IF(VLOOKUP($B50,Formulacion!$A:$BE,MATCH(AW$1,Formulacion!$1:$1,0),FALSE)="NA","NA",HLOOKUP(VLOOKUP($B50,Formulacion!$A:$BE,MATCH(AW$1,Formulacion!$1:$1,0),FALSE),$Q:$Z,ROW(AW50),FALSE)) -> 3 | AX50: 97.7 | AY50: 1 | AZ50: =IF(VLOOKUP($B50,Formulacion!$A:$BE,MATCH(AZ$1,Formulacion!$1:$1,0),FALSE)="NA",1,VLOOKUP($B50,Formulacion!$A:$BE,MATCH(AZ$1,Formulacion!$1:$1,0),FALSE)) -> 1 | BA50: =IF(VLOOKUP($B50,Formulacion!$A:$BE,MATCH(BA$1,Formulacion!$1:$1,0),FALSE)="NA",1,VLOOKUP($B50,Formulacion!$A:$BE,MATCH(BA$1,Formulacion!$1:$1,0),FALSE)) -> 1 | BB50: 0 | BC50: 293.1
A51: CC-01-AD-2010-EDECHI.xls | B51: DLABT | C51: 301012009090483 | D51: DLABTM100214P003HOC3ALA002 | E51: 2010-10-15 | F51: TOLE (CABECERA) | G51: 214 | H51: 1684.38 | I51: 646.38 | J51: 0 | K51: 677.29 | L51: 0 | M51: 0 | N51: 3008.05 | O51: 527 | P51: 0 | Q51: =IF(OR(VLOOKUP($B51,Formulacion!$A:$BE,MATCH(Q$1,Formulacion!$1:$1,0),FALSE)="NA",$D51=0),"NA",IF($B51="DLABT",MID($D51,PosteInicioBT,PosteFinBT-PosteInicioBT+1)*1,MID($D51,PosteInicio,PosteFin-PosteInicio+1)*1)) -> 3 | R51: =IF(OR(VLOOKUP($B51,Formulacion!$A:$BE,MATCH(R$1,Formulacion!$1:$1,0),FALSE)="NA",$D51=0),"NA",IF(OR($B51="DLABT",$B51="DLSBT"),MID($D51,CondInicioBT,CondFinBT-CondInicioBT+1)*1,MID($D51,CondInicio,CondFin-CondInicio+1)*1)) -> 214 | S51: 71.33333333 | T51: =IF(OR(VLOOKUP($B51,Formulacion!$A:$BE,MATCH(T$1,Formulacion!$1:$1,0),FALSE)="NA",$D51=0),"NA",IF($B51="DLSBT",MID($D51,ZanjaInicioBT,ZanjaFinBT-ZanjaInicioBT+1)*1,MID($D51,ZanjaInicio,ZanjaFin-ZanjaInicio+1)*1)) -> NA | U51: 1 | V51: =IF(OR(VLOOKUP($B51,Formulacion!$A:$BE,MATCH(V$1,Formulacion!$1:$1,0),FALSE)="NA",$D51=0),"NA",MID($D51,m2Inicio+INDIRECT(B51),m2Fin-m2Inicio+1)*1) -> NA | W51: =IF(OR(VLOOKUP($B51,Formulacion!$A:$BE,MATCH(W$1,Formulacion!$1:$1,0),FALSE)="NA",$D51=0),"NA",RIGHT($D51,4)*1) -> NA | X51: =IF(OR(VLOOKUP($B51,Formulacion!$A:$BE,MATCH(X$1,Formulacion!$1:$1,0),FALSE)="NA",$D51=0),"NA",RIGHT($D51,3)*1) -> NA | Y51: 1 | Z51: =IF(VLOOKUP($B51,Formulacion!$A:$BE,MATCH(Z$1,Formulacion!$1:$1,0),FALSE)="NA",1,IF(V51<=m2Min,0,1)) -> 1 | AA51: =IF(VLOOKUP($B51,Formulacion!$A:$BE,MATCH(AA$1,Formulacion!$1:$1,0),FALSE)="NA",1,IF(OR(E51<=FechaMin,E51>FechaMax),0,1)) -> 1 | AB51: =IF(VLOOKUP($B51,Formulacion!$A:$BE,MATCH(AB$1,Formulacion!$1:$1,0),FALSE)="NA",1,IF(H51<=MaterialesMin,0,1)) -> 1 | AC51: =IF(VLOOKUP($B51,Formulacion!$A:$BE,MATCH(AC$1,Formulacion!$1:$1,0),FALSE)="NA",1,IF(N51=0,0,IF(OR(I51/N51<=MObraMin,I51/N51>=MObraMax),MDOmin,1))) -> 1 | AD51: =IF(VLOOKUP($B51,Formulacion!$A:$BE,MATCH(AD$1,Formulacion!$1:$1,0),FALSE)="NA",1,IF(N51<=CostoTotalMin,0,1)) -> 1 | AE51: =IF(VLOOKUP($B51,Formulacion!$A:$BE,MATCH(AE$1,Formulacion!$1:$1,0),FALSE)="NA",1,IF(Q51<=PostesMin,0,1)) -> 1 | AF51: =IF(VLOOKUP($B51,Formulacion!$A:$BE,MATCH(AF$1,Formulacion!$1:$1,0),FALSE)="NA",1,IF(R51<=INDIRECT(VLOOKUP(B51,Formulacion!$A:$BE,2,FALSE)),0,1)) -> 1 | AG51: 1 | AH51: 3008.05 | AJ51: =IF(VLOOKUP($B51,Formulacion!$A:$BE,MATCH(AJ$1,Formulacion!$1:$1,0),FALSE)="NA","NA",HLOOKUP(VLOOKUP($B51,Formulacion!$A:$BE,MATCH(AJ$1,Formulacion!$1:$1,0),FALSE),$Q:$Z,ROW(AJ51),FALSE)) -> 71.33333333 | AK51: =IF(VLOOKUP($B51,Formulacion!$A:$BE,MATCH(AK$1,Formulacion!$1:$1,0),FALSE)="NA",1,VLOOKUP($B51,Formulacion!$A:$BE,MATCH(AK$1,Formulacion!$1:$1,0),FALSE)) -> 30 | AL51: =IF(VLOOKUP($B51,Formulacion!$A:$BE,MATCH(AL$1,Formulacion!$1:$1,0),FALSE)="NA",1,VLOOKUP($B51,Formulacion!$A:$BE,MATCH(AL$1,Formulacion!$1:$1,0),FALSE)) -> 0.3 | AM51: NC | AN51: =IF(VLOOKUP($B51,Formulacion!$A:$BE,MATCH(AN$1,Formulacion!$1:$1,0),FALSE)="NA","NA",IF(D51=0,"",VLOOKUP($B51,Formulacion!$A:$BE,MATCH(AN$1,Formulacion!$1:$1,0),FALSE))) -> 0206170220032403 | AO51: LABTM1 | AP51: HO | AQ51: 3AL | AR51: 002 | AV51: =IF(VLOOKUP($B51,Formulacion!$A:$BE,MATCH(AV$1,Formulacion!$1:$1,0),FALSE)="NA","NA",VLOOKUP(CONCATENATE(AO51,AP51,AQ51,AR51,AS51,AT51,AU51),ValoresReferenciales!$A:$D,4,FALSE)) -> 15.63451684 | AW51: =IF(VLOOKUP($B51,Formulacion!$A:$BE,MATCH(AW$1,Formulacion!$1:$1,0),FALSE)="NA","NA",HLOOKUP(VLOOKUP($B51,Formulacion!$A:$BE,MATCH(AW$1,Formulacion!$1:$1,0),FALSE),$Q:$Z,ROW(AW51),FALSE)) -> 214 | AX51: 14.05630841 | AY51: 1 | AZ51: =IF(VLOOKUP($B51,Formulacion!$A:$BE,MATCH(AZ$1,Formulacion!$1:$1,0),FALSE)="NA",1,VLOOKUP($B51,Formulacion!$A:$BE,MATCH(AZ$1,Formulacion!$1:$1,0),FALSE)) -> 1 | BA51: =IF(VLOOKUP($B51,Formulacion!$A:$BE,MATCH(BA$1,Formulacion!$1:$1,0),FALSE)="NA",1,VLOOKUP($B51,Formulacion!$A:$BE,MATCH(BA$1,Formulacion!$1:$1,0),FALSE)) -> 1 | BB51: 3008.05 | BC51: 3008.05
A52: CC-01-AD-2010-EDECHI.xls | B52: DLABT | C52: 301012009090527 | D52: DLABTM100002P000HOC3ALA006 | E52: 2010-03-24 | F52: PALMA REAL | G52: 2 | H52: 130.01 | I52: 100.95 | J52: 0 | K52: 25.41 | L52: 0 | M52: 0 | N52: 256.37 | O52: 398 | P52: 0 | Q52: =IF(OR(VLOOKUP($B52,Formulacion!$A:$BE,MATCH(Q$1,Formulacion!$1:$1,0),FALSE)="NA",$D52=0),"NA",IF($B52="DLABT",MID($D52,PosteInicioBT,PosteFinBT-PosteInicioBT+1)*1,MID($D52,PosteInicio,PosteFin-PosteInicio+1)*1)) -> 0 | R52: =IF(OR(VLOOKUP($B52,Formulacion!$A:$BE,MATCH(R$1,Formulacion!$1:$1,0),FALSE)="NA",$D52=0),"NA",IF(OR($B52="DLABT",$B52="DLSBT"),MID($D52,CondInicioBT,CondFinBT-CondInicioBT+1)*1,MID($D52,CondInicio,CondFin-CondInicio+1)*1)) -> 2 | S52: SP | T52: =IF(OR(VLOOKUP($B52,Formulacion!$A:$BE,MATCH(T$1,Formulacion!$1:$1,0),FALSE)="NA",$D52=0),"NA",IF($B52="DLSBT",MID($D52,ZanjaInicioBT,ZanjaFinBT-ZanjaInicioBT+1)*1,MID($D52,ZanjaInicio,ZanjaFin-ZanjaInicio+1)*1)) -> NA | U52: 1 | V52: =IF(OR(VLOOKUP($B52,Formulacion!$A:$BE,MATCH(V$1,Formulacion!$1:$1,0),FALSE)="NA",$D52=0),"NA",MID($D52,m2Inicio+INDIRECT(B52),m2Fin-m2Inicio+1)*1) -> NA | W52: =IF(OR(VLOOKUP($B52,Formulacion!$A:$BE,MATCH(W$1,Formulacion!$1:$1,0),FALSE)="NA",$D52=0),"NA",RIGHT($D52,4)*1) -> NA | X52: =IF(OR(VLOOKUP($B52,Formulacion!$A:$BE,MATCH(X$1,Formulacion!$1:$1,0),FALSE)="NA",$D52=0),"NA",RIGHT($D52,3)*1) -> NA | Y52: 1 | Z52: =IF(VLOOKUP($B52,Formulacion!$A:$BE,MATCH(Z$1,Formulacion!$1:$1,0),FALSE)="NA",1,IF(V52<=m2Min,0,1)) -> 1 | AA52: =IF(VLOOKUP($B52,Formulacion!$A:$BE,MATCH(AA$1,Formulacion!$1:$1,0),FALSE)="NA",1,IF(OR(E52<=FechaMin,E52>FechaMax),0,1)) -> 1 | AB52: =IF(VLOOKUP($B52,Formulacion!$A:$BE,MATCH(AB$1,Formulacion!$1:$1,0),FALSE)="NA",1,IF(H52<=MaterialesMin,0,1)) -> 1 | AC52: =IF(VLOOKUP($B52,Formulacion!$A:$BE,MATCH(AC$1,Formulacion!$1:$1,0),FALSE)="NA",1,IF(N52=0,0,IF(OR(I52/N52<=MObraMin,I52/N52>=MObraMax),MDOmin,1))) -> 1 | AD52: =IF(VLOOKUP($B52,Formulacion!$A:$BE,MATCH(AD$1,Formulacion!$1:$1,0),FALSE)="NA",1,IF(N52<=CostoTotalMin,0,1)) -> 1 | AE52: =IF(VLOOKUP($B52,Formulacion!$A:$BE,MATCH(AE$1,Formulacion!$1:$1,0),FALSE)="NA",1,IF(Q52<=PostesMin,0,1)) -> 0 | AF52: =IF(VLOOKUP($B52,Formulacion!$A:$BE,MATCH(AF$1,Formulacion!$1:$1,0),FALSE)="NA",1,IF(R52<=INDIRECT(VLOOKUP(B52,Formulacion!$A:$BE,2,FALSE)),0,1)) -> 0 | AG52: 0 | AH52: 0 | AJ52: =IF(VLOOKUP($B52,Formulacion!$A:$BE,MATCH(AJ$1,Formulacion!$1:$1,0),FALSE)="NA","NA",HLOOKUP(VLOOKUP($B52,Formulacion!$A:$BE,MATCH(AJ$1,Formulacion!$1:$1,0),FALSE),$Q:$Z,ROW(AJ52),FALSE)) -> SP | AK52: =IF(VLOOKUP($B52,Formulacion!$A:$BE,MATCH(AK$1,Formulacion!$1:$1,0),FALSE)="NA",1,VLOOKUP($B52,Formulacion!$A:$BE,MATCH(AK$1,Formulacion!$1:$1,0),FALSE)) -> 30 | AL52: =IF(VLOOKUP($B52,Formulacion!$A:$BE,MATCH(AL$1,Formulacion!$1:$1,0),FALSE)="NA",1,VLOOKUP($B52,Formulacion!$A:$BE,MATCH(AL$1,Formulacion!$1:$1,0),FALSE)) -> 0.3 | AM52: NC | AN52: =IF(VLOOKUP($B52,Formulacion!$A:$BE,MATCH(AN$1,Formulacion!$1:$1,0),FALSE)="NA","NA",IF(D52=0,"",VLOOKUP($B52,Formulacion!$A:$BE,MATCH(AN$1,Formulacion!$1:$1,0),FALSE))) -> 0206170220032403 | AO52: LABTM1 | AP52: HO | AQ52: 3AL | AR52: 006 | AV52: =IF(VLOOKUP($B52,Formulacion!$A:$BE,MATCH(AV$1,Formulacion!$1:$1,0),FALSE)="NA","NA",VLOOKUP(CONCATENATE(AO52,AP52,AQ52,AR52,AS52,AT52,AU52),ValoresReferenciales!$A:$D,4,FALSE)) -> 14.76593257 | AW52: =IF(VLOOKUP($B52,Formulacion!$A:$BE,MATCH(AW$1,Formulacion!$1:$1,0),FALSE)="NA","NA",HLOOKUP(VLOOKUP($B52,Formulacion!$A:$BE,MATCH(AW$1,Formulacion!$1:$1,0),FALSE),$Q:$Z,ROW(AW52),FALSE)) -> 2 | AX52: 128.185 | AY52: 1 | AZ52: =IF(VLOOKUP($B52,Formulacion!$A:$BE,MATCH(AZ$1,Formulacion!$1:$1,0),FALSE)="NA",1,VLOOKUP($B52,Formulacion!$A:$BE,MATCH(AZ$1,Formulacion!$1:$1,0),FALSE)) -> 1 | BA52: =IF(VLOOKUP($B52,Formulacion!$A:$BE,MATCH(BA$1,Formulacion!$1:$1,0),FALSE)="NA",1,VLOOKUP($B52,Formulacion!$A:$BE,MATCH(BA$1,Formulacion!$1:$1,0),FALSE)) -> 1 | BB52: 0 | BC52: 256.37
A53: CC-01-AD-2010-EDECHI.xls | B53: DLABT | C53: 301012009090527 | D53: DLABTM100005P000HOC3ALA1/0 | E53: 2010-03-24 | F53: PALMA REAL | G53: 5 | H53: 230 | I53: 178.61 | J53: 0 | K53: 44.95 | L53: 0 | M53: 0 | N53: 453.56 | O53: 399 | P53: 0 | Q53: =IF(OR(VLOOKUP($B53,Formulacion!$A:$BE,MATCH(Q$1,Formulacion!$1:$1,0),FALSE)="NA",$D53=0),"NA",IF($B53="DLABT",MID($D53,PosteInicioBT,PosteFinBT-PosteInicioBT+1)*1,MID($D53,PosteInicio,PosteFin-PosteInicio+1)*1)) -> 0 | R53: =IF(OR(VLOOKUP($B53,Formulacion!$A:$BE,MATCH(R$1,Formulacion!$1:$1,0),FALSE)="NA",$D53=0),"NA",IF(OR($B53="DLABT",$B53="DLSBT"),MID($D53,CondInicioBT,CondFinBT-CondInicioBT+1)*1,MID($D53,CondInicio,CondFin-CondInicio+1)*1)) -> 5 | S53: SP | T53: =IF(OR(VLOOKUP($B53,Formulacion!$A:$BE,MATCH(T$1,Formulacion!$1:$1,0),FALSE)="NA",$D53=0),"NA",IF($B53="DLSBT",MID($D53,ZanjaInicioBT,ZanjaFinBT-ZanjaInicioBT+1)*1,MID($D53,ZanjaInicio,ZanjaFin-ZanjaInicio+1)*1)) -> NA | U53: 1 | V53: =IF(OR(VLOOKUP($B53,Formulacion!$A:$BE,MATCH(V$1,Formulacion!$1:$1,0),FALSE)="NA",$D53=0),"NA",MID($D53,m2Inicio+INDIRECT(B53),m2Fin-m2Inicio+1)*1) -> NA | W53: =IF(OR(VLOOKUP($B53,Formulacion!$A:$BE,MATCH(W$1,Formulacion!$1:$1,0),FALSE)="NA",$D53=0),"NA",RIGHT($D53,4)*1) -> NA | X53: =IF(OR(VLOOKUP($B53,Formulacion!$A:$BE,MATCH(X$1,Formulacion!$1:$1,0),FALSE)="NA",$D53=0),"NA",RIGHT($D53,3)*1) -> NA | Y53: 1 | Z53: =IF(VLOOKUP($B53,Formulacion!$A:$BE,MATCH(Z$1,Formulacion!$1:$1,0),FALSE)="NA",1,IF(V53<=m2Min,0,1)) -> 1 | AA53: =IF(VLOOKUP($B53,Formulacion!$A:$BE,MATCH(AA$1,Formulacion!$1:$1,0),FALSE)="NA",1,IF(OR(E53<=FechaMin,E53>FechaMax),0,1)) -> 1 | AB53: =IF(VLOOKUP($B53,Formulacion!$A:$BE,MATCH(AB$1,Formulacion!$1:$1,0),FALSE)="NA",1,IF(H53<=MaterialesMin,0,1)) -> 1 | AC53: =IF(VLOOKUP($B53,Formulacion!$A:$BE,MATCH(AC$1,Formulacion!$1:$1,0),FALSE)="NA",1,IF(N53=0,0,IF(OR(I53/N53<=MObraMin,I53/N53>=MObraMax),MDOmin,1))) -> 1 | AD53: =IF(VLOOKUP($B53,Formulacion!$A:$BE,MATCH(AD$1,Formulacion!$1:$1,0),FALSE)="NA",1,IF(N53<=CostoTotalMin,0,1)) -> 1 | AE53: =IF(VLOOKUP($B53,Formulacion!$A:$BE,MATCH(AE$1,Formulacion!$1:$1,0),FALSE)="NA",1,IF(Q53<=PostesMin,0,1)) -> 0 | AF53: =IF(VLOOKUP($B53,Formulacion!$A:$BE,MATCH(AF$1,Formulacion!$1:$1,0),FALSE)="NA",1,IF(R53<=INDIRECT(VLOOKUP(B53,Formulacion!$A:$BE,2,FALSE)),0,1)) -> 0 | AG53: 0 | AH53: 0 | AJ53: =IF(VLOOKUP($B53,Formulacion!$A:$BE,MATCH(AJ$1,Formulacion!$1:$1,0),FALSE)="NA","NA",HLOOKUP(VLOOKUP($B53,Formulacion!$A:$BE,MATCH(AJ$1,Formulacion!$1:$1,0),FALSE),$Q:$Z,ROW(AJ53),FALSE)) -> SP | AK53: =IF(VLOOKUP($B53,Formulacion!$A:$BE,MATCH(AK$1,Formulacion!$1:$1,0),FALSE)="NA",1,VLOOKUP($B53,Formulacion!$A:$BE,MATCH(AK$1,Formulacion!$1:$1,0),FALSE)) -> 30 | AL53: =IF(VLOOKUP($B53,Formulacion!$A:$BE,MATCH(AL$1,Formulacion!$1:$1,0),FALSE)="NA",1,VLOOKUP($B53,Formulacion!$A:$BE,MATCH(AL$1,Formulacion!$1:$1,0),FALSE)) -> 0.3 | AM53: NC | AN53: =IF(VLOOKUP($B53,Formulacion!$A:$BE,MATCH(AN$1,Formulacion!$1:$1,0),FALSE)="NA","NA",IF(D53=0,"",VLOOKUP($B53,Formulacion!$A:$BE,MATCH(AN$1,Formulacion!$1:$1,0),FALSE))) -> 0206170220032403 | AO53: LABTM1 | AP53: HO | AQ53: 3AL | AR53: 1/0 | AV53: =IF(VLOOKUP($B53,Formulacion!$A:$BE,MATCH(AV$1,Formulacion!$1:$1,0),FALSE)="NA","NA",VLOOKUP(CONCATENATE(AO53,AP53,AQ53,AR53,AS53,AT53,AU53),ValoresReferenciales!$A:$D,4,FALSE)) -> 17.37168537 | AW53: =IF(VLOOKUP($B53,Formulacion!$A:$BE,MATCH(AW$1,Formulacion!$1:$1,0),FALSE)="NA","NA",HLOOKUP(VLOOKUP($B53,Formulacion!$A:$BE,MATCH(AW$1,Formulacion!$1:$1,0),FALSE),$Q:$Z,ROW(AW53),FALSE)) -> 5 | AX53: 90.712 | AY53: 1 | AZ53: =IF(VLOOKUP($B53,Formulacion!$A:$BE,MATCH(AZ$1,Formulacion!$1:$1,0),FALSE)="NA",1,VLOOKUP($B53,Formulacion!$A:$BE,MATCH(AZ$1,Formulacion!$1:$1,0),FALSE)) -> 1 | BA53: =IF(VLOOKUP($B53,Formulacion!$A:$BE,MATCH(BA$1,Formulacion!$1:$1,0),FALSE)="NA",1,VLOOKUP($B53,Formulacion!$A:$BE,MATCH(BA$1,Formulacion!$1:$1,0),FALSE)) -> 1 | BB53: 0 | BC53: 453.56
A54: CC-01-AD-2010-EDECHI.xls | B54: DLABT | C54: 301012009090527 | D54: DLABTM100090P001HOC3ALA002 | E54: 2010-03-24 | F54: PALMA REAL | G54: 90 | H54: 1050.03 | I54: 815.4 | J54: 0 | K54: 205.24 | L54: 0 | M54: 0 | N54: 2070.67 | O54: 397 | P54: 0 | Q54: =IF(OR(VLOOKUP($B54,Formulacion!$A:$BE,MATCH(Q$1,Formulacion!$1:$1,0),FALSE)="NA",$D54=0),"NA",IF($B54="DLABT",MID($D54,PosteInicioBT,PosteFinBT-PosteInicioBT+1)*1,MID($D54,PosteInicio,PosteFin-PosteInicio+1)*1)) -> 1 | R54: =IF(OR(VLOOKUP($B54,Formulacion!$A:$BE,MATCH(R$1,Formulacion!$1:$1,0),FALSE)="NA",$D54=0),"NA",IF(OR($B54="DLABT",$B54="DLSBT"),MID($D54,CondInicioBT,CondFinBT-CondInicioBT+1)*1,MID($D54,CondInicio,CondFin-CondInicio+1)*1)) -> 90 | S54: 90 | T54: =IF(OR(VLOOKUP($B54,Formulacion!$A:$BE,MATCH(T$1,Formulacion!$1:$1,0),FALSE)="NA",$D54=0),"NA",IF($B54="DLSBT",MID($D54,ZanjaInicioBT,ZanjaFinBT-ZanjaInicioBT+1)*1,MID($D54,ZanjaInicio,ZanjaFin-ZanjaInicio+1)*1)) -> NA | U54: 1 | V54: =IF(OR(VLOOKUP($B54,Formulacion!$A:$BE,MATCH(V$1,Formulacion!$1:$1,0),FALSE)="NA",$D54=0),"NA",MID($D54,m2Inicio+INDIRECT(B54),m2Fin-m2Inicio+1)*1) -> NA | W54: =IF(OR(VLOOKUP($B54,Formulacion!$A:$BE,MATCH(W$1,Formulacion!$1:$1,0),FALSE)="NA",$D54=0),"NA",RIGHT($D54,4)*1) -> NA | X54: =IF(OR(VLOOKUP($B54,Formulacion!$A:$BE,MATCH(X$1,Formulacion!$1:$1,0),FALSE)="NA",$D54=0),"NA",RIGHT($D54,3)*1) -> NA | Y54: 1 | Z54: =IF(VLOOKUP($B54,Formulacion!$A:$BE,MATCH(Z$1,Formulacion!$1:$1,0),FALSE)="NA",1,IF(V54<=m2Min,0,1)) -> 1 | AA54: =IF(VLOOKUP($B54,Formulacion!$A:$BE,MATCH(AA$1,Formulacion!$1:$1,0),FALSE)="NA",1,IF(OR(E54<=FechaMin,E54>FechaMax),0,1)) -> 1 | AB54: =IF(VLOOKUP($B54,Formulacion!$A:$BE,MATCH(AB$1,Formulacion!$1:$1,0),FALSE)="NA",1,IF(H54<=MaterialesMin,0,1)) -> 1 | AC54: =IF(VLOOKUP($B54,Formulacion!$A:$BE,MATCH(AC$1,Formulacion!$1:$1,0),FALSE)="NA",1,IF(N54=0,0,IF(OR(I54/N54<=MObraMin,I54/N54>=MObraMax),MDOmin,1))) -> 1 | AD54: =IF(VLOOKUP($B54,Formulacion!$A:$BE,MATCH(AD$1,Formulacion!$1:$1,0),FALSE)="NA",1,IF(N54<=CostoTotalMin,0,1)) -> 1 | AE54: =IF(VLOOKUP($B54,Formulacion!$A:$BE,MATCH(AE$1,Formulacion!$1:$1,0),FALSE)="NA",1,IF(Q54<=PostesMin,0,1)) -> 0 | AF54: =IF(VLOOKUP($B54,Formulacion!$A:$BE,MATCH(AF$1,Formulacion!$1:$1,0),FALSE)="NA",1,IF(R54<=INDIRECT(VLOOKUP(B54,Formulacion!$A:$BE,2,FALSE)),0,1)) -> 1 | AG54: 1 | AH54: 2070.67 | AJ54: =IF(VLOOKUP($B54,Formulacion!$A:$BE,MATCH(AJ$1,Formulacion!$1:$1,0),FALSE)="NA","NA",HLOOKUP(VLOOKUP($B54,Formulacion!$A:$BE,MATCH(AJ$1,Formulacion!$1:$1,0),FALSE),$Q:$Z,ROW(AJ54),FALSE)) -> 90 | AK54: =IF(VLOOKUP($B54,Formulacion!$A:$BE,MATCH(AK$1,Formulacion!$1:$1,0),FALSE)="NA",1,VLOOKUP($B54,Formulacion!$A:$BE,MATCH(AK$1,Formulacion!$1:$1,0),FALSE)) -> 30 | AL54: =IF(VLOOKUP($B54,Formulacion!$A:$BE,MATCH(AL$1,Formulacion!$1:$1,0),FALSE)="NA",1,VLOOKUP($B54,Formulacion!$A:$BE,MATCH(AL$1,Formulacion!$1:$1,0),FALSE)) -> 0.3 | AM54: NC | AN54: =IF(VLOOKUP($B54,Formulacion!$A:$BE,MATCH(AN$1,Formulacion!$1:$1,0),FALSE)="NA","NA",IF(D54=0,"",VLOOKUP($B54,Formulacion!$A:$BE,MATCH(AN$1,Formulacion!$1:$1,0),FALSE))) -> 0206170220032403 | AO54: LABTM1 | AP54: HO | AQ54: 3AL | AR54: 002 | AV54: =IF(VLOOKUP($B54,Formulacion!$A:$BE,MATCH(AV$1,Formulacion!$1:$1,0),FALSE)="NA","NA",VLOOKUP(CONCATENATE(AO54,AP54,AQ54,AR54,AS54,AT54,AU54),ValoresReferenciales!$A:$D,4,FALSE)) -> 15.63451684 | AW54: =IF(VLOOKUP($B54,Formulacion!$A:$BE,MATCH(AW$1,Formulacion!$1:$1,0),FALSE)="NA","NA",HLOOKUP(VLOOKUP($B54,Formulacion!$A:$BE,MATCH(AW$1,Formulacion!$1:$1,0),FALSE),$Q:$Z,ROW(AW54),FALSE)) -> 90 | AX54: 23.00744444 | AY54: 1 | AZ54: =IF(VLOOKUP($B54,Formulacion!$A:$BE,MATCH(AZ$1,Formulacion!$1:$1,0),FALSE)="NA",1,VLOOKUP($B54,Formulacion!$A:$BE,MATCH(AZ$1,Formulacion!$1:$1,0),FALSE)) -> 1 | BA54: =IF(VLOOKUP($B54,Formulacion!$A:$BE,MATCH(BA$1,Formulacion!$1:$1,0),FALSE)="NA",1,VLOOKUP($B54,Formulacion!$A:$BE,MATCH(BA$1,Formulacion!$1:$1,0),FALSE)) -> 1 | BB54: 2070.67 | BC54: 2070.67
A55: CC-01-AD-2010-EDECHI.xls | B55: DLABT | C55: 301012009100065 | D55: DLABTM100002P000HOC3ALA006 | E55: 2010-03-23 | F55: ASERRIO DE GARI | G55: 2 | H55: 135.56 | I55: 52.08 | J55: 0 | K55: 22.72 | L55: 0 | M55: 0 | N55: 210.36 | O55: 354 | P55: 0 | Q55: =IF(OR(VLOOKUP($B55,Formulacion!$A:$BE,MATCH(Q$1,Formulacion!$1:$1,0),FALSE)="NA",$D55=0),"NA",IF($B55="DLABT",MID($D55,PosteInicioBT,PosteFinBT-PosteInicioBT+1)*1,MID($D55,PosteInicio,PosteFin-PosteInicio+1)*1)) -> 0 | R55: =IF(OR(VLOOKUP($B55,Formulacion!$A:$BE,MATCH(R$1,Formulacion!$1:$1,0),FALSE)="NA",$D55=0),"NA",IF(OR($B55="DLABT",$B55="DLSBT"),MID($D55,CondInicioBT,CondFinBT-CondInicioBT+1)*1,MID($D55,CondInicio,CondFin-CondInicio+1)*1)) -> 2 | S55: SP | T55: =IF(OR(VLOOKUP($B55,Formulacion!$A:$BE,MATCH(T$1,Formulacion!$1:$1,0),FALSE)="NA",$D55=0),"NA",IF($B55="DLSBT",MID($D55,ZanjaInicioBT,ZanjaFinBT-ZanjaInicioBT+1)*1,MID($D55,ZanjaInicio,ZanjaFin-ZanjaInicio+1)*1)) -> NA | U55: 1 | V55: =IF(OR(VLOOKUP($B55,Formulacion!$A:$BE,MATCH(V$1,Formulacion!$1:$1,0),FALSE)="NA",$D55=0),"NA",MID($D55,m2Inicio+INDIRECT(B55),m2Fin-m2Inicio+1)*1) -> NA | W55: =IF(OR(VLOOKUP($B55,Formulacion!$A:$BE,MATCH(W$1,Formulacion!$1:$1,0),FALSE)="NA",$D55=0),"NA",RIGHT($D55,4)*1) -> NA | X55: =IF(OR(VLOOKUP($B55,Formulacion!$A:$BE,MATCH(X$1,Formulacion!$1:$1,0),FALSE)="NA",$D55=0),"NA",RIGHT($D55,3)*1) -> NA | Y55: 1 | Z55: =IF(VLOOKUP($B55,Formulacion!$A:$BE,MATCH(Z$1,Formulacion!$1:$1,0),FALSE)="NA",1,IF(V55<=m2Min,0,1)) -> 1 | AA55: =IF(VLOOKUP($B55,Formulacion!$A:$BE,MATCH(AA$1,Formulacion!$1:$1,0),FALSE)="NA",1,IF(OR(E55<=FechaMin,E55>FechaMax),0,1)) -> 1 | AB55: =IF(VLOOKUP($B55,Formulacion!$A:$BE,MATCH(AB$1,Formulacion!$1:$1,0),FALSE)="NA",1,IF(H55<=MaterialesMin,0,1)) -> 1 | AC55: =IF(VLOOKUP($B55,Formulacion!$A:$BE,MATCH(AC$1,Formulacion!$1:$1,0),FALSE)="NA",1,IF(N55=0,0,IF(OR(I55/N55<=MObraMin,I55/N55>=MObraMax),MDOmin,1))) -> 1 | AD55: =IF(VLOOKUP($B55,Formulacion!$A:$BE,MATCH(AD$1,Formulacion!$1:$1,0),FALSE)="NA",1,IF(N55<=CostoTotalMin,0,1)) -> 1 | AE55: =IF(VLOOKUP($B55,Formulacion!$A:$BE,MATCH(AE$1,Formulacion!$1:$1,0),FALSE)="NA",1,IF(Q55<=PostesMin,0,1)) -> 0 | AF55: =IF(VLOOKUP($B55,Formulacion!$A:$BE,MATCH(AF$1,Formulacion!$1:$1,0),FALSE)="NA",1,IF(R55<=INDIRECT(VLOOKUP(B55,Formulacion!$A:$BE,2,FALSE)),0,1)) -> 0 | AG55: 0 | AH55: 0 | AJ55: =IF(VLOOKUP($B55,Formulacion!$A:$BE,MATCH(AJ$1,Formulacion!$1:$1,0),FALSE)="NA","NA",HLOOKUP(VLOOKUP($B55,Formulacion!$A:$BE,MATCH(AJ$1,Formulacion!$1:$1,0),FALSE),$Q:$Z,ROW(AJ55),FALSE)) -> SP | AK55: =IF(VLOOKUP($B55,Formulacion!$A:$BE,MATCH(AK$1,Formulacion!$1:$1,0),FALSE)="NA",1,VLOOKUP($B55,Formulacion!$A:$BE,MATCH(AK$1,Formulacion!$1:$1,0),FALSE)) -> 30 | AL55: =IF(VLOOKUP($B55,Formulacion!$A:$BE,MATCH(AL$1,Formulacion!$1:$1,0),FALSE)="NA",1,VLOOKUP($B55,Formulacion!$A:$BE,MATCH(AL$1,Formulacion!$1:$1,0),FALSE)) -> 0.3 | AM55: NC | AN55: =IF(VLOOKUP($B55,Formulacion!$A:$BE,MATCH(AN$1,Formulacion!$1:$1,0),FALSE)="NA","NA",IF(D55=0,"",VLOOKUP($B55,Formulacion!$A:$BE,MATCH(AN$1,Formulacion!$1:$1,0),FALSE))) -> 0206170220032403 | AO55: LABTM1 | AP55: HO | AQ55: 3AL | AR55: 006 | AV55: =IF(VLOOKUP($B55,Formulacion!$A:$BE,MATCH(AV$1,Formulacion!$1:$1,0),FALSE)="NA","NA",VLOOKUP(CONCATENATE(AO55,AP55,AQ55,AR55,AS55,AT55,AU55),ValoresReferenciales!$A:$D,4,FALSE)) -> 14.76593257 | AW55: =IF(VLOOKUP($B55,Formulacion!$A:$BE,MATCH(AW$1,Formulacion!$1:$1,0),FALSE)="NA","NA",HLOOKUP(VLOOKUP($B55,Formulacion!$A:$BE,MATCH(AW$1,Formulacion!$1:$1,0),FALSE),$Q:$Z,ROW(AW55),FALSE)) -> 2 | AX55: 105.18 | AY55: 1 | AZ55: =IF(VLOOKUP($B55,Formulacion!$A:$BE,MATCH(AZ$1,Formulacion!$1:$1,0),FALSE)="NA",1,VLOOKUP($B55,Formulacion!$A:$BE,MATCH(AZ$1,Formulacion!$1:$1,0),FALSE)) -> 1 | BA55: =IF(VLOOKUP($B55,Formulacion!$A:$BE,MATCH(BA$1,Formulacion!$1:$1,0),FALSE)="NA",1,VLOOKUP($B55,Formulacion!$A:$BE,MATCH(BA$1,Formulacion!$1:$1,0),FALSE)) -> 1 | BB55: 0 | BC55: 210.36
A56: CC-01-AD-2010-EDECHI.xls | B56: DLABT | C56: 301012009100065 | D56: DLABTM100095P002HOC3ALA002 | E56: 2010-03-23 | F56: ASERRIO DE GARI | G56: 95 | H56: 1508 | I56: 579.33 | J56: 0 | K56: 252.88 | L56: 0 | M56: 0 | N56: 2340.21 | O56: 353 | P56: 0 | Q56: =IF(OR(VLOOKUP($B56,Formulacion!$A:$BE,MATCH(Q$1,Formulacion!$1:$1,0),FALSE)="NA",$D56=0),"NA",IF($B56="DLABT",MID($D56,PosteInicioBT,PosteFinBT-PosteInicioBT+1)*1,MID($D56,PosteInicio,PosteFin-PosteInicio+1)*1)) -> 2 | R56: =IF(OR(VLOOKUP($B56,Formulacion!$A:$BE,MATCH(R$1,Formulacion!$1:$1,0),FALSE)="NA",$D56=0),"NA",IF(OR($B56="DLABT",$B56="DLSBT"),MID($D56,CondInicioBT,CondFinBT-CondInicioBT+1)*1,MID($D56,CondInicio,CondFin-CondInicio+1)*1)) -> 95 | S56: 47.5 | T56: =IF(OR(VLOOKUP($B56,Formulacion!$A:$BE,MATCH(T$1,Formulacion!$1:$1,0),FALSE)="NA",$D56=0),"NA",IF($B56="DLSBT",MID($D56,ZanjaInicioBT,ZanjaFinBT-ZanjaInicioBT+1)*1,MID($D56,ZanjaInicio,ZanjaFin-ZanjaInicio+1)*1)) -> NA | U56: 1 | V56: =IF(OR(VLOOKUP($B56,Formulacion!$A:$BE,MATCH(V$1,Formulacion!$1:$1,0),FALSE)="NA",$D56=0),"NA",MID($D56,m2Inicio+INDIRECT(B56),m2Fin-m2Inicio+1)*1) -> NA | W56: =IF(OR(VLOOKUP($B56,Formulacion!$A:$BE,MATCH(W$1,Formulacion!$1:$1,0),FALSE)="NA",$D56=0),"NA",RIGHT($D56,4)*1) -> NA | X56: =IF(OR(VLOOKUP($B56,Formulacion!$A:$BE,MATCH(X$1,Formulacion!$1:$1,0),FALSE)="NA",$D56=0),"NA",RIGHT($D56,3)*1) -> NA | Y56: 1 | Z56: =IF(VLOOKUP($B56,Formulacion!$A:$BE,MATCH(Z$1,Formulacion!$1:$1,0),FALSE)="NA",1,IF(V56<=m2Min,0,1)) -> 1 | AA56: =IF(VLOOKUP($B56,Formulacion!$A:$BE,MATCH(AA$1,Formulacion!$1:$1,0),FALSE)="NA",1,IF(OR(E56<=FechaMin,E56>FechaMax),0,1)) -> 1 | AB56: =IF(VLOOKUP($B56,Formulacion!$A:$BE,MATCH(AB$1,Formulacion!$1:$1,0),FALSE)="NA",1,IF(H56<=MaterialesMin,0,1)) -> 1 | AC56: =IF(VLOOKUP($B56,Formulacion!$A:$BE,MATCH(AC$1,Formulacion!$1:$1,0),FALSE)="NA",1,IF(N56=0,0,IF(OR(I56/N56<=MObraMin,I56/N56>=MObraMax),MDOmin,1))) -> 1 | AD56: =IF(VLOOKUP($B56,Formulacion!$A:$BE,MATCH(AD$1,Formulacion!$1:$1,0),FALSE)="NA",1,IF(N56<=CostoTotalMin,0,1)) -> 1 | AE56: =IF(VLOOKUP($B56,Formulacion!$A:$BE,MATCH(AE$1,Formulacion!$1:$1,0),FALSE)="NA",1,IF(Q56<=PostesMin,0,1)) -> 0 | AF56: =IF(VLOOKUP($B56,Formulacion!$A:$BE,MATCH(AF$1,Formulacion!$1:$1,0),FALSE)="NA",1,IF(R56<=INDIRECT(VLOOKUP(B56,Formulacion!$A:$BE,2,FALSE)),0,1)) -> 1 | AG56: 1 | AH56: 2340.21 | AJ56: =IF(VLOOKUP($B56,Formulacion!$A:$BE,MATCH(AJ$1,Formulacion!$1:$1,0),FALSE)="NA","NA",HLOOKUP(VLOOKUP($B56,Formulacion!$A:$BE,MATCH(AJ$1,Formulacion!$1:$1,0),FALSE),$Q:$Z,ROW(AJ56),FALSE)) -> 47.5 | AK56: =IF(VLOOKUP($B56,Formulacion!$A:$BE,MATCH(AK$1,Formulacion!$1:$1,0),FALSE)="NA",1,VLOOKUP($B56,Formulacion!$A:$BE,MATCH(AK$1,Formulacion!$1:$1,0),FALSE)) -> 30 | AL56: =IF(VLOOKUP($B56,Formulacion!$A:$BE,MATCH(AL$1,Formulacion!$1:$1,0),FALSE)="NA",1,VLOOKUP($B56,Formulacion!$A:$BE,MATCH(AL$1,Formulacion!$1:$1,0),FALSE)) -> 0.3 | AM56: NC | AN56: =IF(VLOOKUP($B56,Formulacion!$A:$BE,MATCH(AN$1,Formulacion!$1:$1,0),FALSE)="NA","NA",IF(D56=0,"",VLOOKUP($B56,Formulacion!$A:$BE,MATCH(AN$1,Formulacion!$1:$1,0),FALSE))) -> 0206170220032403 | AO56: LABTM1 | AP56: HO | AQ56: 3AL | AR56: 002 | AV56: =IF(VLOOKUP($B56,Formulacion!$A:$BE,MATCH(AV$1,Formulacion!$1:$1,0),FALSE)="NA","NA",VLOOKUP(CONCATENATE(AO56,AP56,AQ56,AR56,AS56,AT56,AU56),ValoresReferenciales!$A:$D,4,FALSE)) -> 15.63451684 | AW56: =IF(VLOOKUP($B56,Formulacion!$A:$BE,MATCH(AW$1,Formulacion!$1:$1,0),FALSE)="NA","NA",HLOOKUP(VLOOKUP($B56,Formulacion!$A:$BE,MATCH(AW$1,Formulacion!$1:$1,0),FALSE),$Q:$Z,ROW(AW56),FALSE)) -> 95 | AX56: 24.63378947 | AY56: 1 | AZ56: =IF(VLOOKUP($B56,Formulacion!$A:$BE,MATCH(AZ$1,Formulacion!$1:$1,0),FALSE)="NA",1,VLOOKUP($B56,Formulacion!$A:$BE,MATCH(AZ$1,Formulacion!$1:$1,0),FALSE)) -> 1 | BA56: =IF(VLOOKUP($B56,Formulacion!$A:$BE,MATCH(BA$1,Formulacion!$1:$1,0),FALSE)="NA",1,VLOOKUP($B56,Formulacion!$A:$BE,MATCH(BA$1,Formulacion!$1:$1,0),FALSE)) -> 1 | BB56: 2340.21 | BC56: 2340.21
A57: CC-01-AD-2010-EDECHI.xls | B57: DLABT | C57: 301012009100105 | D57: DLABTM100002P000HOC3ALA006 | E57: 2010-01-27 | F57: PROGRESO | G57: 2 | H57: 124.86 | I57: 79.4 | J57: 0 | K57: 0 | L57: 0 | M57: 0 | N57: 204.26 | O57: 775 | P57: 0 | Q57: =IF(OR(VLOOKUP($B57,Formulacion!$A:$BE,MATCH(Q$1,Formulacion!$1:$1,0),FALSE)="NA",$D57=0),"NA",IF($B57="DLABT",MID($D57,PosteInicioBT,PosteFinBT-PosteInicioBT+1)*1,MID($D57,PosteInicio,PosteFin-PosteInicio+1)*1)) -> 0 | R57: =IF(OR(VLOOKUP($B57,Formulacion!$A:$BE,MATCH(R$1,Formulacion!$1:$1,0),FALSE)="NA",$D57=0),"NA",IF(OR($B57="DLABT",$B57="DLSBT"),MID($D57,CondInicioBT,CondFinBT-CondInicioBT+1)*1,MID($D57,CondInicio,CondFin-CondInicio+1)*1)) -> 2 | S57: SP | T57: =IF(OR(VLOOKUP($B57,Formulacion!$A:$BE,MATCH(T$1,Formulacion!$1:$1,0),FALSE)="NA",$D57=0),"NA",IF($B57="DLSBT",MID($D57,ZanjaInicioBT,ZanjaFinBT-ZanjaInicioBT+1)*1,MID($D57,ZanjaInicio,ZanjaFin-ZanjaInicio+1)*1)) -> NA | U57: 1 | V57: =IF(OR(VLOOKUP($B57,Formulacion!$A:$BE,MATCH(V$1,Formulacion!$1:$1,0),FALSE)="NA",$D57=0),"NA",MID($D57,m2Inicio+INDIRECT(B57),m2Fin-m2Inicio+1)*1) -> NA | W57: =IF(OR(VLOOKUP($B57,Formulacion!$A:$BE,MATCH(W$1,Formulacion!$1:$1,0),FALSE)="NA",$D57=0),"NA",RIGHT($D57,4)*1) -> NA | X57: =IF(OR(VLOOKUP($B57,Formulacion!$A:$BE,MATCH(X$1,Formulacion!$1:$1,0),FALSE)="NA",$D57=0),"NA",RIGHT($D57,3)*1) -> NA | Y57: 1 | Z57: =IF(VLOOKUP($B57,Formulacion!$A:$BE,MATCH(Z$1,Formulacion!$1:$1,0),FALSE)="NA",1,IF(V57<=m2Min,0,1)) -> 1 | AA57: =IF(VLOOKUP($B57,Formulacion!$A:$BE,MATCH(AA$1,Formulacion!$1:$1,0),FALSE)="NA",1,IF(OR(E57<=FechaMin,E57>FechaMax),0,1)) -> 1 | AB57: =IF(VLOOKUP($B57,Formulacion!$A:$BE,MATCH(AB$1,Formulacion!$1:$1,0),FALSE)="NA",1,IF(H57<=MaterialesMin,0,1)) -> 1 | AC57: =IF(VLOOKUP($B57,Formulacion!$A:$BE,MATCH(AC$1,Formulacion!$1:$1,0),FALSE)="NA",1,IF(N57=0,0,IF(OR(I57/N57<=MObraMin,I57/N57>=MObraMax),MDOmin,1))) -> 1 | AD57: =IF(VLOOKUP($B57,Formulacion!$A:$BE,MATCH(AD$1,Formulacion!$1:$1,0),FALSE)="NA",1,IF(N57<=CostoTotalMin,0,1)) -> 1 | AE57: =IF(VLOOKUP($B57,Formulacion!$A:$BE,MATCH(AE$1,Formulacion!$1:$1,0),FALSE)="NA",1,IF(Q57<=PostesMin,0,1)) -> 0 | AF57: =IF(VLOOKUP($B57,Formulacion!$A:$BE,MATCH(AF$1,Formulacion!$1:$1,0),FALSE)="NA",1,IF(R57<=INDIRECT(VLOOKUP(B57,Formulacion!$A:$BE,2,FALSE)),0,1)) -> 0 | AG57: 0 | AH57: 0 | AJ57: =IF(VLOOKUP($B57,Formulacion!$A:$BE,MATCH(AJ$1,Formulacion!$1:$1,0),FALSE)="NA","NA",HLOOKUP(VLOOKUP($B57,Formulacion!$A:$BE,MATCH(AJ$1,Formulacion!$1:$1,0),FALSE),$Q:$Z,ROW(AJ57),FALSE)) -> SP | AK57: =IF(VLOOKUP($B57,Formulacion!$A:$BE,MATCH(AK$1,Formulacion!$1:$1,0),FALSE)="NA",1,VLOOKUP($B57,Formulacion!$A:$BE,MATCH(AK$1,Formulacion!$1:$1,0),FALSE)) -> 30 | AL57: =IF(VLOOKUP($B57,Formulacion!$A:$BE,MATCH(AL$1,Formulacion!$1:$1,0),FALSE)="NA",1,VLOOKUP($B57,Formulacion!$A:$BE,MATCH(AL$1,Formulacion!$1:$1,0),FALSE)) -> 0.3 | AM57: NC | AN57: =IF(VLOOKUP($B57,Formulacion!$A:$BE,MATCH(AN$1,Formulacion!$1:$1,0),FALSE)="NA","NA",IF(D57=0,"",VLOOKUP($B57,Formulacion!$A:$BE,MATCH(AN$1,Formulacion!$1:$1,0),FALSE))) -> 0206170220032403 | AO57: LABTM1 | AP57: HO | AQ57: 3AL | AR57: 006 | AV57: =IF(VLOOKUP($B57,Formulacion!$A:$BE,MATCH(AV$1,Formulacion!$1:$1,0),FALSE)="NA","NA",VLOOKUP(CONCATENATE(AO57,AP57,AQ57,AR57,AS57,AT57,AU57),ValoresReferenciales!$A:$D,4,FALSE)) -> 14.76593257 | AW57: =IF(VLOOKUP($B57,Formulacion!$A:$BE,MATCH(AW$1,Formulacion!$1:$1,0),FALSE)="NA","NA",HLOOKUP(VLOOKUP($B57,Formulacion!$A:$BE,MATCH(AW$1,Formulacion!$1:$1,0),FALSE),$Q:$Z,ROW(AW57),FALSE)) -> 2 | AX57: 102.13 | AY57: 1 | AZ57: =IF(VLOOKUP($B57,Formulacion!$A:$BE,MATCH(AZ$1,Formulacion!$1:$1,0),FALSE)="NA",1,VLOOKUP($B57,Formulacion!$A:$BE,MATCH(AZ$1,Formulacion!$1:$1,0),FALSE)) -> 1 | BA57: =IF(VLOOKUP($B57,Formulacion!$A:$BE,MATCH(BA$1,Formulacion!$1:$1,0),FALSE)="NA",1,VLOOKUP($B57,Formulacion!$A:$BE,MATCH(BA$1,Formulacion!$1:$1,0),FALSE)) -> 1 | BB57: 0 | BC57: 204.26
A58: CC-01-AD-2010-EDECHI.xls | B58: DLABT | C58: 301012009100105 | D58: DLABTM100084P001HOC3ALA002 | E58: 2010-01-27 | F58: PROGRESO | G58: 84 | H58: 1201.72 | I58: 764.22 | J58: 0 | K58: 0 | L58: 0 | M58: 0 | N58: 1965.94 | O58: 774 | P58: 0 | Q58: =IF(OR(VLOOKUP($B58,Formulacion!$A:$BE,MATCH(Q$1,Formulacion!$1:$1,0),FALSE)="NA",$D58=0),"NA",IF($B58="DLABT",MID($D58,PosteInicioBT,PosteFinBT-PosteInicioBT+1)*1,MID($D58,PosteInicio,PosteFin-PosteInicio+1)*1)) -> 1 | R58: =IF(OR(VLOOKUP($B58,Formulacion!$A:$BE,MATCH(R$1,Formulacion!$1:$1,0),FALSE)="NA",$D58=0),"NA",IF(OR($B58="DLABT",$B58="DLSBT"),MID($D58,CondInicioBT,CondFinBT-CondInicioBT+1)*1,MID($D58,CondInicio,CondFin-CondInicio+1)*1)) -> 84 | S58: 84 | T58: =IF(OR(VLOOKUP($B58,Formulacion!$A:$BE,MATCH(T$1,Formulacion!$1:$1,0),FALSE)="NA",$D58=0),"NA",IF($B58="DLSBT",MID($D58,ZanjaInicioBT,ZanjaFinBT-ZanjaInicioBT+1)*1,MID($D58,ZanjaInicio,ZanjaFin-ZanjaInicio+1)*1)) -> NA | U58: 1 | V58: =IF(OR(VLOOKUP($B58,Formulacion!$A:$BE,MATCH(V$1,Formulacion!$1:$1,0),FALSE)="NA",$D58=0),"NA",MID($D58,m2Inicio+INDIRECT(B58),m2Fin-m2Inicio+1)*1) -> NA | W58: =IF(OR(VLOOKUP($B58,Formulacion!$A:$BE,MATCH(W$1,Formulacion!$1:$1,0),FALSE)="NA",$D58=0),"NA",RIGHT($D58,4)*1) -> NA | X58: =IF(OR(VLOOKUP($B58,Formulacion!$A:$BE,MATCH(X$1,Formulacion!$1:$1,0),FALSE)="NA",$D58=0),"NA",RIGHT($D58,3)*1) -> NA | Y58: 1 | Z58: =IF(VLOOKUP($B58,Formulacion!$A:$BE,MATCH(Z$1,Formulacion!$1:$1,0),FALSE)="NA",1,IF(V58<=m2Min,0,1)) -> 1 | AA58: =IF(VLOOKUP($B58,Formulacion!$A:$BE,MATCH(AA$1,Formulacion!$1:$1,0),FALSE)="NA",1,IF(OR(E58<=FechaMin,E58>FechaMax),0,1)) -> 1 | AB58: =IF(VLOOKUP($B58,Formulacion!$A:$BE,MATCH(AB$1,Formulacion!$1:$1,0),FALSE)="NA",1,IF(H58<=MaterialesMin,0,1)) -> 1 | AC58: =IF(VLOOKUP($B58,Formulacion!$A:$BE,MATCH(AC$1,Formulacion!$1:$1,0),FALSE)="NA",1,IF(N58=0,0,IF(OR(I58/N58<=MObraMin,I58/N58>=MObraMax),MDOmin,1))) -> 1 | AD58: =IF(VLOOKUP($B58,Formulacion!$A:$BE,MATCH(AD$1,Formulacion!$1:$1,0),FALSE)="NA",1,IF(N58<=CostoTotalMin,0,1)) -> 1 | AE58: =IF(VLOOKUP($B58,Formulacion!$A:$BE,MATCH(AE$1,Formulacion!$1:$1,0),FALSE)="NA",1,IF(Q58<=PostesMin,0,1)) -> 0 | AF58: =IF(VLOOKUP($B58,Formulacion!$A:$BE,MATCH(AF$1,Formulacion!$1:$1,0),FALSE)="NA",1,IF(R58<=INDIRECT(VLOOKUP(B58,Formulacion!$A:$BE,2,FALSE)),0,1)) -> 1 | AG58: 1 | AH58: 1965.94 | AJ58: =IF(VLOOKUP($B58,Formulacion!$A:$BE,MATCH(AJ$1,Formulacion!$1:$1,0),FALSE)="NA","NA",HLOOKUP(VLOOKUP($B58,Formulacion!$A:$BE,MATCH(AJ$1,Formulacion!$1:$1,0),FALSE),$Q:$Z,ROW(AJ58),FALSE)) -> 84 | AK58: =IF(VLOOKUP($B58,Formulacion!$A:$BE,MATCH(AK$1,Formulacion!$1:$1,0),FALSE)="NA",1,VLOOKUP($B58,Formulacion!$A:$BE,MATCH(AK$1,Formulacion!$1:$1,0),FALSE)) -> 30 | AL58: =IF(VLOOKUP($B58,Formulacion!$A:$BE,MATCH(AL$1,Formulacion!$1:$1,0),FALSE)="NA",1,VLOOKUP($B58,Formulacion!$A:$BE,MATCH(AL$1,Formulacion!$1:$1,0),FALSE)) -> 0.3 | AM58: NC | AN58: =IF(VLOOKUP($B58,Formulacion!$A:$BE,MATCH(AN$1,Formulacion!$1:$1,0),FALSE)="NA","NA",IF(D58=0,"",VLOOKUP($B58,Formulacion!$A:$BE,MATCH(AN$1,Formulacion!$1:$1,0),FALSE))) -> 0206170220032403 | AO58: LABTM1 | AP58: HO | AQ58: 3AL | AR58: 002 | AV58: =IF(VLOOKUP($B58,Formulacion!$A:$BE,MATCH(AV$1,Formulacion!$1:$1,0),FALSE)="NA","NA",VLOOKUP(CONCATENATE(AO58,AP58,AQ58,AR58,AS58,AT58,AU58),ValoresReferenciales!$A:$D,4,FALSE)) -> 15.63451684 | AW58: =IF(VLOOKUP($B58,Formulacion!$A:$BE,MATCH(AW$1,Formulacion!$1:$1,0),FALSE)="NA","NA",HLOOKUP(VLOOKUP($B58,Formulacion!$A:$BE,MATCH(AW$1,Formulacion!$1:$1,0),FALSE),$Q:$Z,ROW(AW58),FALSE)) -> 84 | AX58: 23.40404762 | AY58: 1 | AZ58: =IF(VLOOKUP($B58,Formulacion!$A:$BE,MATCH(AZ$1,Formulacion!$1:$1,0),FALSE)="NA",1,VLOOKUP($B58,Formulacion!$A:$BE,MATCH(AZ$1,Formulacion!$1:$1,0),FALSE)) -> 1 | BA58: =IF(VLOOKUP($B58,Formulacion!$A:$BE,MATCH(BA$1,Formulacion!$1:$1,0),FALSE)="NA",1,VLOOKUP($B58,Formulacion!$A:$BE,MATCH(BA$1,Formulacion!$1:$1,0),FALSE)) -> 1 | BB58: 1965.94 | BC58: 1965.94
A59: CC-01-AD-2010-EDECHI.xls | B59: DLABT | C59: 301012009100114 | D59: DLABTM100004P000HOC3ALA006 | E59: 2010-02-02 | F59: BAJO CHIRIQUI-B | G59: 4 | H59: 249.18 | I59: 91.23 | J59: 0 | K59: 35.22 | L59: 0 | M59: 0 | N59: 375.63 | O59: 794 | P59: 0 | Q59: =IF(OR(VLOOKUP($B59,Formulacion!$A:$BE,MATCH(Q$1,Formulacion!$1:$1,0),FALSE)="NA",$D59=0),"NA",IF($B59="DLABT",MID($D59,PosteInicioBT,PosteFinBT-PosteInicioBT+1)*1,MID($D59,PosteInicio,PosteFin-PosteInicio+1)*1)) -> 0 | R59: =IF(OR(VLOOKUP($B59,Formulacion!$A:$BE,MATCH(R$1,Formulacion!$1:$1,0),FALSE)="NA",$D59=0),"NA",IF(OR($B59="DLABT",$B59="DLSBT"),MID($D59,CondInicioBT,CondFinBT-CondInicioBT+1)*1,MID($D59,CondInicio,CondFin-CondInicio+1)*1)) -> 4 | S59: SP | T59: =IF(OR(VLOOKUP($B59,Formulacion!$A:$BE,MATCH(T$1,Formulacion!$1:$1,0),FALSE)="NA",$D59=0),"NA",IF($B59="DLSBT",MID($D59,ZanjaInicioBT,ZanjaFinBT-ZanjaInicioBT+1)*1,MID($D59,ZanjaInicio,ZanjaFin-ZanjaInicio+1)*1)) -> NA | U59: 1 | V59: =IF(OR(VLOOKUP($B59,Formulacion!$A:$BE,MATCH(V$1,Formulacion!$1:$1,0),FALSE)="NA",$D59=0),"NA",MID($D59,m2Inicio+INDIRECT(B59),m2Fin-m2Inicio+1)*1) -> NA | W59: =IF(OR(VLOOKUP($B59,Formulacion!$A:$BE,MATCH(W$1,Formulacion!$1:$1,0),FALSE)="NA",$D59=0),"NA",RIGHT($D59,4)*1) -> NA | X59: =IF(OR(VLOOKUP($B59,Formulacion!$A:$BE,MATCH(X$1,Formulacion!$1:$1,0),FALSE)="NA",$D59=0),"NA",RIGHT($D59,3)*1) -> NA | Y59: 1 | Z59: =IF(VLOOKUP($B59,Formulacion!$A:$BE,MATCH(Z$1,Formulacion!$1:$1,0),FALSE)="NA",1,IF(V59<=m2Min,0,1)) -> 1 | AA59: =IF(VLOOKUP($B59,Formulacion!$A:$BE,MATCH(AA$1,Formulacion!$1:$1,0),FALSE)="NA",1,IF(OR(E59<=FechaMin,E59>FechaMax),0,1)) -> 1 | AB59: =IF(VLOOKUP($B59,Formulacion!$A:$BE,MATCH(AB$1,Formulacion!$1:$1,0),FALSE)="NA",1,IF(H59<=MaterialesMin,0,1)) -> 1 | AC59: =IF(VLOOKUP($B59,Formulacion!$A:$BE,MATCH(AC$1,Formulacion!$1:$1,0),FALSE)="NA",1,IF(N59=0,0,IF(OR(I59/N59<=MObraMin,I59/N59>=MObraMax),MDOmin,1))) -> 1 | AD59: =IF(VLOOKUP($B59,Formulacion!$A:$BE,MATCH(AD$1,Formulacion!$1:$1,0),FALSE)="NA",1,IF(N59<=CostoTotalMin,0,1)) -> 1 | AE59: =IF(VLOOKUP($B59,Formulacion!$A:$BE,MATCH(AE$1,Formulacion!$1:$1,0),FALSE)="NA",1,IF(Q59<=PostesMin,0,1)) -> 0 | AF59: =IF(VLOOKUP($B59,Formulacion!$A:$BE,MATCH(AF$1,Formulacion!$1:$1,0),FALSE)="NA",1,IF(R59<=INDIRECT(VLOOKUP(B59,Formulacion!$A:$BE,2,FALSE)),0,1)) -> 0 | AG59: 0 | AH59: 0 | AJ59: =IF(VLOOKUP($B59,Formulacion!$A:$BE,MATCH(AJ$1,Formulacion!$1:$1,0),FALSE)="NA","NA",HLOOKUP(VLOOKUP($B59,Formulacion!$A:$BE,MATCH(AJ$1,Formulacion!$1:$1,0),FALSE),$Q:$Z,ROW(AJ59),FALSE)) -> SP | AK59: =IF(VLOOKUP($B59,Formulacion!$A:$BE,MATCH(AK$1,Formulacion!$1:$1,0),FALSE)="NA",1,VLOOKUP($B59,Formulacion!$A:$BE,MATCH(AK$1,Formulacion!$1:$1,0),FALSE)) -> 30 | AL59: =IF(VLOOKUP($B59,Formulacion!$A:$BE,MATCH(AL$1,Formulacion!$1:$1,0),FALSE)="NA",1,VLOOKUP($B59,Formulacion!$A:$BE,MATCH(AL$1,Formulacion!$1:$1,0),FALSE)) -> 0.3 | AM59: NC | AN59: =IF(VLOOKUP($B59,Formulacion!$A:$BE,MATCH(AN$1,Formulacion!$1:$1,0),FALSE)="NA","NA",IF(D59=0,"",VLOOKUP($B59,Formulacion!$A:$BE,MATCH(AN$1,Formulacion!$1:$1,0),FALSE))) -> 0206170220032403 | AO59: LABTM1 | AP59: HO | AQ59: 3AL | AR59: 006 | AV59: =IF(VLOOKUP($B59,Formulacion!$A:$BE,MATCH(AV$1,Formulacion!$1:$1,0),FALSE)="NA","NA",VLOOKUP(CONCATENATE(AO59,AP59,AQ59,AR59,AS59,AT59,AU59),ValoresReferenciales!$A:$D,4,FALSE)) -> 14.76593257 | AW59: =IF(VLOOKUP($B59,Formulacion!$A:$BE,MATCH(AW$1,Formulacion!$1:$1,0),FALSE)="NA","NA",HLOOKUP(VLOOKUP($B59,Formulacion!$A:$BE,MATCH(AW$1,Formulacion!$1:$1,0),FALSE),$Q:$Z,ROW(AW59),FALSE)) -> 4 | AX59: 93.9075 | AY59: 1 | AZ59: =IF(VLOOKUP($B59,Formulacion!$A:$BE,MATCH(AZ$1,Formulacion!$1:$1,0),FALSE)="NA",1,VLOOKUP($B59,Formulacion!$A:$BE,MATCH(AZ$1,Formulacion!$1:$1,0),FALSE)) -> 1 | BA59: =IF(VLOOKUP($B59,Formulacion!$A:$BE,MATCH(BA$1,Formulacion!$1:$1,0),FALSE)="NA",1,VLOOKUP($B59,Formulacion!$A:$BE,MATCH(BA$1,Formulacion!$1:$1,0),FALSE)) -> 1 | BB59: 0 | BC59: 375.63
A60: CC-01-AD-2010-EDECHI.xls | B60: DLABT | C60: 301012009100114 | D60: DLABTM100060P001HOC3ALA002 | E60: 2010-02-02 | F60: BAJO CHIRIQUI-B | G60: 60 | H60: 1050.87 | I60: 384.72 | J60: 0 | K60: 148.52 | L60: 0 | M60: 0 | N60: 1584.11 | O60: 793 | P60: 0 | Q60: =IF(OR(VLOOKUP($B60,Formulacion!$A:$BE,MATCH(Q$1,Formulacion!$1:$1,0),FALSE)="NA",$D60=0),"NA",IF($B60="DLABT",MID($D60,PosteInicioBT,PosteFinBT-PosteInicioBT+1)*1,MID($D60,PosteInicio,PosteFin-PosteInicio+1)*1)) -> 1 | R60: =IF(OR(VLOOKUP($B60,Formulacion!$A:$BE,MATCH(R$1,Formulacion!$1:$1,0),FALSE)="NA",$D60=0),"NA",IF(OR($B60="DLABT",$B60="DLSBT"),MID($D60,CondInicioBT,CondFinBT-CondInicioBT+1)*1,MID($D60,CondInicio,CondFin-CondInicio+1)*1)) -> 60 | S60: 60 | T60: =IF(OR(VLOOKUP($B60,Formulacion!$A:$BE,MATCH(T$1,Formulacion!$1:$1,0),FALSE)="NA",$D60=0),"NA",IF($B60="DLSBT",MID($D60,ZanjaInicioBT,ZanjaFinBT-ZanjaInicioBT+1)*1,MID($D60,ZanjaInicio,ZanjaFin-ZanjaInicio+1)*1)) -> NA | U60: 1 | V60: =IF(OR(VLOOKUP($B60,Formulacion!$A:$BE,MATCH(V$1,Formulacion!$1:$1,0),FALSE)="NA",$D60=0),"NA",MID($D60,m2Inicio+INDIRECT(B60),m2Fin-m2Inicio+1)*1) -> NA | W60: =IF(OR(VLOOKUP($B60,Formulacion!$A:$BE,MATCH(W$1,Formulacion!$1:$1,0),FALSE)="NA",$D60=0),"NA",RIGHT($D60,4)*1) -> NA | X60: =IF(OR(VLOOKUP($B60,Formulacion!$A:$BE,MATCH(X$1,Formulacion!$1:$1,0),FALSE)="NA",$D60=0),"NA",RIGHT($D60,3)*1) -> NA | Y60: 1 | Z60: =IF(VLOOKUP($B60,Formulacion!$A:$BE,MATCH(Z$1,Formulacion!$1:$1,0),FALSE)="NA",1,IF(V60<=m2Min,0,1)) -> 1 | AA60: =IF(VLOOKUP($B60,Formulacion!$A:$BE,MATCH(AA$1,Formulacion!$1:$1,0),FALSE)="NA",1,IF(OR(E60<=FechaMin,E60>FechaMax),0,1)) -> 1 | AB60: =IF(VLOOKUP($B60,Formulacion!$A:$BE,MATCH(AB$1,Formulacion!$1:$1,0),FALSE)="NA",1,IF(H60<=MaterialesMin,0,1)) -> 1 | AC60: =IF(VLOOKUP($B60,Formulacion!$A:$BE,MATCH(AC$1,Formulacion!$1:$1,0),FALSE)="NA",1,IF(N60=0,0,IF(OR(I60/N60<=MObraMin,I60/N60>=MObraMax),MDOmin,1))) -> 1 | AD60: =IF(VLOOKUP($B60,Formulacion!$A:$BE,MATCH(AD$1,Formulacion!$1:$1,0),FALSE)="NA",1,IF(N60<=CostoTotalMin,0,1)) -> 1 | AE60: =IF(VLOOKUP($B60,Formulacion!$A:$BE,MATCH(AE$1,Formulacion!$1:$1,0),FALSE)="NA",1,IF(Q60<=PostesMin,0,1)) -> 0 | AF60: =IF(VLOOKUP($B60,Formulacion!$A:$BE,MATCH(AF$1,Formulacion!$1:$1,0),FALSE)="NA",1,IF(R60<=INDIRECT(VLOOKUP(B60,Formulacion!$A:$BE,2,FALSE)),0,1)) -> 1 | AG60: 1 | AH60: 1584.11 | AJ60: =IF(VLOOKUP($B60,Formulacion!$A:$BE,MATCH(AJ$1,Formulacion!$1:$1,0),FALSE)="NA","NA",HLOOKUP(VLOOKUP($B60,Formulacion!$A:$BE,MATCH(AJ$1,Formulacion!$1:$1,0),FALSE),$Q:$Z,ROW(AJ60),FALSE)) -> 60 | AK60: =IF(VLOOKUP($B60,Formulacion!$A:$BE,MATCH(AK$1,Formulacion!$1:$1,0),FALSE)="NA",1,VLOOKUP($B60,Formulacion!$A:$BE,MATCH(AK$1,Formulacion!$1:$1,0),FALSE)) -> 30 | AL60: =IF(VLOOKUP($B60,Formulacion!$A:$BE,MATCH(AL$1,Formulacion!$1:$1,0),FALSE)="NA",1,VLOOKUP($B60,Formulacion!$A:$BE,MATCH(AL$1,Formulacion!$1:$1,0),FALSE)) -> 0.3 | AM60: NC | AN60: =IF(VLOOKUP($B60,Formulacion!$A:$BE,MATCH(AN$1,Formulacion!$1:$1,0),FALSE)="NA","NA",IF(D60=0,"",VLOOKUP($B60,Formulacion!$A:$BE,MATCH(AN$1,Formulacion!$1:$1,0),FALSE))) -> 0206170220032403 | AO60: LABTM1 | AP60: HO | AQ60: 3AL | AR60: 002 | AV60: =IF(VLOOKUP($B60,Formulacion!$A:$BE,MATCH(AV$1,Formulacion!$1:$1,0),FALSE)="NA","NA",VLOOKUP(CONCATENATE(AO60,AP60,AQ60,AR60,AS60,AT60,AU60),ValoresReferenciales!$A:$D,4,FALSE)) -> 15.63451684 | AW60: =IF(VLOOKUP($B60,Formulacion!$A:$BE,MATCH(AW$1,Formulacion!$1:$1,0),FALSE)="NA","NA",HLOOKUP(VLOOKUP($B60,Formulacion!$A:$BE,MATCH(AW$1,Formulacion!$1:$1,0),FALSE),$Q:$Z,ROW(AW60),FALSE)) -> 60 | AX60: 26.40183333 | AY60: 1 | AZ60: =IF(VLOOKUP($B60,Formulacion!$A:$BE,MATCH(AZ$1,Formulacion!$1:$1,0),FALSE)="NA",1,VLOOKUP($B60,Formulacion!$A:$BE,MATCH(AZ$1,Formulacion!$1:$1,0),FALSE)) -> 1 | BA60: =IF(VLOOKUP($B60,Formulacion!$A:$BE,MATCH(BA$1,Formulacion!$1:$1,0),FALSE)="NA",1,VLOOKUP($B60,Formulacion!$A:$BE,MATCH(BA$1,Formulacion!$1:$1,0),FALSE)) -> 1 | BB60: 1584.11 | BC60: 1584.11
A61: CC-01-AD-2010-EDECHI.xls | B61: DLABT | C61: 301012009100285 | D61: DLABTM100002P001HOC2ALA006 | E61: 2010-03-10 | F61: DAVID (CABECERA | G61: 2 | H61: 24.56 | I61: 67.46 | J61: 0 | K61: 0 | L61: 0 | M61: 0 | N61: 92.02 | O61: 195 | P61: 0 | Q61: =IF(OR(VLOOKUP($B61,Formulacion!$A:$BE,MATCH(Q$1,Formulacion!$1:$1,0),FALSE)="NA",$D61=0),"NA",IF($B61="DLABT",MID($D61,PosteInicioBT,PosteFinBT-PosteInicioBT+1)*1,MID($D61,PosteInicio,PosteFin-PosteInicio+1)*1)) -> 1 | R61: =IF(OR(VLOOKUP($B61,Formulacion!$A:$BE,MATCH(R$1,Formulacion!$1:$1,0),FALSE)="NA",$D61=0),"NA",IF(OR($B61="DLABT",$B61="DLSBT"),MID($D61,CondInicioBT,CondFinBT-CondInicioBT+1)*1,MID($D61,CondInicio,CondFin-CondInicio+1)*1)) -> 2 | S61: 2 | T61: =IF(OR(VLOOKUP($B61,Formulacion!$A:$BE,MATCH(T$1,Formulacion!$1:$1,0),FALSE)="NA",$D61=0),"NA",IF($B61="DLSBT",MID($D61,ZanjaInicioBT,ZanjaFinBT-ZanjaInicioBT+1)*1,MID($D61,ZanjaInicio,ZanjaFin-ZanjaInicio+1)*1)) -> NA | U61: 1 | V61: =IF(OR(VLOOKUP($B61,Formulacion!$A:$BE,MATCH(V$1,Formulacion!$1:$1,0),FALSE)="NA",$D61=0),"NA",MID($D61,m2Inicio+INDIRECT(B61),m2Fin-m2Inicio+1)*1) -> NA | W61: =IF(OR(VLOOKUP($B61,Formulacion!$A:$BE,MATCH(W$1,Formulacion!$1:$1,0),FALSE)="NA",$D61=0),"NA",RIGHT($D61,4)*1) -> NA | X61: =IF(OR(VLOOKUP($B61,Formulacion!$A:$BE,MATCH(X$1,Formulacion!$1:$1,0),FALSE)="NA",$D61=0),"NA",RIGHT($D61,3)*1) -> NA | Y61: 1 | Z61: =IF(VLOOKUP($B61,Formulacion!$A:$BE,MATCH(Z$1,Formulacion!$1:$1,0),FALSE)="NA",1,IF(V61<=m2Min,0,1)) -> 1 | AA61: =IF(VLOOKUP($B61,Formulacion!$A:$BE,MATCH(AA$1,Formulacion!$1:$1,0),FALSE)="NA",1,IF(OR(E61<=FechaMin,E61>FechaMax),0,1)) -> 1 | AB61: =IF(VLOOKUP($B61,Formulacion!$A:$BE,MATCH(AB$1,Formulacion!$1:$1,0),FALSE)="NA",1,IF(H61<=MaterialesMin,0,1)) -> 1 | AC61: =IF(VLOOKUP($B61,Formulacion!$A:$BE,MATCH(AC$1,Formulacion!$1:$1,0),FALSE)="NA",1,IF(N61=0,0,IF(OR(I61/N61<=MObraMin,I61/N61>=MObraMax),MDOmin,1))) -> 1 | AD61: =IF(VLOOKUP($B61,Formulacion!$A:$BE,MATCH(AD$1,Formulacion!$1:$1,0),FALSE)="NA",1,IF(N61<=CostoTotalMin,0,1)) -> 0 | AE61: =IF(VLOOKUP($B61,Formulacion!$A:$BE,MATCH(AE$1,Formulacion!$1:$1,0),FALSE)="NA",1,IF(Q61<=PostesMin,0,1)) -> 0 | AF61: =IF(VLOOKUP($B61,Formulacion!$A:$BE,MATCH(AF$1,Formulacion!$1:$1,0),FALSE)="NA",1,IF(R61<=INDIRECT(VLOOKUP(B61,Formulacion!$A:$BE,2,FALSE)),0,1)) -> 0 | AG61: 0 | AH61: 0 | AJ61: =IF(VLOOKUP($B61,Formulacion!$A:$BE,MATCH(AJ$1,Formulacion!$1:$1,0),FALSE)="NA","NA",HLOOKUP(VLOOKUP($B61,Formulacion!$A:$BE,MATCH(AJ$1,Formulacion!$1:$1,0),FALSE),$Q:$Z,ROW(AJ61),FALSE)) -> 2 | AK61: =IF(VLOOKUP($B61,Formulacion!$A:$BE,MATCH(AK$1,Formulacion!$1:$1,0),FALSE)="NA",1,VLOOKUP($B61,Formulacion!$A:$BE,MATCH(AK$1,Formulacion!$1:$1,0),FALSE)) -> 30 | AL61: =IF(VLOOKUP($B61,Formulacion!$A:$BE,MATCH(AL$1,Formulacion!$1:$1,0),FALSE)="NA",1,VLOOKUP($B61,Formulacion!$A:$BE,MATCH(AL$1,Formulacion!$1:$1,0),FALSE)) -> 0.3 | AM61: CU | AN61: =IF(VLOOKUP($B61,Formulacion!$A:$BE,MATCH(AN$1,Formulacion!$1:$1,0),FALSE)="NA","NA",IF(D61=0,"",VLOOKUP($B61,Formulacion!$A:$BE,MATCH(AN$1,Formulacion!$1:$1,0),FALSE))) -> 0206170220032403 | AO61: LABTM1 | AP61: HO | AQ61: 2AL | AR61: 006 | AV61: =IF(VLOOKUP($B61,Formulacion!$A:$BE,MATCH(AV$1,Formulacion!$1:$1,0),FALSE)="NA","NA",VLOOKUP(CONCATENATE(AO61,AP61,AQ61,AR61,AS61,AT61,AU61),ValoresReferenciales!$A:$D,4,FALSE)) -> 18.09655661 | AW61: =IF(VLOOKUP($B61,Formulacion!$A:$BE,MATCH(AW$1,Formulacion!$1:$1,0),FALSE)="NA","NA",HLOOKUP(VLOOKUP($B61,Formulacion!$A:$BE,MATCH(AW$1,Formulacion!$1:$1,0),FALSE),$Q:$Z,ROW(AW61),FALSE)) -> 2 | AX61: 46.01 | AY61: 0.3933179006 | AZ61: =IF(VLOOKUP($B61,Formulacion!$A:$BE,MATCH(AZ$1,Formulacion!$1:$1,0),FALSE)="NA",1,VLOOKUP($B61,Formulacion!$A:$BE,MATCH(AZ$1,Formulacion!$1:$1,0),FALSE)) -> 1 | BA61: =IF(VLOOKUP($B61,Formulacion!$A:$BE,MATCH(BA$1,Formulacion!$1:$1,0),FALSE)="NA",1,VLOOKUP($B61,Formulacion!$A:$BE,MATCH(BA$1,Formulacion!$1:$1,0),FALSE)) -> 1 | BB61: 0 | BC61: 92.02
A62: CC-01-AD-2010-EDECHI.xls | B62: DLABT | C62: 301012009100458 | D62: DLABTM100002P000HOC3ALA006 | E62: 2010-01-08 | F62: CUERVITO ARRIBA | G62: 2 | H62: 66.58 | I62: 47.13 | J62: 0 | K62: 14.66 | L62: 0 | M62: 0 | N62: 128.37 | O62: 821 | P62: 0 | Q62: =IF(OR(VLOOKUP($B62,Formulacion!$A:$BE,MATCH(Q$1,Formulacion!$1:$1,0),FALSE)="NA",$D62=0),"NA",IF($B62="DLABT",MID($D62,PosteInicioBT,PosteFinBT-PosteInicioBT+1)*1,MID($D62,PosteInicio,PosteFin-PosteInicio+1)*1)) -> 0 | R62: =IF(OR(VLOOKUP($B62,Formulacion!$A:$BE,MATCH(R$1,Formulacion!$1:$1,0),FALSE)="NA",$D62=0),"NA",IF(OR($B62="DLABT",$B62="DLSBT"),MID($D62,CondInicioBT,CondFinBT-CondInicioBT+1)*1,MID($D62,CondInicio,CondFin-CondInicio+1)*1)) -> 2 | S62: SP | T62: =IF(OR(VLOOKUP($B62,Formulacion!$A:$BE,MATCH(T$1,Formulacion!$1:$1,0),FALSE)="NA",$D62=0),"NA",IF($B62="DLSBT",MID($D62,ZanjaInicioBT,ZanjaFinBT-ZanjaInicioBT+1)*1,MID($D62,ZanjaInicio,ZanjaFin-ZanjaInicio+1)*1)) -> NA | U62: 1 | V62: =IF(OR(VLOOKUP($B62,Formulacion!$A:$BE,MATCH(V$1,Formulacion!$1:$1,0),FALSE)="NA",$D62=0),"NA",MID($D62,m2Inicio+INDIRECT(B62),m2Fin-m2Inicio+1)*1) -> NA | W62: =IF(OR(VLOOKUP($B62,Formulacion!$A:$BE,MATCH(W$1,Formulacion!$1:$1,0),FALSE)="NA",$D62=0),"NA",RIGHT($D62,4)*1) -> NA | X62: =IF(OR(VLOOKUP($B62,Formulacion!$A:$BE,MATCH(X$1,Formulacion!$1:$1,0),FALSE)="NA",$D62=0),"NA",RIGHT($D62,3)*1) -> NA | Y62: 1 | Z62: =IF(VLOOKUP($B62,Formulacion!$A:$BE,MATCH(Z$1,Formulacion!$1:$1,0),FALSE)="NA",1,IF(V62<=m2Min,0,1)) -> 1 | AA62: =IF(VLOOKUP($B62,Formulacion!$A:$BE,MATCH(AA$1,Formulacion!$1:$1,0),FALSE)="NA",1,IF(OR(E62<=FechaMin,E62>FechaMax),0,1)) -> 1 | AB62: =IF(VLOOKUP($B62,Formulacion!$A:$BE,MATCH(AB$1,Formulacion!$1:$1,0),FALSE)="NA",1,IF(H62<=MaterialesMin,0,1)) -> 1 | AC62: =IF(VLOOKUP($B62,Formulacion!$A:$BE,MATCH(AC$1,Formulacion!$1:$1,0),FALSE)="NA",1,IF(N62=0,0,IF(OR(I62/N62<=MObraMin,I62/N62>=MObraMax),MDOmin,1))) -> 1 | AD62: =IF(VLOOKUP($B62,Formulacion!$A:$BE,MATCH(AD$1,Formulacion!$1:$1,0),FALSE)="NA",1,IF(N62<=CostoTotalMin,0,1)) -> 1 | AE62: =IF(VLOOKUP($B62,Formulacion!$A:$BE,MATCH(AE$1,Formulacion!$1:$1,0),FALSE)="NA",1,IF(Q62<=PostesMin,0,1)) -> 0 | AF62: =IF(VLOOKUP($B62,Formulacion!$A:$BE,MATCH(AF$1,Formulacion!$1:$1,0),FALSE)="NA",1,IF(R62<=INDIRECT(VLOOKUP(B62,Formulacion!$A:$BE,2,FALSE)),0,1)) -> 0 | AG62: 0 | AH62: 0 | AJ62: =IF(VLOOKUP($B62,Formulacion!$A:$BE,MATCH(AJ$1,Formulacion!$1:$1,0),FALSE)="NA","NA",HLOOKUP(VLOOKUP($B62,Formulacion!$A:$BE,MATCH(AJ$1,Formulacion!$1:$1,0),FALSE),$Q:$Z,ROW(AJ62),FALSE)) -> SP | AK62: =IF(VLOOKUP($B62,Formulacion!$A:$BE,MATCH(AK$1,Formulacion!$1:$1,0),FALSE)="NA",1,VLOOKUP($B62,Formulacion!$A:$BE,MATCH(AK$1,Formulacion!$1:$1,0),FALSE)) -> 30 | AL62: =IF(VLOOKUP($B62,Formulacion!$A:$BE,MATCH(AL$1,Formulacion!$1:$1,0),FALSE)="NA",1,VLOOKUP($B62,Formulacion!$A:$BE,MATCH(AL$1,Formulacion!$1:$1,0),FALSE)) -> 0.3 | AM62: NC | AN62: =IF(VLOOKUP($B62,Formulacion!$A:$BE,MATCH(AN$1,Formulacion!$1:$1,0),FALSE)="NA","NA",IF(D62=0,"",VLOOKUP($B62,Formulacion!$A:$BE,MATCH(AN$1,Formulacion!$1:$1,0),FALSE))) -> 0206170220032403 | AO62: LABTM1 | AP62: HO | AQ62: 3AL | AR62: 006 | AV62: =IF(VLOOKUP($B62,Formulacion!$A:$BE,MATCH(AV$1,Formulacion!$1:$1,0),FALSE)="NA","NA",VLOOKUP(CONCATENATE(AO62,AP62,AQ62,AR62,AS62,AT62,AU62),ValoresReferenciales!$A:$D,4,FALSE)) -> 14.76593257 | AW62: =IF(VLOOKUP($B62,Formulacion!$A:$BE,MATCH(AW$1,Formulacion!$1:$1,0),FALSE)="NA","NA",HLOOKUP(VLOOKUP($B62,Formulacion!$A:$BE,MATCH(AW$1,Formulacion!$1:$1,0),FALSE),$Q:$Z,ROW(AW62),FALSE)) -> 2 | AX62: 64.185 | AY62: 1 | AZ62: =IF(VLOOKUP($B62,Formulacion!$A:$BE,MATCH(AZ$1,Formulacion!$1:$1,0),FALSE)="NA",1,VLOOKUP($B62,Formulacion!$A:$BE,MATCH(AZ$1,Formulacion!$1:$1,0),FALSE)) -> 1 | BA62: =IF(VLOOKUP($B62,Formulacion!$A:$BE,MATCH(BA$1,Formulacion!$1:$1,0),FALSE)="NA",1,VLOOKUP($B62,Formulacion!$A:$BE,MATCH(BA$1,Formulacion!$1:$1,0),FALSE)) -> 1 | BB62: 0 | BC62: 128.37
A63: CC-01-AD-2010-EDECHI.xls | B63: DLABT | C63: 301012009100458 | D63: DLABTM100195P002HOC3ALA002 | E63: 2010-01-08 | F63: CUERVITO ARRIBA | G63: 195 | H63: 1185.2 | I63: 838.99 | J63: 0 | K63: 260.95 | L63: 0 | M63: 0 | N63: 2285.14 | O63: 820 | P63: 0 | Q63: =IF(OR(VLOOKUP($B63,Formulacion!$A:$BE,MATCH(Q$1,Formulacion!$1:$1,0),FALSE)="NA",$D63=0),"NA",IF($B63="DLABT",MID($D63,PosteInicioBT,PosteFinBT-PosteInicioBT+1)*1,MID($D63,PosteInicio,PosteFin-PosteInicio+1)*1)) -> 2 | R63: =IF(OR(VLOOKUP($B63,Formulacion!$A:$BE,MATCH(R$1,Formulacion!$1:$1,0),FALSE)="NA",$D63=0),"NA",IF(OR($B63="DLABT",$B63="DLSBT"),MID($D63,CondInicioBT,CondFinBT-CondInicioBT+1)*1,MID($D63,CondInicio,CondFin-CondInicio+1)*1)) -> 195 | S63: 97.5 | T63: =IF(OR(VLOOKUP($B63,Formulacion!$A:$BE,MATCH(T$1,Formulacion!$1:$1,0),FALSE)="NA",$D63=0),"NA",IF($B63="DLSBT",MID($D63,ZanjaInicioBT,ZanjaFinBT-ZanjaInicioBT+1)*1,MID($D63,ZanjaInicio,ZanjaFin-ZanjaInicio+1)*1)) -> NA | U63: 1 | V63: =IF(OR(VLOOKUP($B63,Formulacion!$A:$BE,MATCH(V$1,Formulacion!$1:$1,0),FALSE)="NA",$D63=0),"NA",MID($D63,m2Inicio+INDIRECT(B63),m2Fin-m2Inicio+1)*1) -> NA | W63: =IF(OR(VLOOKUP($B63,Formulacion!$A:$BE,MATCH(W$1,Formulacion!$1:$1,0),FALSE)="NA",$D63=0),"NA",RIGHT($D63,4)*1) -> NA | X63: =IF(OR(VLOOKUP($B63,Formulacion!$A:$BE,MATCH(X$1,Formulacion!$1:$1,0),FALSE)="NA",$D63=0),"NA",RIGHT($D63,3)*1) -> NA | Y63: 1 | Z63: =IF(VLOOKUP($B63,Formulacion!$A:$BE,MATCH(Z$1,Formulacion!$1:$1,0),FALSE)="NA",1,IF(V63<=m2Min,0,1)) -> 1 | AA63: =IF(VLOOKUP($B63,Formulacion!$A:$BE,MATCH(AA$1,Formulacion!$1:$1,0),FALSE)="NA",1,IF(OR(E63<=FechaMin,E63>FechaMax),0,1)) -> 1 | AB63: =IF(VLOOKUP($B63,Formulacion!$A:$BE,MATCH(AB$1,Formulacion!$1:$1,0),FALSE)="NA",1,IF(H63<=MaterialesMin,0,1)) -> 1 | AC63: =IF(VLOOKUP($B63,Formulacion!$A:$BE,MATCH(AC$1,Formulacion!$1:$1,0),FALSE)="NA",1,IF(N63=0,0,IF(OR(I63/N63<=MObraMin,I63/N63>=MObraMax),MDOmin,1))) -> 1 | AD63: =IF(VLOOKUP($B63,Formulacion!$A:$BE,MATCH(AD$1,Formulacion!$1:$1,0),FALSE)="NA",1,IF(N63<=CostoTotalMin,0,1)) -> 1 | AE63: =IF(VLOOKUP($B63,Formulacion!$A:$BE,MATCH(AE$1,Formulacion!$1:$1,0),FALSE)="NA",1,IF(Q63<=PostesMin,0,1)) -> 0 | AF63: =IF(VLOOKUP($B63,Formulacion!$A:$BE,MATCH(AF$1,Formulacion!$1:$1,0),FALSE)="NA",1,IF(R63<=INDIRECT(VLOOKUP(B63,Formulacion!$A:$BE,2,FALSE)),0,1)) -> 1 | AG63: 1 | AH63: 2285.14 | AJ63: =IF(VLOOKUP($B63,Formulacion!$A:$BE,MATCH(AJ$1,Formulacion!$1:$1,0),FALSE)="NA","NA",HLOOKUP(VLOOKUP($B63,Formulacion!$A:$BE,MATCH(AJ$1,Formulacion!$1:$1,0),FALSE),$Q:$Z,ROW(AJ63),FALSE)) -> 97.5 | AK63: =IF(VLOOKUP($B63,Formulacion!$A:$BE,MATCH(AK$1,Formulacion!$1:$1,0),FALSE)="NA",1,VLOOKUP($B63,Formulacion!$A:$BE,MATCH(AK$1,Formulacion!$1:$1,0),FALSE)) -> 30 | AL63: =IF(VLOOKUP($B63,Formulacion!$A:$BE,MATCH(AL$1,Formulacion!$1:$1,0),FALSE)="NA",1,VLOOKUP($B63,Formulacion!$A:$BE,MATCH(AL$1,Formulacion!$1:$1,0),FALSE)) -> 0.3 | AM63: NC | AN63: =IF(VLOOKUP($B63,Formulacion!$A:$BE,MATCH(AN$1,Formulacion!$1:$1,0),FALSE)="NA","NA",IF(D63=0,"",VLOOKUP($B63,Formulacion!$A:$BE,MATCH(AN$1,Formulacion!$1:$1,0),FALSE))) -> 0206170220032403 | AO63: LABTM1 | AP63: HO | AQ63: 3AL | AR63: 002 | AV63: =IF(VLOOKUP($B63,Formulacion!$A:$BE,MATCH(AV$1,Formulacion!$1:$1,0),FALSE)="NA","NA",VLOOKUP(CONCATENATE(AO63,AP63,AQ63,AR63,AS63,AT63,AU63),ValoresReferenciales!$A:$D,4,FALSE)) -> 15.63451684 | AW63: =IF(VLOOKUP($B63,Formulacion!$A:$BE,MATCH(AW$1,Formulacion!$1:$1,0),FALSE)="NA","NA",HLOOKUP(VLOOKUP($B63,Formulacion!$A:$BE,MATCH(AW$1,Formulacion!$1:$1,0),FALSE),$Q:$Z,ROW(AW63),FALSE)) -> 195 | AX63: 11.71866667 | AY63: 1 | AZ63: =IF(VLOOKUP($B63,Formulacion!$A:$BE,MATCH(AZ$1,Formulacion!$1:$1,0),FALSE)="NA",1,VLOOKUP($B63,Formulacion!$A:$BE,MATCH(AZ$1,Formulacion!$1:$1,0),FALSE)) -> 1 | BA63: =IF(VLOOKUP($B63,Formulacion!$A:$BE,MATCH(BA$1,Formulacion!$1:$1,0),FALSE)="NA",1,VLOOKUP($B63,Formulacion!$A:$BE,MATCH(BA$1,Formulacion!$1:$1,0),FALSE)) -> 1 | BB63: 2285.14 | BC63: 2285.14
A64: CC-01-AD-2010-EDECHI.xls | B64: DLABT | C64: 301012009100462 | D64: DLABTM100000P000HOC3ALA006 | E64: 2010-01-27 | F64: MANCHUILA (P) | G64: 0 | H64: 119.93 | I64: 44.74 | J64: 0 | K64: 23.25 | L64: 0 | M64: 0 | N64: 187.92 | O64: 190 | P64: 0 | Q64: =IF(OR(VLOOKUP($B64,Formulacion!$A:$BE,MATCH(Q$1,Formulacion!$1:$1,0),FALSE)="NA",$D64=0),"NA",IF($B64="DLABT",MID($D64,PosteInicioBT,PosteFinBT-PosteInicioBT+1)*1,MID($D64,PosteInicio,PosteFin-PosteInicio+1)*1)) -> 0 | R64: =IF(OR(VLOOKUP($B64,Formulacion!$A:$BE,MATCH(R$1,Formulacion!$1:$1,0),FALSE)="NA",$D64=0),"NA",IF(OR($B64="DLABT",$B64="DLSBT"),MID($D64,CondInicioBT,CondFinBT-CondInicioBT+1)*1,MID($D64,CondInicio,CondFin-CondInicio+1)*1)) -> 0 | S64: SP | T64: =IF(OR(VLOOKUP($B64,Formulacion!$A:$BE,MATCH(T$1,Formulacion!$1:$1,0),FALSE)="NA",$D64=0),"NA",IF($B64="DLSBT",MID($D64,ZanjaInicioBT,ZanjaFinBT-ZanjaInicioBT+1)*1,MID($D64,ZanjaInicio,ZanjaFin-ZanjaInicio+1)*1)) -> NA | U64: 1 | V64: =IF(OR(VLOOKUP($B64,Formulacion!$A:$BE,MATCH(V$1,Formulacion!$1:$1,0),FALSE)="NA",$D64=0),"NA",MID($D64,m2Inicio+INDIRECT(B64),m2Fin-m2Inicio+1)*1) -> NA | W64: =IF(OR(VLOOKUP($B64,Formulacion!$A:$BE,MATCH(W$1,Formulacion!$1:$1,0),FALSE)="NA",$D64=0),"NA",RIGHT($D64,4)*1) -> NA | X64: =IF(OR(VLOOKUP($B64,Formulacion!$A:$BE,MATCH(X$1,Formulacion!$1:$1,0),FALSE)="NA",$D64=0),"NA",RIGHT($D64,3)*1) -> NA | Y64: 1 | Z64: =IF(VLOOKUP($B64,Formulacion!$A:$BE,MATCH(Z$1,Formulacion!$1:$1,0),FALSE)="NA",1,IF(V64<=m2Min,0,1)) -> 1 | AA64: =IF(VLOOKUP($B64,Formulacion!$A:$BE,MATCH(AA$1,Formulacion!$1:$1,0),FALSE)="NA",1,IF(OR(E64<=FechaMin,E64>FechaMax),0,1)) -> 1 | AB64: =IF(VLOOKUP($B64,Formulacion!$A:$BE,MATCH(AB$1,Formulacion!$1:$1,0),FALSE)="NA",1,IF(H64<=MaterialesMin,0,1)) -> 1 | AC64: =IF(VLOOKUP($B64,Formulacion!$A:$BE,MATCH(AC$1,Formulacion!$1:$1,0),FALSE)="NA",1,IF(N64=0,0,IF(OR(I64/N64<=MObraMin,I64/N64>=MObraMax),MDOmin,1))) -> 1 | AD64: =IF(VLOOKUP($B64,Formulacion!$A:$BE,MATCH(AD$1,Formulacion!$1:$1,0),FALSE)="NA",1,IF(N64<=CostoTotalMin,0,1)) -> 1 | AE64: =IF(VLOOKUP($B64,Formulacion!$A:$BE,MATCH(AE$1,Formulacion!$1:$1,0),FALSE)="NA",1,IF(Q64<=PostesMin,0,1)) -> 0 | AF64: =IF(VLOOKUP($B64,Formulacion!$A:$BE,MATCH(AF$1,Formulacion!$1:$1,0),FALSE)="NA",1,IF(R64<=INDIRECT(VLOOKUP(B64,Formulacion!$A:$BE,2,FALSE)),0,1)) -> 0 | AG64: 0 | AH64: 0 | AJ64: =IF(VLOOKUP($B64,Formulacion!$A:$BE,MATCH(AJ$1,Formulacion!$1:$1,0),FALSE)="NA","NA",HLOOKUP(VLOOKUP($B64,Formulacion!$A:$BE,MATCH(AJ$1,Formulacion!$1:$1,0),FALSE),$Q:$Z,ROW(AJ64),FALSE)) -> SP | AK64: =IF(VLOOKUP($B64,Formulacion!$A:$BE,MATCH(AK$1,Formulacion!$1:$1,0),FALSE)="NA",1,VLOOKUP($B64,Formulacion!$A:$BE,MATCH(AK$1,Formulacion!$1:$1,0),FALSE)) -> 30 | AL64: =IF(VLOOKUP($B64,Formulacion!$A:$BE,MATCH(AL$1,Formulacion!$1:$1,0),FALSE)="NA",1,VLOOKUP($B64,Formulacion!$A:$BE,MATCH(AL$1,Formulacion!$1:$1,0),FALSE)) -> 0.3 | AM64: NC | AN64: =IF(VLOOKUP($B64,Formulacion!$A:$BE,MATCH(AN$1,Formulacion!$1:$1,0),FALSE)="NA","NA",IF(D64=0,"",VLOOKUP($B64,Formulacion!$A:$BE,MATCH(AN$1,Formulacion!$1:$1,0),FALSE))) -> 0206170220032403 | AO64: LABTM1 | AP64: HO | AQ64: 3AL | AR64: 006 | AV64: =IF(VLOOKUP($B64,Formulacion!$A:$BE,MATCH(AV$1,Formulacion!$1:$1,0),FALSE)="NA","NA",VLOOKUP(CONCATENATE(AO64,AP64,AQ64,AR64,AS64,AT64,AU64),ValoresReferenciales!$A:$D,4,FALSE)) -> 14.76593257 | AW64: =IF(VLOOKUP($B64,Formulacion!$A:$BE,MATCH(AW$1,Formulacion!$1:$1,0),FALSE)="NA","NA",HLOOKUP(VLOOKUP($B64,Formulacion!$A:$BE,MATCH(AW$1,Formulacion!$1:$1,0),FALSE),$Q:$Z,ROW(AW64),FALSE)) -> 0 | AX64: 0 | AY64: 1 | AZ64: =IF(VLOOKUP($B64,Formulacion!$A:$BE,MATCH(AZ$1,Formulacion!$1:$1,0),FALSE)="NA",1,VLOOKUP($B64,Formulacion!$A:$BE,MATCH(AZ$1,Formulacion!$1:$1,0),FALSE)) -> 1 | BA64: =IF(VLOOKUP($B64,Formulacion!$A:$BE,MATCH(BA$1,Formulacion!$1:$1,0),FALSE)="NA",1,VLOOKUP($B64,Formulacion!$A:$BE,MATCH(BA$1,Formulacion!$1:$1,0),FALSE)) -> 1 | BB64: 0 | BC64: 187.92
A65: CC-01-AD-2010-EDECHI.xls | B65: DLABT | C65: 301012009100462 | D65: DLABTM100322P004HOC3ALA002 | E65: 2010-01-27 | F65: MANCHUILA (P) | G65: 322 | H65: 2918.2 | I65: 1088.73 | J65: 0 | K65: 565.54 | L65: 0 | M65: 0 | N65: 4572.47 | O65: 189 | P65: 0 | Q65: =IF(OR(VLOOKUP($B65,Formulacion!$A:$BE,MATCH(Q$1,Formulacion!$1:$1,0),FALSE)="NA",$D65=0),"NA",IF($B65="DLABT",MID($D65,PosteInicioBT,PosteFinBT-PosteInicioBT+1)*1,MID($D65,PosteInicio,PosteFin-PosteInicio+1)*1)) -> 4 | R65: =IF(OR(VLOOKUP($B65,Formulacion!$A:$BE,MATCH(R$1,Formulacion!$1:$1,0),FALSE)="NA",$D65=0),"NA",IF(OR($B65="DLABT",$B65="DLSBT"),MID($D65,CondInicioBT,CondFinBT-CondInicioBT+1)*1,MID($D65,CondInicio,CondFin-CondInicio+1)*1)) -> 322 | S65: 80.5 | T65: =IF(OR(VLOOKUP($B65,Formulacion!$A:$BE,MATCH(T$1,Formulacion!$1:$1,0),FALSE)="NA",$D65=0),"NA",IF($B65="DLSBT",MID($D65,ZanjaInicioBT,ZanjaFinBT-ZanjaInicioBT+1)*1,MID($D65,ZanjaInicio,ZanjaFin-ZanjaInicio+1)*1)) -> NA | U65: 1 | V65: =IF(OR(VLOOKUP($B65,Formulacion!$A:$BE,MATCH(V$1,Formulacion!$1:$1,0),FALSE)="NA",$D65=0),"NA",MID($D65,m2Inicio+INDIRECT(B65),m2Fin-m2Inicio+1)*1) -> NA | W65: =IF(OR(VLOOKUP($B65,Formulacion!$A:$BE,MATCH(W$1,Formulacion!$1:$1,0),FALSE)="NA",$D65=0),"NA",RIGHT($D65,4)*1) -> NA | X65: =IF(OR(VLOOKUP($B65,Formulacion!$A:$BE,MATCH(X$1,Formulacion!$1:$1,0),FALSE)="NA",$D65=0),"NA",RIGHT($D65,3)*1) -> NA | Y65: 1 | Z65: =IF(VLOOKUP($B65,Formulacion!$A:$BE,MATCH(Z$1,Formulacion!$1:$1,0),FALSE)="NA",1,IF(V65<=m2Min,0,1)) -> 1 | AA65: =IF(VLOOKUP($B65,Formulacion!$A:$BE,MATCH(AA$1,Formulacion!$1:$1,0),FALSE)="NA",1,IF(OR(E65<=FechaMin,E65>FechaMax),0,1)) -> 1 | AB65: =IF(VLOOKUP($B65,Formulacion!$A:$BE,MATCH(AB$1,Formulacion!$1:$1,0),FALSE)="NA",1,IF(H65<=MaterialesMin,0,1)) -> 1 | AC65: =IF(VLOOKUP($B65,Formulacion!$A:$BE,MATCH(AC$1,Formulacion!$1:$1,0),FALSE)="NA",1,IF(N65=0,0,IF(OR(I65/N65<=MObraMin,I65/N65>=MObraMax),MDOmin,1))) -> 1 | AD65: =IF(VLOOKUP($B65,Formulacion!$A:$BE,MATCH(AD$1,Formulacion!$1:$1,0),FALSE)="NA",1,IF(N65<=CostoTotalMin,0,1)) -> 1 | AE65: =IF(VLOOKUP($B65,Formulacion!$A:$BE,MATCH(AE$1,Formulacion!$1:$1,0),FALSE)="NA",1,IF(Q65<=PostesMin,0,1)) -> 1 | AF65: =IF(VLOOKUP($B65,Formulacion!$A:$BE,MATCH(AF$1,Formulacion!$1:$1,0),FALSE)="NA",1,IF(R65<=INDIRECT(VLOOKUP(B65,Formulacion!$A:$BE,2,FALSE)),0,1)) -> 1 | AG65: 1 | AH65: 4572.47 | AJ65: =IF(VLOOKUP($B65,Formulacion!$A:$BE,MATCH(AJ$1,Formulacion!$1:$1,0),FALSE)="NA","NA",HLOOKUP(VLOOKUP($B65,Formulacion!$A:$BE,MATCH(AJ$1,Formulacion!$1:$1,0),FALSE),$Q:$Z,ROW(AJ65),FALSE)) -> 80.5 | AK65: =IF(VLOOKUP($B65,Formulacion!$A:$BE,MATCH(AK$1,Formulacion!$1:$1,0),FALSE)="NA",1,VLOOKUP($B65,Formulacion!$A:$BE,MATCH(AK$1,Formulacion!$1:$1,0),FALSE)) -> 30 | AL65: =IF(VLOOKUP($B65,Formulacion!$A:$BE,MATCH(AL$1,Formulacion!$1:$1,0),FALSE)="NA",1,VLOOKUP($B65,Formulacion!$A:$BE,MATCH(AL$1,Formulacion!$1:$1,0),FALSE)) -> 0.3 | AM65: NC | AN65: =IF(VLOOKUP($B65,Formulacion!$A:$BE,MATCH(AN$1,Formulacion!$1:$1,0),FALSE)="NA","NA",IF(D65=0,"",VLOOKUP($B65,Formulacion!$A:$BE,MATCH(AN$1,Formulacion!$1:$1,0),FALSE))) -> 0206170220032403 | AO65: LABTM1 | AP65: HO | AQ65: 3AL | AR65: 002 | AV65: =IF(VLOOKUP($B65,Formulacion!$A:$BE,MATCH(AV$1,Formulacion!$1:$1,0),FALSE)="NA","NA",VLOOKUP(CONCATENATE(AO65,AP65,AQ65,AR65,AS65,AT65,AU65),ValoresReferenciales!$A:$D,4,FALSE)) -> 15.63451684 | AW65: =IF(VLOOKUP($B65,Formulacion!$A:$BE,MATCH(AW$1,Formulacion!$1:$1,0),FALSE)="NA","NA",HLOOKUP(VLOOKUP($B65,Formulacion!$A:$BE,MATCH(AW$1,Formulacion!$1:$1,0),FALSE),$Q:$Z,ROW(AW65),FALSE)) -> 322 | AX65: 14.20021739 | AY65: 1 | AZ65: =IF(VLOOKUP($B65,Formulacion!$A:$BE,MATCH(AZ$1,Formulacion!$1:$1,0),FALSE)="NA",1,VLOOKUP($B65,Formulacion!$A:$BE,MATCH(AZ$1,Formulacion!$1:$1,0),FALSE)) -> 1 | BA65: =IF(VLOOKUP($B65,Formulacion!$A:$BE,MATCH(BA$1,Formulacion!$1:$1,0),FALSE)="NA",1,VLOOKUP($B65,Formulacion!$A:$BE,MATCH(BA$1,Formulacion!$1:$1,0),FALSE)) -> 1 | BB65: 4572.47 | BC65: 4572.47
A66: CC-01-AD-2010-EDECHI.xls | B66: DLABT | C66: 301012009100543 | D66: DLABTM100002P001HOC2ALA006 | E66: 2010-04-05 | F66: JACU | G66: 2 | H66: 0 | I66: 4.97 | J66: 0 | K66: 0 | L66: 0 | M66: 0 | N66: 4.97 | O66: 824 | P66: 0 | Q66: =IF(OR(VLOOKUP($B66,Formulacion!$A:$BE,MATCH(Q$1,Formulacion!$1:$1,0),FALSE)="NA",$D66=0),"NA",IF($B66="DLABT",MID($D66,PosteInicioBT,PosteFinBT-PosteInicioBT+1)*1,MID($D66,PosteInicio,PosteFin-PosteInicio+1)*1)) -> 1 | R66: =IF(OR(VLOOKUP($B66,Formulacion!$A:$BE,MATCH(R$1,Formulacion!$1:$1,0),FALSE)="NA",$D66=0),"NA",IF(OR($B66="DLABT",$B66="DLSBT"),MID($D66,CondInicioBT,CondFinBT-CondInicioBT+1)*1,MID($D66,CondInicio,CondFin-CondInicio+1)*1)) -> 2 | S66: =IF(Q66="NA","NA",IF(Q66=0,"SP",R66/Q66)) -> 2 | T66: =IF(OR(VLOOKUP($B66,Formulacion!$A:$BE,MATCH(T$1,Formulacion!$1:$1,0),FALSE)="NA",$D66=0),"NA",IF($B66="DLSBT",MID($D66,ZanjaInicioBT,ZanjaFinBT-ZanjaInicioBT+1)*1,MID($D66,ZanjaInicio,ZanjaFin-ZanjaInicio+1)*1)) -> NA | U66: 1 | V66: =IF(OR(VLOOKUP($B66,Formulacion!$A:$BE,MATCH(V$1,Formulacion!$1:$1,0),FALSE)="NA",$D66=0),"NA",MID($D66,m2Inicio+INDIRECT(B66),m2Fin-m2Inicio+1)*1) -> NA | W66: =IF(OR(VLOOKUP($B66,Formulacion!$A:$BE,MATCH(W$1,Formulacion!$1:$1,0),FALSE)="NA",$D66=0),"NA",RIGHT($D66,4)*1) -> NA | X66: =IF(OR(VLOOKUP($B66,Formulacion!$A:$BE,MATCH(X$1,Formulacion!$1:$1,0),FALSE)="NA",$D66=0),"NA",RIGHT($D66,3)*1) -> NA | Y66: =IF(OR(AND(W66="NA",X66="NA"),AND(W66="NA",X66>CantTrbtOtCMin),AND(W66>CantTrbtOtCMin,X66="NA")),1,0) -> 1 | Z66: =IF(VLOOKUP($B66,Formulacion!$A:$BE,MATCH(Z$1,Formulacion!$1:$1,0),FALSE)="NA",1,IF(V66<=m2Min,0,1)) -> 1 | AA66: =IF(VLOOKUP($B66,Formulacion!$A:$BE,MATCH(AA$1,Formulacion!$1:$1,0),FALSE)="NA",1,IF(OR(E66<=FechaMin,E66>FechaMax),0,1)) -> 1 | AB66: =IF(VLOOKUP($B66,Formulacion!$A:$BE,MATCH(AB$1,Formulacion!$1:$1,0),FALSE)="NA",1,IF(H66<=MaterialesMin,0,1)) -> 0 | AC66: =IF(VLOOKUP($B66,Formulacion!$A:$BE,MATCH(AC$1,Formulacion!$1:$1,0),FALSE)="NA",1,IF(N66=0,0,IF(OR(I66/N66<=MObraMin,I66/N66>=MObraMax),MDOmin,1))) -> 0 | AD66: =IF(VLOOKUP($B66,Formulacion!$A:$BE,MATCH(AD$1,Formulacion!$1:$1,0),FALSE)="NA",1,IF(N66<=CostoTotalMin,0,1)) -> 0 | AE66: =IF(VLOOKUP($B66,Formulacion!$A:$BE,MATCH(AE$1,Formulacion!$1:$1,0),FALSE)="NA",1,IF(Q66<=PostesMin,0,1)) -> 0 | AF66: =IF(VLOOKUP($B66,Formulacion!$A:$BE,MATCH(AF$1,Formulacion!$1:$1,0),FALSE)="NA",1,IF(R66<=INDIRECT(VLOOKUP(B66,Formulacion!$A:$BE,2,FALSE)),0,1)) -> 0 | AG66: =Y66*Z66*AA66*AB66*AC66*AD66*MAX(AE66,AF66) -> 0 | AH66: =N66*AG66 -> 0 | AJ66: =IF(VLOOKUP($B66,Formulacion!$A:$BE,MATCH(AJ$1,Formulacion!$1:$1,0),FALSE)="NA","NA",HLOOKUP(VLOOKUP($B66,Formulacion!$A:$BE,MATCH(AJ$1,Formulacion!$1:$1,0),FALSE),$Q:$Z,ROW(AJ66),FALSE)) -> 2 | AK66: =IF(VLOOKUP($B66,Formulacion!$A:$BE,MATCH(AK$1,Formulacion!$1:$1,0),FALSE)="NA",1,VLOOKUP($B66,Formulacion!$A:$BE,MATCH(AK$1,Formulacion!$1:$1,0),FALSE)) -> 30 | AL66: =IF(VLOOKUP($B66,Formulacion!$A:$BE,MATCH(AL$1,Formulacion!$1:$1,0),FALSE)="NA",1,VLOOKUP($B66,Formulacion!$A:$BE,MATCH(AL$1,Formulacion!$1:$1,0),FALSE)) -> 0.3 | AM66: =IF(AJ66="NA",1,IF(AJ66<=AK66*(1+AL66),"CU","NC")) -> CU | AN66: =IF(VLOOKUP($B66,Formulacion!$A:$BE,MATCH(AN$1,Formulacion!$1:$1,0),FALSE)="NA","NA",IF(D66=0,"",VLOOKUP($B66,Formulacion!$A:$BE,MATCH(AN$1,Formulacion!$1:$1,0),FALSE))) -> 0206170220032403 | AO66: =IF(OR(MID(AN66,1,2)="",MID(AN66,1,2)="NA"),"X",MID(D66,MID(AN66,1,2),MID(AN66,3,2))) -> LABTM1 | AP66: =IF(MID(AN66,5,2)="","",MID(D66,MID(AN66,5,2),MID(AN66,7,2))) -> HO | AQ66: =IF(MID(AN66,9,2)="","",MID(D66,MID(AN66,9,2),MID(AN66,11,2))) -> 2AL | AR66: =IF(MID(AN66,13,2)="","",MID(D66,MID(AN66,13,2),MID(AN66,15,2))) -> 006 | AS66: =IF(MID(AN66,17,2)="","",MID(D66,MID(AN66,17,2),MID(AN66,19,2))) ->  | AT66: =IF(MID(AN66,21,2)="","",MID(D66,MID(AN66,21,2),MID(AN66,23,2))) ->  | AU66: =IF(MID(AN66,25,2)="","",MID(D66,MID(AN66,25,2),MID(AN66,27,2))) ->  | AV66: =IF(VLOOKUP($B66,Formulacion!$A:$BE,MATCH(AV$1,Formulacion!$1:$1,0),FALSE)="NA","NA",VLOOKUP(CONCATENATE(AO66,AP66,AQ66,AR66,AS66,AT66,AU66),ValoresReferenciales!$A:$D,4,FALSE)) -> 18.09655661 | AW66: =IF(VLOOKUP($B66,Formulacion!$A:$BE,MATCH(AW$1,Formulacion!$1:$1,0),FALSE)="NA","NA",HLOOKUP(VLOOKUP($B66,Formulacion!$A:$BE,MATCH(AW$1,Formulacion!$1:$1,0),FALSE),$Q:$Z,ROW(AW66),FALSE)) -> 2 | AX66: =IF(AV66="NA","NA",IF(AW66=0,0,N66/AW66)) -> 2.485 | AY66: =IF(OR(AX66="NA",AM66="NC"),1,IF(AX66<AV66,1,AV66/AX66)) -> 1 | AZ66: =IF(VLOOKUP($B66,Formulacion!$A:$BE,MATCH(AZ$1,Formulacion!$1:$1,0),FALSE)="NA",1,VLOOKUP($B66,Formulacion!$A:$BE,MATCH(AZ$1,Formulacion!$1:$1,0),FALSE)) -> 1 | BA66: =IF(VLOOKUP($B66,Formulacion!$A:$BE,MATCH(BA$1,Formulacion!$1:$1,0),FALSE)="NA",1,VLOOKUP($B66,Formulacion!$A:$BE,MATCH(BA$1,Formulacion!$1:$1,0),FALSE)) -> 1 | BB66: =AH66*AY66*AZ66*BA66 -> 0 | BC66: =+N66*AA66 -> 4.97
A67: CC-01-AD-2010-EDECHI.xls | B67: DLABT | C67: 301012009100699 | D67: DLABTM100002P000HOC3ALA002 | E67: 2010-01-27 | F67: PUERTO ARMUELLE | G67: 2 | H67: 111.97 | I67: 51.15 | J67: 0 | K67: 30.55 | L67: 0 | M67: 0 | N67: 193.67 | O67: 193 | P67: 0 | Q67: =IF(OR(VLOOKUP($B67,Formulacion!$A:$BE,MATCH(Q$1,Formulacion!$1:$1,0),FALSE)="NA",$D67=0),"NA",IF($B67="DLABT",MID($D67,PosteInicioBT,PosteFinBT-PosteInicioBT+1)*1,MID($D67,PosteInicio,PosteFin-PosteInicio+1)*1)) -> 0 | R67: =IF(OR(VLOOKUP($B67,Formulacion!$A:$BE,MATCH(R$1,Formulacion!$1:$1,0),FALSE)="NA",$D67=0),"NA",IF(OR($B67="DLABT",$B67="DLSBT"),MID($D67,CondInicioBT,CondFinBT-CondInicioBT+1)*1,MID($D67,CondInicio,CondFin-CondInicio+1)*1)) -> 2 | S67: SP | T67: =IF(OR(VLOOKUP($B67,Formulacion!$A:$BE,MATCH(T$1,Formulacion!$1:$1,0),FALSE)="NA",$D67=0),"NA",IF($B67="DLSBT",MID($D67,ZanjaInicioBT,ZanjaFinBT-ZanjaInicioBT+1)*1,MID($D67,ZanjaInicio,ZanjaFin-ZanjaInicio+1)*1)) -> NA | U67: 1 | V67: =IF(OR(VLOOKUP($B67,Formulacion!$A:$BE,MATCH(V$1,Formulacion!$1:$1,0),FALSE)="NA",$D67=0),"NA",MID($D67,m2Inicio+INDIRECT(B67),m2Fin-m2Inicio+1)*1) -> NA | W67: =IF(OR(VLOOKUP($B67,Formulacion!$A:$BE,MATCH(W$1,Formulacion!$1:$1,0),FALSE)="NA",$D67=0),"NA",RIGHT($D67,4)*1) -> NA | X67: =IF(OR(VLOOKUP($B67,Formulacion!$A:$BE,MATCH(X$1,Formulacion!$1:$1,0),FALSE)="NA",$D67=0),"NA",RIGHT($D67,3)*1) -> NA | Y67: 1 | Z67: =IF(VLOOKUP($B67,Formulacion!$A:$BE,MATCH(Z$1,Formulacion!$1:$1,0),FALSE)="NA",1,IF(V67<=m2Min,0,1)) -> 1 | AA67: =IF(VLOOKUP($B67,Formulacion!$A:$BE,MATCH(AA$1,Formulacion!$1:$1,0),FALSE)="NA",1,IF(OR(E67<=FechaMin,E67>FechaMax),0,1)) -> 1 | AB67: =IF(VLOOKUP($B67,Formulacion!$A:$BE,MATCH(AB$1,Formulacion!$1:$1,0),FALSE)="NA",1,IF(H67<=MaterialesMin,0,1)) -> 1 | AC67: =IF(VLOOKUP($B67,Formulacion!$A:$BE,MATCH(AC$1,Formulacion!$1:$1,0),FALSE)="NA",1,IF(N67=0,0,IF(OR(I67/N67<=MObraMin,I67/N67>=MObraMax),MDOmin,1))) -> 1 | AD67: =IF(VLOOKUP($B67,Formulacion!$A:$BE,MATCH(AD$1,Formulacion!$1:$1,0),FALSE)="NA",1,IF(N67<=CostoTotalMin,0,1)) -> 1 | AE67: =IF(VLOOKUP($B67,Formulacion!$A:$BE,MATCH(AE$1,Formulacion!$1:$1,0),FALSE)="NA",1,IF(Q67<=PostesMin,0,1)) -> 0 | AF67: =IF(VLOOKUP($B67,Formulacion!$A:$BE,MATCH(AF$1,Formulacion!$1:$1,0),FALSE)="NA",1,IF(R67<=INDIRECT(VLOOKUP(B67,Formulacion!$A:$BE,2,FALSE)),0,1)) -> 0 | AG67: 0 | AH67: 0 | AJ67: =IF(VLOOKUP($B67,Formulacion!$A:$BE,MATCH(AJ$1,Formulacion!$1:$1,0),FALSE)="NA","NA",HLOOKUP(VLOOKUP($B67,Formulacion!$A:$BE,MATCH(AJ$1,Formulacion!$1:$1,0),FALSE),$Q:$Z,ROW(AJ67),FALSE)) -> SP | AK67: =IF(VLOOKUP($B67,Formulacion!$A:$BE,MATCH(AK$1,Formulacion!$1:$1,0),FALSE)="NA",1,VLOOKUP($B67,Formulacion!$A:$BE,MATCH(AK$1,Formulacion!$1:$1,0),FALSE)) -> 30 | AL67: =IF(VLOOKUP($B67,Formulacion!$A:$BE,MATCH(AL$1,Formulacion!$1:$1,0),FALSE)="NA",1,VLOOKUP($B67,Formulacion!$A:$BE,MATCH(AL$1,Formulacion!$1:$1,0),FALSE)) -> 0.3 | AM67: NC | AN67: =IF(VLOOKUP($B67,Formulacion!$A:$BE,MATCH(AN$1,Formulacion!$1:$1,0),FALSE)="NA","NA",IF(D67=0,"",VLOOKUP($B67,Formulacion!$A:$BE,MATCH(AN$1,Formulacion!$1:$1,0),FALSE))) -> 0206170220032403 | AO67: LABTM1 | AP67: HO | AQ67: 3AL | AR67: 002 | AV67: =IF(VLOOKUP($B67,Formulacion!$A:$BE,MATCH(AV$1,Formulacion!$1:$1,0),FALSE)="NA","NA",VLOOKUP(CONCATENATE(AO67,AP67,AQ67,AR67,AS67,AT67,AU67),ValoresReferenciales!$A:$D,4,FALSE)) -> 15.63451684 | AW67: =IF(VLOOKUP($B67,Formulacion!$A:$BE,MATCH(AW$1,Formulacion!$1:$1,0),FALSE)="NA","NA",HLOOKUP(VLOOKUP($B67,Formulacion!$A:$BE,MATCH(AW$1,Formulacion!$1:$1,0),FALSE),$Q:$Z,ROW(AW67),FALSE)) -> 2 | AX67: 96.835 | AY67: 1 | AZ67: =IF(VLOOKUP($B67,Formulacion!$A:$BE,MATCH(AZ$1,Formulacion!$1:$1,0),FALSE)="NA",1,VLOOKUP($B67,Formulacion!$A:$BE,MATCH(AZ$1,Formulacion!$1:$1,0),FALSE)) -> 1 | BA67: =IF(VLOOKUP($B67,Formulacion!$A:$BE,MATCH(BA$1,Formulacion!$1:$1,0),FALSE)="NA",1,VLOOKUP($B67,Formulacion!$A:$BE,MATCH(BA$1,Formulacion!$1:$1,0),FALSE)) -> 1 | BB67: 0 | BC67: 193.67
A68: CC-01-AD-2010-EDECHI.xls | B68: DLABT | C68: 301012009100699 | D68: DLABTM100078P002HOC3ALA1/0 | E68: 2010-01-27 | F68: PUERTO ARMUELLE | G68: 78 | H68: 1035.74 | I68: 473.1 | J68: 0 | K68: 282.63 | L68: 0 | M68: 0 | N68: 1791.47 | O68: 194 | P68: 0 | Q68: =IF(OR(VLOOKUP($B68,Formulacion!$A:$BE,MATCH(Q$1,Formulacion!$1:$1,0),FALSE)="NA",$D68=0),"NA",IF($B68="DLABT",MID($D68,PosteInicioBT,PosteFinBT-PosteInicioBT+1)*1,MID($D68,PosteInicio,PosteFin-PosteInicio+1)*1)) -> 2 | R68: =IF(OR(VLOOKUP($B68,Formulacion!$A:$BE,MATCH(R$1,Formulacion!$1:$1,0),FALSE)="NA",$D68=0),"NA",IF(OR($B68="DLABT",$B68="DLSBT"),MID($D68,CondInicioBT,CondFinBT-CondInicioBT+1)*1,MID($D68,CondInicio,CondFin-CondInicio+1)*1)) -> 78 | S68: 39 | T68: =IF(OR(VLOOKUP($B68,Formulacion!$A:$BE,MATCH(T$1,Formulacion!$1:$1,0),FALSE)="NA",$D68=0),"NA",IF($B68="DLSBT",MID($D68,ZanjaInicioBT,ZanjaFinBT-ZanjaInicioBT+1)*1,MID($D68,ZanjaInicio,ZanjaFin-ZanjaInicio+1)*1)) -> NA | U68: 1 | V68: =IF(OR(VLOOKUP($B68,Formulacion!$A:$BE,MATCH(V$1,Formulacion!$1:$1,0),FALSE)="NA",$D68=0),"NA",MID($D68,m2Inicio+INDIRECT(B68),m2Fin-m2Inicio+1)*1) -> NA | W68: =IF(OR(VLOOKUP($B68,Formulacion!$A:$BE,MATCH(W$1,Formulacion!$1:$1,0),FALSE)="NA",$D68=0),"NA",RIGHT($D68,4)*1) -> NA | X68: =IF(OR(VLOOKUP($B68,Formulacion!$A:$BE,MATCH(X$1,Formulacion!$1:$1,0),FALSE)="NA",$D68=0),"NA",RIGHT($D68,3)*1) -> NA | Y68: 1 | Z68: =IF(VLOOKUP($B68,Formulacion!$A:$BE,MATCH(Z$1,Formulacion!$1:$1,0),FALSE)="NA",1,IF(V68<=m2Min,0,1)) -> 1 | AA68: =IF(VLOOKUP($B68,Formulacion!$A:$BE,MATCH(AA$1,Formulacion!$1:$1,0),FALSE)="NA",1,IF(OR(E68<=FechaMin,E68>FechaMax),0,1)) -> 1 | AB68: =IF(VLOOKUP($B68,Formulacion!$A:$BE,MATCH(AB$1,Formulacion!$1:$1,0),FALSE)="NA",1,IF(H68<=MaterialesMin,0,1)) -> 1 | AC68: =IF(VLOOKUP($B68,Formulacion!$A:$BE,MATCH(AC$1,Formulacion!$1:$1,0),FALSE)="NA",1,IF(N68=0,0,IF(OR(I68/N68<=MObraMin,I68/N68>=MObraMax),MDOmin,1))) -> 1 | AD68: =IF(VLOOKUP($B68,Formulacion!$A:$BE,MATCH(AD$1,Formulacion!$1:$1,0),FALSE)="NA",1,IF(N68<=CostoTotalMin,0,1)) -> 1 | AE68: =IF(VLOOKUP($B68,Formulacion!$A:$BE,MATCH(AE$1,Formulacion!$1:$1,0),FALSE)="NA",1,IF(Q68<=PostesMin,0,1)) -> 0 | AF68: =IF(VLOOKUP($B68,Formulacion!$A:$BE,MATCH(AF$1,Formulacion!$1:$1,0),FALSE)="NA",1,IF(R68<=INDIRECT(VLOOKUP(B68,Formulacion!$A:$BE,2,FALSE)),0,1)) -> 1 | AG68: 1 | AH68: 1791.47 | AJ68: =IF(VLOOKUP($B68,Formulacion!$A:$BE,MATCH(AJ$1,Formulacion!$1:$1,0),FALSE)="NA","NA",HLOOKUP(VLOOKUP($B68,Formulacion!$A:$BE,MATCH(AJ$1,Formulacion!$1:$1,0),FALSE),$Q:$Z,ROW(AJ68),FALSE)) -> 39 | AK68: =IF(VLOOKUP($B68,Formulacion!$A:$BE,MATCH(AK$1,Formulacion!$1:$1,0),FALSE)="NA",1,VLOOKUP($B68,Formulacion!$A:$BE,MATCH(AK$1,Formulacion!$1:$1,0),FALSE)) -> 30 | AL68: =IF(VLOOKUP($B68,Formulacion!$A:$BE,MATCH(AL$1,Formulacion!$1:$1,0),FALSE)="NA",1,VLOOKUP($B68,Formulacion!$A:$BE,MATCH(AL$1,Formulacion!$1:$1,0),FALSE)) -> 0.3 | AM68: CU | AN68: =IF(VLOOKUP($B68,Formulacion!$A:$BE,MATCH(AN$1,Formulacion!$1:$1,0),FALSE)="NA","NA",IF(D68=0,"",VLOOKUP($B68,Formulacion!$A:$BE,MATCH(AN$1,Formulacion!$1:$1,0),FALSE))) -> 0206170220032403 | AO68: LABTM1 | AP68: HO | AQ68: 3AL | AR68: 1/0 | AV68: =IF(VLOOKUP($B68,Formulacion!$A:$BE,MATCH(AV$1,Formulacion!$1:$1,0),FALSE)="NA","NA",VLOOKUP(CONCATENATE(AO68,AP68,AQ68,AR68,AS68,AT68,AU68),ValoresReferenciales!$A:$D,4,FALSE)) -> 17.37168537 | AW68: =IF(VLOOKUP($B68,Formulacion!$A:$BE,MATCH(AW$1,Formulacion!$1:$1,0),FALSE)="NA","NA",HLOOKUP(VLOOKUP($B68,Formulacion!$A:$BE,MATCH(AW$1,Formulacion!$1:$1,0),FALSE),$Q:$Z,ROW(AW68),FALSE)) -> 78 | AX68: 22.9675641 | AY68: 0.7563573261 | AZ68: =IF(VLOOKUP($B68,Formulacion!$A:$BE,MATCH(AZ$1,Formulacion!$1:$1,0),FALSE)="NA",1,VLOOKUP($B68,Formulacion!$A:$BE,MATCH(AZ$1,Formulacion!$1:$1,0),FALSE)) -> 1 | BA68: =IF(VLOOKUP($B68,Formulacion!$A:$BE,MATCH(BA$1,Formulacion!$1:$1,0),FALSE)="NA",1,VLOOKUP($B68,Formulacion!$A:$BE,MATCH(BA$1,Formulacion!$1:$1,0),FALSE)) -> 1 | BB68: 1354.991459 | BC68: 1791.47
A69: CC-01-AD-2010-EDECHI.xls | B69: DLABT | C69: 301012009100700 | D69: DLABTM100000P000HOC3ALA006 | E69: 2010-01-27 | F69: CALDERA | G69: 0 | H69: 37.36 | I69: 10.32 | J69: 0 | K69: 7.53 | L69: 0 | M69: 0 | N69: 55.21 | O69: 106 | P69: 0 | Q69: =IF(OR(VLOOKUP($B69,Formulacion!$A:$BE,MATCH(Q$1,Formulacion!$1:$1,0),FALSE)="NA",$D69=0),"NA",IF($B69="DLABT",MID($D69,PosteInicioBT,PosteFinBT-PosteInicioBT+1)*1,MID($D69,PosteInicio,PosteFin-PosteInicio+1)*1)) -> 0 | R69: =IF(OR(VLOOKUP($B69,Formulacion!$A:$BE,MATCH(R$1,Formulacion!$1:$1,0),FALSE)="NA",$D69=0),"NA",IF(OR($B69="DLABT",$B69="DLSBT"),MID($D69,CondInicioBT,CondFinBT-CondInicioBT+1)*1,MID($D69,CondInicio,CondFin-CondInicio+1)*1)) -> 0 | S69: SP | T69: =IF(OR(VLOOKUP($B69,Formulacion!$A:$BE,MATCH(T$1,Formulacion!$1:$1,0),FALSE)="NA",$D69=0),"NA",IF($B69="DLSBT",MID($D69,ZanjaInicioBT,ZanjaFinBT-ZanjaInicioBT+1)*1,MID($D69,ZanjaInicio,ZanjaFin-ZanjaInicio+1)*1)) -> NA | U69: 1 | V69: =IF(OR(VLOOKUP($B69,Formulacion!$A:$BE,MATCH(V$1,Formulacion!$1:$1,0),FALSE)="NA",$D69=0),"NA",MID($D69,m2Inicio+INDIRECT(B69),m2Fin-m2Inicio+1)*1) -> NA | W69: =IF(OR(VLOOKUP($B69,Formulacion!$A:$BE,MATCH(W$1,Formulacion!$1:$1,0),FALSE)="NA",$D69=0),"NA",RIGHT($D69,4)*1) -> NA | X69: =IF(OR(VLOOKUP($B69,Formulacion!$A:$BE,MATCH(X$1,Formulacion!$1:$1,0),FALSE)="NA",$D69=0),"NA",RIGHT($D69,3)*1) -> NA | Y69: 1 | Z69: =IF(VLOOKUP($B69,Formulacion!$A:$BE,MATCH(Z$1,Formulacion!$1:$1,0),FALSE)="NA",1,IF(V69<=m2Min,0,1)) -> 1 | AA69: =IF(VLOOKUP($B69,Formulacion!$A:$BE,MATCH(AA$1,Formulacion!$1:$1,0),FALSE)="NA",1,IF(OR(E69<=FechaMin,E69>FechaMax),0,1)) -> 1 | AB69: =IF(VLOOKUP($B69,Formulacion!$A:$BE,MATCH(AB$1,Formulacion!$1:$1,0),FALSE)="NA",1,IF(H69<=MaterialesMin,0,1)) -> 1 | AC69: =IF(VLOOKUP($B69,Formulacion!$A:$BE,MATCH(AC$1,Formulacion!$1:$1,0),FALSE)="NA",1,IF(N69=0,0,IF(OR(I69/N69<=MObraMin,I69/N69>=MObraMax),MDOmin,1))) -> 1 | AD69: =IF(VLOOKUP($B69,Formulacion!$A:$BE,MATCH(AD$1,Formulacion!$1:$1,0),FALSE)="NA",1,IF(N69<=CostoTotalMin,0,1)) -> 0 | AE69: =IF(VLOOKUP($B69,Formulacion!$A:$BE,MATCH(AE$1,Formulacion!$1:$1,0),FALSE)="NA",1,IF(Q69<=PostesMin,0,1)) -> 0 | AF69: =IF(VLOOKUP($B69,Formulacion!$A:$BE,MATCH(AF$1,Formulacion!$1:$1,0),FALSE)="NA",1,IF(R69<=INDIRECT(VLOOKUP(B69,Formulacion!$A:$BE,2,FALSE)),0,1)) -> 0 | AG69: 0 | AH69: 0 | AJ69: =IF(VLOOKUP($B69,Formulacion!$A:$BE,MATCH(AJ$1,Formulacion!$1:$1,0),FALSE)="NA","NA",HLOOKUP(VLOOKUP($B69,Formulacion!$A:$BE,MATCH(AJ$1,Formulacion!$1:$1,0),FALSE),$Q:$Z,ROW(AJ69),FALSE)) -> SP | AK69: =IF(VLOOKUP($B69,Formulacion!$A:$BE,MATCH(AK$1,Formulacion!$1:$1,0),FALSE)="NA",1,VLOOKUP($B69,Formulacion!$A:$BE,MATCH(AK$1,Formulacion!$1:$1,0),FALSE)) -> 30 | AL69: =IF(VLOOKUP($B69,Formulacion!$A:$BE,MATCH(AL$1,Formulacion!$1:$1,0),FALSE)="NA",1,VLOOKUP($B69,Formulacion!$A:$BE,MATCH(AL$1,Formulacion!$1:$1,0),FALSE)) -> 0.3 | AM69: NC | AN69: =IF(VLOOKUP($B69,Formulacion!$A:$BE,MATCH(AN$1,Formulacion!$1:$1,0),FALSE)="NA","NA",IF(D69=0,"",VLOOKUP($B69,Formulacion!$A:$BE,MATCH(AN$1,Formulacion!$1:$1,0),FALSE))) -> 0206170220032403 | AO69: LABTM1 | AP69: HO | AQ69: 3AL | AR69: 006 | AV69: =IF(VLOOKUP($B69,Formulacion!$A:$BE,MATCH(AV$1,Formulacion!$1:$1,0),FALSE)="NA","NA",VLOOKUP(CONCATENATE(AO69,AP69,AQ69,AR69,AS69,AT69,AU69),ValoresReferenciales!$A:$D,4,FALSE)) -> 14.76593257 | AW69: =IF(VLOOKUP($B69,Formulacion!$A:$BE,MATCH(AW$1,Formulacion!$1:$1,0),FALSE)="NA","NA",HLOOKUP(VLOOKUP($B69,Formulacion!$A:$BE,MATCH(AW$1,Formulacion!$1:$1,0),FALSE),$Q:$Z,ROW(AW69),FALSE)) -> 0 | AX69: 0 | AY69: =IFERROR(IF(OR(AX69="NA",AM69="NC"),1,IF(AX69<AV69,1,AV69/AX69)),100%) -> 1 | AZ69: =IF(VLOOKUP($B69,Formulacion!$A:$BE,MATCH(AZ$1,Formulacion!$1:$1,0),FALSE)="NA",1,VLOOKUP($B69,Formulacion!$A:$BE,MATCH(AZ$1,Formulacion!$1:$1,0),FALSE)) -> 1 | BA69: =IF(VLOOKUP($B69,Formulacion!$A:$BE,MATCH(BA$1,Formulacion!$1:$1,0),FALSE)="NA",1,VLOOKUP($B69,Formulacion!$A:$BE,MATCH(BA$1,Formulacion!$1:$1,0),FALSE)) -> 1 | BB69: =(AH69*AY69*AZ69*BA69) -> 0 | BC69: 55.21
A70: CC-01-AD-2010-EDECHI.xls | B70: DLABT | C70: 301012009100700 | D70: DLABTM100398P001HOC3ALA002 | E70: 2010-01-27 | F70: CALDERA | G70: 398 | H70: 1329.89 | I70: 367.42 | J70: 0 | K70: 268.07 | L70: 0 | M70: 0 | N70: 1965.38 | O70: 105 | P70: 0 | Q70: =IF(OR(VLOOKUP($B70,Formulacion!$A:$BE,MATCH(Q$1,Formulacion!$1:$1,0),FALSE)="NA",$D70=0),"NA",IF($B70="DLABT",MID($D70,PosteInicioBT,PosteFinBT-PosteInicioBT+1)*1,MID($D70,PosteInicio,PosteFin-PosteInicio+1)*1)) -> 1 | R70: =IF(OR(VLOOKUP($B70,Formulacion!$A:$BE,MATCH(R$1,Formulacion!$1:$1,0),FALSE)="NA",$D70=0),"NA",IF(OR($B70="DLABT",$B70="DLSBT"),MID($D70,CondInicioBT,CondFinBT-CondInicioBT+1)*1,MID($D70,CondInicio,CondFin-CondInicio+1)*1)) -> 398 | S70: 398 | T70: =IF(OR(VLOOKUP($B70,Formulacion!$A:$BE,MATCH(T$1,Formulacion!$1:$1,0),FALSE)="NA",$D70=0),"NA",IF($B70="DLSBT",MID($D70,ZanjaInicioBT,ZanjaFinBT-ZanjaInicioBT+1)*1,MID($D70,ZanjaInicio,ZanjaFin-ZanjaInicio+1)*1)) -> NA | U70: 1 | V70: =IF(OR(VLOOKUP($B70,Formulacion!$A:$BE,MATCH(V$1,Formulacion!$1:$1,0),FALSE)="NA",$D70=0),"NA",MID($D70,m2Inicio+INDIRECT(B70),m2Fin-m2Inicio+1)*1) -> NA | W70: =IF(OR(VLOOKUP($B70,Formulacion!$A:$BE,MATCH(W$1,Formulacion!$1:$1,0),FALSE)="NA",$D70=0),"NA",RIGHT($D70,4)*1) -> NA | X70: =IF(OR(VLOOKUP($B70,Formulacion!$A:$BE,MATCH(X$1,Formulacion!$1:$1,0),FALSE)="NA",$D70=0),"NA",RIGHT($D70,3)*1) -> NA | Y70: 1 | Z70: =IF(VLOOKUP($B70,Formulacion!$A:$BE,MATCH(Z$1,Formulacion!$1:$1,0),FALSE)="NA",1,IF(V70<=m2Min,0,1)) -> 1 | AA70: =IF(VLOOKUP($B70,Formulacion!$A:$BE,MATCH(AA$1,Formulacion!$1:$1,0),FALSE)="NA",1,IF(OR(E70<=FechaMin,E70>FechaMax),0,1)) -> 1 | AB70: =IF(VLOOKUP($B70,Formulacion!$A:$BE,MATCH(AB$1,Formulacion!$1:$1,0),FALSE)="NA",1,IF(H70<=MaterialesMin,0,1)) -> 1 | AC70: =IF(VLOOKUP($B70,Formulacion!$A:$BE,MATCH(AC$1,Formulacion!$1:$1,0),FALSE)="NA",1,IF(N70=0,0,IF(OR(I70/N70<=MObraMin,I70/N70>=MObraMax),MDOmin,1))) -> 1 | AD70: =IF(VLOOKUP($B70,Formulacion!$A:$BE,MATCH(AD$1,Formulacion!$1:$1,0),FALSE)="NA",1,IF(N70<=CostoTotalMin,0,1)) -> 1 | AE70: =IF(VLOOKUP($B70,Formulacion!$A:$BE,MATCH(AE$1,Formulacion!$1:$1,0),FALSE)="NA",1,IF(Q70<=PostesMin,0,1)) -> 0 | AF70: =IF(VLOOKUP($B70,Formulacion!$A:$BE,MATCH(AF$1,Formulacion!$1:$1,0),FALSE)="NA",1,IF(R70<=INDIRECT(VLOOKUP(B70,Formulacion!$A:$BE,2,FALSE)),0,1)) -> 1 | AG70: 1 | AH70: 1965.38 | AJ70: =IF(VLOOKUP($B70,Formulacion!$A:$BE,MATCH(AJ$1,Formulacion!$1:$1,0),FALSE)="NA","NA",HLOOKUP(VLOOKUP($B70,Formulacion!$A:$BE,MATCH(AJ$1,Formulacion!$1:$1,0),FALSE),$Q:$Z,ROW(AJ70),FALSE)) -> 398 | AK70: =IF(VLOOKUP($B70,Formulacion!$A:$BE,MATCH(AK$1,Formulacion!$1:$1,0),FALSE)="NA",1,VLOOKUP($B70,Formulacion!$A:$BE,MATCH(AK$1,Formulacion!$1:$1,0),FALSE)) -> 30 | AL70: =IF(VLOOKUP($B70,Formulacion!$A:$BE,MATCH(AL$1,Formulacion!$1:$1,0),FALSE)="NA",1,VLOOKUP($B70,Formulacion!$A:$BE,MATCH(AL$1,Formulacion!$1:$1,0),FALSE)) -> 0.3 | AM70: NC | AN70: =IF(VLOOKUP($B70,Formulacion!$A:$BE,MATCH(AN$1,Formulacion!$1:$1,0),FALSE)="NA","NA",IF(D70=0,"",VLOOKUP($B70,Formulacion!$A:$BE,MATCH(AN$1,Formulacion!$1:$1,0),FALSE))) -> 0206170220032403 | AO70: LABTM1 | AP70: HO | AQ70: 3AL | AR70: 002 | AV70: =IF(VLOOKUP($B70,Formulacion!$A:$BE,MATCH(AV$1,Formulacion!$1:$1,0),FALSE)="NA","NA",VLOOKUP(CONCATENATE(AO70,AP70,AQ70,AR70,AS70,AT70,AU70),ValoresReferenciales!$A:$D,4,FALSE)) -> 15.63451684 | AW70: =IF(VLOOKUP($B70,Formulacion!$A:$BE,MATCH(AW$1,Formulacion!$1:$1,0),FALSE)="NA","NA",HLOOKUP(VLOOKUP($B70,Formulacion!$A:$BE,MATCH(AW$1,Formulacion!$1:$1,0),FALSE),$Q:$Z,ROW(AW70),FALSE)) -> 398 | AX70: 4.938140704 | AY70: =IFERROR(IF(OR(AX70="NA",AM70="NC"),1,IF(AX70<AV70,1,AV70/AX70)),100%) -> 1 | AZ70: =IF(VLOOKUP($B70,Formulacion!$A:$BE,MATCH(AZ$1,Formulacion!$1:$1,0),FALSE)="NA",1,VLOOKUP($B70,Formulacion!$A:$BE,MATCH(AZ$1,Formulacion!$1:$1,0),FALSE)) -> 1 | BA70: =IF(VLOOKUP($B70,Formulacion!$A:$BE,MATCH(BA$1,Formulacion!$1:$1,0),FALSE)="NA",1,VLOOKUP($B70,Formulacion!$A:$BE,MATCH(BA$1,Formulacion!$1:$1,0),FALSE)) -> 1 | BB70: =(AH70*AY70*AZ70*BA70) -> 1965.38 | BC70: 1965.38
